Workbook

Sheet Main
A1: بسم الله الرحمن الرحيم | I1: كنترول شيت الصف الاول
A2: ادارة00000000 .. التعليمية | I2: للعام الدراسى2018 / 2019
A3: مدرسة 000000 التجارية

Sheet بيانات الطالبات
B1: بسم الله الرحمن الرحيم | M1: انتظام | N1: 371 | R1: مسلمة | S1: مسيحية | U1: اختيار ارقام الجلوس
B2: مدرسة 000000 التجارية | M2: خدمات | N2: 0 | R2: 371 | S2: 0
B3: طلبة الصف الاول للعام الدراسى 2018 / 2019 | M3: اجمالى | N3: 371 | U3: منتظمين | V3: 1
B4: مسلسل | C4: مسلسل | D4: جلوس | E4: الاسم | F4: الفصل | G4: الحالة | H4: تاريخ الميلاد | I4: السن فى | L4: الفترة | M4: الديانة | N4: اللجنة | O4: مقرها | P4: اخرى | U4: خدمات
I5: 2018-10-01
R6: الفصل | S6: العدد | V6: يتم تحديد اللجان والمقرات بورقة اللجان اولا ( ورقة لجان )
I7: يوم | J7: شهر | K7: سنة
B8: 1 | C8: 1 | D8: 1 | E8: طالب تجارة 1 | F8: 1/1 | G8: مستجد | H8: 2001-03-16 | I8: 15 | J8: 6 | K8: 17 | L8: انتظام | N8: 1 | O8: 4/2 | R8: 1/1 | S8: 49
B9: 2 | C9: 2 | D9: 2 | E9: طالب تجارة 2 | F9: 1/1 | G9: مستجد | H9: 2002-10-08 | I9: 23 | J9: 11 | K9: 15 | L9: انتظام | N9: 1 | O9: 4/2 | R9: 2/1 | S9: 48
B10: 3 | C10: 3 | D10: 3 | E10: طالب تجارة 3 | F10: 1/1 | G10: مستجد | H10: 2002-10-01 | I10: 0 | J10: 0 | K10: 16 | L10: انتظام | N10: 1 | O10: 4/2 | R10: 3/1 | S10: 40
B11: 4 | C11: 4 | D11: 4 | E11: طالب تجارة 4 | F11: 1/1 | G11: مستجد | H11: 2002-05-19 | I11: 12 | J11: 4 | K11: 16 | L11: انتظام | N11: 1 | O11: 4/2 | R11: 4/1 | S11: 17
B12: 5 | C12: 5 | D12: 5 | E12: طالب تجارة 5 | F12: 1/1 | G12: مستجد | H12: 2002-02-27 | I12: 4 | J12: 7 | K12: 16 | L12: انتظام | N12: 1 | O12: 4/2 | R12: 5/1 | S12: 56
B13: 6 | C13: 6 | D13: 6 | E13: طالب تجارة 6 | F13: 1/1 | G13: مستجد | H13: 2002-03-18 | I13: 13 | J13: 6 | K13: 16 | L13: انتظام | N13: 1 | O13: 4/2 | R13: 6/1 | S13: 0
B14: 7 | C14: 7 | D14: 7 | E14: طالب تجارة 7 | F14: 2/1 | G14: مستجد | H14: 2002-07-01 | I14: 0 | J14: 3 | K14: 16 | L14: انتظام | N14: 1 | O14: 4/2 | R14: 7/1 | S14: 0
B15: 8 | C15: 8 | D15: 8 | E15: طالب تجارة 8 | F15: 1/1 | G15: مستجد | H15: 2002-10-26 | I15: 5 | J15: 11 | K15: 15 | L15: انتظام | N15: 1 | O15: 4/2 | R15: 8/1 | S15: 0
B16: 9 | C16: 9 | D16: 9 | E16: طالب تجارة 9 | F16: 1/1 | G16: مستجد | H16: 2002-03-13 | I16: 18 | J16: 6 | K16: 16 | L16: انتظام | N16: 1 | O16: 4/2 | R16: 9/1 | S16: 0
B17: 10 | C17: 10 | D17: 10 | E17: طالب تجارة 10 | F17: 1/1 | G17: مستجد | H17: 2001-03-01 | I17: 0 | J17: 7 | K17: 17 | L17: انتظام | N17: 1 | O17: 4/2 | R17: 10/1 | S17: 0
B18: 11 | C18: 11 | D18: 11 | E18: طالب تجارة 11 | F18: 1/1 | G18: مستجد | H18: 2002-04-21 | I18: 10 | J18: 5 | K18: 16 | L18: انتظام | N18: 1 | O18: 4/2 | R18: 11/1 | S18: 0
B19: 12 | C19: 12 | D19: 12 | E19: طالب تجارة 12 | F19: 1/1 | G19: مستجد | H19: 2002-03-05 | I19: 26 | J19: 6 | K19: 16 | L19: انتظام | N19: 1 | O19: 4/2 | R19: 12/1 | S19: 0
B20: 13 | C20: 13 | D20: 13 | E20: طالب تجارة 13 | F20: 1/1 | G20: مستجد | H20: 2002-12-10 | I20: 21 | J20: 9 | K20: 15 | L20: انتظام | N20: 1 | O20: 4/2 | R20: 13/1 | S20: 0
B21: 14 | C21: 14 | D21: 14 | E21: طالب تجارة 14 | F21: 1/1 | G21: مستجد | H21: 2002-10-12 | I21: 19 | J21: 11 | K21: 15 | L21: انتظام | N21: 1 | O21: 4/2 | R21: 14/1 | S21: 0
B22: 15 | C22: 15 | D22: 15 | E22: طالب تجارة 15 | F22: 1/1 | G22: مستجد | H22: 2001-03-21 | I22: 10 | J22: 6 | K22: 17 | L22: انتظام | N22: 1 | O22: 4/2 | R22: 15/1 | S22: 0
B23: 16 | C23: 16 | D23: 16 | E23: طالب تجارة 16 | F23: 1/1 | G23: مستجد | H23: 2002-10-13 | I23: 18 | J23: 11 | K23: 15 | L23: انتظام | N23: 1 | O23: 4/2 | R23: 16/1 | S23: 0
B24: 17 | C24: 17 | D24: 17 | E24: طالب تجارة 17 | F24: 1/1 | G24: مستجد | H24: 2001-03-18 | I24: 13 | J24: 6 | K24: 17 | L24: انتظام | N24: 1 | O24: 4/2
B25: 18 | C25: 18 | D25: 18 | E25: طالب تجارة 18 | F25: 1/1 | G25: مستجد | H25: 2002-06-16 | I25: 15 | J25: 3 | K25: 16 | L25: انتظام | N25: 1 | O25: 4/2
B26: 19 | C26: 19 | D26: 19 | E26: طالب تجارة 19 | F26: 1/1 | G26: مستجد | H26: 2002-12-09 | I26: 22 | J26: 9 | K26: 15 | L26: انتظام | N26: 2 | O26: 5/2
B27: 20 | C27: 20 | D27: 20 | E27: طالب تجارة 20 | F27: 1/1 | G27: مستجد | H27: 2002-03-17 | I27: 14 | J27: 6 | K27: 16 | L27: انتظام | N27: 2 | O27: 5/2
B28: 21 | C28: 21 | D28: 21 | E28: طالب تجارة 21 | F28: 1/1 | G28: مستجد | H28: 2003-04-01 | I28: 0 | J28: 6 | K28: 15 | L28: انتظام | N28: 2 | O28: 5/2
B29: 22 | C29: 22 | D29: 22 | E29: طالب تجارة 22 | F29: 1/1 | G29: مستجد | H29: 2003-03-02 | I29: 29 | J29: 6 | K29: 15 | L29: انتظام | N29: 2 | O29: 5/2
B30: 23 | C30: 23 | D30: 23 | E30: طالب تجارة 23 | F30: 1/1 | G30: مستجد | H30: 2001-03-27 | I30: 4 | J30: 6 | K30: 17 | L30: انتظام | N30: 2 | O30: 5/2
B31: 24 | C31: 24 | D31: 24 | E31: طالب تجارة 24 | F31: 1/1 | G31: مستجد | H31: 2002-01-12 | I31: 19 | J31: 8 | K31: 16 | L31: انتظام | N31: 2 | O31: 5/2
B32: 25 | C32: 25 | D32: 25 | E32: طالب تجارة 25 | F32: 1/1 | G32: مستجد | H32: 2002-05-22 | I32: 9 | J32: 4 | K32: 16 | L32: انتظام | N32: 2 | O32: 5/2
B33: 26 | C33: 26 | D33: 26 | E33: طالب تجارة 26 | F33: 1/1 | G33: مستجد | H33: 2001-09-08 | I33: 23 | J33: 0 | K33: 17 | L33: انتظام | N33: 2 | O33: 5/2
B34: 27 | C34: 27 | D34: 27 | E34: طالب تجارة 27 | F34: 1/1 | G34: مستجد | H34: 2002-08-12 | I34: 19 | J34: 1 | K34: 16 | L34: انتظام | N34: 2 | O34: 5/2
B35: 28 | C35: 28 | D35: 28 | E35: طالب تجارة 28 | F35: 1/1 | G35: مستجد | H35: 2002-09-12 | I35: 19 | J35: 0 | K35: 16 | L35: انتظام | N35: 2 | O35: 5/2
B36: 29 | C36: 29 | D36: 29 | E36: طالب تجارة 29 | F36: 1/1 | G36: مستجد | H36: 2002-07-06 | I36: 25 | J36: 2 | K36: 16 | L36: انتظام | N36: 2 | O36: 5/2
B37: 30 | C37: 30 | D37: 30 | E37: طالب تجارة 30 | F37: 1/1 | G37: مستجد | H37: 2003-02-01 | I37: 0 | J37: 8 | K37: 15 | L37: انتظام | N37: 2 | O37: 5/2
B38: 31 | C38: 31 | D38: 31 | E38: طالب تجارة 31 | F38: 1/1 | G38: مستجد | H38: 2002-08-01 | I38: 0 | J38: 2 | K38: 16 | L38: انتظام | N38: 2 | O38: 5/2
B39: 32 | C39: 32 | D39: 32 | E39: طالب تجارة 32 | F39: 1/1 | G39: مستجد | H39: 2002-12-01 | I39: 0 | J39: 10 | K39: 15 | L39: انتظام | N39: 2 | O39: 5/2
B40: 33 | C40: 33 | D40: 33 | E40: طالب تجارة 33 | F40: 1/1 | G40: مستجد | H40: 2002-09-21 | I40: 10 | J40: 0 | K40: 16 | L40: انتظام | N40: 2 | O40: 5/2
B41: 34 | C41: 34 | D41: 34 | E41: طالب تجارة 34 | F41: 1/1 | G41: مستجد | H41: 2002-09-26 | I41: 5 | J41: 0 | K41: 16 | L41: انتظام | N41: 2 | O41: 5/2
B42: 35 | C42: 35 | D42: 35 | E42: طالب تجارة 35 | F42: 1/1 | G42: مستجد | H42: 2002-05-27 | I42: 4 | J42: 4 | K42: 16 | L42: انتظام | N42: 2 | O42: 5/2
B43: 36 | C43: 36 | D43: 36 | E43: طالب تجارة 36 | F43: 1/1 | G43: مستجد | H43: 2001-07-18 | I43: 13 | J43: 2 | K43: 17 | L43: انتظام | N43: 2 | O43: 5/2
B44: 37 | C44: 37 | D44: 37 | E44: طالب تجارة 37 | F44: 1/1 | G44: مستجد | H44: 2002-07-01 | I44: 0 | J44: 3 | K44: 16 | L44: انتظام | N44: 3 | O44: 6/2
B45: 38 | C45: 38 | D45: 38 | E45: طالب تجارة 38 | F45: 1/1 | G45: مستجد | H45: 2002-12-14 | I45: 17 | J45: 9 | K45: 15 | L45: انتظام | N45: 3 | O45: 6/2
B46: 39 | C46: 39 | D46: 39 | E46: طالب تجارة 39 | F46: 3/1 | G46: مستجد | H46: 2002-04-20 | I46: 11 | J46: 5 | K46: 16 | L46: انتظام | N46: 3 | O46: 6/2
B47: 40 | C47: 40 | D47: 40 | E47: طالب تجارة 40 | F47: 1/1 | G47: مستجد | H47: 2002-12-11 | I47: 20 | J47: 9 | K47: 15 | L47: انتظام | N47: 3 | O47: 6/2
B48: 41 | C48: 41 | D48: 41 | E48: طالب تجارة 41 | F48: 1/1 | G48: مستجد | H48: 2002-09-01 | I48: 0 | J48: 1 | K48: 16 | L48: انتظام | N48: 3 | O48: 6/2
B49: 42 | C49: 42 | D49: 42 | E49: طالب تجارة 42 | F49: 1/1 | G49: مستجد | H49: 2002-10-15 | I49: 16 | J49: 11 | K49: 15 | L49: انتظام | N49: 3 | O49: 6/2
B50: 43 | C50: 43 | D50: 43 | E50: طالب تجارة 43 | F50: 1/1 | G50: مستجد | H50: 2002-06-09 | I50: 22 | J50: 3 | K50: 16 | L50: انتظام | N50: 3 | O50: 6/2
B51: 44 | C51: 44 | D51: 44 | E51: طالب تجارة 44 | F51: 1/1 | G51: مستجد | H51: 2001-04-05 | I51: 26 | J51: 5 | K51: 17 | L51: انتظام | N51: 3 | O51: 6/2
B52: 45 | C52: 45 | D52: 45 | E52: طالب تجارة 45 | F52: 1/1 | G52: مستجد | H52: 2001-04-27 | I52: 4 | J52: 5 | K52: 17 | L52: انتظام | N52: 3 | O52: 6/2
B53: 46 | C53: 46 | D53: 46 | E53: طالب تجارة 46 | F53: 1/1 | G53: مستجد | H53: 2002-09-30 | I53: 1 | J53: 0 | K53: 16 | L53: انتظام | N53: 3 | O53: 6/2
B54: 47 | C54: 47 | D54: 47 | E54: طالب تجارة 47 | F54: 1/1 | G54: مستجد | H54: 2001-12-01 | I54: 0 | J54: 10 | K54: 16 | L54: انتظام | N54: 3 | O54: 6/2
B55: 48 | C55: 48 | D55: 48 | E55: طالب تجارة 48 | F55: 1/1 | G55: مستجد | H55: 2001-09-11 | I55: 20 | J55: 0 | K55: 17 | L55: انتظام | N55: 3 | O55: 6/2
B56: 49 | C56: 49 | D56: 49 | E56: طالب تجارة 49 | F56: 1/1 | G56: مستجد | H56: 2002-06-26 | I56: 5 | J56: 3 | K56: 16 | L56: انتظام | N56: 3 | O56: 6/2
B57: 50 | C57: 50 | D57: 50 | E57: طالب تجارة 50 | F57: 2/1 | G57: مستجد | H57: 2001-08-14 | I57: 17 | J57: 1 | K57: 17 | L57: انتظام | N57: 3 | O57: 6/2
B58: 51 | C58: 51 | D58: 51 | E58: طالب تجارة 51 | F58: 2/1 | G58: مستجد | H58: 2002-03-02 | I58: 29 | J58: 6 | K58: 16 | L58: انتظام | N58: 3 | O58: 6/2
B59: 52 | C59: 52 | D59: 52 | E59: طالب تجارة 52 | F59: 2/1 | G59: مستجد | H59: 2001-07-01 | I59: 0 | J59: 3 | K59: 17 | L59: انتظام | N59: 3 | O59: 6/2
B60: 53 | C60: 53 | D60: 53 | E60: طالب تجارة 53 | F60: 2/1 | G60: مستجد | H60: 2002-06-29 | I60: 2 | J60: 3 | K60: 16 | L60: انتظام | N60: 3 | O60: 6/2
B61: 54 | C61: 54 | D61: 54 | E61: طالب تجارة 54 | F61: 2/1 | G61: مستجد | H61: 2002-10-20 | I61: 11 | J61: 11 | K61: 15 | L61: انتظام | N61: 3 | O61: 6/2
B62: 55 | C62: 55 | D62: 55 | E62: طالب تجارة 55 | F62: 2/1 | G62: مستجد | H62: 2002-05-20 | I62: 11 | J62: 4 | K62: 16 | L62: انتظام | N62: 3 | O62: 6/2
B63: 56 | C63: 56 | D63: 56 | E63: طالب تجارة 56 | F63: 2/1 | G63: مستجد | H63: 2002-11-26 | I63: 5 | J63: 10 | K63: 15 | L63: انتظام | N63: 4 | O63: 2/2
B64: 57 | C64: 57 | D64: 57 | E64: طالب تجارة 57 | F64: 2/1 | G64: مستجد | H64: 2002-09-08 | I64: 23 | J64: 0 | K64: 16 | L64: انتظام | N64: 4 | O64: 2/2
B65: 58 | C65: 58 | D65: 58 | E65: طالب تجارة 58 | F65: 2/1 | G65: مستجد | H65: 2001-06-01 | I65: 0 | J65: 4 | K65: 17 | L65: انتظام | N65: 4 | O65: 2/2
B66: 59 | C66: 59 | D66: 59 | E66: طالب تجارة 59 | F66: 2/1 | G66: مستجد | H66: 2003-01-22 | I66: 9 | J66: 8 | K66: 15 | L66: انتظام | N66: 4 | O66: 2/2
B67: 60 | C67: 60 | D67: 60 | E67: طالب تجارة 60 | F67: 2/1 | G67: مستجد | H67: 2002-03-10 | I67: 21 | J67: 6 | K67: 16 | L67: انتظام | N67: 4 | O67: 2/2
B68: 61 | C68: 61 | D68: 61 | E68: طالب تجارة 61 | F68: 2/1 | G68: مستجد | H68: 2003-01-01 | I68: 0 | J68: 9 | K68: 15 | L68: انتظام | N68: 4 | O68: 2/2
B69: 62 | C69: 62 | D69: 62 | E69: طالب تجارة 62 | F69: 2/1 | G69: مستجد | H69: 2001-08-04 | I69: 27 | J69: 1 | K69: 17 | L69: انتظام | N69: 4 | O69: 2/2
B70: 63 | C70: 63 | D70: 63 | E70: طالب تجارة 63 | F70: 2/1 | G70: مستجد | H70: 2001-07-05 | I70: 26 | J70: 2 | K70: 17 | L70: انتظام | N70: 4 | O70: 2/2
B71: 64 | C71: 64 | D71: 64 | E71: طالب تجارة 64 | F71: 3/1 | G71: مستجد | H71: 2001-10-30 | I71: 1 | J71: 11 | K71: 16 | L71: انتظام | N71: 4 | O71: 2/2
B72: 65 | C72: 65 | D72: 65 | E72: طالب تجارة 65 | F72: 3/1 | G72: مستجد | H72: 2001-04-01 | I72: 0 | J72: 6 | K72: 17 | L72: انتظام | N72: 4 | O72: 2/2
B73: 66 | C73: 66 | D73: 66 | E73: طالب تجارة 66 | F73: 2/1 | G73: مستجد | H73: 2001-09-11 | I73: 20 | J73: 0 | K73: 17 | L73: انتظام | N73: 4 | O73: 2/2
B74: 67 | C74: 67 | D74: 67 | E74: طالب تجارة 67 | F74: 2/1 | G74: مستجد | H74: 2002-11-25 | I74: 6 | J74: 10 | K74: 15 | L74: انتظام | N74: 4 | O74: 2/2
B75: 68 | C75: 68 | D75: 68 | E75: طالب تجارة 68 | F75: 2/1 | G75: مستجد | H75: 2002-11-16 | I75: 15 | J75: 10 | K75: 15 | L75: انتظام | N75: 4 | O75: 2/2
B76: 69 | C76: 69 | D76: 69 | E76: طالب تجارة 69 | F76: 2/1 | G76: مستجد | H76: 2001-08-27 | I76: 4 | J76: 1 | K76: 17 | L76: انتظام | N76: 4 | O76: 2/2
B77: 70 | C77: 70 | D77: 70 | E77: طالب تجارة 70 | F77: 2/1 | G77: مستجد | H77: 2001-09-01 | I77: 0 | J77: 1 | K77: 17 | L77: انتظام | N77: 4 | O77: 2/2
B78: 71 | C78: 71 | D78: 71 | E78: طالب تجارة 71 | F78: 2/1 | G78: مستجد | H78: 2002-08-12 | I78: 19 | J78: 1 | K78: 16 | L78: انتظام | N78: 4 | O78: 2/2
B79: 72 | C79: 72 | D79: 72 | E79: طالب تجارة 72 | F79: 2/1 | G79: مستجد | H79: 2001-10-28 | I79: 3 | J79: 11 | K79: 16 | L79: انتظام | N79: 4 | O79: 2/2
B80: 73 | C80: 73 | D80: 73 | E80: طالب تجارة 73 | F80: 2/1 | G80: مستجد | H80: 2002-06-17 | I80: 14 | J80: 3 | K80: 16 | L80: انتظام | N80: 4 | O80: 2/2
B81: 74 | C81: 74 | D81: 74 | E81: طالب تجارة 74 | F81: 2/1 | G81: مستجد | H81: 2003-01-01 | I81: 0 | J81: 9 | K81: 15 | L81: انتظام | N81: 4 | O81: 2/2
B82: 75 | C82: 75 | D82: 75 | E82: طالب تجارة 75 | F82: 2/1 | G82: مستجد | H82: 2002-07-13 | I82: 18 | J82: 2 | K82: 16 | L82: انتظام | N82: 5 | O82: 4/1
B83: 76 | C83: 76 | D83: 76 | E83: طالب تجارة 76 | F83: 2/1 | G83: مستجد | H83: 2003-03-16 | I83: 15 | J83: 6 | K83: 15 | L83: انتظام | N83: 5 | O83: 4/1
B84: 77 | C84: 77 | D84: 77 | E84: طالب تجارة 77 | F84: 2/1 | G84: مستجد | H84: 2002-11-24 | I84: 7 | J84: 10 | K84: 15 | L84: انتظام | N84: 5 | O84: 4/1
B85: 78 | C85: 78 | D85: 78 | E85: طالب تجارة 78 | F85: 2/1 | G85: مستجد | H85: 2002-06-30 | I85: 1 | J85: 3 | K85: 16 | L85: انتظام | N85: 5 | O85: 4/1
B86: 79 | C86: 79 | D86: 79 | E86: طالب تجارة 79 | F86: 2/1 | G86: مستجد | H86: 2003-03-01 | I86: 0 | J86: 7 | K86: 15 | L86: انتظام | N86: 5 | O86: 4/1
B87: 80 | C87: 80 | D87: 80 | E87: طالب تجارة 80 | F87: 2/1 | G87: مستجد | H87: 2002-08-24 | I87: 7 | J87: 1 | K87: 16 | L87: انتظام | N87: 5 | O87: 4/1
B88: 81 | C88: 81 | D88: 81 | E88: طالب تجارة 81 | F88: 2/1 | G88: مستجد | H88: 2002-09-17 | I88: 14 | J88: 0 | K88: 16 | L88: انتظام | N88: 5 | O88: 4/1
B89: 82 | C89: 82 | D89: 82 | E89: طالب تجارة 82 | F89: 3/1 | G89: مستجد | H89: 2002-04-28 | I89: 3 | J89: 5 | K89: 16 | L89: انتظام | N89: 5 | O89: 4/1
B90: 83 | C90: 83 | D90: 83 | E90: طالب تجارة 83 | F90: 2/1 | G90: مستجد | H90: 2002-08-18 | I90: 13 | J90: 1 | K90: 16 | L90: انتظام | N90: 5 | O90: 4/1
B91: 84 | C91: 84 | D91: 84 | E91: طالب تجارة 84 | F91: 2/1 | G91: مستجد | H91: 1999-11-01 | I91: 0 | J91: 11 | K91: 18 | L91: انتظام | N91: 5 | O91: 4/1
B92: 85 | C92: 85 | D92: 85 | E92: طالب تجارة 85 | F92: 2/1 | G92: مستجد | H92: 2002-07-20 | I92: 11 | J92: 2 | K92: 16 | L92: انتظام | N92: 5 | O92: 4/1
B93: 86 | C93: 86 | D93: 86 | E93: طالب تجارة 86 | F93: 2/1 | G93: مستجد | H93: 2002-04-21 | I93: 10 | J93: 5 | K93: 16 | L93: انتظام | N93: 5 | O93: 4/1
B94: 87 | C94: 87 | D94: 87 | E94: طالب تجارة 87 | F94: 2/1 | G94: مستجد | H94: 2002-06-12 | I94: 19 | J94: 3 | K94: 16 | L94: انتظام | N94: 5 | O94: 4/1
B95: 88 | C95: 88 | D95: 88 | E95: طالب تجارة 88 | F95: 2/1 | G95: مستجد | H95: 2001-01-01 | I95: 0 | J95: 9 | K95: 17 | L95: انتظام | N95: 5 | O95: 4/1
B96: 89 | C96: 89 | D96: 89 | E96: طالب تجارة 89 | F96: 2/1 | G96: مستجد | H96: 2002-06-02 | I96: 29 | J96: 3 | K96: 16 | L96: انتظام | N96: 5 | O96: 4/1
B97: 90 | C97: 90 | D97: 90 | E97: طالب تجارة 90 | F97: 2/1 | G97: مستجد | H97: 2002-06-16 | I97: 15 | J97: 3 | K97: 16 | L97: انتظام | N97: 5 | O97: 4/1
B98: 91 | C98: 91 | D98: 91 | E98: طالب تجارة 91 | F98: 2/1 | G98: مستجد | H98: 2002-08-01 | I98: 0 | J98: 2 | K98: 16 | L98: انتظام | N98: 5 | O98: 4/1
B99: 92 | C99: 92 | D99: 92 | E99: طالب تجارة 92 | F99: 2/1 | G99: مستجد | H99: 2002-06-06 | I99: 25 | J99: 3 | K99: 16 | L99: انتظام | N99: 5 | O99: 4/1
B100: 93 | C100: 93 | D100: 93 | E100: طالب تجارة 93 | F100: 2/1 | G100: مستجد | H100: 2001-10-01 | I100: 0 | J100: 0 | K100: 17 | L100: انتظام | N100: 5 | O100: 4/1
B101: 94 | C101: 94 | D101: 94 | E101: طالب تجارة 94 | F101: 2/1 | G101: مستجد | H101: 2001-02-25 | I101: 6 | J101: 7 | K101: 17 | L101: انتظام | N101: 5 | O101: 4/1
B102: 95 | C102: 95 | D102: 95 | E102: طالب تجارة 95 | F102: 2/1 | G102: مستجد | H102: 2003-01-04 | I102: 27 | J102: 8 | K102: 15 | L102: انتظام | N102: 6 | O102: 1/3
B103: 96 | C103: 96 | D103: 96 | E103: طالب تجارة 96 | F103: 2/1 | G103: مستجد | H103: 2002-06-25 | I103: 6 | J103: 3 | K103: 16 | L103: انتظام | N103: 6 | O103: 1/3
B104: 97 | C104: 97 | D104: 97 | E104: طالب تجارة 97 | F104: 2/1 | G104: مستجد | H104: 2001-11-11 | I104: 20 | J104: 10 | K104: 16 | L104: انتظام | N104: 6 | O104: 1/3
B105: 98 | C105: 98 | D105: 98 | E105: طالب تجارة 98 | F105: 2/1 | G105: مستجد | H105: 2002-06-23 | I105: 8 | J105: 3 | K105: 16 | L105: انتظام | N105: 6 | O105: 1/3
B106: 99 | C106: 99 | D106: 99 | E106: طالب تجارة 99 | F106: 2/1 | G106: مستجد | H106: 2002-07-29 | I106: 2 | J106: 2 | K106: 16 | L106: انتظام | N106: 6 | O106: 1/3
B107: 100 | C107: 100 | D107: 100 | E107: طالب تجارة 100 | F107: 3/1 | G107: مستجد | H107: 2002-08-08 | I107: 23 | J107: 1 | K107: 16 | L107: انتظام | N107: 6 | O107: 1/3
B108: 101 | C108: 101 | D108: 101 | E108: طالب تجارة 101 | F108: 3/1 | G108: مستجد | H108: 2002-05-20 | I108: 11 | J108: 4 | K108: 16 | L108: انتظام | N108: 6 | O108: 1/3
B109: 102 | C109: 102 | D109: 102 | E109: طالب تجارة 102 | F109: 3/1 | G109: مستجد | H109: 2002-09-15 | I109: 16 | J109: 0 | K109: 16 | L109: انتظام | N109: 6 | O109: 1/3
B110: 103 | C110: 103 | D110: 103 | E110: طالب تجارة 103 | F110: 3/1 | G110: مستجد | H110: 2001-11-03 | I110: 28 | J110: 10 | K110: 16 | L110: انتظام | N110: 6 | O110: 1/3
B111: 104 | C111: 104 | D111: 104 | E111: طالب تجارة 104 | F111: 3/1 | G111: مستجد | H111: 2002-09-04 | I111: 27 | J111: 0 | K111: 16 | L111: انتظام | N111: 6 | O111: 1/3
B112: 105 | C112: 105 | D112: 105 | E112: طالب تجارة 105 | F112: 3/1 | G112: مستجد | H112: 2002-06-02 | I112: 29 | J112: 3 | K112: 16 | L112: انتظام | N112: 6 | O112: 1/3
B113: 106 | C113: 106 | D113: 106 | E113: طالب تجارة 106 | F113: 3/1 | G113: مستجد | H113: 2002-09-17 | I113: 14 | J113: 0 | K113: 16 | L113: انتظام | N113: 6 | O113: 1/3
B114: 107 | C114: 107 | D114: 107 | E114: طالب تجارة 107 | F114: 3/1 | G114: مستجد | H114: 2002-01-01 | I114: 0 | J114: 9 | K114: 16 | L114: انتظام | N114: 6 | O114: 1/3
B115: 108 | C115: 108 | D115: 108 | E115: طالب تجارة 108 | F115: 3/1 | G115: مستجد | H115: 2003-01-15 | I115: 16 | J115: 8 | K115: 15 | L115: انتظام | N115: 6 | O115: 1/3
B116: 109 | C116: 109 | D116: 109 | E116: طالب تجارة 109 | F116: 3/1 | G116: مستجد | H116: 2002-04-07 | I116: 24 | J116: 5 | K116: 16 | L116: انتظام | N116: 6 | O116: 1/3
B117: 110 | C117: 110 | D117: 110 | E117: طالب تجارة 110 | F117: 3/1 | G117: مستجد | H117: 2001-01-01 | I117: 0 | J117: 9 | K117: 17 | L117: انتظام | N117: 6 | O117: 1/3
B118: 111 | C118: 111 | D118: 111 | E118: طالب تجارة 111 | F118: 3/1 | G118: مستجد | H118: 2002-11-25 | I118: 6 | J118: 10 | K118: 15 | L118: انتظام | N118: 6 | O118: 1/3
B119: 112 | C119: 112 | D119: 112 | E119: طالب تجارة 112 | F119: 3/1 | G119: مستجد | H119: 2001-11-25 | I119: 6 | J119: 10 | K119: 16 | L119: انتظام | N119: 6 | O119: 1/3
B120: 113 | C120: 113 | D120: 113 | E120: طالب تجارة 113 | F120: 3/1 | G120: مستجد | H120: 2001-10-01 | I120: 0 | J120: 0 | K120: 17 | L120: انتظام | N120: 6 | O120: 1/3
B121: 114 | C121: 114 | D121: 114 | E121: طالب تجارة 114 | F121: 3/1 | G121: مستجد | H121: 2002-11-10 | I121: 21 | J121: 10 | K121: 15 | L121: انتظام | N121: 6 | O121: 1/3
B122: 115 | C122: 115 | D122: 115 | E122: طالب تجارة 115 | F122: 3/1 | G122: مستجد | H122: 2001-11-08 | I122: 23 | J122: 10 | K122: 16 | L122: انتظام | N122: 7 | O122: 2/3
B123: 116 | C123: 116 | D123: 116 | E123: طالب تجارة 116 | F123: 3/1 | G123: مستجد | H123: 2002-06-16 | I123: 15 | J123: 3 | K123: 16 | L123: انتظام | N123: 7 | O123: 2/3
B124: 117 | C124: 117 | D124: 117 | E124: طالب تجارة 117 | F124: 3/1 | G124: مستجد | H124: 2002-08-12 | I124: 19 | J124: 1 | K124: 16 | L124: انتظام | N124: 7 | O124: 2/3
B125: 118 | C125: 118 | D125: 118 | E125: طالب تجارة 118 | F125: 3/1 | G125: مستجد | H125: 2002-06-03 | I125: 28 | J125: 3 | K125: 16 | L125: انتظام | N125: 7 | O125: 2/3
B126: 119 | C126: 119 | D126: 119 | E126: طالب تجارة 119 | F126: 3/1 | G126: مستجد | H126: 2002-08-14 | I126: 17 | J126: 1 | K126: 16 | L126: انتظام | N126: 7 | O126: 2/3
B127: 120 | C127: 120 | D127: 120 | E127: طالب تجارة 120 | F127: 3/1 | G127: مستجد | H127: 2002-09-08 | I127: 23 | J127: 0 | K127: 16 | L127: انتظام | N127: 7 | O127: 2/3
B128: 121 | C128: 121 | D128: 121 | E128: طالب تجارة 121 | F128: 3/1 | G128: مستجد | H128: 2002-11-16 | I128: 15 | J128: 10 | K128: 15 | L128: انتظام | N128: 7 | O128: 2/3
B129: 122 | C129: 122 | D129: 122 | E129: طالب تجارة 122 | F129: 3/1 | G129: مستجد | H129: 2002-06-01 | I129: 0 | J129: 4 | K129: 16 | L129: انتظام | N129: 7 | O129: 2/3
B130: 123 | C130: 123 | D130: 123 | E130: طالب تجارة 123 | F130: 3/1 | G130: مستجد | H130: 2001-04-19 | I130: 12 | J130: 5 | K130: 17 | L130: انتظام | N130: 7 | O130: 2/3
B131: 124 | C131: 124 | D131: 124 | E131: طالب تجارة 124 | F131: 3/1 | G131: مستجد | H131: 2002-10-01 | I131: 0 | J131: 0 | K131: 16 | L131: انتظام | N131: 7 | O131: 2/3
B132: 125 | C132: 125 | D132: 125 | E132: طالب تجارة 125 | F132: 3/1 | G132: مستجد | H132: 2002-09-16 | I132: 15 | J132: 0 | K132: 16 | L132: انتظام | N132: 7 | O132: 2/3
B133: 126 | C133: 126 | D133: 126 | E133: طالب تجارة 126 | F133: 3/1 | G133: مستجد | H133: 2000-05-21 | I133: 10 | J133: 4 | K133: 18 | L133: انتظام | N133: 7 | O133: 2/3
B134: 127 | C134: 127 | D134: 127 | E134: طالب تجارة 127 | F134: 3/1 | G134: مستجد | H134: 2001-06-24 | I134: 7 | J134: 3 | K134: 17 | L134: انتظام | N134: 7 | O134: 2/3
B135: 128 | C135: 128 | D135: 128 | E135: طالب تجارة 128 | F135: 3/1 | G135: مستجد | H135: 2001-06-10 | I135: 21 | J135: 3 | K135: 17 | L135: انتظام | N135: 7 | O135: 2/3
B136: 129 | C136: 129 | D136: 129 | E136: طالب تجارة 129 | F136: 3/1 | G136: مستجد | H136: 2001-01-08 | I136: 23 | J136: 8 | K136: 17 | L136: انتظام | N136: 7 | O136: 2/3
B137: 130 | C137: 130 | D137: 130 | E137: طالب تجارة 130 | F137: 3/1 | G137: مستجد | H137: 2003-02-08 | I137: 23 | J137: 7 | K137: 15 | L137: انتظام | N137: 7 | O137: 2/3
B138: 131 | C138: 131 | D138: 131 | E138: طالب تجارة 131 | F138: 3/1 | G138: مستجد | H138: 2002-10-22 | I138: 9 | J138: 11 | K138: 15 | L138: انتظام | N138: 7 | O138: 2/3
B139: 132 | C139: 132 | D139: 132 | E139: طالب تجارة 132 | F139: 3/1 | G139: مستجد | H139: 2002-11-23 | I139: 8 | J139: 10 | K139: 15 | L139: انتظام | N139: 7 | O139: 2/3
B140: 133 | C140: 133 | D140: 133 | E140: طالب تجارة 133 | F140: 3/1 | G140: مستجد | H140: 2002-11-25 | I140: 6 | J140: 10 | K140: 15 | L140: انتظام | N140: 7 | O140: 2/3
B141: 134 | C141: 134 | D141: 134 | E141: طالب تجارة 134 | F141: 3/1 | G141: مستجد | H141: 2001-04-03 | I141: 28 | J141: 5 | K141: 17 | L141: انتظام | N141: 7 | O141: 2/3
B142: 135 | C142: 135 | D142: 135 | E142: طالب تجارة 135 | F142: 3/1 | G142: مستجد | H142: 2002-05-21 | I142: 10 | J142: 4 | K142: 16 | L142: انتظام | N142: 8 | O142: 3/3
B143: 136 | C143: 136 | D143: 136 | E143: طالب تجارة 136 | F143: 4/1 | G143: مستجد | H143: 2002-07-29 | I143: 2 | J143: 2 | K143: 16 | L143: انتظام | N143: 8 | O143: 3/3
B144: 137 | C144: 137 | D144: 137 | E144: طالب تجارة 137 | F144: 4/1 | G144: مستجد | H144: 2002-03-16 | I144: 15 | J144: 6 | K144: 16 | L144: انتظام | N144: 8 | O144: 3/3
B145: 138 | C145: 138 | D145: 138 | E145: طالب تجارة 138 | F145: 4/1 | G145: مستجد | H145: 2002-06-29 | I145: 2 | J145: 3 | K145: 16 | L145: انتظام | N145: 8 | O145: 3/3
B146: 139 | C146: 139 | D146: 139 | E146: طالب تجارة 139 | F146: 4/1 | G146: مستجد | H146: 2002-10-15 | I146: 16 | J146: 11 | K146: 15 | L146: انتظام | N146: 8 | O146: 3/3
B147: 140 | C147: 140 | D147: 140 | E147: طالب تجارة 140 | F147: 4/1 | G147: مستجد | H147: 2003-01-26 | I147: 5 | J147: 8 | K147: 15 | L147: انتظام | N147: 8 | O147: 3/3
B148: 141 | C148: 141 | D148: 141 | E148: طالب تجارة 141 | F148: 4/1 | G148: مستجد | H148: 2003-01-25 | I148: 6 | J148: 8 | K148: 15 | L148: انتظام | N148: 8 | O148: 3/3
B149: 142 | C149: 142 | D149: 142 | E149: طالب تجارة 142 | F149: 4/1 | G149: مستجد | H149: 2002-02-06 | I149: 25 | J149: 7 | K149: 16 | L149: انتظام | N149: 8 | O149: 3/3
B150: 143 | C150: 143 | D150: 143 | E150: طالب تجارة 143 | F150: 4/1 | G150: مستجد | H150: 2002-08-19 | I150: 12 | J150: 1 | K150: 16 | L150: انتظام | N150: 8 | O150: 3/3
B151: 144 | C151: 144 | D151: 144 | E151: طالب تجارة 144 | F151: 4/1 | G151: مستجد | H151: 2001-01-16 | I151: 15 | J151: 8 | K151: 17 | L151: انتظام | N151: 8 | O151: 3/3
B152: 145 | C152: 145 | D152: 145 | E152: طالب تجارة 145 | F152: 4/1 | G152: مستجد | H152: 2002-10-01 | I152: 0 | J152: 0 | K152: 16 | L152: انتظام | N152: 8 | O152: 3/3
B153: 146 | C153: 146 | D153: 146 | E153: طالب تجارة 146 | F153: 4/1 | G153: مستجد | H153: 1999-10-01 | I153: 0 | J153: 0 | K153: 19 | L153: انتظام | N153: 8 | O153: 3/3
B154: 147 | C154: 147 | D154: 147 | E154: طالب تجارة 147 | F154: 4/1 | G154: مستجد | H154: 2001-10-01 | I154: 0 | J154: 0 | K154: 17 | L154: انتظام | N154: 8 | O154: 3/3
B155: 148 | C155: 148 | D155: 148 | E155: طالب تجارة 148 | F155: 4/1 | G155: مستجد | H155: 2002-08-19 | I155: 12 | J155: 1 | K155: 16 | L155: انتظام | N155: 8 | O155: 3/3
B156: 149 | C156: 149 | D156: 149 | E156: طالب تجارة 149 | F156: 4/1 | G156: مستجد | H156: 2001-11-20 | I156: 11 | J156: 10 | K156: 16 | L156: انتظام | N156: 8 | O156: 3/3
B157: 150 | C157: 150 | D157: 150 | E157: طالب تجارة 150 | F157: 4/1 | G157: مستجد | H157: 2002-09-28 | I157: 3 | J157: 0 | K157: 16 | L157: انتظام | N157: 8 | O157: 3/3
B158: 151 | C158: 151 | D158: 151 | E158: طالب تجارة 151 | F158: 4/1 | G158: مستجد | H158: 2001-02-17 | I158: 14 | J158: 7 | K158: 17 | L158: انتظام | N158: 8 | O158: 3/3
B159: 152 | C159: 152 | D159: 152 | E159: طالب تجارة 152 | F159: 4/1 | G159: مستجد | H159: 2001-09-11 | I159: 20 | J159: 0 | K159: 17 | L159: انتظام | N159: 8 | O159: 3/3
B160: 153 | C160: 153 | D160: 153 | E160: طالب تجارة 153 | F160: 5/1 | G160: مستجد | H160: 2002-03-01 | I160: 0 | J160: 7 | K160: 16 | L160: انتظام | N160: 8 | O160: 3/3
B161: 154 | C161: 154 | D161: 154 | E161: طالب تجارة 154 | F161: 5/1 | G161: مستجد | H161: 2002-01-06 | I161: 25 | J161: 8 | K161: 16 | L161: انتظام | N161: 8 | O161: 3/3
B162: 155 | C162: 155 | D162: 155 | E162: طالب تجارة 155 | F162: 5/1 | G162: مستجد | H162: 2001-03-12 | I162: 19 | J162: 6 | K162: 17 | L162: انتظام | N162: 9 | O162: 1/2
B163: 156 | C163: 156 | D163: 156 | E163: طالب تجارة 156 | F163: 5/1 | G163: مستجد | H163: 2001-05-27 | I163: 4 | J163: 4 | K163: 17 | L163: انتظام | N163: 9 | O163: 1/2
B164: 157 | C164: 157 | D164: 157 | E164: طالب تجارة 157 | F164: 5/1 | G164: مستجد | H164: 2003-01-01 | I164: 0 | J164: 9 | K164: 15 | L164: انتظام | N164: 9 | O164: 1/2
B165: 158 | C165: 158 | D165: 158 | E165: طالب تجارة 158 | F165: 5/1 | G165: مستجد | H165: 2002-08-24 | I165: 7 | J165: 1 | K165: 16 | L165: انتظام | N165: 9 | O165: 1/2
B166: 159 | C166: 159 | D166: 159 | E166: طالب تجارة 159 | F166: 5/1 | G166: مستجد | H166: 2001-04-17 | I166: 14 | J166: 5 | K166: 17 | L166: انتظام | N166: 9 | O166: 1/2
B167: 160 | C167: 160 | D167: 160 | E167: طالب تجارة 160 | F167: 5/1 | G167: مستجد | H167: 2003-01-01 | I167: 0 | J167: 9 | K167: 15 | L167: انتظام | N167: 9 | O167: 1/2
B168: 161 | C168: 161 | D168: 161 | E168: طالب تجارة 161 | F168: 5/1 | G168: مستجد | H168: 2003-01-01 | I168: 0 | J168: 9 | K168: 15 | L168: انتظام | N168: 9 | O168: 1/2
B169: 162 | C169: 162 | D169: 162 | E169: طالب تجارة 162 | F169: 5/1 | G169: مستجد | H169: 2002-03-09 | I169: 22 | J169: 6 | K169: 16 | L169: انتظام | N169: 9 | O169: 1/2
B170: 163 | C170: 163 | D170: 163 | E170: طالب تجارة 163 | F170: 5/1 | G170: مستجد | H170: 2002-11-01 | I170: 0 | J170: 11 | K170: 15 | L170: انتظام | N170: 9 | O170: 1/2
B171: 164 | C171: 164 | D171: 164 | E171: طالب تجارة 164 | F171: 5/1 | G171: مستجد | H171: 2002-08-01 | I171: 0 | J171: 2 | K171: 16 | L171: انتظام | N171: 9 | O171: 1/2
B172: 165 | C172: 165 | D172: 165 | E172: طالب تجارة 165 | F172: 5/1 | G172: مستجد | H172: 2002-01-01 | I172: 0 | J172: 9 | K172: 16 | L172: انتظام | N172: 9 | O172: 1/2
B173: 166 | C173: 166 | D173: 166 | E173: طالب تجارة 166 | F173: 5/1 | G173: مستجد | H173: 2002-12-02 | I173: 29 | J173: 9 | K173: 15 | L173: انتظام | N173: 9 | O173: 1/2
B174: 167 | C174: 167 | D174: 167 | E174: طالب تجارة 167 | F174: 5/1 | G174: مستجد | H174: 2002-04-01 | I174: 0 | J174: 6 | K174: 16 | L174: انتظام | N174: 9 | O174: 1/2
B175: 168 | C175: 168 | D175: 168 | E175: طالب تجارة 168 | F175: 5/1 | G175: مستجد | H175: 2001-09-05 | I175: 26 | J175: 0 | K175: 17 | L175: انتظام | N175: 9 | O175: 1/2
B176: 169 | C176: 169 | D176: 169 | E176: طالب تجارة 169 | F176: 5/1 | G176: مستجد | H176: 2002-10-15 | I176: 16 | J176: 11 | K176: 15 | L176: انتظام | N176: 9 | O176: 1/2
B177: 170 | C177: 170 | D177: 170 | E177: طالب تجارة 170 | F177: 5/1 | G177: مستجد | H177: 1999-11-06 | I177: 25 | J177: 10 | K177: 18 | L177: انتظام | N177: 9 | O177: 1/2
B178: 171 | C178: 171 | D178: 171 | E178: طالب تجارة 171 | F178: 5/1 | G178: مستجد | H178: 2002-03-16 | I178: 15 | J178: 6 | K178: 16 | L178: انتظام | N178: 9 | O178: 1/2
B179: 172 | C179: 172 | D179: 172 | E179: طالب تجارة 172 | F179: 5/1 | G179: مستجد | H179: 2002-11-13 | I179: 18 | J179: 10 | K179: 15 | L179: انتظام | N179: 9 | O179: 1/2
B180: 173 | C180: 173 | D180: 173 | E180: طالب تجارة 173 | F180: 5/1 | G180: مستجد | H180: 2002-04-14 | I180: 17 | J180: 5 | K180: 16 | L180: انتظام | N180: 10 | O180: 2/2
B181: 174 | C181: 174 | D181: 174 | E181: طالب تجارة 174 | F181: 5/1 | G181: مستجد | H181: 2003-02-15 | I181: 16 | J181: 7 | K181: 15 | L181: انتظام | N181: 10 | O181: 2/2
B182: 175 | C182: 175 | D182: 175 | E182: طالب تجارة 175 | F182: 5/1 | G182: مستجد | H182: 2002-11-26 | I182: 5 | J182: 10 | K182: 15 | L182: انتظام | N182: 10 | O182: 2/2
B183: 176 | C183: 176 | D183: 176 | E183: طالب تجارة 176 | F183: 5/1 | G183: مستجد | H183: 2002-04-22 | I183: 9 | J183: 5 | K183: 16 | L183: انتظام | N183: 10 | O183: 2/2
B184: 177 | C184: 177 | D184: 177 | E184: طالب تجارة 177 | F184: 5/1 | G184: مستجد | H184: 2002-12-20 | I184: 11 | J184: 9 | K184: 15 | L184: انتظام | N184: 10 | O184: 2/2
B185: 178 | C185: 178 | D185: 178 | E185: طالب تجارة 178 | F185: 5/1 | G185: مستجد | H185: 2002-03-02 | I185: 29 | J185: 6 | K185: 16 | L185: انتظام | N185: 10 | O185: 2/2
B186: 179 | C186: 179 | D186: 179 | E186: طالب تجارة 179 | F186: 5/1 | G186: مستجد | H186: 2001-12-02 | I186: 29 | J186: 9 | K186: 16 | L186: انتظام | N186: 10 | O186: 2/2
B187: 180 | C187: 180 | D187: 180 | E187: طالب تجارة 180 | F187: 5/1 | G187: مستجد | H187: 2001-10-01 | I187: 0 | J187: 0 | K187: 17 | L187: انتظام | N187: 10 | O187: 2/2
B188: 181 | C188: 181 | D188: 181 | E188: طالب تجارة 181 | F188: 5/1 | G188: مستجد | H188: 2002-12-13 | I188: 18 | J188: 9 | K188: 15 | L188: انتظام | N188: 10 | O188: 2/2
B189: 182 | C189: 182 | D189: 182 | E189: طالب تجارة 182 | F189: 5/1 | G189: مستجد | H189: 2002-08-10 | I189: 21 | J189: 1 | K189: 16 | L189: انتظام | N189: 10 | O189: 2/2
B190: 183 | C190: 183 | D190: 183 | E190: طالب تجارة 183 | F190: 5/1 | G190: مستجد | H190: 2002-10-01 | I190: 0 | J190: 0 | K190: 16 | L190: انتظام | N190: 10 | O190: 2/2
B191: 184 | C191: 184 | D191: 184 | E191: طالب تجارة 184 | F191: 5/1 | G191: مستجد | H191: 2002-08-07 | I191: 24 | J191: 1 | K191: 16 | L191: انتظام | N191: 10 | O191: 2/2
B192: 185 | C192: 185 | D192: 185 | E192: طالب تجارة 185 | F192: 5/1 | G192: مستجد | H192: 2002-11-20 | I192: 11 | J192: 10 | K192: 15 | L192: انتظام | N192: 10 | O192: 2/2
B193: 186 | C193: 186 | D193: 186 | E193: طالب تجارة 186 | F193: 5/1 | G193: مستجد | H193: 2000-09-04 | I193: 27 | J193: 0 | K193: 18 | L193: انتظام | N193: 10 | O193: 2/2
B194: 187 | C194: 187 | D194: 187 | E194: طالب تجارة 187 | F194: 5/1 | G194: مستجد | H194: 2002-08-07 | I194: 24 | J194: 1 | K194: 16 | L194: انتظام | N194: 10 | O194: 2/2
B195: 188 | C195: 188 | D195: 188 | E195: طالب تجارة 188 | F195: 5/1 | G195: مستجد | H195: 2002-09-28 | I195: 3 | J195: 0 | K195: 16 | L195: انتظام | N195: 10 | O195: 2/2
B196: 189 | C196: 189 | D196: 189 | E196: طالب تجارة 189 | F196: 5/1 | G196: مستجد | H196: 2000-12-01 | I196: 0 | J196: 10 | K196: 17 | L196: انتظام | N196: 10 | O196: 2/2
B197: 190 | C197: 190 | D197: 190 | E197: طالب تجارة 190 | F197: 5/1 | G197: مستجد | H197: 2001-04-05 | I197: 26 | J197: 5 | K197: 17 | L197: انتظام | N197: 10 | O197: 2/2
B198: 191 | C198: 191 | D198: 191 | E198: طالب تجارة 191 | F198: 5/1 | G198: مستجد | H198: 2003-03-26 | I198: 5 | J198: 6 | K198: 15 | L198: انتظام | N198: 11 | O198: 3/2
B199: 192 | C199: 192 | D199: 192 | E199: طالب تجارة 192 | F199: 5/1 | G199: مستجد | H199: 2001-10-28 | I199: 3 | J199: 11 | K199: 16 | L199: انتظام | N199: 11 | O199: 3/2
B200: 193 | C200: 193 | D200: 193 | E200: طالب تجارة 193 | F200: 5/1 | G200: مستجد | H200: 2002-11-25 | I200: 6 | J200: 10 | K200: 15 | L200: انتظام | N200: 11 | O200: 3/2
... 178 more rows

Sheet لجان
B1: ادارة 000000 التعليمية | F1: 1 | H1: ادارة 00000 التعليمية | K1: لجنة : | L1: =F1+1 -> 2 | AA1: 1/1 | AB1: 2/1
B2: مدرسة 000000 التجارية | E2: المقر : | F2: 4/2 | H2: مدرسة 00000 التجارية | K2: المقر : | L2: 5/2 | AA2: 3/1 | AB2: 4/1
B3: الصف الاول | D3: الفترة : | E3: منتظمة | H3: الصف الاول | J3: الفترة : | K3: منتظمة | AA3: 5/1 | AB3: 6/1
C4: من : | D4: 1 | E4: الى : | F4: 18 | I4: من : | J4: 19 | K4: الى : | L4: 36 | N4: يتم تحديد عدد كل لجنة اولا قبل الضغط على الزر | AA4: 7/1 | AB4: 8/1
B5: م | C5: جلوس | D5: اسم الطالبة | E5: الفصل | F5: ملاحظات | H5: م | I5: جلوس | J5: اسم الطالبة | K5: الفصل | L5: ملاحظات | N5: لجنة | O5: من | P5: الى | Q5: العدد | R5: المقر | S5: الشعبة | AA5: 9/1 | AB5: 10/1
B6: 1 | C6: 1 | D6: طالب تجارة 1 | E6: 1/1 | H6: 1 | I6: 19 | J6: طالب تجارة 19 | K6: 1/1 | N6: 1 | O6: 1 | P6: 18 | Q6: =P6-O6+1 -> 18 | R6: 4/2 | S6: منتظمة | AA6: 11/1 | AB6: 12/1
B7: 2 | C7: 2 | D7: طالب تجارة 2 | E7: 1/1 | H7: 2 | I7: 20 | J7: طالب تجارة 20 | K7: 1/1 | N7: 2 | O7: 19 | P7: 36 | Q7: =P7-O7+1 -> 18 | R7: 5/2 | S7: منتظمة
B8: 3 | C8: 3 | D8: طالب تجارة 3 | E8: 1/1 | H8: 3 | I8: 21 | J8: طالب تجارة 21 | K8: 1/1 | N8: 3 | O8: 37 | P8: 55 | Q8: 19 | R8: 6/2 | S8: منتظمة
B9: 4 | C9: 4 | D9: طالب تجارة 4 | E9: 1/1 | H9: 4 | I9: 22 | J9: طالب تجارة 22 | K9: 1/1 | N9: 4 | O9: 56 | P9: 74 | Q9: 19 | R9: 2/2 | S9: منتظمة
B10: 5 | C10: 5 | D10: طالب تجارة 5 | E10: 1/1 | H10: 5 | I10: 23 | J10: طالب تجارة 23 | K10: 1/1 | N10: 5 | O10: 75 | P10: 94 | Q10: 20 | R10: 4/1 | S10: منتظمة
B11: 6 | C11: 6 | D11: طالب تجارة 6 | E11: 1/1 | H11: 6 | I11: 24 | J11: طالب تجارة 24 | K11: 1/1 | N11: 6 | O11: 95 | P11: 114 | Q11: 20 | R11: 1/3 | S11: منتظمة
B12: 7 | C12: 7 | D12: طالب تجارة 7 | E12: 2/1 | H12: 7 | I12: 25 | J12: طالب تجارة 25 | K12: 1/1 | N12: 7 | O12: 115 | P12: 134 | Q12: 20 | R12: 2/3 | S12: منتظمة
B13: 8 | C13: 8 | D13: طالب تجارة 8 | E13: 1/1 | H13: 8 | I13: 26 | J13: طالب تجارة 26 | K13: 1/1 | N13: 8 | O13: 135 | P13: 154 | Q13: 20 | R13: 3/3 | S13: منتظمة
B14: 9 | C14: 9 | D14: طالب تجارة 9 | E14: 1/1 | H14: 9 | I14: 27 | J14: طالب تجارة 27 | K14: 1/1 | N14: 9 | O14: 155 | P14: 172 | Q14: 18 | R14: 1/2 | S14: منتظمة
B15: 10 | C15: 10 | D15: طالب تجارة 10 | E15: 1/1 | H15: 10 | I15: 28 | J15: طالب تجارة 28 | K15: 1/1 | N15: 10 | O15: 173 | P15: 190 | Q15: 18 | R15: 2/2 | S15: منتظمة
B16: 11 | C16: 11 | D16: طالب تجارة 11 | E16: 1/1 | H16: 11 | I16: 29 | J16: طالب تجارة 29 | K16: 1/1 | N16: 11 | O16: 191 | P16: 210 | Q16: 20 | R16: 3/2 | S16: منتظمة
B17: 12 | C17: 12 | D17: طالب تجارة 12 | E17: 1/1 | H17: 12 | I17: 30 | J17: طالب تجارة 30 | K17: 1/1 | N17: 12 | Q17: 1
B18: 13 | C18: 13 | D18: طالب تجارة 13 | E18: 1/1 | H18: 13 | I18: 31 | J18: طالب تجارة 31 | K18: 1/1 | N18: 13 | Q18: 1
B19: 14 | C19: 14 | D19: طالب تجارة 14 | E19: 1/1 | H19: 14 | I19: 32 | J19: طالب تجارة 32 | K19: 1/1 | N19: 14 | Q19: 1
B20: 15 | C20: 15 | D20: طالب تجارة 15 | E20: 1/1 | H20: 15 | I20: 33 | J20: طالب تجارة 33 | K20: 1/1 | N20: 15 | Q20: 1
B21: 16 | C21: 16 | D21: طالب تجارة 16 | E21: 1/1 | H21: 16 | I21: 34 | J21: طالب تجارة 34 | K21: 1/1 | N21: 16 | Q21: 1
B22: 17 | C22: 17 | D22: طالب تجارة 17 | E22: 1/1 | H22: 17 | I22: 35 | J22: طالب تجارة 35 | K22: 1/1 | N22: 17 | Q22: 1
B23: 18 | C23: 18 | D23: طالب تجارة 18 | E23: 1/1 | H23: 18 | I23: 36 | J23: طالب تجارة 36 | K23: 1/1 | N23: 18 | Q23: 1
N24: 19 | Q24: 1
N25: 20 | Q25: 1
N26: 21 | Q26: 1
N27: 22 | Q27: 1
N28: 23 | Q28: 1
N29: 24 | Q29: 1
N30: 25 | Q30: 1
B31: كنترول الصف الثانى | E31: ادارة المدرسة | H31: كنترول الصف الثانى | K31: ادارة المدرسة | N31: 26 | Q31: 1
N32: 27 | Q32: 1
N33: 28 | Q33: 1
N34: 29 | Q34: 1
N35: 30 | Q35: 1

Sheet جلوس
B1: مدرسة 00000 التجارية المشتركة | M1: 1 | O1: الورقة رقم | Q1: =M1 -> 1
E2: ارقام جلوس الصف الاول 2017 / 2018
C4: اخطار برقم جلوس 2018 | J4: اخطار برقم جلوس 2018
B5: مدرسة 000000 التجارية | F5: رقم الجلوس / | G5: 1 | I5: مدرسة 000000 التجارية | M5: رقم الجلوس / | N5: 7 | Y5: =($M$1-1)*12+1 -> 1 | Z5: =$Y$5+6 -> 7
B6: الاسم / | C6: طالب تجارة 1 | F6: رقم اللجنة / | G6: 1 | I6: الاسم / | J6: طالب تجارة 7 | M6: رقم اللجنة / | N6: 1
B7: الفصل / | C7: 1/1 | F7: مقر اللجنة / | G7: 4/2 | I7: الفصل / | J7: 2/1 | M7: مقر اللجنة / | N7: 4/2
C9: اخطار برقم جلوس 2018 | J9: اخطار برقم جلوس 2018
B10: مدرسة 000000 التجارية | F10: رقم الجلوس / | G10: 2 | I10: مدرسة 000000 التجارية | M10: رقم الجلوس / | N10: 8 | Y10: =$Y$5+1 -> 2 | Z10: =$Y$10+6 -> 8
B11: الاسم / | C11: طالب تجارة 2 | F11: رقم اللجنة / | G11: 1 | I11: الاسم / | J11: طالب تجارة 8 | M11: رقم اللجنة / | N11: 1
B12: الفصل / | C12: 1/1 | F12: مقر اللجنة / | G12: 4/2 | I12: الفصل / | J12: 1/1 | M12: مقر اللجنة / | N12: 4/2
C14: اخطار برقم جلوس 2018 | J14: اخطار برقم جلوس 2018
B15: مدرسة 000000 التجارية | F15: رقم الجلوس / | G15: 3 | I15: مدرسة 000000 التجارية | M15: رقم الجلوس / | N15: 9 | Y15: =$Y$5+2 -> 3 | Z15: =$Y$15+6 -> 9
B16: الاسم / | C16: طالب تجارة 3 | F16: رقم اللجنة / | G16: 1 | I16: الاسم / | J16: طالب تجارة 9 | M16: رقم اللجنة / | N16: 1
B17: الفصل / | C17: 1/1 | F17: مقر اللجنة / | G17: 4/2 | I17: الفصل / | J17: 1/1 | M17: مقر اللجنة / | N17: 4/2
C19: اخطار برقم جلوس 2018 | J19: اخطار برقم جلوس 2018
B20: مدرسة 000000 التجارية | F20: رقم الجلوس / | G20: 4 | I20: مدرسة 000000 التجارية | M20: رقم الجلوس / | N20: 10 | Y20: =$Y$5+3 -> 4 | Z20: =$Y$20+6 -> 10
B21: الاسم / | C21: طالب تجارة 4 | F21: رقم اللجنة / | G21: 1 | I21: الاسم / | J21: طالب تجارة 10 | M21: رقم اللجنة / | N21: 1
B22: الفصل / | C22: 1/1 | F22: مقر اللجنة / | G22: 4/2 | I22: الفصل / | J22: 1/1 | M22: مقر اللجنة / | N22: 4/2
C24: اخطار برقم جلوس 2018 | J24: اخطار برقم جلوس 2018
B25: مدرسة 000000 التجارية | F25: رقم الجلوس / | G25: 5 | I25: مدرسة 000000 التجارية | M25: رقم الجلوس / | N25: 11 | Y25: =$Y$5+4 -> 5 | Z25: =$Y$25+6 -> 11
B26: الاسم / | C26: طالب تجارة 5 | F26: رقم اللجنة / | G26: 1 | I26: الاسم / | J26: طالب تجارة 11 | M26: رقم اللجنة / | N26: 1
B27: الفصل / | C27: 1/1 | F27: مقر اللجنة / | G27: 4/2 | I27: الفصل / | J27: 1/1 | M27: مقر اللجنة / | N27: 4/2
C29: اخطار برقم جلوس 2018 | J29: اخطار برقم جلوس 2018
B30: مدرسة 000000 التجارية | F30: رقم الجلوس / | G30: 6 | I30: مدرسة 000000 التجارية | M30: رقم الجلوس / | N30: 12 | Y30: =$Y$5+5 -> 6 | Z30: =Y30+6 -> 12
B31: الاسم / | C31: طالب تجارة 6 | F31: رقم اللجنة / | G31: 1 | I31: الاسم / | J31: طالب تجارة 12 | M31: رقم اللجنة / | N31: 1
B32: الفصل / | C32: 1/1 | F32: مقر اللجنة / | G32: 4/2 | I32: الفصل / | J32: 1/1 | M32: مقر اللجنة / | N32: 4/2

Sheet شيت
L1: ادارة 00000 التعليمية | AN1: شيت كنترول الصف الاول
L2: مدرسة 00000 التجارية | AN2: للعام الدراسى 2018 / 2019
A3: مسلسل | B3: جلوس | C3: الاسم | D3: الفصل | E3: الحالة | F3: تاريخ الميلاد | G3: السن فى | J3: سرى | K3: لغة عربية | O3: لغة انجليزية | S3: لغة فرنسية | W3: جغرافيا | AA3: رياضة عامة | AE3: حاسب آلى | AN3: اقتصاد | AR3: سكرتارية عربية | AV3: سكرتارية اجنبية | AZ3: ادارة اعمال | BD3: محاسبة مالية | BH3: تسويق | BL3: قانون تجارى | BP3: مجموع كلى | BQ3: تربية دينية | BU3: تربية وطنية | BY3: النتيجة | BZ3: مواد الرسوب | CA3: عدد المواد | CE3: لغة عربية | CF3: لغة انجليزية | CG3: لغة فرنسية | CH3: جغرافيا | CI3: رياضة عامة | CJ3: حاسب ألى | CK3: اقتصاد | CL3: سكرتارية عربية | CM3: سكرتارية اجنبية | CN3: ادارة اعمال | CO3: محاسبة مالية | CP3: تسويق | CQ3: قانون تجارى | CR3: مجموع | CS3: تربية دينية | CT3: تربية قومية | CU3: دين ومواطنة ومجموع | CV3: باقى المواد | CW3: مجموع نصف العام | CX3: ترتيب نصف العام
K4: اعمال السنة | L4: نصف العام | M4: آخر العام | N4: المجموع | O4: اعمال السنة | P4: نصف العام | Q4: آخر العام | R4: المجموع | S4: اعمال السنة | T4: نصف العام | U4: آخر العام | V4: المجموع | W4: اعمال السنة | X4: نصف العام | Y4: آخر العام | Z4: المجموع | AA4: اعمال السنة | AB4: نصف العام | AC4: آخر العام | AD4: المجموع | AE4: اعمال السنة | AG4: نصف العام | AI4: آخر العام | AK4: مج عملى | AL4: مج تحريرى | AM4: مج حاسب | AN4: اعمال السنة | AO4: نصف العام | AP4: آخر العام | AQ4: المجموع | AR4: اعمال السنة | AS4: نصف العام | AT4: آخر العام | AU4: المجموع | AV4: اعمال السنة | AW4: نصف العام | AX4: آخر العام | AY4: المجموع | AZ4: اعمال السنة | BA4: نصف العام | BB4: آخر العام | BC4: المجموع | BD4: اعمال السنة | BE4: نصف العام | BF4: آخر العام | BG4: المجموع | BH4: اعمال السنة | BI4: نصف العام | BJ4: آخر العام | BK4: المجموع | BL4: اعمال السنة | BM4: نصف العام | BN4: آخر العام | BO4: المجموع | BQ4: اعمال السنة | BR4: نصف العام | BS4: آخر العام | BT4: المجموع | BU4: اعمال السنة | BV4: نصف العام | BW4: آخر العام | BX4: المجموع
G5: 2018-10-01 | AE5: عملى | AF5: تحريرى | AG5: عملى | AH5: تحريرى | AI5: عملى | AJ5: تحريرى
G6: يوم | H6: شهر | I6: سنة | J6: عظمى | K6: 10 | L6: 20 | M6: 20 | N6: 50 | O6: 10 | P6: 20 | Q6: 20 | R6: 50 | S6: 6 | T6: 12 | U6: 12 | V6: 30 | W6: 8 | X6: 16 | Y6: 16 | Z6: 40 | AA6: 6 | AB6: 12 | AC6: 12 | AD6: 30 | AE6: 4 | AF6: 6 | AG6: 8 | AH6: 12 | AI6: 8 | AJ6: 12 | AK6: 20 | AL6: 30 | AM6: 50 | AN6: 10 | AO6: 20 | AP6: 20 | AQ6: 50 | AR6: 10 | AS6: 20 | AT6: 20 | AU6: 50 | AV6: 10 | AW6: 20 | AX6: 20 | AY6: 50 | AZ6: 10 | BA6: 20 | BB6: 20 | BC6: 50 | BD6: 10 | BE6: 20 | BF6: 20 | BG6: 50 | BH6: 10 | BI6: 20 | BJ6: 20 | BK6: 50 | BL6: 10 | BM6: 20 | BN6: 20 | BO6: 50 | BP6: 600 | BQ6: 4 | BR6: 8 | BS6: 8 | BT6: 20 | BU6: 4 | BV6: 8 | BW6: 8 | BX6: 20
J7: صغرى | K7: 0 | L7: 0 | M7: 5 | N7: 25 | O7: 0 | P7: 0 | Q7: 5 | R7: 20 | S7: 0 | T7: 0 | U7: 3 | V7: 9 | W7: 0 | X7: 0 | Y7: 4 | Z7: 16 | AA7: 0 | AB7: 0 | AC7: 3 | AD7: 15 | AE7: 0 | AF7: 0 | AG7: 0 | AH7: 0 | AI7: 2 | AJ7: 3 | AK7: 10 | AL7: 15 | AM7: 25 | AN7: 0 | AO7: 0 | AP7: 5 | AQ7: 25 | AR7: 0 | AS7: 0 | AT7: 5 | AU7: 25 | AV7: 0 | AW7: 0 | AX7: 5 | AY7: 20 | AZ7: 0 | BA7: 0 | BB7: 5 | BC7: 25 | BD7: 0 | BE7: 0 | BF7: 5 | BG7: 25 | BH7: 0 | BI7: 0 | BJ7: 5 | BK7: 25 | BL7: 0 | BM7: 0 | BN7: 5 | BO7: 25 | BP7: 300 | BQ7: 0 | BR7: 0 | BS7: 2 | BT7: 10 | BU7: 0 | BV7: 0 | BW7: 2 | BX7: 10
A8: 1 | B8: 1 | C8: طالب تجارة 1 | D8: 1/1 | E8: مستجد | F8: 2001-03-16 | G8: 15 | H8: 6 | I8: 17 | J8: 71 | K8: 7.5 | L8: 13 | M8: غ | N8: =SUM(K8:M8) -> 20.5 | O8: 8.5 | P8: 12.8 | Q8: غ | R8: =SUM(O8:Q8) -> 21.3 | S8: 4.5 | T8: 9.2 | U8: غ | V8: =SUM(S8:U8) -> 13.7 | W8: 6 | X8: 10.5 | Y8: غ | Z8: =SUM(W8:Y8) -> 16.5 | AA8: 2 | AB8: 7 | AC8: غ | AD8: =SUM(AA8:AC8) -> 9 | AE8: 3 | AF8: 5 | AG8: 5 | AH8: 10 | AI8: 6 | AJ8: غ | AK8: =SUM(AE8,AG8,AI8) -> 14 | AL8: =SUM(AF8,AH8,AJ8) -> 15 | AM8: =SUM(AK8,AL8) -> 29 | AN8: 8.5 | AO8: 5 | AP8: غ | AQ8: =SUM(AN8:AP8) -> 13.5 | AR8: 8 | AS8: 15 | AT8: غ | AU8: =SUM(AR8:AT8) -> 23 | AV8: 9 | AW8: 4 | AX8: غ | AY8: =SUM(AV8:AX8) -> 13 | AZ8: 9 | BA8: 7 | BB8: غ | BC8: =SUM(AZ8:BB8) -> 16 | BD8: 9 | BE8: 3.5 | BF8: غ | BG8: =SUM(BD8:BF8) -> 12.5 | BH8: 9.5 | BI8: 17 | BJ8: غ | BK8: =SUM(BH8:BJ8) -> 26.5 | BL8: 8 | BM8: 14 | BN8: غ | BO8: =SUM(BL8:BN8) -> 22 | BP8: =SUM(N8,R8,V8,BG8,AU8,AY8,AQ8,BK8,BC8,BO8,AD8,Z8,AM8) -> 236.5 | BQ8: 3 | BR8: 5.5 | BS8: غ | BT8: =SUM(BQ8:BS8) -> 8.5 | BU8: 4 | BV8: 6 | BW8: غ | BX8: 95.5 | BY8: =IF(C8="","",IF(CA8=0,"ناجحة",IF(CU8>2,"راسبة","دورثان"))) -> راسبة | BZ8: =IF(C8="","",IF(CA8=0,"و منقولة للصف الثانى",IF(CA8>0,"فى : "&CONCATENATE(CE8,CF8,CG8,CO8,CL8,CM8,CK8,CP8,CN8,CI8,CH8,CJ8,CR8,CT8,CS8)))) -> فى : لغة عربية - لغة انجليزية - لغة فرنسية - محاسبة مالية - سكرتارية عربية - سكرتارية اجنبية - اقتصاد - تسويق - ادارة اعمال - رياضة عامة - جغرافيا - مجموع -تربية قومية - تربية دينية | CA8: =IFERROR(CU8+CV8,"") -> 15 | CE8: =IF(C8="","",IF(OR(M8<$M$7,M8="غ",N8<$N$7),CE$3&" - ","")) -> لغة عربية - | CF8: =IF(C8="","",IF(OR(Q8<$Q$7,Q8="غ",R8<$R$7),CF$3&" - ","")) -> لغة انجليزية - | CG8: =IF(C8="","",IF(OR(U8<$U$7,U8="غ",V8<$V$7),CG$3&" - ","")) -> لغة فرنسية - | CH8: =IF(C8="","",IF(OR(Y8<$Y$7,Y8="غ",Z8<$Z$7),CH$3&" - ","")) -> جغرافيا - | CI8: =IF(C8="","",IF(OR(AC8<$AC$7,AC8="غ",AD8<$AD$7),CI$3&" - ","")) -> رياضة عامة - | CJ8: =IF(C8="","",IF(OR(AI8<$AI$7,AJ8<$AJ$7,AK8<$AK$7,AK8="غ",AL8<$AL$7,AL8="غ"),CJ$3&" - ","")) ->  | CK8: =IF(C8="","",IF(OR(AP8<$AP$7,AP8="غ",AQ8<$AQ$7),CK$3&" - ","")) -> اقتصاد - | CL8: =IF(C8="","",IF(OR(AT8<$AT$7,AT8="غ",AU8<$AU$7),CL$3&" - ","")) -> سكرتارية عربية - | CM8: =IF(C8="","",IF(OR(AX8<$AX$7,AX8="غ",AY8<$AY$7),CM$3&" - ","")) -> سكرتارية اجنبية - | CN8: =IF(C8="","",IF(OR(BB8<$BB$7,BB8="غ",BC8<$BC$7),CN$3&" - ","")) -> ادارة اعمال - | CO8: =IF(C8="","",IF(OR(BF8<$BF$7,BF8="غ",BG8<$BG$7),CO$3&" - ","")) -> محاسبة مالية - | CP8: =IF(C8="","",IF(OR(BJ8<$BJ$7,BJ8="غ",BK8<$BK$7),CP$3&" - ","")) -> تسويق - | CQ8: =IF(C8="","",IF(OR(BN8<$BN$7,BN8="غ",BO8<$BO$7),CQ$3&" - ","")) -> قانون تجارى - | CR8: =IF(C8="","",IF($BP8<$BP$7,$CR$3&" -","")) -> مجموع - | CS8: =IF(C8="","",IF(OR(BS8<$BS$7,BS8="غ",BT8<$BT$7),CS$3,"")) -> تربية دينية | CT8: =IF(C8="","",IF(OR(BW8<$BW$7,BW8="غ",BX8<$BX$7),CT$3&" - ","")) -> تربية قومية - | CU8: =IF(C8="","",COUNTIF(CE8:CQ8,"?*")) -> 12 | CV8: =IF(D8="","",COUNTIF(CR8:CT8,"?*")) -> 3 | CW8: 118 | CX8: 164
A9: 2 | B9: 2 | C9: طالب تجارة 2 | D9: 1/1 | E9: مستجد | F9: 2002-10-08 | G9: 23 | H9: 11 | I9: 15 | J9: 72 | K9: 7 | L9: 13.5 | M9: 17 | N9: 37.5 | O9: 8.5 | P9: 14 | Q9: 11.2 | R9: =SUM(O9:Q9) -> 33.7 | S9: 4.5 | T9: 10.4 | U9: 8 | V9: =SUM(S9:U9) -> 22.9 | W9: 6 | X9: 10 | Y9: 13 | Z9: =SUM(W9:Y9) -> 29 | AA9: 5 | AB9: 8.5 | AC9: 9 | AD9: =SUM(AA9:AC9) -> 22.5 | AE9: 3 | AF9: 5 | AG9: 6 | AH9: 10 | AI9: 5 | AJ9: 8 | AK9: 14 | AL9: 23 | AM9: =SUM(AK9,AL9) -> 37 | AN9: 8.5 | AO9: 9 | AP9: 17 | AQ9: =SUM(AN9:AP9) -> 34.5 | AR9: 8 | AS9: 14 | AT9: 14.5 | AU9: =SUM(AR9:AT9) -> 36.5 | AV9: 9 | AW9: 12 | AX9: 19 | AY9: =SUM(AV9:AX9) -> 40 | AZ9: 8.5 | BA9: 10 | BB9: 11 | BC9: =SUM(AZ9:BB9) -> 29.5 | BD9: 9 | BE9: 16.5 | BF9: 17.5 | BG9: =SUM(BD9:BF9) -> 43 | BH9: 9.5 | BI9: 12.5 | BJ9: 16 | BK9: 38 | BL9: 7.5 | BM9: 11 | BN9: 13 | BO9: =SUM(BL9:BN9) -> 31.5 | BP9: 435.6 | BQ9: 3 | BR9: 5.5 | BS9: 7 | BT9: =SUM(BQ9:BS9) -> 15.5 | BU9: 3.5 | BV9: 6.5 | BW9: 5.5 | BX9: 137.4 | BY9: =IF(C9="","",IF(CA9=0,"ناجحة",IF(CU9>2,"راسبة","دورثان"))) -> ناجحة | BZ9: =IF(C9="","",IF(CA9=0,"و منقولة للصف الثانى",IF(CA9>0,"فى : "&CONCATENATE(CE9,CF9,CG9,CO9,CL9,CM9,CK9,CP9,CN9,CI9,CH9,CJ9,CR9,CT9,CS9)))) -> و منقولة للصف الثانى | CA9: =IFERROR(CU9+CV9,"") -> 0 | CE9: =IF(C9="","",IF(OR(M9<$M$7,M9="غ",N9<$N$7),CE$3&" - ","")) ->  | CF9: =IF(C9="","",IF(OR(Q9<$Q$7,Q9="غ",R9<$R$7),CF$3&" - ","")) ->  | CG9: =IF(C9="","",IF(OR(U9<$U$7,U9="غ",V9<$V$7),CG$3&" - ","")) ->  | CH9: =IF(C9="","",IF(OR(Y9<$Y$7,Y9="غ",Z9<$Z$7),CH$3&" - ","")) ->  | CI9: =IF(C9="","",IF(OR(AC9<$AC$7,AC9="غ",AD9<$AD$7),CI$3&" - ","")) ->  | CJ9: =IF(C9="","",IF(OR(AI9<$AI$7,AJ9<$AJ$7,AK9<$AK$7,AK9="غ",AL9<$AL$7,AL9="غ"),CJ$3&" - ","")) ->  | CK9: =IF(C9="","",IF(OR(AP9<$AP$7,AP9="غ",AQ9<$AQ$7),CK$3&" - ","")) ->  | CL9: =IF(C9="","",IF(OR(AT9<$AT$7,AT9="غ",AU9<$AU$7),CL$3&" - ","")) ->  | CM9: =IF(C9="","",IF(OR(AX9<$AX$7,AX9="غ",AY9<$AY$7),CM$3&" - ","")) ->  | CN9: =IF(C9="","",IF(OR(BB9<$BB$7,BB9="غ",BC9<$BC$7),CN$3&" - ","")) ->  | CO9: =IF(C9="","",IF(OR(BF9<$BF$7,BF9="غ",BG9<$BG$7),CO$3&" - ","")) ->  | CP9: =IF(C9="","",IF(OR(BJ9<$BJ$7,BJ9="غ",BK9<$BK$7),CP$3&" - ","")) ->  | CQ9: =IF(C9="","",IF(OR(BN9<$BN$7,BN9="غ",BO9<$BO$7),CQ$3&" - ","")) ->  | CR9: =IF(C9="","",IF($BP9<$BP$7,$CR$3&" -","")) ->  | CS9: =IF(C9="","",IF(OR(BS9<$BS$7,BS9="غ",BT9<$BT$7),CS$3,"")) ->  | CT9: =IF(C9="","",IF(OR(BW9<$BW$7,BW9="غ",BX9<$BX$7),CT$3&" - ","")) ->  | CU9: =IF(C9="","",COUNTIF(CE9:CQ9,"?*")) -> 0 | CV9: =IF(D9="","",COUNTIF(CR9:CT9,"?*")) -> 0 | CW9: 140.9 | CX9: 34
A10: 3 | B10: 3 | C10: طالب تجارة 3 | D10: 1/1 | E10: مستجد | F10: 2002-10-01 | G10: 0 | H10: 0 | I10: 16 | J10: 73 | K10: 7.5 | L10: 13 | M10: 14.5 | N10: 35 | O10: 8.5 | P10: 14 | Q10: 11.6 | R10: 34.1 | S10: 5 | T10: 10 | U10: 7.6 | V10: 22.6 | W10: 6 | X10: 10 | Y10: 12 | Z10: 28 | AA10: 5.5 | AB10: 8.5 | AC10: 8.5 | AD10: 22.5 | AE10: 3 | AF10: 5 | AG10: 6 | AH10: 10 | AI10: 5 | AJ10: 7 | AK10: 14 | AL10: 22 | AM10: 36 | AN10: 8.5 | AO10: 6 | AP10: 17 | AQ10: 31.5 | AR10: 8 | AS10: 15.5 | AT10: 14.5 | AU10: 38 | AV10: 9 | AW10: 8.5 | AX10: 16.5 | AY10: 34 | AZ10: 8.5 | BA10: 10 | BB10: 8 | BC10: 26.5 | BD10: 9 | BE10: 11 | BF10: 17.5 | BG10: 37.5 | BH10: 9.5 | BI10: 13.5 | BJ10: 12 | BK10: 35 | BL10: 7.5 | BM10: 10 | BN10: 10 | BO10: 27.5 | BP10: 408.2 | BQ10: 3 | BR10: 4.5 | BS10: 6 | BT10: 13.5 | BU10: 4 | BV10: 7.5 | BW10: 4.5 | BX10: 130 | BY10: ناجحة | BZ10: و منقولة للصف الثانى | CA10: 0 | CU10: 0 | CV10: 0 | CW10: 136 | CX10: 55
A11: 4 | B11: 4 | C11: طالب تجارة 4 | D11: 1/1 | E11: مستجد | F11: 2002-05-19 | G11: 12 | H11: 4 | I11: 16 | J11: 74 | K11: 7.5 | L11: 12 | M11: 13 | N11: 32.5 | O11: 8.5 | P11: 14.4 | Q11: 12 | R11: 34.9 | S11: 5 | T11: 9.2 | U11: 8 | V11: 22.2 | W11: 6 | X11: 11 | Y11: 13.5 | Z11: 30.5 | AA11: 3 | AB11: 7 | AC11: 9 | AD11: 19 | AE11: 2.5 | AF11: 5 | AG11: 6 | AH11: 10 | AI11: 6 | AJ11: 8 | AK11: 14.5 | AL11: 23 | AM11: 37.5 | AN11: 8.5 | AO11: 5 | AP11: 17 | AQ11: 30.5 | AR11: 8 | AS11: 15 | AT11: 13 | AU11: 36 | AV11: 9 | AW11: 10 | AX11: 15.5 | AY11: 34.5 | AZ11: 9 | BA11: 11 | BB11: 9 | BC11: 29 | BD11: 9 | BE11: 12.5 | BF11: 17.5 | BG11: 39 | BH11: 9.5 | BI11: 12 | BJ11: 12 | BK11: 33.5 | BL11: 8.5 | BM11: 14 | BN11: 8 | BO11: 30.5 | BP11: 409.6 | BQ11: 3 | BR11: 4 | BS11: 4.5 | BT11: 11.5 | BU11: 3.5 | BV11: 6 | BW11: 2.5 | BX11: 131.1 | BY11: ناجحة | BZ11: و منقولة للصف الثانى | CA11: 0 | CU11: 0 | CV11: 0 | CW11: 134.1 | CX11: 65
A12: 5 | B12: 5 | C12: طالب تجارة 5 | D12: 1/1 | E12: مستجد | F12: 2002-02-27 | G12: 4 | H12: 7 | I12: 16 | J12: 75 | K12: 7.5 | L12: 14 | M12: 15 | N12: 36.5 | O12: 8.5 | P12: 13.2 | Q12: 11.6 | R12: 33.3 | S12: 4.5 | T12: 9.6 | U12: 6.8 | V12: 20.9 | W12: 6 | X12: 12.5 | Y12: 13 | Z12: 31.5 | AA12: 3 | AB12: 7 | AC12: 10.5 | AD12: 20.5 | AE12: 2.5 | AF12: 5 | AG12: 6 | AH12: 10 | AI12: 6 | AJ12: 10 | AK12: 14.5 | AL12: 25 | AM12: 39.5 | AN12: 8.5 | AO12: 4 | AP12: 18 | AQ12: 30.5 | AR12: 8 | AS12: 16.5 | AT12: 14 | AU12: 38.5 | AV12: 9 | AW12: 12.5 | AX12: 17 | AY12: 38.5 | AZ12: 9 | BA12: 9 | BB12: 11 | BC12: 29 | BD12: 9 | BE12: 16.5 | BF12: 19 | BG12: 44.5 | BH12: 9.5 | BI12: 12.5 | BJ12: 14 | BK12: 36 | BL12: 8.5 | BM12: 12 | BN12: 14 | BO12: 34.5 | BP12: 433.7 | BQ12: 3 | BR12: 4.5 | BS12: 6 | BT12: 13.5 | BU12: 3.5 | BV12: 6.5 | BW12: 2.5 | BX12: 141.3 | BY12: ناجحة | BZ12: و منقولة للصف الثانى | CA12: 0 | CU12: 0 | CV12: 0 | CW12: 141.3 | CX12: 33
A13: 6 | B13: 6 | C13: طالب تجارة 6 | D13: 1/1 | E13: مستجد | F13: 2002-03-18 | G13: 13 | H13: 6 | I13: 16 | J13: 76 | K13: 7.5 | L13: 14.5 | M13: 15.5 | N13: 37.5 | O13: 8 | P13: 13.2 | Q13: 10.8 | R13: 32 | S13: 4.5 | T13: 8.8 | U13: 6.8 | V13: 20.1 | W13: 6 | X13: 6 | Y13: 12 | Z13: 24 | AA13: 5 | AB13: 2 | AC13: 8.5 | AD13: 15.5 | AE13: 2.5 | AF13: 5 | AG13: 5 | AH13: 11 | AI13: 6 | AJ13: 10 | AK13: 13.5 | AL13: 26 | AM13: 39.5 | AN13: 8.5 | AO13: 9 | AP13: 18 | AQ13: 35.5 | AR13: 8 | AS13: 16 | AT13: 12.5 | AU13: 36.5 | AV13: 9 | AW13: 1.5 | AX13: 18 | AY13: 28.5 | AZ13: 8.5 | BA13: 6 | BB13: 10.5 | BC13: 25 | BD13: 9 | BE13: 1 | BF13: 17 | BG13: 27 | BH13: 9.5 | BI13: 10.5 | BJ13: 17 | BK13: 37 | BL13: 7.5 | BM13: 12 | BN13: 12 | BO13: 31.5 | BP13: 389.6 | BQ13: 3 | BR13: 3.5 | BS13: 5.5 | BT13: 12 | BU13: 3.5 | BV13: 5.5 | BW13: 2 | BX13: 111.5 | BY13: ناجحة | BZ13: و منقولة للصف الثانى | CA13: 0 | CU13: 0 | CV13: 0 | CW13: 130 | CX13: 85
A14: 7 | B14: 7 | C14: طالب تجارة 7 | D14: 2/1 | E14: مستجد | F14: 2002-07-01 | G14: 0 | H14: 3 | I14: 16 | J14: 77 | K14: 7.5 | L14: 11 | M14: 14 | N14: 32.5 | O14: 8.5 | P14: 13.6 | Q14: 13.2 | R14: 35.3 | S14: 4.5 | T14: 9.2 | U14: 6.8 | V14: 20.5 | W14: 6 | X14: 6.5 | Y14: 10.5 | Z14: 23 | AA14: 5 | AB14: 1.5 | AC14: 8.5 | AD14: 15 | AE14: 3 | AF14: 5 | AG14: 6 | AH14: 10 | AI14: 5 | AJ14: 10 | AK14: 14 | AL14: 25 | AM14: 39 | AN14: 9 | AO14: 6 | AP14: 17 | AQ14: 32 | AR14: 8 | AS14: 16 | AT14: 14 | AU14: 38 | AV14: 9 | AW14: 9 | AX14: 18 | AY14: 36 | AZ14: 9 | BA14: 6 | BB14: 10 | BC14: 25 | BD14: 9 | BE14: 1 | BF14: 19.5 | BG14: 29.5 | BH14: 9.5 | BI14: 15 | BJ14: 16 | BK14: 40.5 | BL14: 7.5 | BM14: 8 | BN14: 11 | BO14: 26.5 | BP14: 392.8 | BQ14: 3 | BR14: 4.5 | BS14: 7 | BT14: 14.5 | BU14: 3.5 | BV14: 5.5 | BW14: 4 | BX14: 112.3 | BY14: ناجحة | BZ14: و منقولة للصف الثانى | CA14: 0 | CU14: 0 | CV14: 0 | CW14: 131.8 | CX14: 78
A15: 8 | B15: 8 | C15: طالب تجارة 8 | D15: 1/1 | E15: مستجد | F15: 2002-10-26 | G15: 5 | H15: 11 | I15: 15 | J15: 78 | K15: 7.5 | L15: 13.5 | M15: 17.5 | N15: 38.5 | O15: 8.5 | P15: 13.6 | Q15: 14 | R15: 36.1 | S15: 4.5 | T15: 9.2 | U15: 6.4 | V15: 20.1 | W15: 6 | X15: 13 | Y15: 14 | Z15: 33 | AA15: 3.5 | AB15: 7 | AC15: 9 | AD15: 19.5 | AE15: 2.5 | AF15: 5 | AG15: 6 | AH15: 11 | AI15: 6 | AJ15: 10 | AK15: 14.5 | AL15: 26 | AM15: 40.5 | AN15: 8.5 | AO15: 9 | AP15: 15 | AQ15: 32.5 | AR15: 8 | AS15: 14 | AT15: 14.5 | AU15: 36.5 | AV15: 9 | AW15: 13 | AX15: 17.5 | AY15: 39.5 | AZ15: 8.5 | BA15: 9 | BB15: 9 | BC15: 26.5 | BD15: 9 | BE15: 11 | BF15: 19 | BG15: 39 | BH15: 9.5 | BI15: 15 | BJ15: 15 | BK15: 39.5 | BL15: 8.5 | BM15: 18 | BN15: 16 | BO15: 42.5 | BP15: 443.7 | BQ15: 3 | BR15: 5.5 | BS15: 7 | BT15: 15.5 | BU15: 3.5 | BV15: 6.5 | BW15: 5 | BX15: 135.3 | BY15: ناجحة | BZ15: و منقولة للصف الثانى | CA15: 0 | CU15: 0 | CV15: 0 | CW15: 144.3 | CX15: 20
A16: 9 | B16: 9 | C16: طالب تجارة 9 | D16: 1/1 | E16: مستجد | F16: 2002-03-13 | G16: 18 | H16: 6 | I16: 16 | J16: 79 | K16: 7.5 | L16: 6 | M16: 12.5 | N16: 26 | O16: 8 | P16: 12 | Q16: 9.2 | R16: 29.2 | S16: 4.5 | T16: 8.4 | U16: 6.8 | V16: 19.7 | W16: 6 | X16: 9.5 | Y16: 11.5 | Z16: 27 | AA16: 5.5 | AB16: 1 | AC16: 8.5 | AD16: 15 | AE16: 3 | AF16: 5 | AG16: 6 | AH16: 10 | AI16: 5 | AJ16: 10 | AK16: 14 | AL16: 25 | AM16: 39 | AN16: 8.5 | AO16: 8 | AP16: 16 | AQ16: 32.5 | AR16: 8 | AS16: 12.5 | AT16: 13.5 | AU16: 34 | AV16: 9 | AW16: 4.5 | AX16: 12.5 | AY16: 26 | AZ16: 8.5 | BA16: 6 | BB16: 10.5 | BC16: 25 | BD16: 9 | BE16: 8.5 | BF16: 14 | BG16: 31.5 | BH16: 9 | BI16: 13 | BJ16: 16 | BK16: 38 | BL16: 7.5 | BM16: 17 | BN16: 13 | BO16: 37.5 | BP16: 380.4 | BQ16: 3 | BR16: 3 | BS16: 4.5 | BT16: 10.5 | BU16: 3.5 | BV16: 2 | BW16: 4.5 | BX16: 108.4 | BY16: ناجحة | BZ16: و منقولة للصف الثانى | CA16: 0 | CU16: 0 | CV16: 0 | CW16: 123.9 | CX16: 117
A17: 10 | B17: 10 | C17: طالب تجارة 10 | D17: 1/1 | E17: مستجد | F17: 2001-03-01 | G17: 0 | H17: 7 | I17: 17 | J17: 80 | K17: 7.5 | L17: 9.5 | M17: 15 | N17: 32 | O17: 8 | P17: 12.4 | Q17: 12 | R17: 32.4 | S17: 4.5 | T17: 8 | U17: 6.4 | V17: 18.9 | W17: 6 | X17: 9 | Y17: 10 | Z17: 25 | AA17: 4.5 | AB17: 1.5 | AC17: 9 | AD17: 15 | AE17: 2.5 | AF17: 5 | AG17: 5 | AH17: 10 | AI17: 6 | AJ17: 9 | AK17: 13.5 | AL17: 24 | AM17: 37.5 | AN17: 8.5 | AO17: 12 | AP17: 14 | AQ17: 34.5 | AR17: 8 | AS17: 7 | AT17: 10 | AU17: 25 | AV17: 9 | AW17: 3.5 | AX17: 10.5 | AY17: 23 | AZ17: 9 | BA17: 11 | BB17: 8 | BC17: 28 | BD17: 9 | BE17: 1 | BF17: 15 | BG17: 25 | BH17: 9.5 | BI17: 10.5 | BJ17: 14 | BK17: 34 | BL17: 8 | BM17: 11 | BN17: 12 | BO17: 31 | BP17: 361.3 | BQ17: 3 | BR17: 5 | BS17: 4 | BT17: 12 | BU17: 3.5 | BV17: 6 | BW17: 5 | BX17: 104.9 | BY17: ناجحة | BZ17: و منقولة للصف الثانى | CA17: 0 | CU17: 0 | CV17: 0 | CW17: 122.4 | CX17: 127
A18: 11 | B18: 11 | C18: طالب تجارة 11 | D18: 1/1 | E18: مستجد | F18: 2002-04-21 | G18: 10 | H18: 5 | I18: 16 | J18: 81 | K18: 7.5 | L18: 11.5 | M18: 15.5 | N18: 34.5 | O18: 8 | P18: 14.4 | Q18: 10 | R18: 32.4 | S18: 4.5 | T18: 10.4 | U18: 5.6 | V18: 20.5 | W18: 6 | X18: 10.5 | Y18: 14 | Z18: 30.5 | AA18: 5 | AB18: 8.5 | AC18: 10 | AD18: 23.5 | AE18: 2.5 | AF18: 5 | AG18: 5 | AH18: 10 | AI18: 6 | AJ18: 9 | AK18: 13.5 | AL18: 24 | AM18: 37.5 | AN18: 8.5 | AO18: 15 | AP18: 16 | AQ18: 39.5 | AR18: 8 | AS18: 15 | AT18: 15 | AU18: 38 | AV18: 9 | AW18: 16 | AX18: 18.5 | AY18: 43.5 | AZ18: 9 | BA18: 13 | BB18: 17 | BC18: 39 | BD18: 9 | BE18: 13 | BF18: 15.5 | BG18: 37.5 | BH18: 9.5 | BI18: 10 | BJ18: 16 | BK18: 35.5 | BL18: 8 | BM18: 14 | BN18: 14 | BO18: 36 | BP18: 447.9 | BQ18: 3 | BR18: 5 | BS18: 6.5 | BT18: 14.5 | BU18: 3.5 | BV18: 4.5 | BW18: 4.5 | BX18: 132.3 | BY18: ناجحة | BZ18: و منقولة للصف الثانى | CA18: 0 | CU18: 0 | CV18: 0 | CW18: 138.8 | CX18: 43
A19: 12 | B19: 12 | C19: طالب تجارة 12 | D19: 1/1 | E19: مستجد | F19: 2002-03-05 | G19: 26 | H19: 6 | I19: 16 | J19: 82 | K19: 8 | L19: 14.5 | M19: 15 | N19: 37.5 | O19: 8.5 | P19: 12.8 | Q19: 11.2 | R19: 32.5 | S19: 4.5 | T19: 9.2 | U19: 5.2 | V19: 18.9 | W19: 6 | X19: 8.5 | Y19: 11.5 | Z19: 26 | AA19: 5.5 | AB19: 9 | AC19: 8 | AD19: 22.5 | AE19: 2.5 | AF19: 5 | AG19: 5 | AH19: 11 | AI19: 5 | AJ19: 7 | AK19: 12.5 | AL19: 23 | AM19: 35.5 | AN19: 8.5 | AO19: 8 | AP19: 18 | AQ19: 34.5 | AR19: 8 | AS19: 14.5 | AT19: 9.5 | AU19: 32 | AV19: 9 | AW19: 10.5 | AX19: 13.5 | AY19: 33 | AZ19: 9 | BA19: 13 | BB19: 16 | BC19: 38 | BD19: 9 | BE19: 9.5 | BF19: 13.5 | BG19: 32 | BH19: 9.5 | BI19: 16.5 | BJ19: 16 | BK19: 42 | BL19: 7.5 | BM19: 15 | BN19: 16 | BO19: 38.5 | BP19: 422.9 | BQ19: 3 | BR19: 4 | BS19: 7 | BT19: 14 | BU19: 3.5 | BV19: 4.5 | BW19: 4.5 | BX19: 123.5 | BY19: ناجحة | BZ19: و منقولة للصف الثانى | CA19: 0 | CU19: 0 | CV19: 0 | CW19: 142 | CX19: 30
A20: 13 | B20: 13 | C20: طالب تجارة 13 | D20: 1/1 | E20: مستجد | F20: 2002-12-10 | G20: 21 | H20: 9 | I20: 15 | J20: 83 | K20: 8 | L20: 16 | M20: 17 | N20: 41 | O20: 8 | P20: 12.8 | Q20: 11.6 | R20: 32.4 | S20: 4.5 | T20: 8.8 | U20: 6 | V20: 19.3 | W20: 6 | X20: 7.5 | Y20: 11 | Z20: 24.5 | AA20: 5.5 | AB20: 8 | AC20: 9.5 | AD20: 23 | AE20: 2.5 | AF20: 5 | AG20: 6 | AH20: 11 | AI20: 6 | AJ20: 8 | AK20: 14.5 | AL20: 24 | AM20: 38.5 | AN20: 8.5 | AO20: 11 | AP20: 17 | AQ20: 36.5 | AR20: 8 | AS20: 12 | AT20: 12 | AU20: 32 | AV20: 9 | AW20: 12 | AX20: 15 | AY20: 36 | AZ20: 9 | BA20: 10 | BB20: 16 | BC20: 35 | BD20: 9 | BE20: 11.5 | BF20: 15 | BG20: 35.5 | BH20: 9.5 | BI20: 13 | BJ20: 13 | BK20: 35.5 | BL20: 8.5 | BM20: 12 | BN20: 15 | BO20: 35.5 | BP20: 424.7 | BQ20: 3 | BR20: 5 | BS20: 6.5 | BT20: 14.5 | BU20: 3.5 | BV20: 5 | BW20: 3.5 | BX20: 127.1 | BY20: ناجحة | BZ20: و منقولة للصف الثانى | CA20: 0 | CU20: 0 | CV20: 0 | CW20: 135.6 | CX20: 58
A21: 14 | B21: 14 | C21: طالب تجارة 14 | D21: 1/1 | E21: مستجد | F21: 2002-10-12 | G21: 19 | H21: 11 | I21: 15 | J21: 84 | K21: 7.5 | L21: 13.5 | M21: 13 | N21: 34 | O21: 8 | P21: 12 | Q21: 10 | R21: 30 | S21: 4.5 | T21: 10.4 | U21: 6 | V21: 20.9 | W21: 6 | X21: 11 | Y21: 12 | Z21: 29 | AA21: 5 | AB21: 4 | AC21: 6.5 | AD21: 15.5 | AE21: 3 | AF21: 5 | AG21: 5 | AH21: 11 | AI21: 6 | AJ21: 4 | AK21: 14 | AL21: 20 | AM21: 34 | AN21: 8.5 | AO21: 9 | AP21: 16 | AQ21: 33.5 | AR21: 8 | AS21: 16.5 | AT21: 15 | AU21: 39.5 | AV21: 9 | AW21: 7 | AX21: 15.5 | AY21: 31.5 | AZ21: 8.5 | BA21: 9 | BB21: 17 | BC21: 34.5 | BD21: 9 | BE21: 0.5 | BF21: 16 | BG21: 25.5 | BH21: 9.5 | BI21: 15 | BJ21: 14 | BK21: 38.5 | BL21: 7.5 | BM21: 13 | BN21: 14 | BO21: 34.5 | BP21: 400.9 | BQ21: 3 | BR21: 4 | BS21: 6.5 | BT21: 13.5 | BU21: 3.5 | BV21: 6 | BW21: 5 | BX21: 110.4 | BY21: ناجحة | BZ21: و منقولة للصف الثانى | CA21: 0 | CU21: 0 | CV21: 0 | CW21: 131.9 | CX21: 77
A22: 15 | B22: 15 | C22: طالب تجارة 15 | D22: 1/1 | E22: مستجد | F22: 2001-03-21 | G22: 10 | H22: 6 | I22: 17 | J22: 85 | K22: 7.5 | L22: 15.5 | M22: 14.5 | N22: 37.5 | O22: 8.5 | P22: 13.2 | Q22: 8.8 | R22: 30.5 | S22: 4.5 | T22: 10 | U22: 7.2 | V22: 21.7 | W22: 6 | X22: 14 | Y22: 11 | Z22: 31 | AA22: 5 | AB22: 9 | AC22: 10 | AD22: 24 | AE22: 3 | AF22: 5 | AG22: 6 | AH22: 10 | AI22: 6 | AJ22: 4 | AK22: 15 | AL22: 19 | AM22: 34 | AN22: 8.5 | AO22: 8 | AP22: 14 | AQ22: 30.5 | AR22: 8 | AS22: 18 | AT22: 12 | AU22: 38 | AV22: 9 | AW22: 11.5 | AX22: 14 | AY22: 34.5 | AZ22: 9 | BA22: 13 | BB22: 15 | BC22: 37 | BD22: 9 | BE22: 10.5 | BF22: 15 | BG22: 34.5 | BH22: 9.5 | BI22: 17 | BJ22: 15 | BK22: 41.5 | BL22: 8 | BM22: 13 | BN22: 14 | BO22: 35 | BP22: 429.7 | BQ22: 3 | BR22: 4.5 | BS22: 6.5 | BT22: 14 | BU22: 3.5 | BV22: 4.5 | BW22: 6 | BX22: 130.7 | BY22: ناجحة | BZ22: و منقولة للصف الثانى | CA22: 0 | CU22: 0 | CV22: 0 | CW22: 146.2 | CX22: 13
A23: 16 | B23: 16 | C23: طالب تجارة 16 | D23: 1/1 | E23: مستجد | F23: 2002-10-13 | G23: 18 | H23: 11 | I23: 15 | J23: 86 | K23: 7.5 | L23: 13.5 | M23: 13.5 | N23: 34.5 | O23: 8.5 | P23: 13.2 | Q23: 9.2 | R23: 30.9 | S23: 4.5 | T23: 8.8 | U23: 5.2 | V23: 18.5 | W23: 6 | X23: 8.5 | Y23: 9 | Z23: 23.5 | AA23: 5 | AB23: 7.5 | AC23: 9.5 | AD23: 22 | AE23: 3 | AF23: 5 | AG23: 6 | AH23: 8 | AI23: 5 | AJ23: 9 | AK23: 14 | AL23: 22 | AM23: 36 | AN23: 8.5 | AO23: 15 | AP23: 18 | AQ23: 41.5 | AR23: 8 | AS23: 15 | AT23: 15.5 | AU23: 38.5 | AV23: 9 | AW23: 12 | AX23: 19 | AY23: 40 | AZ23: 8.5 | BA23: 12 | BB23: 13 | BC23: 33.5 | BD23: 9 | BE23: 14 | BF23: 18.5 | BG23: 41.5 | BH23: 9.5 | BI23: 15.5 | BJ23: 15 | BK23: 40 | BL23: 8 | BM23: 13 | BN23: 15 | BO23: 36 | BP23: 436.4 | BQ23: 3 | BR23: 3 | BS23: 6 | BT23: 12 | BU23: 4 | BV23: 4 | BW23: 5 | BX23: 132 | BY23: ناجحة | BZ23: و منقولة للصف الثانى | CA23: 0 | CU23: 0 | CV23: 0 | CW23: 139 | CX23: 42
A24: 17 | B24: 17 | C24: طالب تجارة 17 | D24: 1/1 | E24: مستجد | F24: 2001-03-18 | G24: 13 | H24: 6 | I24: 17 | J24: 87 | K24: 7.5 | L24: 17 | M24: 16 | N24: 40.5 | O24: 8.5 | P24: 12.8 | Q24: 14 | R24: 35.3 | S24: 4.5 | T24: 10.8 | U24: 5.2 | V24: 20.5 | W24: 6 | X24: 8.5 | Y24: 13 | Z24: 27.5 | AA24: 3.5 | AB24: 5.5 | AC24: 10.5 | AD24: 19.5 | AE24: 2.5 | AF24: 5 | AG24: 5 | AH24: 10 | AI24: 6 | AJ24: 9 | AK24: 13.5 | AL24: 24 | AM24: 37.5 | AN24: 8.5 | AO24: 8 | AP24: 18 | AQ24: 34.5 | AR24: 8 | AS24: 13.5 | AT24: 16 | AU24: 37.5 | AV24: 9 | AW24: 11.5 | AX24: 16.5 | AY24: 37 | AZ24: 8.5 | BA24: 12 | BB24: 12 | BC24: 32.5 | BD24: 9 | BE24: 2 | BF24: 19 | BG24: 30 | BH24: 9.5 | BI24: 14 | BJ24: 14 | BK24: 37.5 | BL24: 8 | BM24: 15 | BN24: 15 | BO24: 38 | BP24: 427.8 | BQ24: 3 | BR24: 5.5 | BS24: 5.5 | BT24: 14 | BU24: 3.5 | BV24: 6 | BW24: 6 | BX24: 123.6 | BY24: ناجحة | BZ24: و منقولة للصف الثانى | CA24: 0 | CU24: 0 | CV24: 0 | CW24: 139.6 | CX24: 37
A25: 18 | B25: 18 | C25: طالب تجارة 18 | D25: 1/1 | E25: مستجد | F25: 2002-06-16 | G25: 15 | H25: 3 | I25: 16 | J25: 88 | K25: 7.5 | L25: 16.5 | M25: 16 | N25: 40 | O25: 8.5 | P25: 14.8 | Q25: 11.6 | R25: 34.9 | S25: 4.5 | T25: 10.8 | U25: 5.6 | V25: 20.9 | W25: 6 | X25: 9 | Y25: 10 | Z25: 25 | AA25: 5 | AB25: 7 | AC25: 7.5 | AD25: 19.5 | AE25: 2.5 | AF25: 5 | AG25: 5 | AH25: 9 | AI25: 5 | AJ25: 7 | AK25: 12.5 | AL25: 21 | AM25: 33.5 | AN25: 8.5 | AO25: 11 | AP25: 18 | AQ25: 37.5 | AR25: 8 | AS25: 14.5 | AT25: 16 | AU25: 38.5 | AV25: 9 | AW25: 11 | AX25: 14 | AY25: 34 | AZ25: 9 | BA25: 11 | BB25: 12 | BC25: 32 | BD25: 9 | BE25: 5 | BF25: 17 | BG25: 31 | BH25: 9.5 | BI25: 17 | BJ25: 16 | BK25: 42.5 | BL25: 7.5 | BM25: 16 | BN25: 15 | BO25: 38.5 | BP25: 427.8 | BQ25: 3 | BR25: 5 | BS25: 7 | BT25: 15 | BU25: 3.5 | BV25: 6.5 | BW25: 5 | BX25: 126.6 | BY25: ناجحة | BZ25: و منقولة للصف الثانى | CA25: 0 | CU25: 0 | CV25: 0 | CW25: 146.6 | CX25: 11
A26: 19 | B26: 19 | C26: طالب تجارة 19 | D26: 1/1 | E26: مستجد | F26: 2002-12-09 | G26: 22 | H26: 9 | I26: 15 | J26: 89 | K26: 7 | L26: 14.5 | M26: 13 | N26: 34.5 | O26: 8.5 | P26: 14.4 | Q26: 10 | R26: 32.9 | S26: 4.5 | T26: 10.4 | U26: 7.2 | V26: 22.1 | W26: 6 | X26: 13.5 | Y26: 14 | Z26: 33.5 | AA26: 2.5 | AB26: 8 | AC26: 5 | AD26: 15.5 | AE26: 3 | AF26: 5 | AG26: 6 | AH26: 8 | AI26: 5 | AJ26: 9 | AK26: 14 | AL26: 22 | AM26: 36 | AN26: 8.5 | AO26: 7 | AP26: 13 | AQ26: 28.5 | AR26: 8 | AS26: 14 | AT26: 16 | AU26: 38 | AV26: 9 | AW26: 9 | AX26: 17 | AY26: 35 | AZ26: 9 | BA26: 7 | BB26: 12.5 | BC26: 28.5 | BD26: 9 | BE26: 4.5 | BF26: 14 | BG26: 27.5 | BH26: 9.5 | BI26: 14.5 | BJ26: 14 | BK26: 38 | BL26: 8 | BM26: 18 | BN26: 16 | BO26: 42 | BP26: 412 | BQ26: 3 | BR26: 4.5 | BS26: 7.5 | BT26: 15 | BU26: 4 | BV26: 7 | BW26: 6.5 | BX26: 127.8 | BY26: ناجحة | BZ26: و منقولة للصف الثانى | CA26: 0 | CU26: 0 | CV26: 0 | CW26: 146.8 | CX26: 10
A27: 20 | B27: 20 | C27: طالب تجارة 20 | D27: 1/1 | E27: مستجد | F27: 2002-03-17 | G27: 14 | H27: 6 | I27: 16 | J27: 90 | K27: 7.5 | L27: 14.5 | M27: 13.5 | N27: 35.5 | O27: 8 | P27: 11.2 | Q27: 7.6 | R27: 26.8 | S27: 4.5 | T27: 9.6 | U27: 7.6 | V27: 21.7 | W27: 6 | X27: 12.5 | Y27: 14 | Z27: 32.5 | AA27: 2.5 | AB27: 3.5 | AC27: 9.5 | AD27: 15.5 | AE27: 2.5 | AF27: 5 | AG27: 5 | AH27: 8 | AI27: 5 | AJ27: 9 | AK27: 12.5 | AL27: 22 | AM27: 34.5 | AN27: 8.5 | AO27: 7 | AP27: 13 | AQ27: 28.5 | AR27: 8 | AS27: 14 | AT27: 14.5 | AU27: 36.5 | AV27: 9 | AW27: 9.5 | AX27: 17.5 | AY27: 36 | AZ27: 9 | BA27: 6 | BB27: 16 | BC27: 31 | BD27: 9 | BE27: 12 | BF27: 16 | BG27: 37 | BH27: 9.5 | BI27: 15 | BJ27: 12 | BK27: 36.5 | BL27: 8 | BM27: 18 | BN27: 16 | BO27: 42 | BP27: 414 | BQ27: 3 | BR27: 4.5 | BS27: 6.5 | BT27: 14 | BU27: 4 | BV27: 6.5 | BW27: 5 | BX27: 127.8 | BY27: ناجحة | BZ27: و منقولة للصف الثانى | CA27: 0 | CU27: 0 | CV27: 0 | CW27: 135.8 | CX27: 56
A28: 21 | B28: 21 | C28: طالب تجارة 21 | D28: 1/1 | E28: مستجد | F28: 2003-04-01 | G28: 0 | H28: 6 | I28: 15 | J28: 91 | K28: 8 | L28: 14 | M28: 13 | N28: 35 | O28: 8.5 | P28: 14 | Q28: 10.4 | R28: 32.9 | S28: 4.5 | T28: 11.2 | U28: 6.8 | V28: 22.5 | W28: 6 | X28: 7 | Y28: 14 | Z28: 27 | AA28: 5 | AB28: 8.5 | AC28: 9 | AD28: 22.5 | AE28: 3 | AF28: 5 | AG28: 5 | AH28: 5 | AI28: 6 | AJ28: 9 | AK28: 14 | AL28: 19 | AM28: 33 | AN28: 8.5 | AO28: 11 | AP28: 15 | AQ28: 34.5 | AR28: 8 | AS28: 16.5 | AT28: 16.5 | AU28: 41 | AV28: 9 | AW28: 14 | AX28: 19 | AY28: 42 | AZ28: 9 | BA28: 6 | BB28: 14 | BC28: 29 | BD28: 9 | BE28: 15.5 | BF28: 19.5 | BG28: 44 | BH28: 9.5 | BI28: 16 | BJ28: 14 | BK28: 39.5 | BL28: 8 | BM28: 13 | BN28: 17 | BO28: 38 | BP28: 440.9 | BQ28: 3 | BR28: 5.5 | BS28: 7 | BT28: 15.5 | BU28: 3.5 | BV28: 4.5 | BW28: 4 | BX28: 138.2 | BY28: ناجحة | BZ28: و منقولة للصف الثانى | CA28: 0 | CU28: 0 | CV28: 0 | CW28: 142.2 | CX28: 28
A29: 22 | B29: 22 | C29: طالب تجارة 22 | D29: 1/1 | E29: مستجد | F29: 2003-03-02 | G29: 29 | H29: 6 | I29: 15 | J29: 92 | K29: 8 | L29: 12.5 | M29: 13 | N29: 33.5 | O29: 8.5 | P29: 12.8 | Q29: 10.4 | R29: 31.7 | S29: 4.5 | T29: 10.8 | U29: 7.6 | V29: 22.9 | W29: 6 | X29: 10.5 | Y29: 14 | Z29: 30.5 | AA29: 5.5 | AB29: 10 | AC29: 9.5 | AD29: 25 | AE29: 3 | AF29: 5 | AG29: 6 | AH29: 6 | AI29: 5 | AJ29: 9 | AK29: 14 | AL29: 20 | AM29: 34 | AN29: 8.5 | AO29: 11 | AP29: 15 | AQ29: 34.5 | AR29: 8 | AS29: 16.5 | AT29: 15 | AU29: 39.5 | AV29: 9 | AW29: 13 | AX29: 18.5 | AY29: 40.5 | AZ29: 8.5 | BA29: 10 | BB29: 14 | BC29: 32.5 | BD29: 9 | BE29: 11.5 | BF29: 19 | BG29: 39.5 | BH29: 9 | BI29: 15.5 | BJ29: 15 | BK29: 39.5 | BL29: 8 | BM29: 13 | BN29: 16 | BO29: 37 | BP29: 440.6 | BQ29: 3 | BR29: 5 | BS29: 6.5 | BT29: 14.5 | BU29: 4 | BV29: 3.5 | BW29: 4 | BX29: 135.1 | BY29: ناجحة | BZ29: و منقولة للصف الثانى | CA29: 0 | CU29: 0 | CV29: 0 | CW29: 144.1 | CX29: 22
A30: 23 | B30: 23 | C30: طالب تجارة 23 | D30: 1/1 | E30: مستجد | F30: 2001-03-27 | G30: 4 | H30: 6 | I30: 17 | J30: 93 | K30: 7 | L30: 14 | M30: 15 | N30: 36 | O30: 8 | P30: 13.6 | Q30: 10.4 | R30: 32 | S30: 5 | T30: 11.2 | U30: 8 | V30: 24.2 | W30: 6 | X30: 9.5 | Y30: 14 | Z30: 29.5 | AA30: 5 | AB30: 9 | AC30: 10 | AD30: 24 | AE30: 3 | AF30: 4.5 | AG30: 5 | AH30: 6 | AI30: 6 | AJ30: 9 | AK30: 14 | AL30: 19.5 | AM30: 33.5 | AN30: 8.5 | AO30: 9 | AP30: 17 | AQ30: 34.5 | AR30: 9 | AS30: 13.5 | AT30: 14.5 | AU30: 37 | AV30: 8 | AW30: 5.5 | AX30: 18.5 | AY30: 32 | AZ30: 9 | BA30: 12 | BB30: 10 | BC30: 31 | BD30: 9 | BE30: 4.5 | BF30: 17.5 | BG30: 31 | BH30: 9.5 | BI30: 16.5 | BJ30: 15 | BK30: 41 | BL30: 8 | BM30: 18 | BN30: 17 | BO30: 43 | BP30: 428.7 | BQ30: 3 | BR30: 5 | BS30: 7.5 | BT30: 15.5 | BU30: 4 | BV30: 5 | BW30: 6 | BX30: 127.3 | BY30: ناجحة | BZ30: و منقولة للصف الثانى | CA30: 0 | CU30: 0 | CV30: 0 | CW30: 145.8 | CX30: 15
A31: 24 | B31: 24 | C31: طالب تجارة 24 | D31: 1/1 | E31: مستجد | F31: 2002-01-12 | G31: 19 | H31: 8 | I31: 16 | J31: 94 | K31: 7 | L31: 10 | M31: 13.5 | N31: 30.5 | O31: 8.5 | P31: 15.6 | Q31: 7.6 | R31: 31.7 | S31: 4.5 | T31: 10.4 | U31: 7.2 | V31: 22.1 | W31: 6 | X31: 10 | Y31: 14 | Z31: 30 | AA31: 5.5 | AB31: 9.5 | AC31: 8.5 | AD31: 23.5 | AE31: 3 | AF31: 4 | AG31: 6 | AH31: 5 | AI31: 6 | AJ31: 9 | AK31: 15 | AL31: 18 | AM31: 33 | AN31: 8.5 | AO31: 10 | AP31: 10 | AQ31: 28.5 | AR31: 9 | AS31: 14.5 | AT31: 10.5 | AU31: 34 | AV31: 8.5 | AW31: 8.5 | AX31: 15.5 | AY31: 32.5 | AZ31: 9 | BA31: 5 | BB31: 12 | BC31: 26 | BD31: 9 | BE31: 3.5 | BF31: 15 | BG31: 27.5 | BH31: 9.5 | BI31: 16 | BJ31: 13 | BK31: 38.5 | BL31: 8 | BM31: 16 | BN31: 17 | BO31: 41 | BP31: 398.8 | BQ31: 3 | BR31: 4.5 | BS31: 6.5 | BT31: 14 | BU31: 4 | BV31: 5 | BW31: 4.5 | BX31: 122 | BY31: ناجحة | BZ31: و منقولة للصف الثانى | CA31: 0 | CU31: 0 | CV31: 0 | CW31: 141.5 | CX31: 32
A32: 25 | B32: 25 | C32: طالب تجارة 25 | D32: 1/1 | E32: مستجد | F32: 2002-05-22 | G32: 9 | H32: 4 | I32: 16 | J32: 95 | K32: 7 | L32: 15 | M32: 13 | N32: 35 | O32: 9 | P32: 12 | Q32: 6.4 | R32: 27.4 | S32: 5 | T32: 10.4 | U32: 7.6 | V32: 23 | W32: 6 | X32: 9 | Y32: 14 | Z32: 29 | AA32: 2 | AB32: 4.5 | AC32: 8.5 | AD32: 15 | AE32: 3 | AF32: 4 | AG32: 5 | AH32: 7 | AI32: 6 | AJ32: 10 | AK32: 14 | AL32: 21 | AM32: 35 | AN32: 8.5 | AO32: 6 | AP32: 12 | AQ32: 26.5 | AR32: 8.5 | AS32: 16 | AT32: 15.5 | AU32: 40 | AV32: 8 | AW32: 5.5 | AX32: 16.5 | AY32: 30 | AZ32: 9 | BA32: 8 | BB32: 12.5 | BC32: 29.5 | BD32: 9 | BE32: 5.5 | BF32: 16 | BG32: 30.5 | BH32: 9.5 | BI32: 15 | BJ32: 14 | BK32: 38.5 | BL32: 8.5 | BM32: 17 | BN32: 15 | BO32: 40.5 | BP32: 399.9 | BQ32: 3 | BR32: 5 | BS32: 7 | BT32: 15 | BU32: 3.5 | BV32: 5 | BW32: 2 | BX32: 120.4 | BY32: ناجحة | BZ32: و منقولة للصف الثانى | CA32: 0 | CU32: 0 | CV32: 0 | CW32: 136.9 | CX32: 52
A33: 26 | B33: 26 | C33: طالب تجارة 26 | D33: 1/1 | E33: مستجد | F33: 2001-09-08 | G33: 23 | H33: 0 | I33: 17 | J33: 96 | K33: 7.5 | L33: 10.5 | M33: 11.5 | N33: 29.5 | O33: 9 | P33: 12 | Q33: 7.2 | R33: 28.2 | S33: 4.5 | T33: 10.4 | U33: 7.6 | V33: 22.5 | W33: 6 | X33: 12 | Y33: 14 | Z33: 32 | AA33: 2 | AB33: 6 | AC33: 7 | AD33: 15 | AE33: 2.5 | AF33: 4 | AG33: 6 | AH33: 6 | AI33: 5 | AJ33: 10 | AK33: 13.5 | AL33: 20 | AM33: 33.5 | AN33: 8.5 | AO33: 8 | AP33: 15 | AQ33: 31.5 | AR33: 8.5 | AS33: 17 | AT33: 14.5 | AU33: 40 | AV33: 8.5 | AW33: 2.5 | AX33: 16 | AY33: 27 | AZ33: 9 | BA33: 8 | BB33: 14.5 | BC33: 31.5 | BD33: 9 | BE33: 4 | BF33: 17.5 | BG33: 30.5 | BH33: 9.5 | BI33: 13.5 | BJ33: 12 | BK33: 35 | BL33: 8 | BM33: 17 | BN33: 17 | BO33: 42 | BP33: 398.2 | BQ33: 3 | BR33: 4 | BS33: 7 | BT33: 14 | BU33: 3.5 | BV33: 4.5 | BW33: 4 | BX33: 120.9 | BY33: ناجحة | BZ33: و منقولة للصف الثانى | CA33: 0 | CU33: 0 | CV33: 0 | CW33: 133.9 | CX33: 66
A34: 27 | B34: 27 | C34: طالب تجارة 27 | D34: 1/1 | E34: مستجد | F34: 2002-08-12 | G34: 19 | H34: 1 | I34: 16 | J34: 97 | K34: 7.5 | L34: 16.5 | M34: 15 | N34: 39 | O34: 9 | P34: 12.4 | Q34: 12.8 | R34: 34.2 | S34: 5 | T34: 10.4 | U34: 8 | V34: 23.4 | W34: 6 | X34: 12 | Y34: 14 | Z34: 32 | AA34: 3.5 | AB34: 4.5 | AC34: 7.5 | AD34: 15.5 | AE34: 3 | AF34: 4 | AG34: 6 | AH34: 11 | AI34: 5 | AJ34: 10 | AK34: 14 | AL34: 25 | AM34: 39 | AN34: 8.5 | AO34: 13 | AP34: 17 | AQ34: 38.5 | AR34: 9 | AS34: 11 | AT34: 15 | AU34: 35 | AV34: 8.5 | AW34: 14 | AX34: 19 | AY34: 41.5 | AZ34: 9 | BA34: 10 | BB34: 15 | BC34: 34 | BD34: 9 | BE34: 17.5 | BF34: 19 | BG34: 45.5 | BH34: 10 | BI34: 15.5 | BJ34: 13 | BK34: 38.5 | BL34: 8.5 | BM34: 20 | BN34: 15 | BO34: 43.5 | BP34: 459.6 | BQ34: 3 | BR34: 6 | BS34: 8 | BT34: 17 | BU34: 3.5 | BV34: 4.5 | BW34: 6 | BX34: 141.3 | BY34: ناجحة | BZ34: و منقولة للصف الثانى | CA34: 0 | CU34: 0 | CV34: 0 | CW34: 142.3 | CX34: 26
A35: 28 | B35: 28 | C35: طالب تجارة 28 | D35: 1/1 | E35: مستجد | F35: 2002-09-12 | G35: 19 | H35: 0 | I35: 16 | J35: 98 | K35: 7.5 | L35: 13 | M35: 13.5 | N35: 34 | O35: 9 | P35: 12.4 | Q35: 9.6 | R35: 31 | S35: 5 | T35: 9.6 | U35: 7.6 | V35: 22.2 | W35: 6 | X35: 13 | Y35: 14 | Z35: 33 | AA35: 2.5 | AB35: 5.5 | AC35: 7 | AD35: 15 | AE35: 3 | AF35: 4 | AG35: 6 | AH35: 7 | AI35: 5 | AJ35: 9 | AK35: 14 | AL35: 20 | AM35: 34 | AN35: 8.5 | AO35: 8 | AP35: 14 | AQ35: 30.5 | AR35: 9 | AS35: 12 | AT35: 12 | AU35: 33 | AV35: 8.5 | AW35: 11 | AX35: 16 | AY35: 35.5 | AZ35: 9 | BA35: 9 | BB35: 10 | BC35: 28 | BD35: 9 | BE35: 16 | BF35: 18 | BG35: 43 | BH35: 10 | BI35: 15 | BJ35: 14 | BK35: 39 | BL35: 8 | BM35: 17 | BN35: 16 | BO35: 41 | BP35: 419.2 | BQ35: 3 | BR35: 6 | BS35: 7 | BT35: 16 | BU35: 3.5 | BV35: 4.5 | BW35: 5 | BX35: 135.5 | BY35: ناجحة | BZ35: و منقولة للصف الثانى | CA35: 0 | CU35: 0 | CV35: 0 | CW35: 139.5 | CX35: 39
A36: 29 | B36: 29 | C36: طالب تجارة 29 | D36: 1/1 | E36: مستجد | F36: 2002-07-06 | G36: 25 | H36: 2 | I36: 16 | J36: 127 | K36: 7 | L36: 14 | M36: 16 | N36: 37 | O36: 9 | P36: 15.2 | Q36: 5.6 | R36: 29.8 | S36: 5 | T36: 10.4 | U36: 8 | V36: 23.4 | W36: 6 | X36: 10.5 | Y36: 14 | Z36: 30.5 | AA36: 2.5 | AB36: 5 | AC36: 7.5 | AD36: 15 | AE36: 3 | AF36: 4 | AG36: 5 | AH36: 8 | AI36: 5 | AJ36: 10 | AK36: 13 | AL36: 22 | AM36: 35 | AN36: 8.5 | AO36: 9 | AP36: 13 | AQ36: 30.5 | AR36: 9 | AS36: 14.5 | AT36: 15.5 | AU36: 39 | AV36: 9 | AW36: 13 | AX36: 18 | AY36: 40 | AZ36: 9 | BA36: 8 | BB36: 11 | BC36: 28 | BD36: 9 | BE36: 14.5 | BF36: 18.5 | BG36: 42 | BH36: 10 | BI36: 15 | BJ36: 11 | BK36: 36 | BL36: 9.5 | BM36: 15 | BN36: 15 | BO36: 39.5 | BP36: 425.7 | BQ36: 3 | BR36: 5 | BS36: 7 | BT36: 15 | BU36: 3.5 | BV36: 4.5 | BW36: 5.5 | BX36: 137.6 | BY36: ناجحة | BZ36: و منقولة للصف الثانى | CA36: 0 | CU36: 0 | CV36: 0 | CW36: 139.6 | CX36: 37
A37: 30 | B37: 30 | C37: طالب تجارة 30 | D37: 1/1 | E37: مستجد | F37: 2003-02-01 | G37: 0 | H37: 8 | I37: 15 | J37: 128 | K37: 7.5 | L37: 13.5 | M37: 11 | N37: 32 | O37: 9 | P37: 13.6 | Q37: 13.6 | R37: 36.2 | S37: 5 | T37: 5.6 | U37: 7.2 | V37: 17.8 | W37: 6 | X37: 14 | Y37: 12 | Z37: 32 | AA37: 5 | AB37: 4 | AC37: 9 | AD37: 18 | AE37: 3 | AF37: 4 | AG37: 5 | AH37: 11 | AI37: 5 | AJ37: 9 | AK37: 13 | AL37: 24 | AM37: 37 | AN37: 8.5 | AO37: 7 | AP37: 16 | AQ37: 31.5 | AR37: 9 | AS37: 11.5 | AT37: 12.5 | AU37: 33 | AV37: 8.5 | AW37: 14.5 | AX37: 18.5 | AY37: 41.5 | AZ37: 9 | BA37: 14 | BB37: 10 | BC37: 33 | BD37: 9 | BE37: 14.5 | BF37: 18 | BG37: 41.5 | BH37: 9.5 | BI37: 14 | BJ37: 8 | BK37: 31.5 | BL37: 8 | BM37: 8 | BN37: 18 | BO37: 34 | BP37: 419 | BQ37: 3 | BR37: 5 | BS37: 7 | BT37: 15 | BU37: 4 | BV37: 4.5 | BW37: 3.5 | BX37: 131.2 | BY37: ناجحة | BZ37: و منقولة للصف الثانى | CA37: 0 | CU37: 0 | CV37: 0 | CW37: 129.7 | CX37: 87
A38: 31 | B38: 31 | C38: طالب تجارة 31 | D38: 1/1 | E38: مستجد | F38: 2002-08-01 | G38: 0 | H38: 2 | I38: 16 | J38: 129 | K38: 7 | L38: 12 | M38: 13.5 | N38: 32.5 | O38: 8.5 | P38: 11.2 | Q38: 10.4 | R38: 30.1 | S38: 5 | T38: 8.4 | U38: 8 | V38: 21.4 | W38: 6 | X38: 13 | Y38: 15 | Z38: 34 | AA38: 2 | AB38: 5.5 | AC38: 7.5 | AD38: 15 | AE38: 2.5 | AF38: 4 | AG38: 5 | AH38: 10 | AI38: 5 | AJ38: 8 | AK38: 12.5 | AL38: 22 | AM38: 34.5 | AN38: 8.5 | AO38: 17 | AP38: 17 | AQ38: 42.5 | AR38: 9.5 | AS38: 13 | AT38: 15 | AU38: 37.5 | AV38: 8.5 | AW38: 11.5 | AX38: 15 | AY38: 35 | AZ38: 9 | BA38: 15 | BB38: 13 | BC38: 37 | BD38: 9 | BE38: 10.5 | BF38: 17 | BG38: 36.5 | BH38: 9.5 | BI38: 15 | BJ38: 15 | BK38: 39.5 | BL38: 8 | BM38: 14 | BN38: 19 | BO38: 41 | BP38: 436.5 | BQ38: 3 | BR38: 6 | BS38: 6.5 | BT38: 15.5 | BU38: 4 | BV38: 3.5 | BW38: 3 | BX38: 125.1 | BY38: ناجحة | BZ38: و منقولة للصف الثانى | CA38: 0 | CU38: 0 | CV38: 0 | CW38: 136.6 | CX38: 53
A39: 32 | B39: 32 | C39: طالب تجارة 32 | D39: 1/1 | E39: مستجد | F39: 2002-12-01 | G39: 0 | H39: 10 | I39: 15 | J39: 130 | K39: 7 | L39: 16 | M39: 12.5 | N39: 35.5 | O39: 8.5 | P39: 13.2 | Q39: 15.6 | R39: 37.3 | S39: 5 | T39: 9.6 | U39: 8 | V39: 22.6 | W39: 6 | X39: 9.5 | Y39: 16 | Z39: 31.5 | AA39: 5.5 | AB39: 8 | AC39: 8 | AD39: 21.5 | AE39: 3 | AF39: 4 | AG39: 6 | AH39: 11 | AI39: 5 | AJ39: 10 | AK39: 14 | AL39: 25 | AM39: 39 | AN39: 8.5 | AO39: 18 | AP39: 18 | AQ39: 44.5 | AR39: 9 | AS39: 15 | AT39: 18.5 | AU39: 42.5 | AV39: 8.5 | AW39: 13 | AX39: 14.5 | AY39: 36 | AZ39: 9 | BA39: 15 | BB39: 13 | BC39: 37 | BD39: 9 | BE39: 12.5 | BF39: 19 | BG39: 40.5 | BH39: 9.5 | BI39: 16 | BJ39: 15 | BK39: 40.5 | BL39: 8.5 | BM39: 13 | BN39: 18 | BO39: 39.5 | BP39: 467.9 | BQ39: 3 | BR39: 6 | BS39: 6.5 | BT39: 15.5 | BU39: 3.5 | BV39: 3 | BW39: 4.5 | BX39: 136.8 | BY39: ناجحة | BZ39: و منقولة للصف الثانى | CA39: 0 | CU39: 0 | CV39: 0 | CW39: 145.3 | CX39: 17
A40: 33 | B40: 33 | C40: طالب تجارة 33 | D40: 1/1 | E40: مستجد | F40: 2002-09-21 | G40: 10 | H40: 0 | I40: 16 | J40: 131 | K40: 7.5 | L40: 16 | M40: 16 | N40: 39.5 | O40: 8.5 | P40: 13.2 | Q40: 15.6 | R40: 37.3 | S40: 5 | T40: 6.8 | U40: 9.2 | V40: 21 | W40: 6 | X40: 13 | Y40: 16 | Z40: 35 | AA40: 5.5 | AB40: 10 | AC40: 9.5 | AD40: 25 | AE40: 3 | AF40: 4 | AG40: 5 | AH40: 11 | AI40: 5 | AJ40: 10 | AK40: =SUM(AE40,AG40,AI40) -> 13 | AL40: =SUM(AF40,AH40,AJ40) -> 25 | AM40: 38 | AN40: 8.5 | AO40: 19 | AP40: 18 | AQ40: 45.5 | AR40: 8.5 | AS40: 15 | AT40: 17 | AU40: 40.5 | AV40: 8.5 | AW40: 15 | AX40: 19 | AY40: 42.5 | AZ40: 9 | BA40: 15 | BB40: 15 | BC40: 39 | BD40: 9 | BE40: 18 | BF40: 20 | BG40: 47 | BH40: 9.5 | BI40: 16.5 | BJ40: 15 | BK40: 41 | BL40: 9.5 | BM40: 19 | BN40: 19 | BO40: 47.5 | BP40: 498.8 | BQ40: 3 | BR40: 6.5 | BS40: 7 | BT40: 16.5 | BU40: 4 | BV40: 3.5 | BW40: 3.5 | BX40: 145.5 | BY40: ناجحة | BZ40: و منقولة للصف الثانى | CA40: 0 | CU40: 0 | CV40: 0 | CW40: 148 | CX40: 9
A41: 34 | B41: 34 | C41: طالب تجارة 34 | D41: 1/1 | E41: مستجد | F41: 2002-09-26 | G41: 5 | H41: 0 | I41: 16 | J41: 132 | K41: 7.5 | L41: 17.5 | M41: 15 | N41: 40 | O41: 9 | P41: 14.4 | Q41: 14 | R41: 37.4 | S41: 5 | T41: 5.6 | U41: 8.8 | V41: 19.4 | W41: 6 | X41: 14.5 | Y41: 16 | Z41: 36.5 | AA41: 2.5 | AB41: 8.5 | AC41: 9 | AD41: 20 | AE41: 3 | AF41: 4 | AG41: 6 | AH41: 9 | AI41: 5 | AJ41: 10 | AK41: 14 | AL41: 23 | AM41: 37 | AN41: 8.5 | AO41: 19 | AP41: 18 | AQ41: 45.5 | AR41: 9.5 | AS41: 15 | AT41: 17.5 | AU41: 42 | AV41: 9 | AW41: 15.5 | AX41: 16 | AY41: 40.5 | AZ41: 9 | BA41: 15 | BB41: 15 | BC41: 39 | BD41: 9 | BE41: 9 | BF41: 19.5 | BG41: 37.5 | BH41: 9.5 | BI41: 17.5 | BJ41: 15 | BK41: 42 | BL41: 9.5 | BM41: 19 | BN41: 19 | BO41: 47.5 | BP41: 484.3 | BQ41: 3 | BR41: 6.5 | BS41: 7 | BT41: 16.5 | BU41: 4 | BV41: 6 | BW41: 5 | BX41: 139 | BY41: ناجحة | BZ41: و منقولة للصف الثانى | CA41: 0 | CU41: 0 | CV41: 0 | CW41: 152 | CX41: 3
A42: 35 | B42: 35 | C42: طالب تجارة 35 | D42: 1/1 | E42: مستجد | F42: 2002-05-27 | G42: 4 | H42: 4 | I42: 16 | J42: 133 | K42: 7.5 | L42: 17.5 | M42: 16 | N42: 41 | O42: 8 | P42: 18.4 | Q42: 18 | R42: 44.4 | S42: 5 | T42: 6.8 | U42: 8.8 | V42: 20.6 | W42: 6 | X42: 14 | Y42: 14 | Z42: 34 | AA42: 2.5 | AB42: 7 | AC42: 8 | AD42: 17.5 | AE42: 3 | AF42: 4 | AG42: 5 | AH42: 10 | AI42: 6 | AJ42: 10 | AK42: 14 | AL42: 24 | AM42: 38 | AN42: 8.5 | AO42: 19 | AP42: 18 | AQ42: 45.5 | AR42: 9 | AS42: 16.5 | AT42: 17.5 | AU42: 43 | AV42: 8.5 | AW42: 15 | AX42: 14.5 | AY42: 38 | AZ42: 9 | BA42: 13 | BB42: 12 | BC42: 34 | BD42: 9 | BE42: 5 | BF42: 15.5 | BG42: 29.5 | BH42: 10 | BI42: 15.5 | BJ42: 15 | BK42: 40.5 | BL42: 8 | BM42: 18 | BN42: 19 | BO42: 45 | BP42: 471 | BQ42: 3 | BR42: 7 | BS42: 8 | BT42: 18 | BU42: 3.5 | BV42: 6.5 | BW42: 5 | BX42: 133.2 | BY42: ناجحة | BZ42: و منقولة للصف الثانى | CA42: 0 | CU42: 0 | CV42: 0 | CW42: 152.2 | CX42: 2
A43: 36 | B43: 36 | C43: طالب تجارة 36 | D43: 1/1 | E43: مستجد | F43: 2001-07-18 | G43: 13 | H43: 2 | I43: 17 | J43: 134 | K43: 7 | L43: 11.5 | M43: 15.5 | N43: 34 | O43: 9 | P43: 12 | Q43: 13.2 | R43: 34.2 | S43: 5 | T43: 6 | U43: 9.2 | V43: 20.2 | W43: 6 | X43: 10 | Y43: 12 | Z43: 28 | AA43: 2 | AB43: 8 | AC43: 8.5 | AD43: 18.5 | AE43: 3 | AF43: 4 | AG43: 5 | AH43: 10 | AI43: 5 | AJ43: 9 | AK43: 13 | AL43: 23 | AM43: 36 | AN43: 8.5 | AO43: 13 | AP43: 18 | AQ43: 39.5 | AR43: 9 | AS43: 17 | AT43: 16.5 | AU43: 42.5 | AV43: 8.5 | AW43: 15 | AX43: 18.5 | AY43: 42 | AZ43: 9 | BA43: 14 | BB43: 17 | BC43: 40 | BD43: 9 | BE43: 13.5 | BF43: 17 | BG43: 39.5 | BH43: 9.5 | BI43: 18 | BJ43: 15 | BK43: 42.5 | BL43: 8 | BM43: 18 | BN43: 19 | BO43: 45 | BP43: 461.9 | BQ43: 3 | BR43: 7 | BS43: 8 | BT43: 18 | BU43: 4 | BV43: 4.5 | BW43: 3.5 | BX43: 126 | BY43: ناجحة | BZ43: و منقولة للصف الثانى | CA43: 0 | CU43: 0 | CV43: 0 | CW43: 137.5 | CX43: 48
A44: 37 | B44: 37 | C44: طالب تجارة 37 | D44: 1/1 | E44: مستجد | F44: 2002-07-01 | G44: 0 | H44: 3 | I44: 16 | J44: 135 | K44: 9 | L44: 14 | M44: 15.5 | N44: 38.5 | O44: 9.5 | P44: 12 | Q44: 14.4 | R44: 35.9 | S44: 6 | T44: 6 | U44: 9.2 | V44: 21.2 | W44: 6 | X44: 14 | Y44: 12 | Z44: 32 | AA44: 5.5 | AB44: 10 | AC44: 10 | AD44: 25.5 | AE44: 3 | AF44: 5 | AG44: 5 | AH44: 10 | AI44: 6 | AJ44: 9 | AK44: 14 | AL44: 24 | AM44: 38 | AN44: 8.5 | AO44: 14 | AP44: 18 | AQ44: 40.5 | AR44: 8 | AS44: 16.5 | AT44: 17.5 | AU44: 42 | AV44: 8.5 | AW44: 14 | AX44: 18.5 | AY44: 41 | AZ44: 9 | BA44: 17 | BB44: 17 | BC44: 43 | BD44: 8 | BE44: 14.5 | BF44: 20 | BG44: 42.5 | BH44: 9.5 | BI44: 18 | BJ44: 15 | BK44: 42.5 | BL44: 8.5 | BM44: 17 | BN44: 19 | BO44: 44.5 | BP44: 487.1 | BQ44: 4 | BR44: 7 | BS44: 7.5 | BT44: 18.5 | BU44: 3.5 | BV44: 5.5 | BW44: 3.5 | BX44: 138.5 | BY44: ناجحة | BZ44: و منقولة للصف الثانى | CA44: 0 | CU44: 0 | CV44: 0 | CW44: 145 | CX44: 19
A45: 38 | B45: 38 | C45: طالب تجارة 38 | D45: 1/1 | E45: مستجد | F45: 2002-12-14 | G45: 17 | H45: 9 | I45: 15 | J45: 136 | K45: 7 | L45: 15.5 | M45: 11 | N45: 33.5 | O45: 9 | P45: 13.2 | Q45: 14.4 | R45: 36.6 | S45: 5 | T45: 6.4 | U45: 8.8 | V45: 20.2 | W45: 6 | X45: 12 | Y45: 14 | Z45: 32 | AA45: 2 | AB45: 7 | AC45: 6.5 | AD45: 15.5 | AE45: 2.5 | AF45: 4 | AG45: 5 | AH45: 9 | AI45: 6 | AJ45: 8 | AK45: 13.5 | AL45: 21 | AM45: 34.5 | AN45: 8.5 | AO45: 19 | AP45: 18 | AQ45: 45.5 | AR45: 8.5 | AS45: 14 | AT45: 17.5 | AU45: 40 | AV45: 8.5 | AW45: 10.5 | AX45: 13 | AY45: 32 | AZ45: 8.5 | BA45: 17 | BB45: 11 | BC45: 36.5 | BD45: 9 | BE45: 9.5 | BF45: 15 | BG45: 33.5 | BH45: 10 | BI45: 18 | BJ45: 15 | BK45: 43 | BL45: 8 | BM45: 15 | BN45: 19 | BO45: 42 | BP45: 444.8 | BQ45: 3 | BR45: 4.5 | BS45: 7 | BT45: 14.5 | BU45: 4 | BV45: 4.5 | BW45: 5 | BX45: 124.6 | BY45: ناجحة | BZ45: و منقولة للصف الثانى | CA45: 0 | CU45: 0 | CV45: 0 | CW45: 142.1 | CX45: 29
A46: 39 | B46: 39 | C46: طالب تجارة 39 | D46: 3/1 | E46: مستجد | F46: 2002-04-20 | G46: 11 | H46: 5 | I46: 16 | J46: 137 | K46: 7 | L46: 15.5 | M46: 11.5 | N46: 34 | O46: 8 | P46: 12 | Q46: 12.8 | R46: 32.8 | S46: 5 | T46: 6.8 | U46: 9.2 | V46: 21 | W46: 6 | X46: 10.5 | Y46: 15 | Z46: 31.5 | AA46: 2.5 | AB46: 7 | AC46: 6 | AD46: 15.5 | AE46: 2.5 | AF46: 4 | AG46: 6 | AH46: 9 | AI46: 6 | AJ46: 8 | AK46: 14.5 | AL46: 21 | AM46: 35.5 | AN46: 8.5 | AO46: 19 | AP46: 18 | AQ46: 45.5 | AR46: 8.5 | AS46: 16.5 | AT46: 18 | AU46: 43 | AV46: 8.5 | AW46: 9.5 | AX46: 16 | AY46: 34 | AZ46: 9 | BA46: 16 | BB46: 13 | BC46: 38 | BD46: 9 | BE46: 10.5 | BF46: 18.5 | BG46: 38 | BH46: 9.5 | BI46: 18 | BJ46: 14 | BK46: 41.5 | BL46: 8 | BM46: 15 | BN46: 19 | BO46: 42 | BP46: 452.3 | BQ46: 3 | BR46: 6 | BS46: 8 | BT46: 17 | BU46: 3.5 | BV46: 5 | BW46: 6.5 | BX46: 127.3 | BY46: ناجحة | BZ46: و منقولة للصف الثانى | CA46: 0 | CU46: 0 | CV46: 0 | CW46: 139.3 | CX46: 40
A47: 40 | B47: 40 | C47: طالب تجارة 40 | D47: 1/1 | E47: مستجد | F47: 2002-12-11 | G47: 20 | H47: 9 | I47: 15 | J47: 138 | K47: 7 | L47: 14.5 | M47: 15 | N47: 36.5 | O47: 9 | P47: 12.4 | Q47: 12.8 | R47: 34.2 | S47: 5 | T47: 8.8 | U47: 6.4 | V47: 20.2 | W47: 6 | X47: 13.5 | Y47: 15 | Z47: 34.5 | AA47: 5 | AB47: 8.5 | AC47: 8 | AD47: 21.5 | AE47: 3 | AF47: 4 | AG47: 5 | AH47: 9 | AI47: 5 | AJ47: 7 | AK47: 13 | AL47: 20 | AM47: 33 | AN47: 8.5 | AO47: 17 | AP47: 15 | AQ47: 40.5 | AR47: 8.5 | AS47: 16.5 | AT47: 17 | AU47: 42 | AV47: 8.5 | AW47: 11.5 | AX47: 16 | AY47: 36 | AZ47: 9 | BA47: 15 | BB47: 15 | BC47: 39 | BD47: 9 | BE47: 12 | BF47: 19 | BG47: 40 | BH47: 10 | BI47: 19 | BJ47: 15 | BK47: 44 | BL47: 8 | BM47: 15 | BN47: 19 | BO47: 42 | BP47: 463.4 | BQ47: 3 | BR47: 7.5 | BS47: 7.5 | BT47: 18 | BU47: 4 | BV47: 3.5 | BW47: 4.5 | BX47: 134.2 | BY47: ناجحة | BZ47: و منقولة للصف الثانى | CA47: 0 | CU47: 0 | CV47: 0 | CW47: 146.2 | CX47: 13
A48: 41 | B48: 41 | C48: طالب تجارة 41 | D48: 1/1 | E48: مستجد | F48: 2002-09-01 | G48: 0 | H48: 1 | I48: 16 | J48: 139 | K48: 7.5 | L48: 16 | M48: 17 | N48: 40.5 | O48: 9 | P48: 14.4 | Q48: 16 | R48: 39.4 | S48: 5 | T48: 9.2 | U48: 8.8 | V48: 23 | W48: 6 | X48: 15 | Y48: 11 | Z48: 32 | AA48: 2.5 | AB48: 6.5 | AC48: 7.5 | AD48: 16.5 | AE48: 3 | AF48: 4 | AG48: 6 | AH48: 9 | AI48: 6 | AJ48: 7 | AK48: 15 | AL48: 20 | AM48: 35 | AN48: 8.5 | AO48: 15 | AP48: 15 | AQ48: 38.5 | AR48: 8.5 | AS48: 17 | AT48: 17.5 | AU48: 43 | AV48: 8.5 | AW48: 13.5 | AX48: 18 | AY48: 40 | AZ48: 9 | BA48: 15 | BB48: 14.5 | BC48: 38.5 | BD48: 9 | BE48: 17.5 | BF48: 19.5 | BG48: 46 | BH48: 9.5 | BI48: 18.5 | BJ48: 15 | BK48: 43 | BL48: 9.5 | BM48: 19 | BN48: 19 | BO48: 47.5 | BP48: 482.9 | BQ48: 3.5 | BR48: 6.5 | BS48: 6 | BT48: 16 | BU48: 4 | BV48: 4.5 | BW48: 7.5 | BX48: 143.6 | BY48: ناجحة | BZ48: و منقولة للصف الثانى | CA48: 0 | CU48: 0 | CV48: 0 | CW48: 149.1 | CX48: 8
A49: 42 | B49: 42 | C49: طالب تجارة 42 | D49: 1/1 | E49: مستجد | F49: 2002-10-15 | G49: 16 | H49: 11 | I49: 15 | J49: 140 | K49: 7.5 | L49: 14 | M49: 16 | N49: 37.5 | O49: 9 | P49: 8.4 | Q49: 10.4 | R49: 27.8 | S49: 5 | T49: 5.6 | U49: 6.4 | V49: 17 | W49: 6 | X49: 12.5 | Y49: 14 | Z49: 32.5 | AA49: 5 | AB49: 6.5 | AC49: 8 | AD49: 19.5 | AE49: 3 | AF49: 4 | AG49: 6 | AH49: 10 | AI49: 6 | AJ49: 10 | AK49: 15 | AL49: 24 | AM49: 39 | AN49: 8.5 | AO49: 14 | AP49: 19 | AQ49: 41.5 | AR49: 9 | AS49: 9.5 | AT49: 16 | AU49: 34.5 | AV49: 8.5 | AW49: 8.5 | AX49: 13.5 | AY49: 30.5 | AZ49: 9 | BA49: 10 | BB49: 14 | BC49: 33 | BD49: 9 | BE49: 11 | BF49: 13 | BG49: 33 | BH49: 9 | BI49: 13 | BJ49: 14 | BK49: 36 | BL49: 8.5 | BM49: 13 | BN49: 19 | BO49: 40.5 | BP49: 422.3 | BQ49: 3 | BR49: 4 | BS49: 5 | BT49: 12 | BU49: 4 | BV49: 5 | BW49: 5.5 | BX49: 120 | BY49: ناجحة | BZ49: و منقولة للصف الثانى | CA49: 0 | CU49: 0 | CV49: 0 | CW49: 132 | CX49: 75
A50: 43 | B50: 43 | C50: طالب تجارة 43 | D50: 1/1 | E50: مستجد | F50: 2002-06-09 | G50: 22 | H50: 3 | I50: 16 | J50: 141 | K50: 7 | L50: 10.5 | M50: 10 | N50: 27.5 | O50: 8.5 | P50: 8.4 | Q50: 6 | R50: 22.9 | S50: 5 | T50: 8.8 | U50: 6.4 | V50: 20.2 | W50: 6 | X50: 7.5 | Y50: 12 | Z50: 25.5 | AA50: 2.5 | AB50: 5.5 | AC50: 7 | AD50: 15 | AE50: 3 | AF50: 4 | AG50: 5 | AH50: 9 | AI50: 5 | AJ50: 8 | AK50: 13 | AL50: 21 | AM50: 34 | AN50: 8.5 | AO50: 9 | AP50: 16 | AQ50: 33.5 | AR50: 9 | AS50: 14.5 | AT50: 15.5 | AU50: 39 | AV50: 8.5 | AW50: 6.5 | AX50: 13.5 | AY50: 28.5 | AZ50: 8.5 | BA50: 4 | BB50: 14 | BC50: 26.5 | BD50: 9 | BE50: 7.5 | BF50: 12 | BG50: 28.5 | BH50: 9.5 | BI50: 12 | BJ50: 14 | BK50: 35.5 | BL50: 8 | BM50: 16 | BN50: 18 | BO50: 42 | BP50: 378.6 | BQ50: 3 | BR50: 3 | BS50: 5 | BT50: 11 | BU50: 4 | BV50: 5.5 | BW50: 6.5 | BX50: 106.7 | BY50: ناجحة | BZ50: و منقولة للصف الثانى | CA50: 0 | CU50: 0 | CV50: 0 | CW50: 122.2 | CX50: 130
A51: 44 | B51: 44 | C51: طالب تجارة 44 | D51: 1/1 | E51: مستجد | F51: 2001-04-05 | G51: 26 | H51: 5 | I51: 17 | J51: 142 | K51: 7.5 | L51: 10.5 | M51: 10 | N51: 28 | O51: 9 | P51: 11.2 | Q51: 7.2 | R51: 27.4 | S51: 5 | T51: 9.6 | U51: 7.6 | V51: 22.2 | W51: 6 | X51: 7.5 | Y51: 14 | Z51: 27.5 | AA51: 2.5 | AB51: 6.5 | AC51: 6 | AD51: 15 | AE51: 3 | AF51: 4 | AG51: 5 | AH51: 6 | AI51: 5 | AJ51: 9 | AK51: 13 | AL51: 19 | AM51: 32 | AN51: 8.5 | AO51: 11 | AP51: 18 | AQ51: 37.5 | AR51: 8.5 | AS51: 13 | AT51: 14.5 | AU51: 36 | AV51: 9 | AW51: 13 | AX51: 12.5 | AY51: 34.5 | AZ51: 9 | BA51: 5 | BB51: 12 | BC51: 26 | BD51: 9 | BE51: 5.5 | BF51: 10.5 | BG51: 25 | BH51: 9.5 | BI51: 12 | BJ51: 12 | BK51: 33.5 | BL51: 8 | BM51: 11 | BN51: 16 | BO51: 35 | BP51: 379.6 | BQ51: 3 | BR51: 4 | BS51: 4.5 | BT51: 11.5 | BU51: 3.5 | BV51: 0.5 | BW51: 6 | BX51: 109.3 | BY51: ناجحة | BZ51: و منقولة للصف الثانى | CA51: 0 | CU51: 0 | CV51: 0 | CW51: 126.3 | CX51: 102
A52: 45 | B52: 45 | C52: طالب تجارة 45 | D52: 1/1 | E52: مستجد | F52: 2001-04-27 | G52: 4 | H52: 5 | I52: 17 | J52: 143 | K52: 7 | L52: 17 | M52: 18 | N52: 42 | O52: 8 | P52: 16 | Q52: 15.6 | R52: 39.6 | S52: 4.5 | T52: 9.2 | U52: 9.2 | V52: 22.9 | W52: 6 | X52: 14 | Y52: 14 | Z52: 34 | AA52: 2.5 | AB52: 8.5 | AC52: 6.5 | AD52: 17.5 | AE52: 3 | AF52: 4 | AG52: 6 | AH52: 7 | AI52: 6 | AJ52: 10 | AK52: 15 | AL52: 21 | AM52: 36 | AN52: 8.5 | AO52: 18 | AP52: 19 | AQ52: 45.5 | AR52: 9.5 | AS52: 18 | AT52: 16 | AU52: 43.5 | AV52: 9 | AW52: 16.5 | AX52: 19.5 | AY52: 45 | AZ52: 9 | BA52: 13 | BB52: 15 | BC52: 37 | BD52: 9 | BE52: 15 | BF52: 19.5 | BG52: 43.5 | BH52: 10 | BI52: 18.5 | BJ52: 17 | BK52: 45.5 | BL52: 9 | BM52: 15 | BN52: 19 | BO52: 43 | BP52: 495 | BQ52: 3.5 | BR52: 5 | BS52: 6.5 | BT52: 15 | BU52: 4 | BV52: 5 | BW52: 6.5 | BX52: 149.2 | BY52: ناجحة | BZ52: و منقولة للصف الثانى | CA52: 0 | CU52: 0 | CV52: 0 | CW52: 159.2 | CX52: 1
A53: 46 | B53: 46 | C53: طالب تجارة 46 | D53: 1/1 | E53: مستجد | F53: 2002-09-30 | G53: 1 | H53: 0 | I53: 16 | J53: 144 | K53: 7.5 | L53: 14.5 | M53: 14.5 | N53: 36.5 | O53: 8.5 | P53: 12.8 | Q53: 13.2 | R53: 34.5 | S53: 4.5 | T53: 8.8 | U53: 6.8 | V53: 20.1 | W53: 6 | X53: 13 | Y53: 14 | Z53: 33 | AA53: 2.5 | AB53: 9.5 | AC53: 6 | AD53: 18 | AE53: 3 | AF53: 4 | AG53: 5 | AH53: 6 | AI53: 5 | AJ53: 10 | AK53: 13 | AL53: 20 | AM53: 33 | AN53: 8.5 | AO53: 15 | AP53: 19 | AQ53: 42.5 | AR53: 9 | AS53: 16.5 | AT53: 15 | AU53: 40.5 | AV53: 8.5 | AW53: 15 | AX53: 14 | AY53: 37.5 | AZ53: 9 | BA53: 13 | BB53: 15 | BC53: 37 | BD53: 9 | BE53: 15 | BF53: 18.5 | BG53: 42.5 | BH53: 9.5 | BI53: 14.5 | BJ53: 19 | BK53: 43 | BL53: 8.5 | BM53: 17 | BN53: 19 | BO53: 44.5 | BP53: 462.6 | BQ53: 3 | BR53: 5.5 | BS53: 7 | BT53: 15.5 | BU53: 4 | BV53: 4.5 | BW53: 6 | BX53: 141.1 | BY53: ناجحة | BZ53: و منقولة للصف الثانى | CA53: 0 | CU53: 0 | CV53: 0 | CW53: 150.1 | CX53: 7
A54: 47 | B54: 47 | C54: طالب تجارة 47 | D54: 1/1 | E54: مستجد | F54: 2001-12-01 | G54: 0 | H54: 10 | I54: 16 | J54: 145 | K54: 7.5 | L54: 16 | M54: 15 | N54: 38.5 | O54: 8.5 | P54: 13.2 | Q54: 12 | R54: 33.7 | S54: 5 | T54: 9.6 | U54: 6.8 | V54: 21.4 | W54: 6 | X54: 13 | Y54: 14 | Z54: 33 | AA54: 2.5 | AB54: 9.5 | AC54: 6 | AD54: 18 | AE54: 2.5 | AF54: 4 | AG54: 5 | AH54: 6 | AI54: 5 | AJ54: 10 | AK54: 12.5 | AL54: 20 | AM54: 32.5 | AN54: 8.5 | AO54: 16 | AP54: 19 | AQ54: 43.5 | AR54: 8.5 | AS54: 17.5 | AT54: 15 | AU54: 41 | AV54: 8.5 | AW54: 14.5 | AX54: 12.5 | AY54: 35.5 | AZ54: 9 | BA54: 10 | BB54: 16 | BC54: 35 | BD54: 9 | BE54: 10.5 | BF54: 15.5 | BG54: 35 | BH54: 9.5 | BI54: 12.5 | BJ54: 19 | BK54: 41 | BL54: 8 | BM54: 17 | BN54: 18 | BO54: 43 | BP54: 451.1 | BQ54: 3 | BR54: 4.5 | BS54: 7 | BT54: 14.5 | BU54: 3.5 | BV54: 5 | BW54: 5 | BX54: 135.8 | BY54: ناجحة | BZ54: و منقولة للصف الثانى | CA54: 0 | CU54: 0 | CV54: 0 | CW54: 150.3 | CX54: 6
A55: 48 | B55: 48 | C55: طالب تجارة 48 | D55: 1/1 | E55: مستجد | F55: 2001-09-11 | G55: 20 | H55: 0 | I55: 17 | J55: 146 | K55: 7.5 | L55: 15 | M55: 12.5 | N55: 35 | O55: 9 | P55: 12.4 | Q55: 10.8 | R55: 32.2 | S55: 5 | T55: 9.6 | U55: 6 | V55: 20.6 | W55: 6 | X55: 13 | Y55: 12 | Z55: 31 | AA55: 2 | AB55: 9 | AC55: 6.5 | AD55: 17.5 | AE55: 3 | AF55: 4 | AG55: 5 | AH55: 6 | AI55: 5 | AJ55: 10 | AK55: 13 | AL55: 20 | AM55: 33 | AN55: 8.5 | AO55: 16 | AP55: 18 | AQ55: 42.5 | AR55: 9 | AS55: 16.5 | AT55: 15.5 | AU55: 41 | AV55: 8.5 | AW55: 15 | AX55: 13 | AY55: 36.5 | AZ55: 9 | BA55: 12 | BB55: 14 | BC55: 35 | BD55: 9 | BE55: 12 | BF55: 15.5 | BG55: 36.5 | BH55: 9.5 | BI55: 16 | BJ55: 19 | BK55: 44.5 | BL55: 8 | BM55: 15 | BN55: 19 | BO55: 42 | BP55: 447.3 | BQ55: 3 | BR55: 4.5 | BS55: 7 | BT55: 14.5 | BU55: 3.5 | BV55: 4.5 | BW55: 6.5 | BX55: 135.5 | BY55: ناجحة | BZ55: و منقولة للصف الثانى | CA55: 0 | CU55: 0 | CV55: 0 | CW55: 152 | CX55: 3
A56: 49 | B56: 49 | C56: طالب تجارة 49 | D56: 1/1 | E56: مستجد | F56: 2002-06-26 | G56: 5 | H56: 3 | I56: 16 | J56: 147 | K56: 7 | L56: 13 | M56: 15.5 | N56: 35.5 | O56: 9 | P56: 14.8 | Q56: 10.8 | R56: 34.6 | S56: 5 | T56: 10 | U56: 4.8 | V56: 19.8 | W56: 6 | X56: 9.5 | Y56: 14 | Z56: 29.5 | AA56: 2.5 | AB56: 8.5 | AC56: 4.5 | AD56: 15.5 | AE56: 3 | AF56: 4 | AG56: 5 | AH56: 6 | AI56: 6 | AJ56: 10 | AK56: 14 | AL56: 20 | AM56: 34 | AN56: 8.5 | AO56: 14 | AP56: 18 | AQ56: 40.5 | AR56: 9 | AS56: 16 | AT56: 15.5 | AU56: 40.5 | AV56: 8.5 | AW56: 13.5 | AX56: 14.5 | AY56: 36.5 | AZ56: 9 | BA56: 6 | BB56: 14 | BC56: 29 | BD56: 9 | BE56: 12 | BF56: 15.5 | BG56: 36.5 | BH56: 9.5 | BI56: 13.5 | BJ56: 17 | BK56: 40 | BL56: 8 | BM56: 16 | BN56: 17 | BO56: 41 | BP56: 432.9 | BQ56: 3 | BR56: 5 | BS56: 8 | BT56: 16 | BU56: 3.5 | BV56: 5 | BW56: 5 | BX56: 132.3 | BY56: ناجحة | BZ56: و منقولة للصف الثانى | CA56: 0 | CU56: 0 | CV56: 0 | CW56: 144.3 | CX56: 20
A57: 50 | B57: 50 | C57: طالب تجارة 50 | D57: 2/1 | E57: مستجد | F57: 2001-08-14 | G57: 17 | H57: 1 | I57: 17 | J57: 148 | K57: 7.5 | L57: 13.5 | M57: 12.5 | N57: 33.5 | O57: 8.5 | P57: 12.4 | Q57: 8.8 | R57: 29.7 | S57: 5 | T57: 10 | U57: 5.6 | V57: 20.6 | W57: 6 | X57: 9 | Y57: 14 | Z57: 29 | AA57: 4.5 | AB57: 8 | AC57: 5 | AD57: 17.5 | AE57: 2.5 | AF57: 4 | AG57: 5 | AH57: 6 | AI57: 6 | AJ57: 11 | AK57: 13.5 | AL57: 21 | AM57: 34.5 | AN57: 8.5 | AO57: 9 | AP57: 19 | AQ57: 36.5 | AR57: 8.5 | AS57: 10.5 | AT57: 16 | AU57: 35 | AV57: 8.5 | AW57: 13.5 | AX57: 14.5 | AY57: 36.5 | AZ57: 9 | BA57: 5 | BB57: 13 | BC57: 27 | BD57: 9 | BE57: 10 | BF57: 15.5 | BG57: 34.5 | BH57: 9.5 | BI57: 7.5 | BJ57: 16 | BK57: 33 | BL57: 8 | BM57: 15 | BN57: 19 | BO57: 42 | BP57: 409.3 | BQ57: 3 | BR57: 5 | BS57: 7 | BT57: 15 | BU57: 4 | BV57: 5 | BW57: 6 | BX57: 127.9 | BY57: ناجحة | BZ57: و منقولة للصف الثانى | CA57: 0 | CU57: 0 | CV57: 0 | CW57: 134.9 | CX57: 63
A58: 51 | B58: 51 | C58: طالب تجارة 51 | D58: 2/1 | E58: مستجد | F58: 2002-03-02 | G58: 29 | H58: 6 | I58: 16 | J58: 149 | K58: 7 | L58: 14 | M58: 16.5 | N58: 37.5 | O58: 8.5 | P58: 14.4 | Q58: 10.8 | R58: 33.7 | S58: 5 | T58: 10 | U58: 6 | V58: 21 | W58: 6 | X58: 13 | Y58: 14 | Z58: 33 | AA58: 2.5 | AB58: 8 | AC58: 6.5 | AD58: 17 | AE58: 3 | AF58: 4 | AG58: 4 | AH58: 6 | AI58: 6 | AJ58: 11 | AK58: 13 | AL58: 21 | AM58: 34 | AN58: 8.5 | AO58: 9 | AP58: 19 | AQ58: 36.5 | AR58: 8.5 | AS58: 13.5 | AT58: 15.5 | AU58: 37.5 | AV58: 8.5 | AW58: 12.5 | AX58: 15.5 | AY58: 36.5 | AZ58: 9 | BA58: 5 | BB58: 13 | BC58: 27 | BD58: 9 | BE58: 12 | BF58: 13.5 | BG58: 34.5 | BH58: 10 | BI58: 10.5 | BJ58: 17 | BK58: 37.5 | BL58: 8 | BM58: 15 | BN58: 19 | BO58: 42 | BP58: 427.7 | BQ58: 3 | BR58: 5 | BS58: 7 | BT58: 15 | BU58: 4 | BV58: 5.5 | BW58: 6 | BX58: 134.4 | BY58: ناجحة | BZ58: و منقولة للصف الثانى | CA58: 0 | CU58: 0 | CV58: 0 | CW58: 145.4 | CX58: 16
A59: 52 | B59: 52 | C59: طالب تجارة 52 | D59: 2/1 | E59: مستجد | F59: 2001-07-01 | G59: 0 | H59: 3 | I59: 17 | J59: 150 | K59: 7 | L59: 10 | M59: 17 | N59: 34 | O59: 8 | P59: 13.6 | Q59: 11.6 | R59: 33.2 | S59: 5 | T59: 10 | U59: 6 | V59: 21 | W59: 6 | X59: 12 | Y59: 14 | Z59: 32 | AA59: 2 | AB59: 7.5 | AC59: 5.5 | AD59: 15 | AE59: 2.5 | AF59: 4 | AG59: 5 | AH59: 6 | AI59: 5 | AJ59: 10 | AK59: 12.5 | AL59: 20 | AM59: 32.5 | AN59: 8.5 | AO59: 9 | AP59: 19 | AQ59: 36.5 | AR59: 8.5 | AS59: 12.5 | AT59: 16 | AU59: 37 | AV59: 8.5 | AW59: 11.5 | AX59: 12 | AY59: 32 | AZ59: 9 | BA59: 5 | BB59: 13 | BC59: 27 | BD59: 9 | BE59: 4.5 | BF59: 13.5 | BG59: 27 | BH59: 9.5 | BI59: 10.5 | BJ59: 15 | BK59: 35 | BL59: 8 | BM59: 15 | BN59: 18 | BO59: 41 | BP59: 403.2 | BQ59: 3 | BR59: 6 | BS59: 7 | BT59: 16 | BU59: 4 | BV59: 5 | BW59: 5.5 | BX59: 119.6 | BY59: ناجحة | BZ59: و منقولة للصف الثانى | CA59: 0 | CU59: 0 | CV59: 0 | CW59: 136.1 | CX59: 54
A60: 53 | B60: 53 | C60: طالب تجارة 53 | D60: 2/1 | E60: مستجد | F60: 2002-06-29 | G60: 2 | H60: 3 | I60: 16 | J60: 151 | K60: 7.5 | L60: 14.5 | M60: 15 | N60: 37 | O60: 8 | P60: 14.8 | Q60: 11.6 | R60: 34.4 | S60: 4.5 | T60: 7.6 | U60: 5.6 | V60: 17.7 | W60: 6 | X60: 11.5 | Y60: 11 | Z60: 28.5 | AA60: 3 | AB60: 4.5 | AC60: 10.5 | AD60: 18 | AE60: 2.5 | AF60: 4 | AG60: 5 | AH60: 7 | AI60: 5 | AJ60: 11 | AK60: 12.5 | AL60: 22 | AM60: 34.5 | AN60: 8.5 | AO60: 10 | AP60: 19 | AQ60: 37.5 | AR60: 9 | AS60: 16 | AT60: 14.5 | AU60: 39.5 | AV60: 8.5 | AW60: 9 | AX60: 18.5 | AY60: 36 | AZ60: 9 | BA60: 3 | BB60: 13 | BC60: 25 | BD60: 9 | BE60: 2.5 | BF60: 19.5 | BG60: 31 | BH60: 9.5 | BI60: 15.5 | BJ60: 16 | BK60: 41 | BL60: 8 | BM60: 14 | BN60: 13 | BO60: 35 | BP60: 415.1 | BQ60: 3 | BR60: 5 | BS60: 6 | BT60: 14 | BU60: 4 | BV60: 5.5 | BW60: 7.5 | BX60: 124.9 | BY60: ناجحة | BZ60: و منقولة للصف الثانى | CA60: 0 | CU60: 0 | CV60: 0 | CW60: 143.4 | CX60: 24
A61: 54 | B61: 54 | C61: طالب تجارة 54 | D61: 2/1 | E61: مستجد | F61: 2002-10-20 | G61: 11 | H61: 11 | I61: 15 | J61: 152 | K61: 8.5 | L61: 14 | M61: 17.5 | N61: 40 | O61: 9 | P61: 15.2 | Q61: 14 | R61: 38.2 | S61: 4.5 | T61: 11.2 | U61: 8 | V61: 23.7 | W61: 6 | X61: 12 | Y61: 13 | Z61: 31 | AA61: 2 | AB61: 8.5 | AC61: 8.5 | AD61: 19 | AE61: 2.5 | AF61: 5 | AG61: 5 | AH61: 9 | AI61: 6 | AJ61: 11 | AK61: 13.5 | AL61: 25 | AM61: 38.5 | AN61: 8.5 | AO61: 11 | AP61: 15 | AQ61: 34.5 | AR61: 8 | AS61: 18.5 | AT61: 15 | AU61: 41.5 | AV61: 8.5 | AW61: 13.5 | AX61: 15.5 | AY61: 37.5 | AZ61: 9 | BA61: 14 | BB61: 18 | BC61: 41 | BD61: 8.5 | BE61: 16 | BF61: 19 | BG61: 43.5 | BH61: 10 | BI61: 17.5 | BJ61: 14 | BK61: 41.5 | BL61: 8.5 | BM61: 15 | BN61: 14 | BO61: 37.5 | BP61: 467.4 | BQ61: 3.5 | BR61: 4.5 | BS61: 7 | BT61: 15 | BU61: 3.5 | BV61: 4.5 | BW61: 6.5 | BX61: 145.9 | BY61: ناجحة | BZ61: و منقولة للصف الثانى | CA61: 0 | CU61: 0 | CV61: 0 | CW61: 150.9 | CX61: 5
A62: 55 | B62: 55 | C62: طالب تجارة 55 | D62: 2/1 | E62: مستجد | F62: 2002-05-20 | G62: 11 | H62: 4 | I62: 16 | J62: 153 | K62: 8 | L62: 12 | M62: 17 | N62: 37 | O62: 9.5 | P62: 13.2 | Q62: 14.4 | R62: 37.1 | S62: 4.5 | T62: 9.2 | U62: 8.8 | V62: 22.5 | W62: 6 | X62: 12 | Y62: 13 | Z62: 31 | AA62: 5.5 | AB62: 8 | AC62: 9.5 | AD62: 23 | AE62: 3 | AF62: 5 | AG62: 4 | AH62: 8 | AI62: 5 | AJ62: 11 | AK62: 12 | AL62: 24 | AM62: 36 | AN62: 8.5 | AO62: 11 | AP62: 16 | AQ62: 35.5 | AR62: 8 | AS62: 17.5 | AT62: 12 | AU62: 37.5 | AV62: 8.5 | AW62: 11 | AX62: 14 | AY62: 33.5 | AZ62: 9 | BA62: 10 | BB62: 17 | BC62: 36 | BD62: 8 | BE62: 13.5 | BF62: 17 | BG62: 38.5 | BH62: 9.5 | BI62: 14 | BJ62: 14 | BK62: 37.5 | BL62: 8.5 | BM62: 14 | BN62: 11 | BO62: 33.5 | BP62: 438.6 | BQ62: 3 | BR62: 5 | BS62: 7 | BT62: 15 | BU62: 3.5 | BV62: 4.5 | BW62: 3 | BX62: 134.9 | BY62: ناجحة | BZ62: و منقولة للصف الثانى | CA62: 0 | CU62: 0 | CV62: 0 | CW62: 140.4 | CX62: 35
A63: 56 | B63: 56 | C63: طالب تجارة 56 | D63: 2/1 | E63: مستجد | F63: 2002-11-26 | G63: 5 | H63: 10 | I63: 15 | J63: 154 | K63: 7.5 | L63: 9.5 | M63: 15.5 | N63: 32.5 | O63: 8.5 | P63: 13.2 | Q63: 12.8 | R63: 34.5 | S63: 5 | T63: 8.8 | U63: 8.4 | V63: 22.2 | W63: 6 | X63: 11 | Y63: 13 | Z63: 30 | AA63: 2 | AB63: 8.5 | AC63: 6 | AD63: 16.5 | AE63: 3 | AF63: 4.5 | AG63: 4 | AH63: 8 | AI63: 5 | AJ63: 11 | AK63: 12 | AL63: 23.5 | AM63: 35.5 | AN63: 8.5 | AO63: 10 | AP63: 16 | AQ63: 34.5 | AR63: 7.5 | AS63: 9.5 | AT63: 15 | AU63: 32 | AV63: 8.5 | AW63: 7.5 | AX63: 15.5 | AY63: 31.5 | AZ63: 9.5 | BA63: 8 | BB63: 17 | BC63: 34.5 | BD63: 8 | BE63: 11 | BF63: 18 | BG63: 37 | BH63: 9.5 | BI63: 13 | BJ63: 12 | BK63: 34.5 | BL63: 8.5 | BM63: 11 | BN63: 12 | BO63: 31.5 | BP63: 406.7 | BQ63: 3 | BR63: 5 | BS63: 7 | BT63: 15 | BU63: 3.5 | BV63: 5 | BW63: 4.5 | BX63: 129.5 | BY63: ناجحة | BZ63: و منقولة للصف الثانى | CA63: 0 | CU63: 0 | CV63: 0 | CW63: 133.5 | CX63: 67
A64: 57 | B64: 57 | C64: طالب تجارة 57 | D64: 2/1 | E64: مستجد | F64: 2002-09-08 | G64: 23 | H64: 0 | I64: 16 | J64: 99 | K64: 8 | L64: 8.5 | M64: 15 | N64: 31.5 | O64: 9 | P64: 12 | Q64: 12.4 | R64: 33.4 | S64: 4.5 | T64: 8.4 | U64: 8 | V64: 20.9 | W64: 6 | X64: 10 | Y64: 12 | Z64: 28 | AA64: 2.5 | AB64: 5.5 | AC64: 7.5 | AD64: 15.5 | AE64: 2.5 | AF64: 5 | AG64: 5 | AH64: 8 | AI64: 6 | AJ64: 10 | AK64: 13.5 | AL64: 23 | AM64: 36.5 | AN64: 8.5 | AO64: 8 | AP64: 15 | AQ64: 31.5 | AR64: 8 | AS64: 16.5 | AT64: 12 | AU64: 36.5 | AV64: 8.5 | AW64: 5 | AX64: 11 | AY64: 24.5 | AZ64: 9 | BA64: 8 | BB64: 14 | BC64: 31 | BD64: 8.5 | BE64: 9.5 | BF64: 13 | BG64: 31 | BH64: 9.5 | BI64: 12.5 | BJ64: 12 | BK64: 34 | BL64: 8.5 | BM64: 11 | BN64: 11 | BO64: 30.5 | BP64: 384.8 | BQ64: 3 | BR64: 6.5 | BS64: 6 | BT64: 15.5 | BU64: 3.5 | BV64: 5.5 | BW64: 3.5 | BX64: 115.9 | BY64: ناجحة | BZ64: و منقولة للصف الثانى | CA64: 0 | CU64: 0 | CV64: 0 | CW64: 126.4 | CX64: 101
A65: 58 | B65: 58 | C65: طالب تجارة 58 | D65: 2/1 | E65: مستجد | F65: 2001-06-01 | G65: 0 | H65: 4 | I65: 17 | J65: 100 | K65: 7.5 | L65: 10 | M65: 12 | N65: 29.5 | O65: 9.5 | P65: 14 | Q65: 13.2 | R65: 36.7 | S65: 4.5 | T65: 9.6 | U65: 8 | V65: 22.1 | W65: 6 | X65: 8 | Y65: 12 | Z65: 26 | AA65: 2.5 | AB65: 4 | AC65: 8.5 | AD65: 15 | AE65: 2.5 | AF65: 4.5 | AG65: 5 | AH65: 8 | AI65: 6 | AJ65: 10 | AK65: 13.5 | AL65: 22.5 | AM65: 36 | AN65: 8.5 | AO65: 6 | AP65: 14 | AQ65: 28.5 | AR65: 8 | AS65: 12 | AT65: 11.5 | AU65: 31.5 | AV65: 8.5 | AW65: 8.5 | AX65: 10 | AY65: 27 | AZ65: 9 | BA65: 6 | BB65: 15 | BC65: 30 | BD65: 8 | BE65: 5.5 | BF65: 12.5 | BG65: 26 | BH65: 9.5 | BI65: 9 | BJ65: 11 | BK65: 29.5 | BL65: 8.5 | BM65: 12 | BN65: 9 | BO65: 29.5 | BP65: 367.3 | BQ65: 3 | BR65: 4 | BS65: 7 | BT65: 14 | BU65: 3.5 | BV65: 4 | BW65: 5 | BX65: 112.1 | BY65: ناجحة | BZ65: و منقولة للصف الثانى | CA65: 0 | CU65: 0 | CV65: 0 | CW65: 122.1 | CX65: 132
A66: 59 | B66: 59 | C66: طالب تجارة 59 | D66: 2/1 | E66: مستجد | F66: 2003-01-22 | G66: 9 | H66: 8 | I66: 15 | J66: 101 | K66: 7 | L66: 11 | M66: 15 | N66: 33 | O66: 7.5 | P66: 11.6 | Q66: 6 | R66: 25.1 | S66: 4.5 | T66: 9.2 | U66: 8 | V66: 21.7 | W66: 6 | X66: 11 | Y66: 9 | Z66: 26 | AA66: 5.5 | AB66: 5.5 | AC66: 8 | AD66: 19 | AE66: 2.5 | AF66: 4.5 | AG66: 5 | AH66: 9 | AI66: 5 | AJ66: 11 | AK66: 12.5 | AL66: 24.5 | AM66: 37 | AN66: 8.5 | AO66: 10 | AP66: 16 | AQ66: 34.5 | AR66: 8 | AS66: 18 | AT66: 10.5 | AU66: 36.5 | AV66: 8.5 | AW66: 10 | AX66: 12.5 | AY66: 31 | AZ66: 9 | BA66: 9 | BB66: 16 | BC66: 34 | BD66: 8 | BE66: 10.5 | BF66: 19 | BG66: 37.5 | BH66: 10 | BI66: 11.5 | BJ66: 12 | BK66: 33.5 | BL66: 8.5 | BM66: 7.5 | BN66: 9 | BO66: 25 | BP66: 393.8 | BQ66: 3 | BR66: 4.5 | BS66: 7 | BT66: 14.5 | BU66: 3.5 | BV66: 4 | BW66: 4 | BX66: 127.3 | BY66: ناجحة | BZ66: و منقولة للصف الثانى | CA66: 0 | CU66: 0 | CV66: 0 | CW66: 129.3 | CX66: 91
A67: 60 | B67: 60 | C67: طالب تجارة 60 | D67: 2/1 | E67: مستجد | F67: 2002-03-10 | G67: 21 | H67: 6 | I67: 16 | J67: 102 | K67: 7.5 | L67: 9 | M67: 13.5 | N67: 30 | O67: 9 | P67: 13.2 | Q67: 11.2 | R67: 33.4 | S67: 4.5 | T67: 7.2 | U67: 7.6 | V67: 19.3 | W67: 6 | X67: 11 | Y67: 12 | Z67: 29 | AA67: 5.5 | AB67: 2 | AC67: 9.5 | AD67: 17 | AE67: 2.5 | AF67: 5 | AG67: 6 | AH67: 10 | AI67: 6 | AJ67: 11 | AK67: 14.5 | AL67: 26 | AM67: 40.5 | AN67: 8.5 | AO67: 10 | AP67: 16 | AQ67: 34.5 | AR67: 8 | AS67: 16.5 | AT67: 11.5 | AU67: 36 | AV67: 8.5 | AW67: 8 | AX67: 14 | AY67: 30.5 | AZ67: 9 | BA67: 6 | BB67: 16 | BC67: 31 | BD67: 8 | BE67: 7.5 | BF67: 18 | BG67: 33.5 | BH67: 10 | BI67: 9 | BJ67: 12 | BK67: 31 | BL67: 8.5 | BM67: 11 | BN67: 11 | BO67: 30.5 | BP67: 396.2 | BQ67: 3 | BR67: 3 | BS67: 7 | BT67: 13 | BU67: 3.5 | BV67: 5.5 | BW67: 3.5 | BX67: 117.9 | BY67: ناجحة | BZ67: و منقولة للصف الثانى | CA67: 0 | CU67: 0 | CV67: 0 | CW67: 121.4 | CX67: 139
A68: 61 | B68: 61 | C68: طالب تجارة 61 | D68: 2/1 | E68: مستجد | F68: 2003-01-01 | G68: 0 | H68: 9 | I68: 15 | J68: 103 | K68: 7.5 | L68: 7.5 | M68: 12.5 | N68: 27.5 | O68: 8.5 | P68: 12 | Q68: 13.2 | R68: 33.7 | S68: 4.5 | T68: 8.8 | U68: 6.4 | V68: 19.7 | W68: 6 | X68: 7 | Y68: 11 | Z68: 24 | AA68: 2 | AB68: 2.5 | AC68: 10.5 | AD68: 15 | AE68: 3 | AF68: 5 | AG68: 5 | AH68: 11 | AI68: 6 | AJ68: 10 | AK68: 14 | AL68: 26 | AM68: 40 | AN68: 8.5 | AO68: 11 | AP68: 15 | AQ68: 34.5 | AR68: 8 | AS68: 14 | AT68: 12.5 | AU68: 34.5 | AV68: 8.5 | AW68: 1 | AX68: 10.5 | AY68: 20 | AZ68: 9 | BA68: 11 | BB68: 15 | BC68: 35 | BD68: 7.5 | BE68: 5 | BF68: 12.5 | BG68: 25 | BH68: 9.5 | BI68: 8.5 | BJ68: 10 | BK68: 28 | BL68: 8.5 | BM68: 11 | BN68: 10 | BO68: 29.5 | BP68: 366.4 | BQ68: 3 | BR68: 4 | BS68: 7 | BT68: 14 | BU68: 3.5 | BV68: 4 | BW68: 4 | BX68: 104.3 | BY68: ناجحة | BZ68: و منقولة للصف الثانى | CA68: 0 | CU68: 0 | CV68: 0 | CW68: 112.8 | CX68: 204
A69: 62 | B69: 62 | C69: طالب تجارة 62 | D69: 2/1 | E69: مستجد | F69: 2001-08-04 | G69: 27 | H69: 1 | I69: 17 | J69: 104 | K69: 7.5 | L69: 9.5 | M69: 14.5 | N69: 31.5 | O69: 8 | P69: 7.2 | Q69: 12.8 | R69: 28 | S69: 4.5 | T69: 10 | U69: 6 | V69: 20.5 | W69: 6 | X69: 3 | Y69: 10 | Z69: 19 | AA69: 5.5 | AB69: 9.5 | AC69: 10.5 | AD69: 25.5 | AE69: 3 | AF69: 5 | AG69: 6 | AH69: 7 | AI69: 6 | AJ69: 8 | AK69: 15 | AL69: 20 | AM69: 35 | AN69: 8.5 | AO69: 7 | AP69: 18 | AQ69: 33.5 | AR69: 8 | AS69: 15.5 | AT69: 14 | AU69: 37.5 | AV69: 8.5 | AW69: 15 | AX69: 14.5 | AY69: 38 | AZ69: 9.5 | BA69: 6 | BB69: 12 | BC69: 27.5 | BD69: 7.5 | BE69: 16 | BF69: 17.5 | BG69: 41 | BH69: 9 | BI69: 12 | BJ69: 16 | BK69: 37 | BL69: 8.5 | BM69: 12 | BN69: 14 | BO69: 34.5 | BP69: 408.5 | BQ69: 3 | BR69: 4.5 | BS69: 7 | BT69: 14.5 | BU69: 3.5 | BV69: 6 | BW69: 3.5 | BX69: 120.2 | BY69: ناجحة | BZ69: و منقولة للصف الثانى | CA69: 0 | CU69: 0 | CV69: 0 | CW69: 122.2 | CX69: 130
A70: 63 | B70: 63 | C70: طالب تجارة 63 | D70: 2/1 | E70: مستجد | F70: 2001-07-05 | G70: 26 | H70: 2 | I70: 17 | J70: 105 | K70: 8 | L70: 14.5 | M70: 15.5 | N70: 38 | O70: 8 | P70: 11.2 | Q70: 10 | R70: 29.2 | S70: 4.5 | T70: 8.8 | U70: 6.4 | V70: 19.7 | W70: 6 | X70: 14 | Y70: 10 | Z70: 30 | AA70: 2.5 | AB70: 3 | AC70: 9.5 | AD70: 15 | AE70: 2.5 | AF70: 5 | AG70: 5 | AH70: 7 | AI70: 5 | AJ70: 8 | AK70: 12.5 | AL70: 20 | AM70: 32.5 | AN70: 8.5 | AO70: 12 | AP70: 12 | AQ70: 32.5 | AR70: 8 | AS70: 16.5 | AT70: 11.5 | AU70: 36 | AV70: 8.5 | AW70: 10.5 | AX70: 14 | AY70: 33 | AZ70: 9.5 | BA70: 12 | BB70: 11 | BC70: 32.5 | BD70: 8 | BE70: 11.5 | BF70: 12 | BG70: 31.5 | BH70: 9.5 | BI70: 11.5 | BJ70: 14 | BK70: 35 | BL70: 8.5 | BM70: 11 | BN70: 17 | BO70: 36.5 | BP70: 401.4 | BQ70: 3 | BR70: 6 | BS70: 7.5 | BT70: 16.5 | BU70: 3.5 | BV70: 5.5 | BW70: 5 | BX70: 122.5 | BY70: ناجحة | BZ70: و منقولة للصف الثانى | CA70: 0 | CU70: 0 | CV70: 0 | CW70: 132.5 | CX70: 71
A71: 64 | B71: 64 | C71: طالب تجارة 64 | D71: 3/1 | E71: مستجد | F71: 2001-10-30 | G71: 1 | H71: 11 | I71: 16 | J71: 106 | K71: 7.5 | L71: 13.5 | M71: 16 | N71: 37 | O71: 8.5 | P71: 7.6 | Q71: 12 | R71: 28.1 | S71: 4.5 | T71: 10 | U71: 7.6 | V71: 22.1 | W71: 6 | X71: 14 | Y71: 8 | Z71: 28 | AA71: 2.5 | AB71: 10 | AC71: 8.5 | AD71: 21 | AE71: 2.5 | AF71: 5 | AG71: 6 | AH71: 7 | AI71: 5 | AJ71: 8 | AK71: 13.5 | AL71: 20 | AM71: 33.5 | AN71: 8.5 | AO71: 12 | AP71: 16 | AQ71: 36.5 | AR71: 8 | AS71: 17.5 | AT71: 13 | AU71: 38.5 | AV71: 8.5 | AW71: 13 | AX71: 17.5 | AY71: 39 | AZ71: 9 | BA71: 11 | BB71: 14 | BC71: 34 | BD71: 8 | BE71: 15 | BF71: 18.5 | BG71: 41.5 | BH71: 9.5 | BI71: 12.5 | BJ71: 15 | BK71: 37 | BL71: 8.5 | BM71: 11 | BN71: 17 | BO71: 36.5 | BP71: 432.7 | BQ71: 3 | BR71: 5.5 | BS71: 7.5 | BT71: 16 | BU71: 3.5 | BV71: 5.5 | BW71: 5 | BX71: 135.6 | BY71: ناجحة | BZ71: و منقولة للصف الثانى | CA71: 0 | CU71: 0 | CV71: 0 | CW71: 137.6 | CX71: 46
A72: 65 | B72: 65 | C72: طالب تجارة 65 | D72: 3/1 | E72: مستجد | F72: 2001-04-01 | G72: 0 | H72: 6 | I72: 17 | J72: 107 | K72: 8 | L72: 11.5 | M72: 14.5 | N72: =SUM(K72:M72) -> 34 | O72: 9.5 | P72: 5.2 | Q72: 10.8 | R72: 25.5 | S72: 4.5 | T72: 9.2 | U72: 5.6 | V72: 19.3 | W72: 6 | X72: 11 | Y72: 7 | Z72: 24 | AA72: 2 | AB72: 8 | AC72: 5 | AD72: 15 | AE72: 2.5 | AF72: 5 | AG72: 5 | AH72: 7 | AI72: 5 | AJ72: 7 | AK72: =SUM(AE72,AG72,AI72) -> 12.5 | AL72: =SUM(AF72,AH72,AJ72) -> 19 | AM72: 31.5 | AN72: 8.5 | AO72: 11 | AP72: 13 | AQ72: 32.5 | AR72: 8 | AS72: 14.5 | AT72: 13.5 | AU72: 36 | AV72: 9 | AW72: 8.5 | AX72: 16 | AY72: 33.5 | AZ72: 9.5 | BA72: 10 | BB72: 16 | BC72: 35.5 | BD72: 8 | BE72: 5 | BF72: 17 | BG72: 30 | BH72: 9.5 | BI72: 10.5 | BJ72: 15 | BK72: =SUM(BH72:BJ72) -> 35 | BL72: 8.5 | BM72: 8 | BN72: 17 | BO72: 33.5 | BP72: =SUM(N72,R72,V72,BG72,AU72,AY72,AQ72,BK72,BC72,BO72,AD72,Z72,AM72) -> 385.3 | BQ72: 3 | BR72: 3.5 | BS72: 7 | BT72: 13.5 | BU72: 3.5 | BV72: 5.5 | BW72: 4 | BX72: 113.9 | BY72: ناجحة | BZ72: و منقولة للصف الثانى | CA72: 0 | CU72: 0 | CV72: 0 | CW72: 125.4 | CX72: 111
A73: 66 | B73: 66 | C73: طالب تجارة 66 | D73: 2/1 | E73: مستجد | F73: 2001-09-11 | G73: 20 | H73: 0 | I73: 17 | J73: 108 | K73: 7 | L73: 10 | M73: 15 | N73: 32 | O73: 7.5 | P73: 10.8 | Q73: 8.4 | R73: =SUM(O73:Q73) -> 26.7 | S73: 4.5 | T73: 9.2 | U73: 6 | V73: =SUM(S73:U73) -> 19.7 | W73: 6 | X73: 6 | Y73: 11 | Z73: =SUM(W73:Y73) -> 23 | AA73: 5 | AB73: 4.5 | AC73: 6 | AD73: =SUM(AA73:AC73) -> 15.5 | AE73: 2.5 | AF73: 4.5 | AG73: 5 | AH73: 7 | AI73: 5 | AJ73: 7 | AK73: 12.5 | AL73: 18.5 | AM73: =SUM(AK73,AL73) -> 31 | AN73: 8.5 | AO73: 6 | AP73: 17 | AQ73: =SUM(AN73:AP73) -> 31.5 | AR73: 8 | AS73: 8.5 | AT73: 9 | AU73: =SUM(AR73:AT73) -> 25.5 | AV73: 8.5 | AW73: 11.5 | AX73: 9.5 | AY73: =SUM(AV73:AX73) -> 29.5 | AZ73: 9 | BA73: 7 | BB73: 17 | BC73: =SUM(AZ73:BB73) -> 33 | BD73: 7 | BE73: 10 | BF73: 14.5 | BG73: =SUM(BD73:BF73) -> 31.5 | BH73: 9.5 | BI73: 15 | BJ73: 15 | BK73: 39.5 | BL73: 8.5 | BM73: 11 | BN73: 14 | BO73: =SUM(BL73:BN73) -> 33.5 | BP73: 371.9 | BQ73: 3 | BR73: 6.5 | BS73: 7 | BT73: =SUM(BQ73:BS73) -> 16.5 | BU73: 3.5 | BV73: 6 | BW73: 3.5 | BX73: 110.5 | BY73: =IF(C73="","",IF(CA73=0,"ناجحة",IF(CU73>2,"راسبة","دورثان"))) -> ناجحة | BZ73: =IF(C73="","",IF(CA73=0,"و منقولة للصف الثانى",IF(CA73>0,"فى : "&CONCATENATE(CE73,CF73,CG73,CO73,CL73,CM73,CK73,CP73,CN73,CI73,CH73,CJ73,CR73,CT73,CS73)))) -> و منقولة للصف الثانى | CA73: =IFERROR(CU73+CV73,"") -> 0 | CE73: =IF(C73="","",IF(OR(M73<$M$7,M73="غ",N73<$N$7),CE$3&" - ","")) ->  | CF73: =IF(C73="","",IF(OR(Q73<$Q$7,Q73="غ",R73<$R$7),CF$3&" - ","")) ->  | CG73: =IF(C73="","",IF(OR(U73<$U$7,U73="غ",V73<$V$7),CG$3&" - ","")) ->  | CH73: =IF(C73="","",IF(OR(Y73<$Y$7,Y73="غ",Z73<$Z$7),CH$3&" - ","")) ->  | CI73: =IF(C73="","",IF(OR(AC73<$AC$7,AC73="غ",AD73<$AD$7),CI$3&" - ","")) ->  | CJ73: =IF(C73="","",IF(OR(AI73<$AI$7,AJ73<$AJ$7,AK73<$AK$7,AK73="غ",AL73<$AL$7,AL73="غ"),CJ$3&" - ","")) ->  | CK73: =IF(C73="","",IF(OR(AP73<$AP$7,AP73="غ",AQ73<$AQ$7),CK$3&" - ","")) ->  | CL73: =IF(C73="","",IF(OR(AT73<$AT$7,AT73="غ",AU73<$AU$7),CL$3&" - ","")) ->  | CM73: =IF(C73="","",IF(OR(AX73<$AX$7,AX73="غ",AY73<$AY$7),CM$3&" - ","")) ->  | CN73: =IF(C73="","",IF(OR(BB73<$BB$7,BB73="غ",BC73<$BC$7),CN$3&" - ","")) ->  | CO73: =IF(C73="","",IF(OR(BF73<$BF$7,BF73="غ",BG73<$BG$7),CO$3&" - ","")) ->  | CP73: =IF(C73="","",IF(OR(BJ73<$BJ$7,BJ73="غ",BK73<$BK$7),CP$3&" - ","")) ->  | CQ73: =IF(C73="","",IF(OR(BN73<$BN$7,BN73="غ",BO73<$BO$7),CQ$3&" - ","")) ->  | CR73: =IF(C73="","",IF($BP73<$BP$7,$CR$3&" -","")) ->  | CS73: =IF(C73="","",IF(OR(BS73<$BS$7,BS73="غ",BT73<$BT$7),CS$3,"")) ->  | CT73: =IF(C73="","",IF(OR(BW73<$BW$7,BW73="غ",BX73<$BX$7),CT$3&" - ","")) ->  | CU73: =IF(C73="","",COUNTIF(CE73:CQ73,"?*")) -> 0 | CV73: =IF(D73="","",COUNTIF(CR73:CT73,"?*")) -> 0 | CW73: 123 | CX73: 120
A74: 67 | B74: 67 | C74: طالب تجارة 67 | D74: 2/1 | E74: مستجد | F74: 2002-11-25 | G74: 6 | H74: 10 | I74: 15 | J74: 109 | K74: 8 | L74: 14 | M74: 15.5 | N74: 37.5 | O74: 9.5 | P74: 11.6 | Q74: 13.6 | R74: 34.7 | S74: 4.5 | T74: 10.4 | U74: 6 | V74: 20.9 | W74: 6 | X74: 10 | Y74: 8 | Z74: 24 | AA74: 5 | AB74: 4 | AC74: 10.5 | AD74: 19.5 | AE74: 2.5 | AF74: 5 | AG74: 5 | AH74: 7 | AI74: 6 | AJ74: 8 | AK74: 13.5 | AL74: 20 | AM74: 33.5 | AN74: 8.5 | AO74: 10 | AP74: 18 | AQ74: 36.5 | AR74: 8 | AS74: 18 | AT74: 17 | AU74: 43 | AV74: 8.5 | AW74: 13 | AX74: 17 | AY74: 38.5 | AZ74: 9 | BA74: 6 | BB74: 18 | BC74: 33 | BD74: 8 | BE74: 12.5 | BF74: 20 | BG74: 40.5 | BH74: 9.5 | BI74: 14 | BJ74: 18 | BK74: 41.5 | BL74: 8.5 | BM74: 12 | BN74: 17 | BO74: 37.5 | BP74: 440.6 | BQ74: 3 | BR74: 5 | BS74: 7 | BT74: 15 | BU74: 3.5 | BV74: 6.5 | BW74: 5 | BX74: 129.5 | BY74: ناجحة | BZ74: و منقولة للصف الثانى | CA74: 0 | CU74: 0 | CV74: 0 | CW74: 137 | CX74: 51
A75: 68 | B75: 68 | C75: طالب تجارة 68 | D75: 2/1 | E75: مستجد | F75: 2002-11-16 | G75: 15 | H75: 10 | I75: 15 | J75: 110 | K75: 8 | L75: 11.5 | M75: 14 | N75: 33.5 | O75: 8 | P75: 7.2 | Q75: 10 | R75: 25.2 | S75: 4.5 | T75: 9.6 | U75: 7.2 | V75: 21.3 | W75: 6 | X75: 11 | Y75: 11 | Z75: 28 | AA75: 4 | AB75: 5.5 | AC75: 5.5 | AD75: 15 | AE75: 2.5 | AF75: 5 | AG75: 5 | AH75: 7 | AI75: 6 | AJ75: 9 | AK75: 13.5 | AL75: 21 | AM75: 34.5 | AN75: 8.5 | AO75: 8 | AP75: 14 | AQ75: 30.5 | AR75: 8 | AS75: 13.5 | AT75: 11 | AU75: 32.5 | AV75: 8.5 | AW75: 12 | AX75: 15.5 | AY75: 36 | AZ75: 9 | BA75: 9 | BB75: 14 | BC75: 32 | BD75: 7.5 | BE75: 2.5 | BF75: 15 | BG75: 25 | BH75: 9.5 | BI75: 12.5 | BJ75: 15 | BK75: 37 | BL75: 8.5 | BM75: 9 | BN75: 17 | BO75: 34.5 | BP75: 385 | BQ75: 3 | BR75: 5 | BS75: 7 | BT75: 15 | BU75: 4 | BV75: 5.5 | BW75: 5 | BX75: 110.3 | BY75: ناجحة | BZ75: و منقولة للصف الثانى | CA75: 0 | CU75: 0 | CV75: 0 | CW75: 127.8 | CX75: 93
A76: 69 | B76: 69 | C76: طالب تجارة 69 | D76: 2/1 | E76: مستجد | F76: 2001-08-27 | G76: 4 | H76: 1 | I76: 17 | J76: 111 | K76: 8 | L76: 12 | M76: 13.5 | N76: 33.5 | O76: 8.5 | P76: 5.6 | Q76: 9.6 | R76: 23.7 | S76: 4.5 | T76: 9.2 | U76: 6.4 | V76: 20.1 | W76: 6 | X76: 12 | Y76: 8 | Z76: 26 | AA76: 5 | AB76: 8 | AC76: 9.5 | AD76: 22.5 | AE76: 3 | AF76: 5 | AG76: 5 | AH76: 7 | AI76: 5 | AJ76: 8 | AK76: 13 | AL76: 20 | AM76: 33 | AN76: 8.5 | AO76: 8 | AP76: 15 | AQ76: 31.5 | AR76: 8 | AS76: 13 | AT76: 15 | AU76: 36 | AV76: 8.5 | AW76: 11 | AX76: 16 | AY76: 35.5 | AZ76: 9 | BA76: 12 | BB76: 15 | BC76: 36 | BD76: 8.5 | BE76: 15.5 | BF76: 19.5 | BG76: 43.5 | BH76: 9.5 | BI76: 15 | BJ76: 16 | BK76: 40.5 | BL76: 8.5 | BM76: 9 | BN76: 16 | BO76: 33.5 | BP76: 415.3 | BQ76: 3 | BR76: 6 | BS76: 7 | BT76: 16 | BU76: 3.5 | BV76: 7 | BW76: 4.5 | BX76: 128.8 | BY76: ناجحة | BZ76: و منقولة للصف الثانى | CA76: 0 | CU76: 0 | CV76: 0 | CW76: 133.3 | CX76: 68
A77: 70 | B77: 70 | C77: طالب تجارة 70 | D77: 2/1 | E77: مستجد | F77: 2001-09-01 | G77: 0 | H77: 1 | I77: 17 | J77: 112 | K77: 8 | L77: 8.5 | M77: 11 | N77: 27.5 | O77: 9 | P77: 6 | Q77: 12 | R77: 27 | S77: 4.5 | T77: 8 | U77: 5.2 | V77: 17.7 | W77: 6 | X77: 11 | Y77: 5 | Z77: 22 | AA77: 5 | AB77: 2.5 | AC77: 10 | AD77: 17.5 | AE77: 3 | AF77: 5 | AG77: 6 | AH77: 7 | AI77: 5 | AJ77: 9 | AK77: 14 | AL77: 21 | AM77: 35 | AN77: 8.5 | AO77: 6 | AP77: 14 | AQ77: 28.5 | AR77: 8 | AS77: 7.5 | AT77: 14.5 | AU77: 30 | AV77: 9 | AW77: 5.5 | AX77: 12 | AY77: 26.5 | AZ77: 9 | BA77: 8 | BB77: 15 | BC77: 32 | BD77: 8 | BE77: 0.5 | BF77: 16.5 | BG77: 25 | BH77: 9.5 | BI77: 12 | BJ77: 10 | BK77: 31.5 | BL77: 8.5 | BM77: 10 | BN77: 15 | BO77: 33.5 | BP77: 353.7 | BQ77: 3 | BR77: 2 | BS77: 7 | BT77: 12 | BU77: 3.5 | BV77: 5.5 | BW77: 2.5 | BX77: 101.5 | BY77: ناجحة | BZ77: و منقولة للصف الثانى | CA77: 0 | CU77: 0 | CV77: 0 | CW77: 114.5 | CX77: 194
A78: 71 | B78: 71 | C78: طالب تجارة 71 | D78: 2/1 | E78: مستجد | F78: 2002-08-12 | G78: 19 | H78: 1 | I78: 16 | J78: 113 | K78: 7.5 | L78: 13 | M78: 13.5 | N78: 34 | O78: 9 | P78: 7.6 | Q78: 10.4 | R78: 27 | S78: 5 | T78: 9.2 | U78: 6.8 | V78: 21 | W78: 6 | X78: 10 | Y78: 12 | Z78: 28 | AA78: 4.5 | AB78: 10 | AC78: 10.5 | AD78: 25 | AE78: 3 | AF78: 4.5 | AG78: 5 | AH78: 7 | AI78: 6 | AJ78: 9 | AK78: 14 | AL78: 20.5 | AM78: 34.5 | AN78: 8.5 | AO78: 13 | AP78: 18 | AQ78: 39.5 | AR78: 8 | AS78: 16 | AT78: 18 | AU78: 42 | AV78: 8.5 | AW78: 13 | AX78: 16 | AY78: 37.5 | AZ78: 9.5 | BA78: 6 | BB78: 10 | BC78: 25.5 | BD78: 8 | BE78: 14.5 | BF78: 20 | BG78: 42.5 | BH78: 9.5 | BI78: 19 | BJ78: 19 | BK78: 47.5 | BL78: 8.5 | BM78: 15 | BN78: 16 | BO78: 39.5 | BP78: 443.5 | BQ78: 3 | BR78: 5 | BS78: 7.5 | BT78: 15.5 | BU78: 3.5 | BV78: 5.5 | BW78: 5 | BX78: 132.3 | BY78: ناجحة | BZ78: و منقولة للصف الثانى | CA78: 0 | CU78: 0 | CV78: 0 | CW78: 143.8 | CX78: 23
A79: 72 | B79: 72 | C79: طالب تجارة 72 | D79: 2/1 | E79: مستجد | F79: 2001-10-28 | G79: 3 | H79: 11 | I79: 16 | J79: 114 | K79: 7 | L79: 12.5 | M79: 16.5 | N79: 36 | O79: 7.5 | P79: 10 | Q79: 13.2 | R79: 30.7 | S79: 4.5 | T79: 9.2 | U79: 7.2 | V79: 20.9 | W79: 6 | X79: 9 | Y79: 11 | Z79: 26 | AA79: 5.5 | AB79: 8 | AC79: 9.5 | AD79: 23 | AE79: 2.5 | AF79: 4.5 | AG79: 5 | AH79: 5 | AI79: 6 | AJ79: 9 | AK79: 13.5 | AL79: 18.5 | AM79: 32 | AN79: 8.5 | AO79: 8 | AP79: 17 | AQ79: 33.5 | AR79: 8 | AS79: 13.5 | AT79: 14.5 | AU79: 36 | AV79: 8.5 | AW79: 10.5 | AX79: 14.5 | AY79: 33.5 | AZ79: 9 | BA79: 7 | BB79: 10 | BC79: 26 | BD79: 7.5 | BE79: 11.5 | BF79: 15 | BG79: 34 | BH79: 9.5 | BI79: 17.5 | BJ79: 19 | BK79: 46 | BL79: 8.5 | BM79: 14 | BN79: 16 | BO79: 38.5 | BP79: 416.1 | BQ79: 3 | BR79: 3.5 | BS79: 7.5 | BT79: 14 | BU79: 3.5 | BV79: 5.5 | BW79: 3.5 | BX79: 122.7 | BY79: ناجحة | BZ79: و منقولة للصف الثانى | CA79: 0 | CU79: 0 | CV79: 0 | CW79: 140.2 | CX79: 36
A80: 73 | B80: 73 | C80: طالب تجارة 73 | D80: 2/1 | E80: مستجد | F80: 2002-06-17 | G80: 14 | H80: 3 | I80: 16 | J80: 115 | K80: 7 | L80: 6.5 | M80: 11.5 | N80: 25 | O80: 8.5 | P80: 7.6 | Q80: 8 | R80: 24.1 | S80: 4.5 | T80: 8 | U80: 6.8 | V80: 19.3 | W80: 6 | X80: 11 | Y80: 11 | Z80: 28 | AA80: 4 | AB80: 3 | AC80: 8 | AD80: 15 | AE80: 2.5 | AF80: 5 | AG80: 5 | AH80: 5 | AI80: 5 | AJ80: 9 | AK80: 12.5 | AL80: 19 | AM80: 31.5 | AN80: 8.5 | AO80: 11 | AP80: 15 | AQ80: 34.5 | AR80: 8 | AS80: 13 | AT80: 9.5 | AU80: 30.5 | AV80: 8.5 | AW80: 7 | AX80: 12 | AY80: 27.5 | AZ80: 9 | BA80: 9 | BB80: 14 | BC80: 32 | BD80: 7.5 | BE80: 4.5 | BF80: 13.5 | BG80: 25.5 | BH80: 10 | BI80: 16.5 | BJ80: 17 | BK80: 43.5 | BL80: 8.5 | BM80: 15 | BN80: 16 | BO80: 39.5 | BP80: 375.9 | BQ80: 3 | BR80: 2.5 | BS80: 7 | BT80: 12.5 | BU80: 3.5 | BV80: 2 | BW80: 4.5 | BX80: 102.1 | BY80: ناجحة | BZ80: و منقولة للصف الثانى | CA80: 0 | CU80: 0 | CV80: 0 | CW80: 125.1 | CX80: 113
A81: 74 | B81: 74 | C81: طالب تجارة 74 | D81: 2/1 | E81: مستجد | F81: 2003-01-01 | G81: 0 | H81: 9 | I81: 15 | J81: 116 | K81: 7.5 | L81: 9.5 | M81: 13.5 | N81: 30.5 | O81: 8.5 | P81: 10.8 | Q81: 13.2 | R81: 32.5 | S81: 4.5 | T81: 8.8 | U81: 8 | V81: 21.3 | W81: 6 | X81: 12 | Y81: 13 | Z81: 31 | AA81: 3 | AB81: 3.5 | AC81: 9.5 | AD81: 16 | AE81: 2.5 | AF81: 4.5 | AG81: 6 | AH81: 7 | AI81: 5 | AJ81: 9 | AK81: 13.5 | AL81: 20.5 | AM81: 34 | AN81: 8.5 | AO81: 13 | AP81: 18 | AQ81: 39.5 | AR81: 9 | AS81: 15 | AT81: 15 | AU81: 39 | AV81: 8.5 | AW81: 13.5 | AX81: 15 | AY81: 37 | AZ81: 9.5 | BA81: 7 | BB81: 10 | BC81: 26.5 | BD81: 8 | BE81: 13 | BF81: 17.5 | BG81: 38.5 | BH81: 9.5 | BI81: 15.5 | BJ81: 20 | BK81: 45 | BL81: 8 | BM81: 16 | BN81: 17 | BO81: 41 | BP81: 431.8 | BQ81: 3 | BR81: 5 | BS81: 7.5 | BT81: 15.5 | BU81: 3.5 | BV81: 2.5 | BW81: 5 | BX81: 124.1 | BY81: ناجحة | BZ81: و منقولة للصف الثانى | CA81: 0 | CU81: 0 | CV81: 0 | CW81: 137.1 | CX81: 50
A82: 75 | B82: 75 | C82: طالب تجارة 75 | D82: 2/1 | E82: مستجد | F82: 2002-07-13 | G82: 18 | H82: 2 | I82: 16 | J82: 117 | K82: 7.5 | L82: 8 | M82: 12 | N82: 27.5 | O82: 8.5 | P82: 9.2 | Q82: 8.4 | R82: 26.1 | S82: 4.5 | T82: 8.8 | U82: 8.4 | V82: 21.7 | W82: 6 | X82: 11 | Y82: 12 | Z82: 29 | AA82: 5 | AB82: 0.5 | AC82: 10 | AD82: 15.5 | AE82: 3 | AF82: 5 | AG82: 5 | AH82: 8 | AI82: 6 | AJ82: 9 | AK82: 14 | AL82: 22 | AM82: 36 | AN82: 8.5 | AO82: 6 | AP82: 16 | AQ82: 30.5 | AR82: 8.5 | AS82: 15.5 | AT82: 14.5 | AU82: 38.5 | AV82: 8.5 | AW82: 0 | AX82: 13.5 | AY82: 22 | AZ82: 9 | BA82: 5 | BB82: 12 | BC82: 26 | BD82: 7.5 | BE82: 1 | BF82: 16.5 | BG82: 25 | BH82: 9.5 | BI82: 13 | BJ82: 13 | BK82: 35.5 | BL82: 8 | BM82: 16 | BN82: 16 | BO82: 40 | BP82: 373.3 | BQ82: 3 | BR82: 2.5 | BS82: 7.5 | BT82: 13 | BU82: 3.5 | BV82: 3.5 | BW82: 4.5 | BX82: 103.5 | BY82: ناجحة | BZ82: و منقولة للصف الثانى | CA82: 0 | CU82: 0 | CV82: 0 | CW82: 119.5 | CX82: 152
A83: 76 | B83: 76 | C83: طالب تجارة 76 | D83: 2/1 | E83: مستجد | F83: 2003-03-16 | G83: 15 | H83: 6 | I83: 15 | J83: 118 | K83: 7.5 | L83: 10.5 | M83: 16.5 | N83: 34.5 | O83: 8.5 | P83: 8.8 | Q83: 10.4 | R83: 27.7 | S83: 4.5 | T83: 8.4 | U83: 8 | V83: 20.9 | W83: 6 | X83: 10 | Y83: 12 | Z83: 28 | AA83: 5 | AB83: 3.5 | AC83: 11 | AD83: 19.5 | AE83: 2.5 | AF83: 4.5 | AG83: 5 | AH83: 6 | AI83: 6 | AJ83: 9 | AK83: 13.5 | AL83: 19.5 | AM83: 33 | AN83: 8.5 | AO83: 18 | AP83: 15 | AQ83: 41.5 | AR83: 9 | AS83: 12 | AT83: 13.5 | AU83: 34.5 | AV83: 9 | AW83: 12.5 | AX83: 13.5 | AY83: 35 | AZ83: 9 | BA83: 10 | BB83: 15 | BC83: 34 | BD83: 7.5 | BE83: 1.5 | BF83: 16 | BG83: 25 | BH83: 9.5 | BI83: 15 | BJ83: 13 | BK83: 37.5 | BL83: 8 | BM83: 15 | BN83: 16 | BO83: 39 | BP83: 410.1 | BQ83: 3 | BR83: 5 | BS83: 7.5 | BT83: 15.5 | BU83: 3.5 | BV83: 3 | BW83: 5.5 | BX83: 107.7 | BY83: ناجحة | BZ83: و منقولة للصف الثانى | CA83: 0 | CU83: 0 | CV83: 0 | CW83: 125.7 | CX83: 107
A84: 77 | B84: 77 | C84: طالب تجارة 77 | D84: 2/1 | E84: مستجد | F84: 2002-11-24 | G84: 7 | H84: 10 | I84: 15 | J84: 119 | K84: 7.5 | L84: 10.5 | M84: 14.5 | N84: 32.5 | O84: 8.5 | P84: 9.6 | Q84: 11.2 | R84: 29.3 | S84: 4.5 | T84: 8 | U84: 8.4 | V84: 20.9 | W84: 6 | X84: 14 | Y84: 13 | Z84: 33 | AA84: 2 | AB84: 2.5 | AC84: 10.5 | AD84: 15 | AE84: 2.5 | AF84: 4.5 | AG84: 5 | AH84: 7 | AI84: 6 | AJ84: 9 | AK84: 13.5 | AL84: 20.5 | AM84: 34 | AN84: 8.5 | AO84: 13 | AP84: 15 | AQ84: 36.5 | AR84: 8.5 | AS84: 10 | AT84: 12.5 | AU84: 31 | AV84: 9 | AW84: 6.5 | AX84: 13 | AY84: 28.5 | AZ84: 9 | BA84: 15 | BB84: 14 | BC84: 38 | BD84: 7 | BE84: 7 | BF84: 13.5 | BG84: 27.5 | BH84: 9.5 | BI84: 17 | BJ84: 15 | BK84: 41.5 | BL84: 8 | BM84: 15 | BN84: 16 | BO84: 39 | BP84: 406.7 | BQ84: 3 | BR84: 5.5 | BS84: 7.5 | BT84: 16 | BU84: 3.5 | BV84: 2.5 | BW84: 4.5 | BX84: 113.6 | BY84: ناجحة | BZ84: و منقولة للصف الثانى | CA84: 0 | CU84: 0 | CV84: 0 | CW84: 132.1 | CX84: 74
A85: 78 | B85: 78 | C85: طالب تجارة 78 | D85: 2/1 | E85: مستجد | F85: 2002-06-30 | G85: 1 | H85: 3 | I85: 16 | J85: 120 | K85: 7.5 | L85: 11 | M85: 15 | N85: 33.5 | O85: 8.5 | P85: 12.8 | Q85: 14 | R85: 35.3 | S85: 4.5 | T85: 8 | U85: 8.4 | V85: 20.9 | W85: 6 | X85: 10 | Y85: 12 | Z85: 28 | AA85: 3 | AB85: 9.5 | AC85: 10 | AD85: 22.5 | AE85: 3 | AF85: 5 | AG85: 5 | AH85: 6 | AI85: 5 | AJ85: 10 | AK85: 13 | AL85: 21 | AM85: 34 | AN85: 8.5 | AO85: 14 | AP85: 16 | AQ85: 38.5 | AR85: 9 | AS85: 14 | AT85: 16 | AU85: 39 | AV85: 8.5 | AW85: 12.5 | AX85: 15 | AY85: 36 | AZ85: 9 | BA85: 17 | BB85: 16.5 | BC85: 42.5 | BD85: 8 | BE85: 12.5 | BF85: 19 | BG85: 39.5 | BH85: 9.5 | BI85: 17 | BJ85: 20 | BK85: 46.5 | BL85: 8 | BM85: 16 | BN85: 16 | BO85: 40 | BP85: 456.2 | BQ85: 3 | BR85: 3.5 | BS85: 7.5 | BT85: 14 | BU85: 3.5 | BV85: 6 | BW85: 5 | BX85: 132.8 | BY85: ناجحة | BZ85: و منقولة للصف الثانى | CA85: 0 | CU85: 0 | CV85: 0 | CW85: 146.3 | CX85: 12
A86: 79 | B86: 79 | C86: طالب تجارة 79 | D86: 2/1 | E86: مستجد | F86: 2003-03-01 | G86: 0 | H86: 7 | I86: 15 | J86: 121 | K86: 7.5 | L86: 11.5 | M86: 11.5 | N86: 30.5 | O86: 8 | P86: 7.2 | Q86: 12.8 | R86: 28 | S86: 4.5 | T86: 6.8 | U86: 6.4 | V86: 17.7 | W86: 6 | X86: 15 | Y86: 6 | Z86: 27 | AA86: 5 | AB86: 7.5 | AC86: 9 | AD86: 21.5 | AE86: 2.5 | AF86: 5 | AG86: 6 | AH86: 6 | AI86: 5 | AJ86: 9 | AK86: 13.5 | AL86: 20 | AM86: 33.5 | AN86: 8.5 | AO86: 13 | AP86: 11 | AQ86: 32.5 | AR86: 9 | AS86: 7 | AT86: 15.5 | AU86: 31.5 | AV86: 8.5 | AW86: 7.5 | AX86: 12 | AY86: 28 | AZ86: 9 | BA86: 7 | BB86: 11 | BC86: 27 | BD86: 8 | BE86: 9.5 | BF86: 16.5 | BG86: 34 | BH86: 9.5 | BI86: 15.5 | BJ86: 15 | BK86: 40 | BL86: 8 | BM86: 13 | BN86: 14 | BO86: 35 | BP86: 386.2 | BQ86: 3 | BR86: 7 | BS86: 7 | BT86: 17 | BU86: 3.5 | BV86: 4 | BW86: 4 | BX86: 123 | BY86: ناجحة | BZ86: و منقولة للصف الثانى | CA86: 0 | CU86: 0 | CV86: 0 | CW86: 135.5 | CX86: 59
A87: 80 | B87: 80 | C87: طالب تجارة 80 | D87: 2/1 | E87: مستجد | F87: 2002-08-24 | G87: 7 | H87: 1 | I87: 16 | J87: 122 | K87: 7.5 | L87: 8 | M87: 10.5 | N87: 26 | O87: 8 | P87: 6.8 | Q87: 13.6 | R87: 28.4 | S87: 4.5 | T87: 4.8 | U87: 8 | V87: 17.3 | W87: 6 | X87: 10 | Y87: 8 | Z87: 24 | AA87: 5.5 | AB87: 6 | AC87: 9 | AD87: 20.5 | AE87: 2.5 | AF87: 4.5 | AG87: 5 | AH87: 6 | AI87: 5 | AJ87: 9 | AK87: 12.5 | AL87: 19.5 | AM87: 32 | AN87: 8.5 | AO87: 9 | AP87: 15 | AQ87: 32.5 | AR87: 9 | AS87: 9 | AT87: 14 | AU87: 32 | AV87: 8.5 | AW87: 5 | AX87: 12 | AY87: 25.5 | AZ87: 9 | BA87: 5 | BB87: 14 | BC87: 28 | BD87: 8.5 | BE87: 1.5 | BF87: 15 | BG87: 25 | BH87: 10 | BI87: 14.5 | BJ87: 15 | BK87: 39.5 | BL87: 8 | BM87: 14 | BN87: 14 | BO87: 36 | BP87: 366.7 | BQ87: 3 | BR87: 7 | BS87: 6.5 | BT87: 16.5 | BU87: 3.5 | BV87: 4 | BW87: 4 | BX87: 100.6 | BY87: ناجحة | BZ87: و منقولة للصف الثانى | CA87: 0 | CU87: 0 | CV87: 0 | CW87: 122.1 | CX87: 132
A88: 81 | B88: 81 | C88: طالب تجارة 81 | D88: 2/1 | E88: مستجد | F88: 2002-09-17 | G88: 14 | H88: 0 | I88: 16 | J88: 123 | K88: 7.5 | L88: 12 | M88: 11 | N88: 30.5 | O88: 8.5 | P88: 9.2 | Q88: 13.6 | R88: 31.3 | S88: 4.5 | T88: 4.4 | U88: 8.4 | V88: 17.3 | W88: 6 | X88: 14 | Y88: 9 | Z88: 29 | AA88: 5.5 | AB88: 2.5 | AC88: 9.5 | AD88: 17.5 | AE88: 2.5 | AF88: 5 | AG88: 5 | AH88: 6 | AI88: 6 | AJ88: 9 | AK88: 13.5 | AL88: 20 | AM88: 33.5 | AN88: 8.5 | AO88: 12 | AP88: 12 | AQ88: 32.5 | AR88: 8.5 | AS88: 9.5 | AT88: 16 | AU88: 34 | AV88: 8.5 | AW88: 4.5 | AX88: 10 | AY88: 23 | AZ88: 9 | BA88: 7 | BB88: 15 | BC88: 31 | BD88: 8 | BE88: 5 | BF88: 14.5 | BG88: 27.5 | BH88: 9.5 | BI88: 16 | BJ88: 15 | BK88: 40.5 | BL88: 8 | BM88: 13 | BN88: 14 | BO88: 35 | BP88: 382.6 | BQ88: 3 | BR88: 5 | BS88: 7.5 | BT88: 15.5 | BU88: 3.5 | BV88: 4.5 | BW88: 4.5 | BX88: 110.1 | BY88: ناجحة | BZ88: و منقولة للصف الثانى | CA88: 0 | CU88: 0 | CV88: 0 | CW88: 129.6 | CX88: 88
A89: 82 | B89: 82 | C89: طالب تجارة 82 | D89: 3/1 | E89: مستجد | F89: 2002-04-28 | G89: 3 | H89: 5 | I89: 16 | J89: 124 | K89: 7.5 | L89: 9.5 | M89: 14.5 | N89: 31.5 | O89: 8.5 | P89: 12 | Q89: 10.8 | R89: 31.3 | S89: 4.5 | T89: 6.4 | U89: 7.6 | V89: 18.5 | W89: 6 | X89: 9 | Y89: 13 | Z89: 28 | AA89: 2 | AB89: 6.5 | AC89: 6.5 | AD89: 15 | AE89: 3 | AF89: 5 | AG89: 5 | AH89: 3 | AI89: 6 | AJ89: 9 | AK89: 14 | AL89: 17 | AM89: 31 | AN89: 8.5 | AO89: 13 | AP89: 11 | AQ89: 32.5 | AR89: 8.5 | AS89: 13.5 | AT89: 10 | AU89: 32 | AV89: 8.5 | AW89: 11 | AX89: 10.5 | AY89: 30 | AZ89: 9.5 | BA89: 6 | BB89: 11 | BC89: 26.5 | BD89: 9 | BE89: 13 | BF89: 16 | BG89: 38 | BH89: 9.5 | BI89: 10.5 | BJ89: 15 | BK89: 35 | BL89: 8 | BM89: 10 | BN89: 14 | BO89: 32 | BP89: 381.3 | BQ89: 3 | BR89: 6.5 | BS89: 6.5 | BT89: 16 | BU89: 3.5 | BV89: 6 | BW89: 4.5 | BX89: 121.4 | BY89: ناجحة | BZ89: و منقولة للصف الثانى | CA89: 0 | CU89: 0 | CV89: 0 | CW89: 126.9 | CX89: 97
A90: 83 | B90: 83 | C90: طالب تجارة 83 | D90: 2/1 | E90: مستجد | F90: 2002-08-18 | G90: 13 | H90: 1 | I90: 16 | J90: 125 | K90: 7.5 | L90: 10 | M90: 12 | N90: 29.5 | O90: 8.5 | P90: 9.2 | Q90: 15.2 | R90: 32.9 | S90: 4.5 | T90: 5.6 | U90: 9.6 | V90: 19.7 | W90: 6 | X90: 11 | Y90: 13 | Z90: 30 | AA90: 5.5 | AB90: 5 | AC90: 10 | AD90: 20.5 | AE90: 3 | AF90: 4.5 | AG90: 6 | AH90: 6 | AI90: 5 | AJ90: 9 | AK90: 14 | AL90: 19.5 | AM90: 33.5 | AN90: 8.5 | AO90: 15 | AP90: 19 | AQ90: 42.5 | AR90: 9 | AS90: 15 | AT90: 13 | AU90: 37 | AV90: 8.5 | AW90: 13.5 | AX90: 12.5 | AY90: 34.5 | AZ90: 9.5 | BA90: 15 | BB90: 13 | BC90: 37.5 | BD90: 8.5 | BE90: 16.5 | BF90: 19.5 | BG90: 44.5 | BH90: 9.5 | BI90: 18 | BJ90: 15 | BK90: 42.5 | BL90: 8 | BM90: 13 | BN90: 13 | BO90: 34 | BP90: 438.6 | BQ90: 3 | BR90: 6.5 | BS90: 7 | BT90: 16.5 | BU90: 3.5 | BV90: 5.5 | BW90: 3.5 | BX90: 125.8 | BY90: ناجحة | BZ90: و منقولة للصف الثانى | CA90: 0 | CU90: 0 | CV90: 0 | CW90: 131.3 | CX90: 79
A91: 84 | B91: 84 | C91: طالب تجارة 84 | D91: 2/1 | E91: مستجد | F91: 1999-11-01 | G91: 0 | H91: 11 | I91: 18 | J91: 126 | K91: 7.5 | L91: 12.5 | M91: 14 | N91: 34 | O91: 8 | P91: 12 | Q91: 16 | R91: 36 | S91: 4.5 | T91: 10.8 | U91: 7.2 | V91: 22.5 | W91: 6 | X91: 12 | Y91: 12 | Z91: 30 | AA91: 2 | AB91: 7 | AC91: 8 | AD91: 17 | AE91: 2.5 | AF91: 4.5 | AG91: 5 | AH91: 9 | AI91: 5 | AJ91: 8 | AK91: 12.5 | AL91: 21.5 | AM91: 34 | AN91: 8.5 | AO91: 10 | AP91: 18 | AQ91: 36.5 | AR91: 8.5 | AS91: 13.5 | AT91: 15.5 | AU91: 37.5 | AV91: 8.5 | AW91: 15 | AX91: 13 | AY91: 36.5 | AZ91: 9.5 | BA91: 5 | BB91: 16 | BC91: 30.5 | BD91: 7.5 | BE91: 16 | BF91: 17 | BG91: 40.5 | BH91: 9.5 | BI91: 14 | BJ91: 19 | BK91: 42.5 | BL91: 8 | BM91: 15 | BN91: 17 | BO91: 40 | BP91: 437.5 | BQ91: 3 | BR91: 2 | BS91: 6 | BT91: 11 | BU91: 3.5 | BV91: 4.5 | BW91: 4.5 | BX91: 134.8 | BY91: ناجحة | BZ91: و منقولة للصف الثانى | CA91: 0 | CU91: 0 | CV91: 0 | CW91: 142.3 | CX91: 26
A92: 85 | B92: 85 | C92: طالب تجارة 85 | D92: 2/1 | E92: مستجد | F92: 2002-07-20 | G92: 11 | H92: 2 | I92: 16 | J92: 155 | K92: 7.5 | L92: 12.5 | M92: 12.5 | N92: 32.5 | O92: 8.5 | P92: 10.8 | Q92: 12 | R92: 31.3 | S92: 4.5 | T92: 3.6 | U92: 8.4 | V92: 16.5 | W92: 6 | X92: 13 | Y92: 9 | Z92: 28 | AA92: 5 | AB92: 5 | AC92: 10 | AD92: 20 | AE92: 3 | AF92: 5 | AG92: 4 | AH92: 7 | AI92: 6 | AJ92: 8 | AK92: 13 | AL92: 20 | AM92: 33 | AN92: 8.5 | AO92: 17 | AP92: 14 | AQ92: 39.5 | AR92: 9 | AS92: 14.5 | AT92: 15.5 | AU92: 39 | AV92: 9 | AW92: 14 | AX92: 11.5 | AY92: 34.5 | AZ92: 9 | BA92: 13 | BB92: 14 | BC92: 36 | BD92: 8 | BE92: 12 | BF92: 15.5 | BG92: 35.5 | BH92: 9.5 | BI92: 14.5 | BJ92: 15 | BK92: 39 | BL92: 8 | BM92: 17 | BN92: 15 | BO92: 40 | BP92: 424.8 | BQ92: 3 | BR92: 6 | BS92: 7 | BT92: 16 | BU92: 3.5 | BV92: 5 | BW92: 3 | BX92: 120.9 | BY92: ناجحة | BZ92: و منقولة للصف الثانى | CA92: 0 | CU92: 0 | CV92: 0 | CW92: 130.9 | CX92: 80
A93: 86 | B93: 86 | C93: طالب تجارة 86 | D93: 2/1 | E93: مستجد | F93: 2002-04-21 | G93: 10 | H93: 5 | I93: 16 | J93: 156 | K93: 7.5 | L93: 12.5 | M93: 13.5 | N93: 33.5 | O93: 8.5 | P93: 9.2 | Q93: 14 | R93: 31.7 | S93: 4.5 | T93: 2.4 | U93: 9.2 | V93: 16.1 | W93: 6 | X93: 9 | Y93: 10 | Z93: 25 | AA93: 5.5 | AB93: 7 | AC93: 10 | AD93: 22.5 | AE93: 2.5 | AF93: 5 | AG93: 5 | AH93: 7 | AI93: 6 | AJ93: 9 | AK93: 13.5 | AL93: 21 | AM93: 34.5 | AN93: 8.5 | AO93: 15 | AP93: 16 | AQ93: 39.5 | AR93: 9 | AS93: 15 | AT93: 15 | AU93: 39 | AV93: 8.5 | AW93: 10.5 | AX93: 11.5 | AY93: 30.5 | AZ93: 9 | BA93: 11 | BB93: 14 | BC93: 34 | BD93: 8 | BE93: 9 | BF93: 16 | BG93: 33 | BH93: 9.5 | BI93: 15.5 | BJ93: 13 | BK93: 38 | BL93: 8 | BM93: 16 | BN93: 14 | BO93: 38 | BP93: 415.3 | BQ93: 3 | BR93: 6 | BS93: 7 | BT93: 16 | BU93: 3.5 | BV93: 4.5 | BW93: 4.5 | BX93: 114.1 | BY93: ناجحة | BZ93: و منقولة للصف الثانى | CA93: 0 | CU93: 0 | CV93: 0 | CW93: 125.6 | CX93: 110
A94: 87 | B94: 87 | C94: طالب تجارة 87 | D94: 2/1 | E94: مستجد | F94: 2002-06-12 | G94: 19 | H94: 3 | I94: 16 | J94: 157 | K94: 7.5 | L94: 11.5 | M94: 13.5 | N94: 32.5 | O94: 8 | P94: 7.2 | Q94: 14 | R94: 29.2 | S94: 5 | T94: 4.8 | U94: 10 | V94: 19.8 | W94: 6 | X94: 11 | Y94: 11 | Z94: 28 | AA94: 2 | AB94: 5 | AC94: 8 | AD94: 15 | AE94: 2.5 | AF94: 5 | AG94: 5 | AH94: 9 | AI94: 5 | AJ94: 9 | AK94: 12.5 | AL94: 23 | AM94: 35.5 | AN94: 8.5 | AO94: 15 | AP94: 18 | AQ94: 41.5 | AR94: 9 | AS94: 11 | AT94: 15.5 | AU94: 35.5 | AV94: 8.5 | AW94: 11 | AX94: 13.5 | AY94: 33 | AZ94: 9 | BA94: 17 | BB94: 13 | BC94: 39 | BD94: 7.5 | BE94: 3.5 | BF94: 14 | BG94: 25 | BH94: 9.5 | BI94: 16 | BJ94: 15 | BK94: 40.5 | BL94: 8 | BM94: 17 | BN94: 15 | BO94: 40 | BP94: 414.5 | BQ94: 3 | BR94: 6 | BS94: 5.5 | BT94: 14.5 | BU94: 3.5 | BV94: 5 | BW94: 3.5 | BX94: 106 | BY94: ناجحة | BZ94: و منقولة للصف الثانى | CA94: 0 | CU94: 0 | CV94: 0 | CW94: 127 | CX94: 95
A95: 88 | B95: 88 | C95: طالب تجارة 88 | D95: 2/1 | E95: مستجد | F95: 2001-01-01 | G95: 0 | H95: 9 | I95: 17 | J95: 158 | K95: 7.5 | L95: 10 | M95: 14 | N95: 31.5 | O95: 8.5 | P95: 6.8 | Q95: 8.4 | R95: 23.7 | S95: 5 | T95: 5.2 | U95: 6.4 | V95: 16.6 | W95: 6 | X95: 5 | Y95: 10 | Z95: 21 | AA95: 2 | AB95: 4.5 | AC95: 8.5 | AD95: 15 | AE95: 2.5 | AF95: 5 | AG95: 5 | AH95: 10 | AI95: 6 | AJ95: 11 | AK95: 13.5 | AL95: 26 | AM95: 39.5 | AN95: 8.5 | AO95: 15 | AP95: 16 | AQ95: 39.5 | AR95: 9 | AS95: 16.5 | AT95: 15.5 | AU95: 41 | AV95: 8.5 | AW95: 9.5 | AX95: 10.5 | AY95: 28.5 | AZ95: 9 | BA95: 8 | BB95: 11 | BC95: 28 | BD95: 8 | BE95: 10.5 | BF95: 9.5 | BG95: 28 | BH95: 9.5 | BI95: 13.5 | BJ95: 15 | BK95: 38 | BL95: 8 | BM95: 11 | BN95: 12 | BO95: 31 | BP95: 381.3 | BQ95: 3 | BR95: 4.5 | BS95: 7.5 | BT95: 15 | BU95: 3.5 | BV95: 3 | BW95: 3.5 | BX95: 102.5 | BY95: ناجحة | BZ95: و منقولة للصف الثانى | CA95: 0 | CU95: 0 | CV95: 0 | CW95: 119 | CX95: 156
A96: 89 | B96: 89 | C96: طالب تجارة 89 | D96: 2/1 | E96: مستجد | F96: 2002-06-02 | G96: 29 | H96: 3 | I96: 16 | J96: 159 | K96: 7.5 | L96: 13.5 | M96: 14.5 | N96: 35.5 | O96: 8.5 | P96: 7.6 | Q96: 10.4 | R96: 26.5 | S96: 5 | T96: 6 | U96: 8 | V96: 19 | W96: 6 | X96: 14 | Y96: 12 | Z96: 32 | AA96: 5.5 | AB96: 8.5 | AC96: 8 | AD96: 22 | AE96: 2.5 | AF96: 5 | AG96: 6 | AH96: 5 | AI96: 6 | AJ96: 11 | AK96: 14.5 | AL96: 21 | AM96: 35.5 | AN96: 8.5 | AO96: 12 | AP96: 17 | AQ96: 37.5 | AR96: 9 | AS96: 18.5 | AT96: 18 | AU96: 45.5 | AV96: 8.5 | AW96: 16 | AX96: 13 | AY96: 37.5 | AZ96: 9 | BA96: 11 | BB96: 17 | BC96: 37 | BD96: 8 | BE96: 14.5 | BF96: 17.5 | BG96: 40 | BH96: 9.5 | BI96: 14 | BJ96: 15 | BK96: 38.5 | BL96: 8 | BM96: 9 | BN96: 17 | BO96: 34 | BP96: 440.5 | BQ96: 3 | BR96: 6.5 | BS96: 7 | BT96: 16.5 | BU96: 3.5 | BV96: 4.5 | BW96: 3 | BX96: 132.6 | BY96: ناجحة | BZ96: و منقولة للصف الثانى | CA96: 0 | CU96: 0 | CV96: 0 | CW96: 137.6 | CX96: 46
A97: 90 | B97: 90 | C97: طالب تجارة 90 | D97: 2/1 | E97: مستجد | F97: 2002-06-16 | G97: 15 | H97: 3 | I97: 16 | J97: 160 | K97: 7.5 | L97: 13.5 | M97: 15 | N97: 36 | O97: 8 | P97: 5.2 | Q97: 12.4 | R97: 25.6 | S97: 4.5 | T97: 6.4 | U97: 7.2 | V97: 18.1 | W97: 6 | X97: 12 | Y97: 10 | Z97: 28 | AA97: 5 | AB97: 6.5 | AC97: 9 | AD97: 20.5 | AE97: 3 | AF97: 5 | AG97: 5 | AH97: 10 | AI97: 5 | AJ97: 11 | AK97: 13 | AL97: 26 | AM97: 39 | AN97: 8.5 | AO97: 15 | AP97: 18 | AQ97: 41.5 | AR97: 9 | AS97: 15 | AT97: 15 | AU97: 39 | AV97: 8.5 | AW97: 16 | AX97: 14 | AY97: 38.5 | AZ97: 9 | BA97: 14 | BB97: 14 | BC97: 37 | BD97: 8.5 | BE97: 14 | BF97: 16.5 | BG97: 39 | BH97: 9.5 | BI97: 12 | BJ97: 15 | BK97: 36.5 | BL97: 8 | BM97: 12 | BN97: 17 | BO97: 37 | BP97: 435.7 | BQ97: 3 | BR97: 6.5 | BS97: 7.5 | BT97: 17 | BU97: 3.5 | BV97: 4.5 | BW97: 5.5 | BX97: 125.1 | BY97: ناجحة | BZ97: و منقولة للصف الثانى | CA97: 0 | CU97: 0 | CV97: 0 | CW97: 130.1 | CX97: 83
A98: 91 | B98: 91 | C98: طالب تجارة 91 | D98: 2/1 | E98: مستجد | F98: 2002-08-01 | G98: 0 | H98: 2 | I98: 16 | J98: 161 | K98: 7.5 | L98: 12.5 | M98: 14 | N98: 34 | O98: 8.5 | P98: 8.4 | Q98: 12.4 | R98: 29.3 | S98: 4.5 | T98: 6.4 | U98: 6.4 | V98: 17.3 | W98: 6 | X98: 11 | Y98: 11 | Z98: 28 | AA98: 2 | AB98: 8.5 | AC98: 5.5 | AD98: 16 | AE98: 3 | AF98: 5 | AG98: 6 | AH98: 10 | AI98: 6 | AJ98: 11 | AK98: 15 | AL98: 26 | AM98: 41 | AN98: 9 | AO98: 15 | AP98: 18 | AQ98: 42 | AR98: 9 | AS98: 17 | AT98: 14.5 | AU98: 40.5 | AV98: 8.5 | AW98: 10.5 | AX98: 11.5 | AY98: 30.5 | AZ98: 9 | BA98: 10 | BB98: 12.5 | BC98: 31.5 | BD98: 8 | BE98: 7.5 | BF98: 9.5 | BG98: 25 | BH98: 9.5 | BI98: 12.5 | BJ98: 17 | BK98: 39 | BL98: 8 | BM98: 12 | BN98: 17 | BO98: 37 | BP98: 411.1 | BQ98: 3 | BR98: 4.5 | BS98: 7.5 | BT98: 15 | BU98: 3.5 | BV98: 6 | BW98: 4.5 | BX98: 115.3 | BY98: ناجحة | BZ98: و منقولة للصف الثانى | CA98: 0 | CU98: 0 | CV98: 0 | CW98: 135.8 | CX98: 56
A99: 92 | B99: 92 | C99: طالب تجارة 92 | D99: 2/1 | E99: مستجد | F99: 2002-06-06 | G99: 25 | H99: 3 | I99: 16 | J99: 162 | K99: 7.5 | L99: 11 | M99: 12 | N99: 30.5 | O99: 8.5 | P99: 8.8 | Q99: 14.4 | R99: 31.7 | S99: 5 | T99: 6 | U99: 5.2 | V99: 16.2 | W99: 6 | X99: 9 | Y99: 10 | Z99: 25 | AA99: 2 | AB99: 9 | AC99: 5.5 | AD99: 16.5 | AE99: 2.5 | AF99: 4.5 | AG99: 6 | AH99: 9 | AI99: 6 | AJ99: 11 | AK99: 14.5 | AL99: 24.5 | AM99: 39 | AN99: 8.5 | AO99: 15 | AP99: 18 | AQ99: 41.5 | AR99: 9 | AS99: 15.5 | AT99: 12.5 | AU99: 37 | AV99: 9 | AW99: 10 | AX99: 11.5 | AY99: 30.5 | AZ99: 9 | BA99: 5 | BB99: 14 | BC99: 28 | BD99: 8 | BE99: 10.5 | BF99: 8 | BG99: 26.5 | BH99: 9.5 | BI99: 12.5 | BJ99: 17 | BK99: 39 | BL99: 8 | BM99: 13 | BN99: 17 | BO99: 38 | BP99: 399.4 | BQ99: 3 | BR99: 3 | BS99: 7.5 | BT99: 13.5 | BU99: 3.5 | BV99: 6 | BW99: 4 | BX99: 113.3 | BY99: ناجحة | BZ99: و منقولة للصف الثانى | CA99: 0 | CU99: 0 | CV99: 0 | CW99: 132.3 | CX99: 73
A100: 93 | B100: 93 | C100: طالب تجارة 93 | D100: 2/1 | E100: مستجد | F100: 2001-10-01 | G100: 0 | H100: 0 | I100: 17 | J100: 163 | K100: 7.5 | L100: 11 | M100: 13 | N100: 31.5 | O100: 8.5 | P100: 5.2 | Q100: 10.4 | R100: 24.1 | S100: 4.5 | T100: 6 | U100: 7.6 | V100: 18.1 | W100: 6 | X100: 9 | Y100: 9 | Z100: 24 | AA100: 2 | AB100: 4.5 | AC100: 8.5 | AD100: 15 | AE100: 2.5 | AF100: 4.5 | AG100: 6 | AH100: 10 | AI100: 6 | AJ100: 11 | AK100: 14.5 | AL100: 25.5 | AM100: 40 | AN100: 8.5 | AO100: 11 | AP100: 18 | AQ100: 37.5 | AR100: 9 | AS100: 15 | AT100: 14 | AU100: 38 | AV100: 8.5 | AW100: 9.5 | AX100: 9 | AY100: 27 | AZ100: 9 | BA100: 9 | BB100: 13 | BC100: 31 | BD100: 8 | BE100: 11.5 | BF100: 14 | BG100: 33.5 | BH100: 9.5 | BI100: 11.5 | BJ100: 17 | BK100: 38 | BL100: 8 | BM100: 16 | BN100: 17 | BO100: 41 | BP100: 398.7 | BQ100: 3 | BR100: 3.5 | BS100: 7.5 | BT100: 14 | BU100: 3.5 | BV100: 6 | BW100: 5.5 | BX100: 111.7 | BY100: ناجحة | BZ100: و منقولة للصف الثانى | CA100: 0 | CU100: 0 | CV100: 0 | CW100: 122.7 | CX100: 124
A101: 94 | B101: 94 | C101: طالب تجارة 94 | D101: 2/1 | E101: مستجد | F101: 2001-02-25 | G101: 6 | H101: 7 | I101: 17 | J101: 164 | K101: 7.5 | L101: 14.5 | M101: 14.5 | N101: 36.5 | O101: 8.5 | P101: 10.8 | Q101: 14 | R101: 33.3 | S101: 4.5 | T101: 6.4 | U101: 8 | V101: 18.9 | W101: 6 | X101: 12 | Y101: 11 | Z101: 29 | AA101: 5 | AB101: 10.5 | AC101: 10 | AD101: 25.5 | AE101: 2.5 | AF101: 5 | AG101: 5 | AH101: 10 | AI101: 6 | AJ101: 11 | AK101: 13.5 | AL101: 26 | AM101: 39.5 | AN101: 8.5 | AO101: 15 | AP101: 18 | AQ101: 41.5 | AR101: 9 | AS101: 17 | AT101: 17 | AU101: 43 | AV101: 8.5 | AW101: 14 | AX101: 10.5 | AY101: 33 | AZ101: 9 | BA101: 12 | BB101: 13.5 | BC101: 34.5 | BD101: 8 | BE101: 13.5 | BF101: 18 | BG101: 39.5 | BH101: 9.5 | BI101: 15 | BJ101: 17 | BK101: 41.5 | BL101: 8 | BM101: 14 | BN101: 17 | BO101: 39 | BP101: 454.7 | BQ101: 3 | BR101: 7 | BS101: 7.5 | BT101: 17.5 | BU101: 3.5 | BV101: 6 | BW101: 7 | BX101: 136.7 | BY101: ناجحة | BZ101: و منقولة للصف الثانى | CA101: 0 | CU101: 0 | CV101: 0 | CW101: 145.2 | CX101: 18
A102: 95 | B102: 95 | C102: طالب تجارة 95 | D102: 2/1 | E102: مستجد | F102: 2003-01-04 | G102: 27 | H102: 8 | I102: 15 | J102: 165 | K102: 7.5 | L102: 11.5 | M102: 15 | N102: 34 | O102: 8.5 | P102: 8.8 | Q102: 12 | R102: 29.3 | S102: 4.5 | T102: 6.8 | U102: 8.8 | V102: 20.1 | W102: 6 | X102: 7 | Y102: 12 | Z102: 25 | AA102: 5.5 | AB102: 5 | AC102: 9 | AD102: 19.5 | AE102: 2.5 | AF102: 5 | AG102: 5 | AH102: 10 | AI102: 6 | AJ102: 11 | AK102: 13.5 | AL102: 26 | AM102: 39.5 | AN102: 8.5 | AO102: 14 | AP102: 17 | AQ102: 39.5 | AR102: 9 | AS102: 15 | AT102: 15 | AU102: 39 | AV102: 8.5 | AW102: 4 | AX102: 9.5 | AY102: 22 | AZ102: 9.5 | BA102: 7 | BB102: 13.5 | BC102: 30 | BD102: 9 | BE102: 13.5 | BF102: 15.5 | BG102: 38 | BH102: 9.5 | BI102: 14 | BJ102: 17 | BK102: 40.5 | BL102: 8 | BM102: 12 | BN102: 17 | BO102: 37 | BP102: 413.4 | BQ102: 3 | BR102: 4 | BS102: 7.5 | BT102: 14.5 | BU102: 3.5 | BV102: 3 | BW102: 4.5 | BX102: 119.6 | BY102: ناجحة | BZ102: و منقولة للصف الثانى | CA102: 0 | CU102: 0 | CV102: 0 | CW102: 130.6 | CX102: 82
A103: 96 | B103: 96 | C103: طالب تجارة 96 | D103: 2/1 | E103: مستجد | F103: 2002-06-25 | G103: 6 | H103: 3 | I103: 16 | J103: 166 | K103: 7.5 | L103: 12 | M103: 16.5 | N103: 36 | O103: 8 | P103: 11.6 | Q103: 13.2 | R103: 32.8 | S103: 4.5 | T103: 6.4 | U103: 8.8 | V103: 19.7 | W103: 6 | X103: 11 | Y103: 14 | Z103: 31 | AA103: 5.5 | AB103: 10 | AC103: 8.5 | AD103: 24 | AE103: 3 | AF103: 5 | AG103: 5 | AH103: 8 | AI103: 5 | AJ103: 11 | AK103: 13 | AL103: 24 | AM103: 37 | AN103: 8.5 | AO103: 14 | AP103: 17 | AQ103: 39.5 | AR103: 9 | AS103: 12.5 | AT103: 17.5 | AU103: 39 | AV103: 8.5 | AW103: 15.5 | AX103: 10 | AY103: 34 | AZ103: 9.5 | BA103: 13 | BB103: 12.5 | BC103: 35 | BD103: 8 | BE103: 16.5 | BF103: 17.5 | BG103: 42 | BH103: 9.5 | BI103: 16 | BJ103: 16 | BK103: 41.5 | BL103: 8 | BM103: 13 | BN103: 17 | BO103: 38 | BP103: 449.5 | BQ103: 3 | BR103: 4.5 | BS103: 7.5 | BT103: 15 | BU103: 3.5 | BV103: 6 | BW103: 4.5 | BX103: 136.5 | BY103: ناجحة | BZ103: و منقولة للصف الثانى | CA103: 0 | CU103: 0 | CV103: 0 | CW103: 142.5 | CX103: 25
A104: 97 | B104: 97 | C104: طالب تجارة 97 | D104: 2/1 | E104: مستجد | F104: 2001-11-11 | G104: 20 | H104: 10 | I104: 16 | J104: 167 | K104: 7.5 | L104: 10.5 | M104: 11 | N104: 29 | O104: 8.5 | P104: 5.6 | Q104: 12.4 | R104: 26.5 | S104: 4.5 | T104: 6.8 | U104: 8.4 | V104: 19.7 | W104: 6 | X104: 12 | Y104: 13 | Z104: 31 | AA104: 5.5 | AB104: 5 | AC104: 9 | AD104: 19.5 | AE104: 3 | AF104: 5 | AG104: 5 | AH104: 9 | AI104: 6 | AJ104: 11 | AK104: =SUM(AE104,AG104,AI104) -> 14 | AL104: =SUM(AF104,AH104,AJ104) -> 25 | AM104: 39 | AN104: 9 | AO104: 14 | AP104: 17 | AQ104: 40 | AR104: 9 | AS104: 15 | AT104: 15 | AU104: 39 | AV104: 8.5 | AW104: 7 | AX104: 11 | AY104: 26.5 | AZ104: 9.5 | BA104: 6 | BB104: 13.5 | BC104: 29 | BD104: 9 | BE104: 13 | BF104: 12 | BG104: 34 | BH104: 9.5 | BI104: 13 | BJ104: 17 | BK104: 39.5 | BL104: 8 | BM104: 10 | BN104: 15 | BO104: 33 | BP104: 405.7 | BQ104: 3 | BR104: 5 | BS104: 7.5 | BT104: 15.5 | BU104: 3.5 | BV104: 4 | BW104: 4.5 | BX104: 116.9 | BY104: ناجحة | BZ104: و منقولة للصف الثانى | CA104: 0 | CU104: 0 | CV104: 0 | CW104: 130.9 | CX104: 80
A105: 98 | B105: 98 | C105: طالب تجارة 98 | D105: 2/1 | E105: مستجد | F105: 2002-06-23 | G105: 8 | H105: 3 | I105: 16 | J105: 168 | K105: 7.5 | L105: 12.5 | M105: 14.5 | N105: 34.5 | O105: 8.5 | P105: 9.6 | Q105: 14.8 | R105: 32.9 | S105: 4.5 | T105: 7.6 | U105: 8.8 | V105: 20.9 | W105: 6 | X105: 11 | Y105: 10 | Z105: 27 | AA105: 5.5 | AB105: 8 | AC105: 10 | AD105: 23.5 | AE105: 3 | AF105: 5 | AG105: 6 | AH105: 9 | AI105: 6 | AJ105: 11 | AK105: 15 | AL105: 25 | AM105: 40 | AN105: 8.5 | AO105: 16 | AP105: 18 | AQ105: 42.5 | AR105: 8.5 | AS105: 16.5 | AT105: 16 | AU105: 41 | AV105: 8.5 | AW105: 15.5 | AX105: 12 | AY105: 36 | AZ105: 9.5 | BA105: 10 | BB105: 7 | BC105: 26.5 | BD105: 8 | BE105: 11 | BF105: 13 | BG105: 32 | BH105: 9.5 | BI105: 12 | BJ105: 18 | BK105: 39.5 | BL105: 8 | BM105: 12 | BN105: 15 | BO105: 35 | BP105: 431.3 | BQ105: 3 | BR105: 7.5 | BS105: 7.5 | BT105: 18 | BU105: 3.5 | BV105: 7.5 | BW105: 5 | BX105: 123.7 | BY105: ناجحة | BZ105: و منقولة للصف الثانى | CA105: 0 | CU105: 0 | CV105: 0 | CW105: 137.7 | CX105: 45
A106: 99 | B106: 99 | C106: طالب تجارة 99 | D106: 2/1 | E106: مستجد | F106: 2002-07-29 | G106: 2 | H106: 2 | I106: 16 | J106: 169 | K106: 8 | L106: 10.5 | M106: 15.5 | N106: 34 | O106: 9 | P106: 5.2 | Q106: 8 | R106: 22.2 | S106: 5 | T106: 8.4 | U106: 7.6 | V106: 21 | W106: 6 | X106: 10 | Y106: 7 | Z106: 23 | AA106: 4 | AB106: 2.5 | AC106: 8.5 | AD106: 15 | AE106: 3 | AF106: 5 | AG106: 5 | AH106: 4 | AI106: 6 | AJ106: 6 | AK106: 14 | AL106: 15 | AM106: 29 | AN106: 9 | AO106: 10 | AP106: 17 | AQ106: 36 | AR106: 7.5 | AS106: 16.5 | AT106: 9 | AU106: 33 | AV106: 9 | AW106: 4.5 | AX106: 13.5 | AY106: 27 | AZ106: 9 | BA106: 7 | BB106: 13 | BC106: 29 | BD106: 8 | BE106: 5 | BF106: 12 | BG106: 25 | BH106: 9 | BI106: 7.5 | BJ106: 9 | BK106: 25.5 | BL106: 8.5 | BM106: 18 | BN106: 11 | BO106: 37.5 | BP106: 357.2 | BQ106: 3 | BR106: 5.5 | BS106: 5 | BT106: 13.5 | BU106: 3 | BV106: 6 | BW106: 4.5 | BX106: 99.1 | BY106: ناجحة | BZ106: و منقولة للصف الثانى | CA106: 0 | CU106: 0 | CV106: 0 | CW106: 106.6 | CX106: 248
A107: 100 | B107: 100 | C107: طالب تجارة 100 | D107: 3/1 | E107: مستجد | F107: 2002-08-08 | G107: 23 | H107: 1 | I107: 16 | J107: 170 | K107: 7 | L107: 11.5 | M107: 15.5 | N107: 34 | O107: 8.5 | P107: 9.2 | Q107: 11.2 | R107: 28.9 | S107: 4.5 | T107: 7.2 | U107: 8.4 | V107: 20.1 | W107: 6 | X107: 11.5 | Y107: 12 | Z107: 29.5 | AA107: 4.5 | AB107: 2 | AC107: 8.5 | AD107: 15 | AE107: 3 | AF107: 5 | AG107: 5 | AH107: 6 | AI107: 5 | AJ107: 4 | AK107: 13 | AL107: 15 | AM107: 28 | AN107: 9 | AO107: 8 | AP107: 15 | AQ107: 32 | AR107: 7.5 | AS107: 14 | AT107: 7 | AU107: 28.5 | AV107: 9 | AW107: 3.5 | AX107: 10.5 | AY107: 23 | AZ107: 9 | BA107: 11 | BB107: 13 | BC107: 33 | BD107: 8 | BE107: 9 | BF107: 11 | BG107: 28 | BH107: 9 | BI107: 8 | BJ107: 11 | BK107: 28 | BL107: 8.5 | BM107: 19 | BN107: 12 | BO107: 39.5 | BP107: 367.5 | BQ107: 3 | BR107: 7 | BS107: 7.5 | BT107: 17.5 | BU107: 3 | BV107: 6 | BW107: 6 | BX107: 104.9 | BY107: ناجحة | BZ107: و منقولة للصف الثانى | CA107: 0 | CU107: 0 | CV107: 0 | CW107: 111.9 | CX107: 213
A108: 101 | B108: 101 | C108: طالب تجارة 101 | D108: 3/1 | E108: مستجد | F108: 2002-05-20 | G108: 11 | H108: 4 | I108: 16 | J108: 171 | K108: 8.5 | L108: 10.5 | M108: 13.5 | N108: 32.5 | O108: 9 | P108: 8.4 | Q108: 10.8 | R108: 28.2 | S108: 5 | T108: 8.8 | U108: 8.4 | V108: 22.2 | W108: 6 | X108: 7 | Y108: 14 | Z108: 27 | AA108: 3.5 | AB108: 4.5 | AC108: 7 | AD108: 15 | AE108: 3 | AF108: 5 | AG108: 5 | AH108: 7 | AI108: 6 | AJ108: 7 | AK108: 14 | AL108: 19 | AM108: 33 | AN108: 9 | AO108: 7 | AP108: 15 | AQ108: 31 | AR108: 7 | AS108: 14 | AT108: 11 | AU108: 32 | AV108: 9 | AW108: 7 | AX108: 9 | AY108: 25 | AZ108: 9 | BA108: 12 | BB108: 8 | BC108: 29 | BD108: 8 | BE108: 4 | BF108: 13 | BG108: 25 | BH108: 9 | BI108: 13 | BJ108: 14 | BK108: 36 | BL108: 8 | BM108: 11 | BN108: 17 | BO108: 36 | BP108: 371.9 | BQ108: 3 | BR108: 4.5 | BS108: 6 | BT108: 13.5 | BU108: 3 | BV108: 6 | BW108: 3 | BX108: 102.2 | BY108: ناجحة | BZ108: و منقولة للصف الثانى | CA108: 0 | CU108: 0 | CV108: 0 | CW108: 120.2 | CX108: 148
A109: 102 | B109: 102 | C109: طالب تجارة 102 | D109: 3/1 | E109: مستجد | F109: 2002-09-15 | G109: 16 | H109: 0 | I109: 16 | J109: 172 | K109: 8 | L109: 8.5 | M109: 13 | N109: 29.5 | O109: 9.5 | P109: 10.4 | Q109: 9.6 | R109: 29.5 | S109: 5 | T109: 9.6 | U109: 8.8 | V109: 23.4 | W109: 6 | X109: 8.5 | Y109: 13 | Z109: 27.5 | AA109: 3.5 | AB109: 3.5 | AC109: 8.5 | AD109: 15.5 | AE109: 3 | AF109: 5 | AG109: 5 | AH109: 7 | AI109: 6 | AJ109: 7 | AK109: 14 | AL109: 19 | AM109: 33 | AN109: 8.5 | AO109: 7 | AP109: 16 | AQ109: 31.5 | AR109: 7 | AS109: 10.5 | AT109: 12.5 | AU109: 30 | AV109: 9 | AW109: 7 | AX109: 8 | AY109: 24 | AZ109: 9 | BA109: 10 | BB109: 9 | BC109: 28 | BD109: 8 | BE109: 3 | BF109: 16 | BG109: 27 | BH109: 9 | BI109: 13 | BJ109: 12 | BK109: 34 | BL109: 7.5 | BM109: 12 | BN109: 15 | BO109: 34.5 | BP109: 367.4 | BQ109: 3 | BR109: 5 | BS109: 5.5 | BT109: 13.5 | BU109: 3 | BV109: 5 | BW109: 4 | BX109: 105 | BY109: ناجحة | BZ109: و منقولة للصف الثانى | CA109: 0 | CU109: 0 | CV109: 0 | CW109: 119 | CX109: 156
A110: 103 | B110: 103 | C110: طالب تجارة 103 | D110: 3/1 | E110: مستجد | F110: 2001-11-03 | G110: 28 | H110: 10 | I110: 16 | J110: 173 | K110: 7 | L110: 9 | M110: 12 | N110: 28 | O110: 9.5 | P110: 6 | Q110: 7.2 | R110: 22.7 | S110: 5 | T110: 8.8 | U110: 7.6 | V110: 21.4 | W110: 6 | X110: 9.5 | Y110: 14 | Z110: 29.5 | AA110: 3.5 | AB110: 4 | AC110: 8 | AD110: 15.5 | AE110: 3 | AF110: 5 | AG110: 4 | AH110: 7 | AI110: 5 | AJ110: 7 | AK110: 12 | AL110: 19 | AM110: 31 | AN110: 9 | AO110: 5 | AP110: 15 | AQ110: 29 | AR110: 7 | AS110: 13 | AT110: 7 | AU110: 27 | AV110: 9 | AW110: 6.5 | AX110: 9 | AY110: 24.5 | AZ110: 9 | BA110: 10 | BB110: 7.5 | BC110: 26.5 | BD110: 8 | BE110: 2 | BF110: 15 | BG110: 25 | BH110: 9 | BI110: 12 | BJ110: 14 | BK110: 35 | BL110: 7.5 | BM110: 10 | BN110: 15 | BO110: 32.5 | BP110: 347.6 | BQ110: 3 | BR110: 5 | BS110: 3.5 | BT110: 11.5 | BU110: 3 | BV110: 4.5 | BW110: 2.5 | BX110: 100.3 | BY110: ناجحة | BZ110: و منقولة للصف الثانى | CA110: 0 | CU110: 0 | CV110: 0 | CW110: 117.3 | CX110: 168
A111: 104 | B111: 104 | C111: طالب تجارة 104 | D111: 3/1 | E111: مستجد | F111: 2002-09-04 | G111: 27 | H111: 0 | I111: 16 | J111: 174 | K111: 7 | L111: 15.5 | M111: 14.5 | N111: 37 | O111: 9 | P111: 12.4 | Q111: 9.6 | R111: 31 | S111: 5 | T111: 8 | U111: 10 | V111: 23 | W111: 6 | X111: 9.5 | Y111: 13 | Z111: 28.5 | AA111: 3.5 | AB111: 6 | AC111: 8.5 | AD111: 18 | AE111: 3 | AF111: 5 | AG111: 5 | AH111: 7 | AI111: 5 | AJ111: 7 | AK111: 13 | AL111: 19 | AM111: 32 | AN111: 9 | AO111: 9 | AP111: 16 | AQ111: 34 | AR111: 7 | AS111: 13 | AT111: 14 | AU111: 34 | AV111: 9 | AW111: 7 | AX111: 12.5 | AY111: 28.5 | AZ111: 9 | BA111: 10 | BB111: 7.5 | BC111: 26.5 | BD111: 8 | BE111: 9 | BF111: 15.5 | BG111: 32.5 | BH111: 9 | BI111: 14 | BJ111: 13 | BK111: 36 | BL111: 8 | BM111: 12 | BN111: 17 | BO111: 37 | BP111: 398 | BQ111: 3 | BR111: 5 | BS111: 6.5 | BT111: 14.5 | BU111: 3 | BV111: 5.5 | BW111: 3.5 | BX111: 121.9 | BY111: ناجحة | BZ111: و منقولة للصف الثانى | CA111: 0 | CU111: 0 | CV111: 0 | CW111: 132.4 | CX111: 72
A112: 105 | B112: 105 | C112: طالب تجارة 105 | D112: 3/1 | E112: مستجد | F112: 2002-06-02 | G112: 29 | H112: 3 | I112: 16 | J112: 175 | K112: 7 | L112: 11 | M112: 15.5 | N112: 33.5 | O112: 9.5 | P112: 6 | Q112: 15.2 | R112: 30.7 | S112: 5 | T112: 8 | U112: 8.8 | V112: 21.8 | W112: 6 | X112: 12 | Y112: 13 | Z112: 31 | AA112: 4 | AB112: 3.5 | AC112: 7.5 | AD112: 15 | AE112: 3 | AF112: 5 | AG112: 5 | AH112: 7 | AI112: 5 | AJ112: 7 | AK112: 13 | AL112: 19 | AM112: 32 | AN112: 9 | AO112: 11 | AP112: 16 | AQ112: 36 | AR112: 8.5 | AS112: 12.5 | AT112: 11.5 | AU112: 32.5 | AV112: 8 | AW112: 4.5 | AX112: 7.5 | AY112: 20 | AZ112: 9 | BA112: 15 | BB112: 15 | BC112: 39 | BD112: 8 | BE112: 5 | BF112: 13 | BG112: 26 | BH112: 9 | BI112: 12 | BJ112: 14 | BK112: 35 | BL112: 8.5 | BM112: 19 | BN112: 15 | BO112: 42.5 | BP112: 395 | BQ112: 3 | BR112: 6 | BS112: 7 | BT112: 16 | BU112: 3 | BV112: 4.5 | BW112: 3.5 | BX112: 105 | BY112: ناجحة | BZ112: و منقولة للصف الثانى | CA112: 0 | CU112: 0 | CV112: 0 | CW112: 121 | CX112: 143
A113: 106 | B113: 106 | C113: طالب تجارة 106 | D113: 3/1 | E113: مستجد | F113: 2002-09-17 | G113: 14 | H113: 0 | I113: 16 | J113: 176 | K113: 7 | L113: 10.5 | M113: 15.5 | N113: 33 | O113: 8.5 | P113: 7.6 | Q113: 9.2 | R113: 25.3 | S113: 5 | T113: 5.6 | U113: 9.6 | V113: 20.2 | W113: 6 | X113: 11 | Y113: 13 | Z113: 30 | AA113: 4 | AB113: 2.5 | AC113: 9.5 | AD113: 16 | AE113: 2.5 | AF113: 5 | AG113: 4 | AH113: 4 | AI113: 5 | AJ113: 8 | AK113: 11.5 | AL113: 17 | AM113: 28.5 | AN113: 9 | AO113: 15 | AP113: 13 | AQ113: 37 | AR113: 8.5 | AS113: 13.5 | AT113: 14.5 | AU113: 36.5 | AV113: 8 | AW113: 4.5 | AX113: 12 | AY113: 24.5 | AZ113: 8.5 | BA113: 7 | BB113: 10.5 | BC113: 26 | BD113: 8 | BE113: 8 | BF113: 9 | BG113: 25 | BH113: 9 | BI113: 13.5 | BJ113: 17 | BK113: 39.5 | BL113: 8.5 | BM113: 9 | BN113: 15 | BO113: 32.5 | BP113: 374 | BQ113: 3 | BR113: 6 | BS113: 7.5 | BT113: 16.5 | BU113: 3 | BV113: 4.5 | BW113: 3.5 | BX113: 101.2 | BY113: ناجحة | BZ113: و منقولة للصف الثانى | CA113: 0 | CU113: 0 | CV113: 0 | CW113: 122.7 | CX113: 124
A114: 107 | B114: 107 | C114: طالب تجارة 107 | D114: 3/1 | E114: مستجد | F114: 2002-01-01 | G114: 0 | H114: 9 | I114: 16 | J114: 177 | K114: 8 | L114: 14.5 | M114: 16.5 | N114: 39 | O114: 8.5 | P114: 11.2 | Q114: 11.2 | R114: 30.9 | S114: 5 | T114: 7.6 | U114: 10 | V114: 22.6 | W114: 6 | X114: 12 | Y114: 15 | Z114: 33 | AA114: 4.5 | AB114: 8.5 | AC114: 10 | AD114: 23 | AE114: 3 | AF114: 5 | AG114: 4 | AH114: 4 | AI114: 5 | AJ114: 10 | AK114: 12 | AL114: 19 | AM114: 31 | AN114: 9 | AO114: 15 | AP114: 12 | AQ114: 36 | AR114: 8.5 | AS114: 15 | AT114: 15 | AU114: 38.5 | AV114: 8 | AW114: 5.5 | AX114: 16 | AY114: 29.5 | AZ114: 8.5 | BA114: 10 | BB114: 12 | BC114: 30.5 | BD114: 8 | BE114: 12.5 | BF114: 18 | BG114: 38.5 | BH114: 9 | BI114: 11.5 | BJ114: 17 | BK114: 37.5 | BL114: 8.5 | BM114: 8 | BN114: 16 | BO114: 32.5 | BP114: 422.5 | BQ114: 3 | BR114: 7 | BS114: 7 | BT114: 17 | BU114: 3 | BV114: 6.5 | BW114: 5 | BX114: 133.3 | BY114: ناجحة | BZ114: و منقولة للصف الثانى | CA114: 0 | CU114: 0 | CV114: 0 | CW114: 139.3 | CX114: 40
A115: 108 | B115: 108 | C115: طالب تجارة 108 | D115: 3/1 | E115: مستجد | F115: 2003-01-15 | G115: 16 | H115: 8 | I115: 15 | J115: 178 | K115: 7 | L115: 8 | M115: 13 | N115: 28 | O115: 8 | P115: 8.4 | Q115: 7.2 | R115: 23.6 | S115: 5 | T115: 3.2 | U115: 10.4 | V115: 18.6 | W115: 6 | X115: 12 | Y115: 13 | Z115: 31 | AA115: 3.5 | AB115: 2 | AC115: 9.5 | AD115: 15 | AE115: 2.5 | AF115: 4.5 | AG115: 5 | AH115: 4 | AI115: 5 | AJ115: 7 | AK115: 12.5 | AL115: 15.5 | AM115: 28 | AN115: 9 | AO115: 14 | AP115: 13 | AQ115: 36 | AR115: 8.5 | AS115: 13 | AT115: 13.5 | AU115: 35 | AV115: 9 | AW115: 1.5 | AX115: 10.5 | AY115: 21 | AZ115: 8.5 | BA115: 7 | BB115: 12 | BC115: 27.5 | BD115: 6.5 | BE115: 5.5 | BF115: 13 | BG115: 25 | BH115: 9 | BI115: 11.5 | BJ115: 16 | BK115: 36.5 | BL115: 8.5 | BM115: 6 | BN115: 15 | BO115: 29.5 | BP115: 354.7 | BQ115: 2.5 | BR115: 3 | BS115: 6.5 | BT115: 12 | BU115: 3 | BV115: 4.5 | BW115: 4.5 | BX115: 98.6 | BY115: ناجحة | BZ115: و منقولة للصف الثانى | CA115: 0 | CU115: 0 | CV115: 0 | CW115: 114.1 | CX115: 197
A116: 109 | B116: 109 | C116: طالب تجارة 109 | D116: 3/1 | E116: مستجد | F116: 2002-04-07 | G116: 24 | H116: 5 | I116: 16 | J116: 179 | K116: 7 | L116: 11 | M116: 12.5 | N116: 30.5 | O116: 8 | P116: 8.8 | Q116: 10 | R116: 26.8 | S116: 5 | T116: 2.8 | U116: 10 | V116: 17.8 | W116: 6 | X116: 13 | Y116: 16 | Z116: 35 | AA116: 4 | AB116: 3 | AC116: 8 | AD116: 15 | AE116: 2.5 | AF116: 4.5 | AG116: 4 | AH116: 8 | AI116: 5 | AJ116: 5 | AK116: 11.5 | AL116: 17.5 | AM116: 29 | AN116: 9 | AO116: 9 | AP116: 12 | AQ116: 30 | AR116: 8 | AS116: 14 | AT116: 9 | AU116: 31 | AV116: 9 | AW116: 3.5 | AX116: 9.5 | AY116: 22 | AZ116: 8.5 | BA116: 6 | BB116: 15 | BC116: 29.5 | BD116: 7 | BE116: 6.5 | BF116: 14.5 | BG116: 28 | BH116: 9 | BI116: 12.5 | BJ116: 17 | BK116: 38.5 | BL116: 8.5 | BM116: 17 | BN116: 13 | BO116: 38.5 | BP116: 371.6 | BQ116: 2.5 | BR116: 6 | BS116: 8 | BT116: 16.5 | BU116: 3 | BV116: 3.5 | BW116: 3.5 | BX116: 103.6 | BY116: ناجحة | BZ116: و منقولة للصف الثانى | CA116: 0 | CU116: 0 | CV116: 0 | CW116: 119.1 | CX116: 155
A117: 110 | B117: 110 | C117: طالب تجارة 110 | D117: 3/1 | E117: مستجد | F117: 2001-01-01 | G117: 0 | H117: 9 | I117: 17 | J117: 180 | K117: 7 | L117: 9 | M117: 12.5 | N117: 28.5 | O117: 8 | P117: 8.8 | Q117: 14 | R117: 30.8 | S117: 5 | T117: 4 | U117: 9.2 | V117: 18.2 | W117: 6 | X117: 13 | Y117: 13 | Z117: 32 | AA117: 4 | AB117: 1 | AC117: 10 | AD117: 15 | AE117: 3 | AF117: 4.5 | AG117: 5 | AH117: 8 | AI117: 5 | AJ117: 6 | AK117: 13 | AL117: 18.5 | AM117: 31.5 | AN117: 9 | AO117: 9 | AP117: 14 | AQ117: 32 | AR117: 8.5 | AS117: 12 | AT117: 8.5 | AU117: 29 | AV117: 9 | AW117: 5 | AX117: 11 | AY117: 25 | AZ117: 8.5 | BA117: 6 | BB117: 13 | BC117: 27.5 | BD117: 7.5 | BE117: 10.5 | BF117: 12 | BG117: 30 | BH117: 9 | BI117: 11 | BJ117: 15 | BK117: 35 | BL117: 8.5 | BM117: 14 | BN117: 11 | BO117: 33.5 | BP117: 368 | BQ117: 3 | BR117: 4.5 | BS117: 7 | BT117: 14.5 | BU117: 3 | BV117: 6 | BW117: 5.5 | BX117: 103.8 | BY117: ناجحة | BZ117: و منقولة للصف الثانى | CA117: 0 | CU117: 0 | CV117: 0 | CW117: 114.8 | CX117: 190
A118: 111 | B118: 111 | C118: طالب تجارة 111 | D118: 3/1 | E118: مستجد | F118: 2002-11-25 | G118: 6 | H118: 10 | I118: 15 | J118: 181 | K118: 7 | L118: 10 | M118: 14 | N118: 31 | O118: 8.5 | P118: 9.6 | Q118: 14 | R118: 32.1 | S118: 5 | T118: 4.8 | U118: 9.6 | V118: 19.4 | W118: 6 | X118: 13 | Y118: 13 | Z118: 32 | AA118: 3.5 | AB118: 5 | AC118: 6.5 | AD118: 15 | AE118: 3 | AF118: 5 | AG118: 5 | AH118: 8 | AI118: 5 | AJ118: 6 | AK118: 13 | AL118: 19 | AM118: 32 | AN118: 9 | AO118: 5 | AP118: 13 | AQ118: 27 | AR118: 8.5 | AS118: 14.5 | AT118: 9.5 | AU118: 32.5 | AV118: 9 | AW118: 7.5 | AX118: 8 | AY118: 24.5 | AZ118: 8.5 | BA118: 5 | BB118: 15 | BC118: 28.5 | BD118: 7.5 | BE118: 13.5 | BF118: 12 | BG118: 33 | BH118: 9 | BI118: 12.5 | BJ118: 16 | BK118: 37.5 | BL118: 8.5 | BM118: 16 | BN118: 13 | BO118: 37.5 | BP118: 382 | BQ118: 3 | BR118: 4.5 | BS118: 8 | BT118: 15.5 | BU118: 3 | BV118: 6 | BW118: 3 | BX118: 113.9 | BY118: ناجحة | BZ118: و منقولة للصف الثانى | CA118: 0 | CU118: 0 | CV118: 0 | CW118: 124.4 | CX118: 116
A119: 112 | B119: 112 | C119: طالب تجارة 112 | D119: 3/1 | E119: مستجد | F119: 2001-11-25 | G119: 6 | H119: 10 | I119: 16 | J119: 182 | K119: 7 | L119: 10 | M119: 11 | N119: 28 | O119: 8 | P119: 5.6 | Q119: 13.6 | R119: 27.2 | S119: 5 | T119: 8 | U119: 9.6 | V119: 22.6 | W119: 6 | X119: 14 | Y119: 12 | Z119: 32 | AA119: 4 | AB119: 4.5 | AC119: 10.5 | AD119: 19 | AE119: 2.5 | AF119: 4.5 | AG119: 6 | AH119: 9 | AI119: 5 | AJ119: 8 | AK119: 13.5 | AL119: 21.5 | AM119: 35 | AN119: 9 | AO119: 12 | AP119: 14 | AQ119: 35 | AR119: 8.5 | AS119: 9 | AT119: 11 | AU119: 28.5 | AV119: 9 | AW119: 11 | AX119: 13.5 | AY119: 33.5 | AZ119: 8.5 | BA119: 7 | BB119: 11.5 | BC119: 27 | BD119: 6.5 | BE119: 0 | BF119: 18.5 | BG119: 25 | BH119: 9 | BI119: 9.5 | BJ119: 18 | BK119: 36.5 | BL119: 8.5 | BM119: 8 | BN119: 16 | BO119: 32.5 | BP119: 381.8 | BQ119: 2.5 | BR119: 5.5 | BS119: 7 | BT119: 15 | BU119: 3 | BV119: 5 | BW119: 2.5 | BX119: 108.1 | BY119: ناجحة | BZ119: و منقولة للصف الثانى | CA119: 0 | CU119: 0 | CV119: 0 | CW119: 123.6 | CX119: 118
A120: 113 | B120: 113 | C120: طالب تجارة 113 | D120: 3/1 | E120: مستجد | F120: 2001-10-01 | G120: 0 | H120: 0 | I120: 17 | J120: 29 | K120: 7 | L120: 10.5 | M120: 14 | N120: 31.5 | O120: 8 | P120: 11.6 | Q120: 14.8 | R120: 34.4 | S120: 5 | T120: 7.2 | U120: 9.6 | V120: 21.8 | W120: 6 | X120: 13 | Y120: 12 | Z120: 31 | AA120: 3.5 | AB120: 5.5 | AC120: 9 | AD120: 18 | AE120: 3 | AF120: 5 | AG120: 5 | AH120: 9 | AI120: 6 | AJ120: 9 | AK120: 14 | AL120: 23 | AM120: 37 | AN120: 9 | AO120: 12 | AP120: 16 | AQ120: 37 | AR120: 8.5 | AS120: 14 | AT120: 12 | AU120: 34.5 | AV120: 9 | AW120: 11 | AX120: 13 | AY120: 33 | AZ120: 8.5 | BA120: 8 | BB120: 14 | BC120: 30.5 | BD120: 7.5 | BE120: 5.5 | BF120: 12.5 | BG120: 25.5 | BH120: 9 | BI120: 12.5 | BJ120: 16 | BK120: 37.5 | BL120: 8.5 | BM120: 10 | BN120: 18 | BO120: 36.5 | BP120: 408.2 | BQ120: 3 | BR120: 6.5 | BS120: 7 | BT120: 16.5 | BU120: 3 | BV120: 4.5 | BW120: 4 | BX120: 114.8 | BY120: ناجحة | BZ120: و منقولة للصف الثانى | CA120: 0 | CU120: 0 | CV120: 0 | CW120: 132.8 | CX120: 69
A121: 114 | B121: 114 | C121: طالب تجارة 114 | D121: 3/1 | E121: مستجد | F121: 2002-11-10 | G121: 21 | H121: 10 | I121: 15 | J121: 30 | K121: 7 | L121: 10.5 | M121: 15.5 | N121: 33 | O121: 8.5 | P121: 10 | Q121: 13.6 | R121: 32.1 | S121: 5 | T121: 7.6 | U121: 9.6 | V121: 22.2 | W121: 6 | X121: 13 | Y121: 11 | Z121: 30 | AA121: 4 | AB121: 5 | AC121: 8.5 | AD121: 17.5 | AE121: 3 | AF121: 5 | AG121: 5 | AH121: 9 | AI121: 6 | AJ121: 8 | AK121: 14 | AL121: 22 | AM121: 36 | AN121: 9 | AO121: 12 | AP121: 16 | AQ121: 37 | AR121: 9 | AS121: 16.5 | AT121: 16.5 | AU121: 42 | AV121: 9 | AW121: 13.5 | AX121: 14 | AY121: 36.5 | AZ121: 9 | BA121: 10 | BB121: 17.5 | BC121: 36.5 | BD121: 8.5 | BE121: 12.5 | BF121: 13.5 | BG121: 34.5 | BH121: 9 | BI121: 13.5 | BJ121: 18 | BK121: 40.5 | BL121: 8.5 | BM121: 12 | BN121: 18 | BO121: 38.5 | BP121: 436.3 | BQ121: 3 | BR121: 6.5 | BS121: 6.5 | BT121: 16 | BU121: 3 | BV121: 4.5 | BW121: 5.5 | BX121: 121.1 | BY121: ناجحة | BZ121: و منقولة للصف الثانى | CA121: 0 | CU121: 0 | CV121: 0 | CW121: 135.1 | CX121: 62
A122: 115 | B122: 115 | C122: طالب تجارة 115 | D122: 3/1 | E122: مستجد | F122: 2001-11-08 | G122: 23 | H122: 10 | I122: 16 | J122: 31 | K122: 7.5 | L122: 15 | M122: 13 | N122: 35.5 | O122: 8.5 | P122: 15.6 | Q122: 8 | R122: 32.1 | S122: 4.5 | T122: 10.4 | U122: 7.6 | V122: 22.5 | W122: 6 | X122: 9.5 | Y122: 10.5 | Z122: 26 | AA122: 2 | AB122: 2 | AC122: 3.5 | AD122: 7.5 | AE122: 3 | AF122: 5 | AG122: 6 | AH122: 10 | AI122: 6 | AJ122: 10 | AK122: 15 | AL122: 25 | AM122: 40 | AN122: 8.5 | AO122: 8 | AP122: 18 | AQ122: 34.5 | AR122: 8 | AS122: 13 | AT122: 14 | AU122: 35 | AV122: 9 | AW122: 7.5 | AX122: 15 | AY122: 31.5 | AZ122: 8.5 | BA122: 5 | BB122: 11.5 | BC122: 25 | BD122: 9 | BE122: 6.5 | BF122: 11.5 | BG122: 27 | BH122: 9.5 | BI122: 12 | BJ122: 15 | BK122: 36.5 | BL122: 8.5 | BM122: 11 | BN122: 17 | BO122: 36.5 | BP122: 389.6 | BQ122: 3 | BR122: 5 | BS122: 6.5 | BT122: 14.5 | BU122: 4 | BV122: 4.5 | BW122: 3.5 | BX122: 119.5 | BY122: دورثان | BZ122: فى : رياضة عامة - | CA122: 1 | CI122: رياضة عامة - | CU122: 1 | CV122: 0 | CW122: 137.5 | CX122: 48
A123: 116 | B123: 116 | C123: طالب تجارة 116 | D123: 3/1 | E123: مستجد | F123: 2002-06-16 | G123: 15 | H123: 3 | I123: 16 | J123: 32 | K123: 7.5 | L123: 10.5 | M123: 13 | N123: 31 | O123: 8 | P123: 12.4 | Q123: 10.4 | R123: 30.8 | S123: 5 | T123: 8.4 | U123: 6.8 | V123: 20.2 | W123: 6 | X123: 7 | Y123: 11 | Z123: 24 | AA123: 2 | AB123: 1 | AC123: 1.5 | AD123: 4.5 | AE123: 3 | AF123: 5 | AG123: 5 | AH123: 10 | AI123: 5 | AJ123: 8 | AK123: 13 | AL123: 23 | AM123: 36 | AN123: 8.5 | AO123: 5 | AP123: 17 | AQ123: 30.5 | AR123: 8 | AS123: 13 | AT123: 12.5 | AU123: 33.5 | AV123: 9 | AW123: 2.5 | AX123: 10 | AY123: 21.5 | AZ123: 9 | BA123: 6 | BB123: 11 | BC123: 26 | BD123: 9 | BE123: 1.5 | BF123: 8 | BG123: 18.5 | BH123: 9.5 | BI123: 9.5 | BJ123: 12 | BK123: 31 | BL123: 7.5 | BM123: 9 | BN123: 9 | BO123: 25.5 | BP123: 333 | BQ123: 3 | BR123: 4.5 | BS123: 4.5 | BT123: 12 | BU123: 3.5 | BV123: 5.5 | BW123: 5 | BX123: 96.3 | BY123: دورثان | BZ123: فى : محاسبة مالية - رياضة عامة - | CA123: 2 | CI123: رياضة عامة - | CO123: محاسبة مالية - | CU123: 2 | CV123: 0 | CW123: 117.3 | CX123: 168
A124: 117 | B124: 117 | C124: طالب تجارة 117 | D124: 3/1 | E124: مستجد | F124: 2002-08-12 | G124: 19 | H124: 1 | I124: 16 | J124: 33 | K124: 7.5 | L124: 7.5 | M124: 13 | N124: 28 | O124: 8.5 | P124: 9.6 | Q124: 11.2 | R124: 29.3 | S124: 5 | T124: 10 | U124: 7.2 | V124: 22.2 | W124: 6 | X124: 7 | Y124: 12 | Z124: 25 | AA124: 2 | AB124: 2.5 | AC124: 10.5 | AD124: 15 | AE124: 2.5 | AF124: 5 | AG124: 5 | AH124: 10 | AI124: 6 | AJ124: 8 | AK124: 13.5 | AL124: 23 | AM124: 36.5 | AN124: 8.5 | AO124: 6 | AP124: 16 | AQ124: 30.5 | AR124: 8 | AS124: 15 | AT124: 12.5 | AU124: 35.5 | AV124: 9 | AW124: 0.5 | AX124: 12 | AY124: 21.5 | AZ124: 8.5 | BA124: 9 | BB124: 9 | BC124: 26.5 | BD124: 9 | BE124: 1.5 | BF124: 4.5 | BG124: 15 | BH124: 9.5 | BI124: 12.5 | BJ124: 12 | BK124: 34 | BL124: 7.5 | BM124: 14 | BN124: 8 | BO124: 29.5 | BP124: 348.5 | BQ124: 3 | BR124: 4 | BS124: 4 | BT124: 11 | BU124: 4 | BV124: 5.5 | BW124: 2.5 | BX124: 89.6 | BY124: دورثان | BZ124: فى : محاسبة مالية - | CA124: 1 | CO124: محاسبة مالية - | CU124: 1 | CV124: 0 | CW124: 117.1 | CX124: 170
A125: 118 | B125: 118 | C125: طالب تجارة 118 | D125: 3/1 | E125: مستجد | F125: 2002-06-03 | G125: 28 | H125: 3 | I125: 16 | J125: 34 | K125: 7.5 | L125: 7.5 | M125: 11 | N125: 26 | O125: 8 | P125: 12 | Q125: 8.8 | R125: 28.8 | S125: 5 | T125: 9.2 | U125: 6.4 | V125: 20.6 | W125: 6 | X125: 5 | Y125: 9 | Z125: 20 | AA125: 2 | AB125: 0.5 | AC125: 9.5 | AD125: 12 | AE125: 3 | AF125: 5 | AG125: 5 | AH125: 10 | AI125: 5 | AJ125: 8 | AK125: 13 | AL125: 23 | AM125: 36 | AN125: 8.5 | AO125: 5 | AP125: 15 | AQ125: 28.5 | AR125: 8 | AS125: 13 | AT125: 8.5 | AU125: 29.5 | AV125: 9 | AW125: 0.5 | AX125: 13 | AY125: 22.5 | AZ125: 8.5 | BA125: 8 | BB125: 9 | BC125: 25.5 | BD125: 9 | BE125: 0 | BF125: 5 | BG125: 14 | BH125: 9.5 | BI125: 8 | BJ125: 12 | BK125: 29.5 | BL125: 7.5 | BM125: 15 | BN125: 8 | BO125: 30.5 | BP125: 323.4 | BQ125: 3 | BR125: 4 | BS125: 5 | BT125: 12 | BU125: 3.5 | BV125: 5.5 | BW125: 3 | BX125: 86.2 | BY125: دورثان | BZ125: فى : محاسبة مالية - رياضة عامة - | CA125: 2 | CI125: رياضة عامة - | CO125: محاسبة مالية - | CU125: 2 | CV125: 0 | CW125: 110.2 | CX125: 226
A126: 119 | B126: 119 | C126: طالب تجارة 119 | D126: 3/1 | E126: مستجد | F126: 2002-08-14 | G126: 17 | H126: 1 | I126: 16 | J126: 35 | K126: 7 | L126: 9.5 | M126: 15.5 | N126: 32 | O126: 8 | P126: 14.8 | Q126: 13.6 | R126: 36.4 | S126: 4.5 | T126: 9.2 | U126: 6.8 | V126: 20.5 | W126: 6 | X126: 9 | Y126: 9 | Z126: 24 | AA126: 2.5 | AB126: 2.5 | AC126: 3.5 | AD126: 8.5 | AE126: 2.5 | AF126: 5 | AG126: 5 | AH126: 10 | AI126: 5 | AJ126: 11 | AK126: 12.5 | AL126: 26 | AM126: 38.5 | AN126: 8.5 | AO126: 5 | AP126: 17 | AQ126: 30.5 | AR126: 8 | AS126: 17 | AT126: 14 | AU126: 39 | AV126: 9 | AW126: 7 | AX126: 18 | AY126: 34 | AZ126: 9 | BA126: 7 | BB126: 9 | BC126: 25 | BD126: 9 | BE126: 7 | BF126: 14 | BG126: 30 | BH126: 9.5 | BI126: 15 | BJ126: 16 | BK126: 40.5 | BL126: 7.5 | BM126: 6 | BN126: 14 | BO126: 27.5 | BP126: 386.4 | BQ126: 3 | BR126: 4.5 | BS126: 6.5 | BT126: 14 | BU126: 3.5 | BV126: 6.5 | BW126: 4 | BX126: 116.5 | BY126: دورثان | BZ126: فى : رياضة عامة - | CA126: 1 | CI126: رياضة عامة - | CU126: 1 | CV126: 0 | CW126: 135.5 | CX126: 59
A127: 120 | B127: 120 | C127: طالب تجارة 120 | D127: 3/1 | E127: مستجد | F127: 2002-09-08 | G127: 23 | H127: 0 | I127: 16 | J127: 36 | K127: 7.5 | L127: 8 | M127: 13 | N127: 28.5 | O127: 8 | P127: 10.4 | Q127: 7.6 | R127: 26 | S127: 4.5 | T127: 9.6 | U127: 6.4 | V127: 20.5 | W127: 6 | X127: 8.5 | Y127: 10 | Z127: 24.5 | AA127: 5 | AB127: 1.5 | AC127: 2 | AD127: 8.5 | AE127: 2.5 | AF127: 5 | AG127: 5 | AH127: 11 | AI127: 5 | AJ127: 9 | AK127: 12.5 | AL127: 25 | AM127: 37.5 | AN127: 8.5 | AO127: 10 | AP127: 15 | AQ127: 33.5 | AR127: 8 | AS127: 11 | AT127: 14 | AU127: 33 | AV127: 9 | AW127: 1 | AX127: 12 | AY127: 22 | AZ127: 9 | BA127: 8 | BB127: 8 | BC127: 25 | BD127: 9 | BE127: 0 | BF127: 11 | BG127: 20 | BH127: 9.5 | BI127: 14 | BJ127: 12 | BK127: 35.5 | BL127: 8 | BM127: 16 | BN127: 15 | BO127: 39 | BP127: 353.5 | BQ127: 3 | BR127: 3.5 | BS127: 6 | BT127: 12.5 | BU127: 3.5 | BV127: 5 | BW127: 3.5 | BX127: 97.5 | BY127: دورثان | BZ127: فى : محاسبة مالية - رياضة عامة - | CA127: 2 | CI127: رياضة عامة - | CO127: محاسبة مالية - | CU127: 2 | CV127: 0 | CW127: 121.5 | CX127: 138
A128: 121 | B128: 121 | C128: طالب تجارة 121 | D128: 3/1 | E128: مستجد | F128: 2002-11-16 | G128: 15 | H128: 10 | I128: 15 | J128: 37 | K128: 8 | L128: 9.5 | M128: 11.5 | N128: 29 | O128: 8 | P128: 10.8 | Q128: 9.6 | R128: 28.4 | S128: 4.5 | T128: 9.2 | U128: 4.4 | V128: 18.1 | W128: 6 | X128: 5.5 | Y128: 9 | Z128: 20.5 | AA128: 2 | AB128: 1.5 | AC128: 1 | AD128: 4.5 | AE128: 2.5 | AF128: 5 | AG128: 6 | AH128: 8 | AI128: 6 | AJ128: 7 | AK128: 14.5 | AL128: 20 | AM128: 34.5 | AN128: 8.5 | AO128: 9 | AP128: 17 | AQ128: 34.5 | AR128: 8 | AS128: 12.5 | AT128: 8.5 | AU128: 29 | AV128: 9 | AW128: 0 | AX128: 11 | AY128: 20 | AZ128: 8.5 | BA128: 11 | BB128: 14 | BC128: 33.5 | BD128: 9 | BE128: 0 | BF128: 5 | BG128: 14 | BH128: 9.5 | BI128: 13.5 | BJ128: 15 | BK128: 38 | BL128: 7.5 | BM128: 14 | BN128: 16 | BO128: 37.5 | BP128: 341.5 | BQ128: 3 | BR128: 3.5 | BS128: 6 | BT128: 12.5 | BU128: 4 | BV128: 5.5 | BW128: 4.5 | BX128: 87.5 | BY128: دورثان | BZ128: فى : محاسبة مالية - رياضة عامة - | CA128: 2 | CI128: رياضة عامة - | CO128: محاسبة مالية - | CU128: 2 | CV128: 0 | CW128: 120 | CX128: 150
A129: 122 | B129: 122 | C129: طالب تجارة 122 | D129: 3/1 | E129: مستجد | F129: 2002-06-01 | G129: 0 | H129: 4 | I129: 16 | J129: 38 | K129: 7.5 | L129: 16.5 | M129: 16.5 | N129: 40.5 | O129: 8 | P129: 14 | Q129: 10 | R129: 32 | S129: 4.5 | T129: 10.8 | U129: 5.2 | V129: 20.5 | W129: 6 | X129: 7.5 | Y129: 12 | Z129: 25.5 | AA129: 2.5 | AB129: 3 | AC129: 1 | AD129: 6.5 | AE129: 2.5 | AF129: 5 | AG129: 5 | AH129: 10 | AI129: 5 | AJ129: 7 | AK129: 12.5 | AL129: 22 | AM129: 34.5 | AN129: 8.5 | AO129: 8 | AP129: 18 | AQ129: 34.5 | AR129: 8 | AS129: 15 | AT129: 10 | AU129: 33 | AV129: 9 | AW129: 7.5 | AX129: 14 | AY129: 30.5 | AZ129: 9 | BA129: 13 | BB129: 14 | BC129: 36 | BD129: 9 | BE129: 2 | BF129: 15 | BG129: 26 | BH129: 9.5 | BI129: 16.5 | BJ129: 18 | BK129: 44 | BL129: 8 | BM129: 10 | BN129: 15 | BO129: 33 | BP129: 396.5 | BQ129: 3 | BR129: 4.5 | BS129: 7 | BT129: 14.5 | BU129: 4 | BV129: 4.5 | BW129: 4.5 | BX129: 115.3 | BY129: دورثان | BZ129: فى : رياضة عامة - | CA129: 1 | CI129: رياضة عامة - | CU129: 1 | CV129: 0 | CW129: 141.8 | CX129: 31
A130: 123 | B130: 123 | C130: طالب تجارة 123 | D130: 3/1 | E130: مستجد | F130: 2001-04-19 | G130: 12 | H130: 5 | I130: 17 | J130: 39 | K130: 7.5 | L130: 13.5 | M130: 15 | N130: 36 | O130: 8.5 | P130: 9.2 | Q130: 8.8 | R130: 26.5 | S130: 4.5 | T130: 9.6 | U130: 4.8 | V130: 18.9 | W130: 6 | X130: 6 | Y130: 8 | Z130: 20 | AA130: 2 | AB130: 3.5 | AC130: 2.5 | AD130: 8 | AE130: 2.5 | AF130: 5 | AG130: 6 | AH130: 10 | AI130: 6 | AJ130: 7 | AK130: 14.5 | AL130: 22 | AM130: 36.5 | AN130: 8.5 | AO130: 8 | AP130: 17 | AQ130: 33.5 | AR130: 8 | AS130: 11.5 | AT130: 12.5 | AU130: 32 | AV130: 9 | AW130: 4.5 | AX130: 13.5 | AY130: 27 | AZ130: 8.5 | BA130: 12 | BB130: 18 | BC130: 38.5 | BD130: 9 | BE130: 0.5 | BF130: 15.5 | BG130: 25 | BH130: 9.5 | BI130: 13.5 | BJ130: 12 | BK130: 35 | BL130: 7.5 | BM130: 10 | BN130: 18 | BO130: 35.5 | BP130: 372.4 | BQ130: 3 | BR130: 4 | BS130: 6 | BT130: 13 | BU130: 4 | BV130: 4.5 | BW130: 3 | BX130: 103.8 | BY130: دورثان | BZ130: فى : رياضة عامة - | CA130: 1 | CI130: رياضة عامة - | CU130: 1 | CV130: 0 | CW130: 122.3 | CX130: 129
A131: 124 | B131: 124 | C131: طالب تجارة 124 | D131: 3/1 | E131: مستجد | F131: 2002-10-01 | G131: 0 | H131: 0 | I131: 16 | J131: 40 | K131: 8 | L131: 14.5 | M131: 13.5 | N131: 36 | O131: 8.5 | P131: 12.4 | Q131: 10.8 | R131: 31.7 | S131: 4.5 | T131: 9.2 | U131: 5.6 | V131: 19.3 | W131: 6 | X131: 10 | Y131: 7 | Z131: 23 | AA131: 2.5 | AB131: 2 | AC131: 2 | AD131: 6.5 | AE131: 3 | AF131: 5 | AG131: 5 | AH131: 10 | AI131: 5 | AJ131: 7 | AK131: 13 | AL131: 22 | AM131: 35 | AN131: 8.5 | AO131: 11 | AP131: 19 | AQ131: 38.5 | AR131: 8 | AS131: 12.5 | AT131: 11.5 | AU131: 32 | AV131: 9 | AW131: 7 | AX131: 11.5 | AY131: 27.5 | AZ131: 8.5 | BA131: 8 | BB131: 17 | BC131: 33.5 | BD131: 9 | BE131: 3 | BF131: 13 | BG131: 25 | BH131: 9.5 | BI131: 10 | BJ131: 13 | BK131: 32.5 | BL131: 8 | BM131: 14 | BN131: 14 | BO131: 36 | BP131: 376.5 | BQ131: 3 | BR131: 5 | BS131: 7 | BT131: 15 | BU131: 3.5 | BV131: 5.5 | BW131: 4.5 | BX131: 110.1 | BY131: دورثان | BZ131: فى : رياضة عامة - | CA131: 1 | CI131: رياضة عامة - | CU131: 1 | CV131: 0 | CW131: 126.1 | CX131: 104
A132: 125 | B132: 125 | C132: طالب تجارة 125 | D132: 3/1 | E132: مستجد | F132: 2002-09-16 | G132: 15 | H132: 0 | I132: 16 | J132: 41 | K132: 7 | L132: 9.5 | M132: 11.5 | N132: 28 | O132: 8 | P132: 11.2 | Q132: 10.4 | R132: 29.6 | S132: 4.5 | T132: 10 | U132: 5.6 | V132: 20.1 | W132: 6 | X132: 7.5 | Y132: 9 | Z132: 22.5 | AA132: 5 | AB132: 3.5 | AC132: 9 | AD132: 17.5 | AE132: 3 | AF132: 5 | AG132: 5 | AH132: 9 | AI132: 6 | AJ132: 6 | AK132: 14 | AL132: 20 | AM132: 34 | AN132: 8.5 | AO132: 10 | AP132: 16 | AQ132: 34.5 | AR132: 8 | AS132: 14 | AT132: 11 | AU132: 33 | AV132: 9 | AW132: 6.5 | AX132: 10.5 | AY132: 26 | AZ132: 9 | BA132: 12 | BB132: 15 | BC132: 36 | BD132: 9 | BE132: 3.5 | BF132: 4.5 | BG132: 17 | BH132: 9.5 | BI132: 14.5 | BJ132: 15 | BK132: 39 | BL132: 8.5 | BM132: 13 | BN132: 15 | BO132: 36.5 | BP132: 373.7 | BQ132: 3 | BR132: 4 | BS132: 7 | BT132: 14 | BU132: 3.5 | BV132: 4.5 | BW132: 4.5 | BX132: 95.2 | BY132: دورثان | BZ132: فى : محاسبة مالية - | CA132: 1 | CO132: محاسبة مالية - | CU132: 1 | CV132: 0 | CW132: 125.7 | CX132: 107
A133: 126 | B133: 126 | C133: طالب تجارة 126 | D133: 3/1 | E133: مستجد | F133: 2000-05-21 | G133: 10 | H133: 4 | I133: 18 | J133: 42 | K133: 7.5 | L133: 12.5 | M133: 14.5 | N133: 34.5 | O133: 8 | P133: 8 | Q133: 9.2 | R133: 25.2 | S133: 4.5 | T133: 8.8 | U133: 5.2 | V133: 18.5 | W133: 6 | X133: 9 | Y133: 13 | Z133: 28 | AA133: 2.5 | AB133: 1.5 | AC133: 2.5 | AD133: 6.5 | AE133: 2.5 | AF133: 5 | AG133: 6 | AH133: 8 | AI133: 5 | AJ133: 6 | AK133: 13.5 | AL133: 19 | AM133: 32.5 | AN133: 8.5 | AO133: 10 | AP133: 18 | AQ133: 36.5 | AR133: 8 | AS133: 11 | AT133: 9 | AU133: 28 | AV133: 9 | AW133: 6 | AX133: 9 | AY133: 24 | AZ133: 9 | BA133: 9 | BB133: 13 | BC133: 31 | BD133: 9 | BE133: 1.5 | BF133: 7.5 | BG133: 18 | BH133: 9.5 | BI133: 13.5 | BJ133: 13 | BK133: 36 | BL133: 8 | BM133: 12 | BN133: 16 | BO133: 36 | BP133: 354.7 | BQ133: 3 | BR133: 4.5 | BS133: 7.5 | BT133: 15 | BU133: 3.5 | BV133: 6 | BW133: 4.5 | BX133: 94.3 | BY133: دورثان | BZ133: فى : محاسبة مالية - رياضة عامة - | CA133: 2 | CI133: رياضة عامة - | CO133: محاسبة مالية - | CU133: 2 | CV133: 0 | CW133: 120.8 | CX133: 145
A134: 127 | B134: 127 | C134: طالب تجارة 127 | D134: 3/1 | E134: مستجد | F134: 2001-06-24 | G134: 7 | H134: 3 | I134: 17 | J134: 43 | K134: 8 | L134: 13 | M134: 13 | N134: 34 | O134: 8 | P134: 8.8 | Q134: 8.4 | R134: 25.2 | S134: 4.5 | T134: 10 | U134: 6 | V134: 20.5 | W134: 6 | X134: 7 | Y134: 5 | Z134: 18 | AA134: 3 | AB134: 3 | AC134: 4 | AD134: 10 | AE134: 2.5 | AF134: 5 | AG134: 6 | AH134: 8 | AI134: 6 | AJ134: 4 | AK134: 14.5 | AL134: 17 | AM134: 31.5 | AN134: 8.5 | AO134: 10 | AP134: 18 | AQ134: 36.5 | AR134: 8 | AS134: 14 | AT134: 11.5 | AU134: 33.5 | AV134: 9 | AW134: 6.5 | AX134: 13.5 | AY134: 29 | AZ134: 9 | BA134: 13 | BB134: 15 | BC134: 37 | BD134: 9 | BE134: 3 | BF134: 4 | BG134: 16 | BH134: 9.5 | BI134: 17 | BJ134: 14 | BK134: 40.5 | BL134: 8 | BM134: 9 | BN134: 15 | BO134: 32 | BP134: 363.7 | BQ134: 3 | BR134: 4 | BS134: 5.5 | BT134: 12.5 | BU134: 3.5 | BV134: 4 | BW134: 4.5 | BX134: 92.3 | BY134: دورثان | BZ134: فى : محاسبة مالية - رياضة عامة - | CA134: 2 | CI134: رياضة عامة - | CO134: محاسبة مالية - | CU134: 2 | CV134: 0 | CW134: 125.3 | CX134: 112
A135: 128 | B135: 128 | C135: طالب تجارة 128 | D135: 3/1 | E135: مستجد | F135: 2001-06-10 | G135: 21 | H135: 3 | I135: 17 | J135: 44 | K135: 7.5 | L135: 8 | M135: 9.5 | N135: 25 | O135: 8.5 | P135: 7.2 | Q135: 6.4 | R135: 22.1 | S135: 4.5 | T135: 8.4 | U135: 6 | V135: 18.9 | W135: 6 | X135: 4.5 | Y135: 5.5 | Z135: 16 | AA135: 3.5 | AB135: 2.5 | AC135: 5 | AD135: 11 | AE135: 3 | AF135: 5 | AG135: 5 | AH135: 6 | AI135: 5 | AJ135: 6 | AK135: 13 | AL135: 17 | AM135: 30 | AN135: 8.5 | AO135: 13 | AP135: 18 | AQ135: 39.5 | AR135: 8.5 | AS135: 4.5 | AT135: 12 | AU135: 25 | AV135: 9 | AW135: 2.5 | AX135: 13 | AY135: 24.5 | AZ135: 9 | BA135: 11 | BB135: 11 | BC135: 31 | BD135: 9 | BE135: 0 | BF135: 0 | BG135: 9 | BH135: 9.5 | BI135: 15.5 | BJ135: 13 | BK135: 38 | BL135: 7.5 | BM135: 8 | BN135: 15 | BO135: 30.5 | BP135: 320.5 | BQ135: 3 | BR135: 3 | BS135: 7.5 | BT135: 13.5 | BU135: 3.5 | BV135: 3.5 | BW135: 5.5 | BX135: 76.6 | BY135: دورثان | BZ135: فى : محاسبة مالية - رياضة عامة - | CA135: 2 | CI135: رياضة عامة - | CO135: محاسبة مالية - | CU135: 2 | CV135: 0 | CW135: 114.1 | CX135: 197
A136: 129 | B136: 129 | C136: طالب تجارة 129 | D136: 3/1 | E136: مستجد | F136: 2001-01-08 | G136: 23 | H136: 8 | I136: 17 | J136: 45 | K136: 7.5 | L136: 16 | M136: 15 | N136: =SUM(K136:M136) -> 38.5 | O136: 8.5 | P136: 12.8 | Q136: 9.6 | R136: 30.9 | S136: 4.5 | T136: 8.8 | U136: 6.8 | V136: 20.1 | W136: 6 | X136: 11.5 | Y136: 13 | Z136: 30.5 | AA136: 2 | AB136: 3.5 | AC136: 5.5 | AD136: 11 | AE136: 3 | AF136: 5 | AG136: 6 | AH136: 7 | AI136: 6 | AJ136: 9 | AK136: 15 | AL136: 21 | AM136: 36 | AN136: 8.5 | AO136: 12 | AP136: 13 | AQ136: 33.5 | AR136: 8 | AS136: 16.5 | AT136: 14.5 | AU136: 39 | AV136: 9 | AW136: 4 | AX136: 19 | AY136: 32 | AZ136: 9 | BA136: 7 | BB136: 13 | BC136: 29 | BD136: 9 | BE136: 2 | BF136: 17.5 | BG136: 28.5 | BH136: 9.5 | BI136: 14.5 | BJ136: 14 | BK136: =SUM(BH136:BJ136) -> 38 | BL136: 8 | BM136: 16 | BN136: 17 | BO136: 41 | BP136: =SUM(N136,R136,V136,BG136,AU136,AY136,AQ136,BK136,BC136,BO136,AD136,Z136,AM136) -> 408 | BQ136: 3 | BR136: 5.5 | BS136: 7 | BT136: 15.5 | BU136: 3.5 | BV136: 5.5 | BW136: 3 | BX136: 120.6 | BY136: دورثان | BZ136: فى : رياضة عامة - | CA136: 1 | CI136: رياضة عامة - | CU136: 1 | CV136: 0 | CW136: 138.6 | CX136: 44
A137: 130 | B137: 130 | C137: طالب تجارة 130 | D137: 3/1 | E137: مستجد | F137: 2003-02-08 | G137: 23 | H137: 7 | I137: 15 | J137: 46 | K137: 7.5 | L137: 9 | M137: 14.5 | N137: 31 | O137: 8.5 | P137: 12.4 | Q137: 5.8 | R137: =SUM(O137:Q137) -> 26.7 | S137: 5 | T137: 9.2 | U137: 6.8 | V137: =SUM(S137:U137) -> 21 | W137: 6 | X137: 13 | Y137: 14 | Z137: =SUM(W137:Y137) -> 33 | AA137: 2 | AB137: 1 | AC137: 4.5 | AD137: =SUM(AA137:AC137) -> 7.5 | AE137: 3 | AF137: 4.5 | AG137: 6 | AH137: 6 | AI137: 5 | AJ137: 8 | AK137: 14 | AL137: 18.5 | AM137: =SUM(AK137,AL137) -> 32.5 | AN137: 8.5 | AO137: 9 | AP137: 11 | AQ137: =SUM(AN137:AP137) -> 28.5 | AR137: 8.5 | AS137: 12 | AT137: 13 | AU137: =SUM(AR137:AT137) -> 33.5 | AV137: 8.5 | AW137: 0 | AX137: 11.5 | AY137: =SUM(AV137:AX137) -> 20 | AZ137: 9 | BA137: 4 | BB137: 12 | BC137: =SUM(AZ137:BB137) -> 25 | BD137: 9 | BE137: 0 | BF137: 6 | BG137: =SUM(BD137:BF137) -> 15 | BH137: 9.5 | BI137: 14 | BJ137: 15 | BK137: 38.5 | BL137: 8 | BM137: 19 | BN137: 13 | BO137: =SUM(BL137:BN137) -> 40 | BP137: 352.2 | BQ137: 3 | BR137: 3.5 | BS137: 7 | BT137: =SUM(BQ137:BS137) -> 13.5 | BU137: 3.5 | BV137: 4 | BW137: 3.5 | BX137: 97.6 | BY137: =IF(C137="","",IF(CA137=0,"ناجحة",IF(CU137>2,"راسبة","دورثان"))) -> دورثان | BZ137: =IF(C137="","",IF(CA137=0,"و منقولة للصف الثانى",IF(CA137>0,"فى : "&CONCATENATE(CE137,CF137,CG137,CO137,CL137,CM137,CK137,CP137,CN137,CI137,CH137,CJ137,CR137,CT137,CS137)))) -> فى : محاسبة مالية - رياضة عامة - | CA137: =IFERROR(CU137+CV137,"") -> 2 | CE137: =IF(C137="","",IF(OR(M137<$M$7,M137="غ",N137<$N$7),CE$3&" - ","")) ->  | CF137: =IF(C137="","",IF(OR(Q137<$Q$7,Q137="غ",R137<$R$7),CF$3&" - ","")) ->  | CG137: =IF(C137="","",IF(OR(U137<$U$7,U137="غ",V137<$V$7),CG$3&" - ","")) ->  | CH137: =IF(C137="","",IF(OR(Y137<$Y$7,Y137="غ",Z137<$Z$7),CH$3&" - ","")) ->  | CI137: =IF(C137="","",IF(OR(AC137<$AC$7,AC137="غ",AD137<$AD$7),CI$3&" - ","")) -> رياضة عامة - | CJ137: =IF(C137="","",IF(OR(AI137<$AI$7,AJ137<$AJ$7,AK137<$AK$7,AK137="غ",AL137<$AL$7,AL137="غ"),CJ$3&" - ","")) ->  | CK137: =IF(C137="","",IF(OR(AP137<$AP$7,AP137="غ",AQ137<$AQ$7),CK$3&" - ","")) ->  | CL137: =IF(C137="","",IF(OR(AT137<$AT$7,AT137="غ",AU137<$AU$7),CL$3&" - ","")) ->  | CM137: =IF(C137="","",IF(OR(AX137<$AX$7,AX137="غ",AY137<$AY$7),CM$3&" - ","")) ->  | CN137: =IF(C137="","",IF(OR(BB137<$BB$7,BB137="غ",BC137<$BC$7),CN$3&" - ","")) ->  | CO137: =IF(C137="","",IF(OR(BF137<$BF$7,BF137="غ",BG137<$BG$7),CO$3&" - ","")) -> محاسبة مالية - | CP137: =IF(C137="","",IF(OR(BJ137<$BJ$7,BJ137="غ",BK137<$BK$7),CP$3&" - ","")) ->  | CQ137: =IF(C137="","",IF(OR(BN137<$BN$7,BN137="غ",BO137<$BO$7),CQ$3&" - ","")) ->  | CR137: =IF(C137="","",IF($BP137<$BP$7,$CR$3&" -","")) ->  | CS137: =IF(C137="","",IF(OR(BS137<$BS$7,BS137="غ",BT137<$BT$7),CS$3,"")) ->  | CT137: =IF(C137="","",IF(OR(BW137<$BW$7,BW137="غ",BX137<$BX$7),CT$3&" - ","")) ->  | CU137: =IF(C137="","",COUNTIF(CE137:CQ137,"?*")) -> 2 | CV137: =IF(D137="","",COUNTIF(CR137:CT137,"?*")) -> 0 | CW137: 129.6 | CX137: 88
A138: 131 | B138: 131 | C138: طالب تجارة 131 | D138: 3/1 | E138: مستجد | F138: 2002-10-22 | G138: 9 | H138: 11 | I138: 15 | J138: 47 | K138: 7 | L138: 10.5 | M138: 15 | N138: 32.5 | O138: 9 | P138: 12.4 | Q138: 15.2 | R138: 36.6 | S138: 4.5 | T138: 10 | U138: 7.6 | V138: 22.1 | W138: 6 | X138: 9 | Y138: 14 | Z138: 29 | AA138: 2 | AB138: 1.5 | AC138: 6.5 | AD138: 10 | AE138: 3 | AF138: 4 | AG138: 5 | AH138: 8 | AI138: 5 | AJ138: 10 | AK138: 13 | AL138: 22 | AM138: 35 | AN138: 8.5 | AO138: 7 | AP138: 16 | AQ138: 31.5 | AR138: 9.5 | AS138: 12.5 | AT138: 14.5 | AU138: 36.5 | AV138: 8.5 | AW138: 3 | AX138: 14 | AY138: 25.5 | AZ138: 9 | BA138: 4 | BB138: 13 | BC138: 26 | BD138: 9 | BE138: 2 | BF138: 14 | BG138: 25 | BH138: 10 | BI138: 14 | BJ138: 14 | BK138: 38 | BL138: 8 | BM138: 14 | BN138: 15 | BO138: 37 | BP138: 384.7 | BQ138: 3 | BR138: 3 | BS138: 6.5 | BT138: 12.5 | BU138: 4 | BV138: 3.5 | BW138: 4.5 | BX138: 108.9 | BY138: دورثان | BZ138: فى : رياضة عامة - | CA138: 1 | CI138: رياضة عامة - | CU138: 1 | CV138: 0 | CW138: 129.9 | CX138: 86
A139: 132 | B139: 132 | C139: طالب تجارة 132 | D139: 3/1 | E139: مستجد | F139: 2002-11-23 | G139: 8 | H139: 10 | I139: 15 | J139: 48 | K139: 7 | L139: 8.5 | M139: 14.5 | N139: 30 | O139: 9 | P139: 12 | Q139: 6 | R139: 27 | S139: 4.5 | T139: 10.4 | U139: 8 | V139: 22.9 | W139: 6 | X139: 10.5 | Y139: 12 | Z139: 28.5 | AA139: 2 | AB139: 2.5 | AC139: 6 | AD139: 10.5 | AE139: 2.5 | AF139: 4 | AG139: 6 | AH139: 5 | AI139: 5 | AJ139: 10 | AK139: 13.5 | AL139: 19 | AM139: 32.5 | AN139: 8.5 | AO139: 6 | AP139: 16 | AQ139: 30.5 | AR139: 9 | AS139: 13.5 | AT139: 14.5 | AU139: 37 | AV139: 8.5 | AW139: 6.5 | AX139: 13 | AY139: 28 | AZ139: 9 | BA139: 7 | BB139: 14 | BC139: 30 | BD139: 9 | BE139: 9.5 | BF139: 12.5 | BG139: 31 | BH139: 10 | BI139: 12.5 | BJ139: 15 | BK139: 37.5 | BL139: 8 | BM139: 17 | BN139: 15 | BO139: 40 | BP139: 385.4 | BQ139: 3 | BR139: 4 | BS139: 6.5 | BT139: 13.5 | BU139: 3.5 | BV139: 6 | BW139: 4.5 | BX139: 114.9 | BY139: دورثان | BZ139: فى : رياضة عامة - | CA139: 1 | CI139: رياضة عامة - | CU139: 1 | CV139: 0 | CW139: 129.4 | CX139: 90
A140: 133 | B140: 133 | C140: طالب تجارة 133 | D140: 3/1 | E140: مستجد | F140: 2002-11-25 | G140: 6 | H140: 10 | I140: 15 | J140: 49 | K140: 7 | L140: 8 | M140: 13.5 | N140: 28.5 | O140: 8 | P140: 10 | Q140: 7.2 | R140: 25.2 | S140: 4.5 | T140: 9.2 | U140: 8 | V140: 21.7 | W140: 6 | X140: 6 | Y140: 12 | Z140: 24 | AA140: 2.5 | AB140: 2.5 | AC140: 6.5 | AD140: 11.5 | AE140: 3 | AF140: 4 | AG140: 5 | AH140: 5 | AI140: 6 | AJ140: 9 | AK140: غ | AL140: غ | AM140: 0 | AN140: 8.5 | AO140: 9 | AP140: 14 | AQ140: 31.5 | AR140: 8.5 | AS140: 12 | AT140: 14.5 | AU140: 35 | AV140: 8.5 | AW140: 4.5 | AX140: 7 | AY140: 20 | AZ140: 9 | BA140: 3 | BB140: 13 | BC140: 25 | BD140: 9 | BE140: 6.5 | BF140: 10 | BG140: 25.5 | BH140: 10 | BI140: 12.5 | BJ140: 12 | BK140: 34.5 | BL140: 8 | BM140: 17 | BN140: 12 | BO140: 37 | BP140: 319.4 | BQ140: 3 | BR140: 4 | BS140: 5 | BT140: 12 | BU140: 3.5 | BV140: 3 | BW140: 3.5 | BX140: 99.7 | BY140: دورثان | BZ140: فى : رياضة عامة - حاسب ألى - | CA140: 2 | CI140: رياضة عامة - | CJ140: حاسب ألى - | CU140: 2 | CV140: 0 | CW140: 116.7 | CX140: 174
A141: 134 | B141: 134 | C141: طالب تجارة 134 | D141: 3/1 | E141: مستجد | F141: 2001-04-03 | G141: 28 | H141: 5 | I141: 17 | J141: 50 | K141: 7.5 | L141: 10 | M141: 7.5 | N141: 25 | O141: 8.5 | P141: 11.6 | Q141: 11.6 | R141: 31.7 | S141: 5 | T141: 4.8 | U141: 9.2 | V141: 19 | W141: 6 | X141: 7.5 | Y141: 13 | Z141: 26.5 | AA141: 2 | AB141: 4 | AC141: 5 | AD141: 11 | AE141: 2.5 | AF141: 4 | AG141: 5 | AH141: 8 | AI141: 6 | AJ141: 8 | AK141: =SUM(AE141,AG141,AI141) -> 13.5 | AL141: =SUM(AF141,AH141,AJ141) -> 20 | AM141: 33.5 | AN141: 8.5 | AO141: 18 | AP141: 18 | AQ141: 44.5 | AR141: 8.5 | AS141: 11.5 | AT141: 14 | AU141: 34 | AV141: 8.5 | AW141: 3.5 | AX141: 15.5 | AY141: 27.5 | AZ141: 9 | BA141: 14 | BB141: 12 | BC141: 35 | BD141: 9 | BE141: 1 | BF141: 16 | BG141: 26 | BH141: 9.5 | BI141: 16 | BJ141: 14 | BK141: 39.5 | BL141: 8 | BM141: 14 | BN141: 18 | BO141: 40 | BP141: 393.2 | BQ141: 3 | BR141: 6 | BS141: 6.5 | BT141: 15.5 | BU141: 4 | BV141: 5 | BW141: 3 | BX141: 101.4 | BY141: دورثان | BZ141: فى : رياضة عامة - | CA141: 1 | CI141: رياضة عامة - | CU141: 1 | CV141: 0 | CW141: 123.4 | CX141: 119
A142: 135 | B142: 135 | C142: طالب تجارة 135 | D142: 3/1 | E142: مستجد | F142: 2002-05-21 | G142: 10 | H142: 4 | I142: 16 | J142: 51 | K142: 7 | L142: 11 | M142: 13.5 | N142: 31.5 | O142: 8 | P142: 12 | Q142: 12.4 | R142: 32.4 | S142: 5 | T142: 5.6 | U142: 9.2 | V142: 19.8 | W142: 6 | X142: 11 | Y142: 13 | Z142: 30 | AA142: 2 | AB142: 4 | AC142: 5.5 | AD142: 11.5 | AE142: 2.5 | AF142: 4 | AG142: 5 | AH142: 9 | AI142: 5 | AJ142: 8 | AK142: 12.5 | AL142: 21 | AM142: 33.5 | AN142: 8.5 | AO142: 18 | AP142: 17 | AQ142: 43.5 | AR142: 8.5 | AS142: 12.5 | AT142: 14 | AU142: 35 | AV142: 8.5 | AW142: 4.5 | AX142: 13 | AY142: 26 | AZ142: 8.5 | BA142: 16 | BB142: 13 | BC142: 37.5 | BD142: 9 | BE142: 2.5 | BF142: 9.5 | BG142: 21 | BH142: 9.5 | BI142: 17.5 | BJ142: 14 | BK142: 41 | BL142: 8 | BM142: 15 | BN142: 18 | BO142: 41 | BP142: 403.7 | BQ142: 3 | BR142: 6 | BS142: 7 | BT142: 16 | BU142: 3.5 | BV142: 4.5 | BW142: 4.5 | BX142: 101.6 | BY142: دورثان | BZ142: فى : محاسبة مالية - رياضة عامة - | CA142: 2 | CI142: رياضة عامة - | CO142: محاسبة مالية - | CU142: 2 | CV142: 0 | CW142: 130.1 | CX142: 83
A143: 136 | B143: 136 | C143: طالب تجارة 136 | D143: 4/1 | E143: مستجد | F143: 2002-07-29 | G143: 2 | H143: 2 | I143: 16 | J143: 52 | K143: 7.5 | L143: 12 | M143: 11.5 | N143: 31 | O143: 8.5 | P143: 11.2 | Q143: 8 | R143: 27.7 | S143: 5 | T143: 6 | U143: 8 | V143: 19 | W143: 6 | X143: 8.5 | Y143: 13 | Z143: 27.5 | AA143: 2 | AB143: 2.5 | AC143: 5 | AD143: 9.5 | AE143: 2.5 | AF143: 4 | AG143: 4 | AH143: 9 | AI143: 5 | AJ143: 7 | AK143: 11.5 | AL143: 20 | AM143: 31.5 | AN143: 8.5 | AO143: 19 | AP143: 13 | AQ143: 40.5 | AR143: 9 | AS143: 5.5 | AT143: 13 | AU143: 27.5 | AV143: 8.5 | AW143: 6 | AX143: 10 | AY143: 24.5 | AZ143: 8.5 | BA143: 15 | BB143: 9 | BC143: 32.5 | BD143: 9 | BE143: 9 | BF143: 8.5 | BG143: 26.5 | BH143: 9.5 | BI143: 18 | BJ143: 14 | BK143: 41.5 | BL143: 8 | BM143: 12 | BN143: 17 | BO143: 37 | BP143: 376.2 | BQ143: 3 | BR143: 5.5 | BS143: 7 | BT143: 15.5 | BU143: 3.5 | BV143: 5 | BW143: 2.5 | BX143: 103.2 | BY143: دورثان | BZ143: فى : رياضة عامة - | CA143: 1 | CI143: رياضة عامة - | CU143: 1 | CV143: 0 | CW143: 126.7 | CX143: 99
A144: 137 | B144: 137 | C144: طالب تجارة 137 | D144: 4/1 | E144: مستجد | F144: 2002-03-16 | G144: 15 | H144: 6 | I144: 16 | J144: 53 | K144: 7 | L144: 11 | M144: 13.5 | N144: 31.5 | O144: 8 | P144: 10.8 | Q144: 6.4 | R144: 25.2 | S144: 4.5 | T144: 8.4 | U144: 5.2 | V144: 18.1 | W144: 6 | X144: 9 | Y144: 11 | Z144: 26 | AA144: 2 | AB144: 5.5 | AC144: 4 | AD144: 11.5 | AE144: 2.5 | AF144: 4 | AG144: 4 | AH144: 5 | AI144: 6 | AJ144: 10 | AK144: 12.5 | AL144: 19 | AM144: 31.5 | AN144: 8.5 | AO144: 8 | AP144: 19 | AQ144: 35.5 | AR144: 9 | AS144: 10 | AT144: 14 | AU144: 33 | AV144: 8.5 | AW144: 5.5 | AX144: 14 | AY144: 28 | AZ144: 9 | BA144: 2 | BB144: 14 | BC144: 25 | BD144: 9 | BE144: 1 | BF144: 15 | BG144: 25 | BH144: 9.5 | BI144: 11.5 | BJ144: 15 | BK144: 36 | BL144: 8 | BM144: 13 | BN144: 19 | BO144: 40 | BP144: 366.3 | BQ144: 3 | BR144: 3.5 | BS144: 7 | BT144: 13.5 | BU144: 4 | BV144: 2.5 | BW144: 6.5 | BX144: 109.7 | BY144: دورثان | BZ144: فى : رياضة عامة - | CA144: 1 | CI144: رياضة عامة - | CU144: 1 | CV144: 0 | CW144: 129.2 | CX144: 92
A145: 138 | B145: 138 | C145: طالب تجارة 138 | D145: 4/1 | E145: مستجد | F145: 2002-06-29 | G145: 2 | H145: 3 | I145: 16 | J145: 54 | K145: 8.5 | L145: 15 | M145: 17 | N145: 40.5 | O145: 9 | P145: 10.4 | Q145: 12.4 | R145: 31.8 | S145: 4.5 | T145: 6.8 | U145: 6.8 | V145: 18.1 | W145: 6 | X145: 11 | Y145: 14 | Z145: 31 | AA145: 2 | AB145: 4 | AC145: 5.5 | AD145: 11.5 | AE145: 2.5 | AF145: 4 | AG145: 4 | AH145: 9 | AI145: 6 | AJ145: 11 | AK145: 12.5 | AL145: 24 | AM145: 36.5 | AN145: 8.5 | AO145: 13 | AP145: 19 | AQ145: 40.5 | AR145: 8 | AS145: 17 | AT145: 13 | AU145: 38 | AV145: 8.5 | AW145: 12.5 | AX145: 17.5 | AY145: 38.5 | AZ145: 9 | BA145: 10 | BB145: 12 | BC145: 31 | BD145: 8.5 | BE145: 7.5 | BF145: 9 | BG145: 25 | BH145: 9.5 | BI145: 12 | BJ145: 16 | BK145: 37.5 | BL145: 8.5 | BM145: 12 | BN145: 17 | BO145: 37.5 | BP145: 417.4 | BQ145: 3.5 | BR145: 4.5 | BS145: 7.5 | BT145: 15.5 | BU145: 4 | BV145: 5.5 | BW145: 6.5 | BX145: 112.7 | BY145: دورثان | BZ145: فى : رياضة عامة - | CA145: 1 | CI145: رياضة عامة - | CU145: 1 | CV145: 0 | CW145: 132.7 | CX145: 70
A146: 139 | B146: 139 | C146: طالب تجارة 139 | D146: 4/1 | E146: مستجد | F146: 2002-10-15 | G146: 16 | H146: 11 | I146: 15 | J146: 55 | K146: 7.5 | L146: 9 | M146: 13.5 | N146: 30 | O146: 9 | P146: 13.2 | Q146: 12 | R146: 34.2 | S146: 4.5 | T146: 8.4 | U146: 8 | V146: 20.9 | W146: 6 | X146: 13 | Y146: 13 | Z146: 32 | AA146: 2.5 | AB146: 1 | AC146: 5 | AD146: 8.5 | AE146: 3 | AF146: 5 | AG146: 4 | AH146: 8 | AI146: 6 | AJ146: 9 | AK146: 13 | AL146: 22 | AM146: 35 | AN146: 8.5 | AO146: 4 | AP146: 15 | AQ146: 27.5 | AR146: 8 | AS146: 15.5 | AT146: 9.5 | AU146: 33 | AV146: 8.5 | AW146: 6.5 | AX146: 10 | AY146: 25 | AZ146: 9 | BA146: 6 | BB146: 14 | BC146: 29 | BD146: 8 | BE146: 6 | BF146: 11 | BG146: 25 | BH146: 10 | BI146: 10 | BJ146: 12 | BK146: 32 | BL146: 8.5 | BM146: 8 | BN146: 14 | BO146: 30.5 | BP146: 362.6 | BQ146: 3 | BR146: 5.5 | BS146: 7 | BT146: 15.5 | BU146: 3.5 | BV146: 6 | BW146: 4.5 | BX146: 109.6 | BY146: دورثان | BZ146: فى : رياضة عامة - | CA146: 1 | CI146: رياضة عامة - | CU146: 1 | CV146: 0 | CW146: 122.6 | CX146: 126
A147: 140 | B147: 140 | C147: طالب تجارة 140 | D147: 4/1 | E147: مستجد | F147: 2003-01-26 | G147: 5 | H147: 8 | I147: 15 | J147: 56 | K147: 6.5 | L147: 5.5 | M147: 13 | N147: 25 | O147: 7.5 | P147: 12 | Q147: 11.2 | R147: 30.7 | S147: 5 | T147: 8.4 | U147: 8 | V147: 21.4 | W147: 6 | X147: 6 | Y147: 13 | Z147: 25 | AA147: 2.5 | AB147: 1 | AC147: 5.5 | AD147: 9 | AE147: 2.5 | AF147: 5 | AG147: 5 | AH147: 8 | AI147: 5 | AJ147: 9 | AK147: 12.5 | AL147: 22 | AM147: 34.5 | AN147: 8.5 | AO147: 4 | AP147: 15 | AQ147: 27.5 | AR147: 8 | AS147: 12 | AT147: 10 | AU147: 30 | AV147: 8.5 | AW147: 3 | AX147: 10.5 | AY147: 22 | AZ147: 9.5 | BA147: 5 | BB147: 14 | BC147: 28.5 | BD147: 8 | BE147: 2 | BF147: 9.5 | BG147: 19.5 | BH147: 10 | BI147: 11 | BJ147: 11 | BK147: 32 | BL147: 8.5 | BM147: 10 | BN147: 14 | BO147: 32.5 | BP147: 337.6 | BQ147: 3 | BR147: 4.5 | BS147: 6 | BT147: 13.5 | BU147: 3.5 | BV147: 4 | BW147: 3 | BX147: 92.9 | BY147: دورثان | BZ147: فى : محاسبة مالية - رياضة عامة - | CA147: 2 | CI147: رياضة عامة - | CO147: محاسبة مالية - | CU147: 2 | CV147: 0 | CW147: 111.4 | CX147: 219
A148: 141 | B148: 141 | C148: طالب تجارة 141 | D148: 4/1 | E148: مستجد | F148: 2003-01-25 | G148: 6 | H148: 8 | I148: 15 | J148: 183 | K148: 7 | L148: 7 | M148: 11 | N148: 25 | O148: 8 | P148: 12 | Q148: 13.2 | R148: 33.2 | S148: 4.5 | T148: 8.4 | U148: 7.2 | V148: 20.1 | W148: 6 | X148: 4 | Y148: 13 | Z148: 23 | AA148: 4 | AB148: 1 | AC148: 11 | AD148: 16 | AE148: 3 | AF148: 5 | AG148: 6 | AH148: 7 | AI148: 6 | AJ148: 9 | AK148: 15 | AL148: 21 | AM148: 36 | AN148: 8.5 | AO148: 4 | AP148: 14 | AQ148: 26.5 | AR148: 8 | AS148: 11 | AT148: 9 | AU148: 28 | AV148: 9 | AW148: 4 | AX148: 11 | AY148: 24 | AZ148: 8.5 | BA148: 7 | BB148: 15 | BC148: 30.5 | BD148: 9 | BE148: 1.5 | BF148: 8 | BG148: 18.5 | BH148: 9.5 | BI148: 8.5 | BJ148: 11 | BK148: 29 | BL148: 8 | BM148: 5 | BN148: 5 | BO148: 18 | BP148: 327.8 | BQ148: 3 | BR148: 4.5 | BS148: 7 | BT148: 14.5 | BU148: 3.5 | BV148: 5 | BW148: 2.5 | BX148: 89.9 | BY148: دورثان | BZ148: فى : محاسبة مالية - | CA148: 2 | CO148: محاسبة مالية - | CQ148: قانون تجارى - | CU148: 2 | CV148: 0 | CW148: 108.9 | CX148: 232
A149: 142 | B149: 142 | C149: طالب تجارة 142 | D149: 4/1 | E149: مستجد | F149: 2002-02-06 | G149: 25 | H149: 7 | I149: 16 | J149: 184 | K149: 7 | L149: 8.5 | M149: 16 | N149: 31.5 | O149: 8 | P149: 12.4 | Q149: 12.8 | R149: 33.2 | S149: 4.5 | T149: 8.8 | U149: 7.2 | V149: 20.5 | W149: 6 | X149: 12 | Y149: 9 | Z149: 27 | AA149: 3 | AB149: 1 | AC149: 5.5 | AD149: 9.5 | AE149: 2.5 | AF149: 4.5 | AG149: 6 | AH149: 7 | AI149: 5 | AJ149: 10 | AK149: 13.5 | AL149: 21.5 | AM149: 35 | AN149: 8.5 | AO149: 10 | AP149: 10 | AQ149: 28.5 | AR149: 8 | AS149: 13 | AT149: 10.5 | AU149: 31.5 | AV149: 8.5 | AW149: 3.5 | AX149: 12 | AY149: 24 | AZ149: 9 | BA149: 9 | BB149: 15 | BC149: 33 | BD149: 7.5 | BE149: 10.5 | BF149: 10 | BG149: 28 | BH149: 9.5 | BI149: 7.5 | BJ149: 12 | BK149: 29 | BL149: 8.5 | BM149: 9 | BN149: 10 | BO149: 27.5 | BP149: 358.2 | BQ149: 3 | BR149: 5 | BS149: 6.5 | BT149: 14.5 | BU149: 3.5 | BV149: 5 | BW149: 3.5 | BX149: 111.7 | BY149: دورثان | BZ149: فى : رياضة عامة - | CA149: 1 | CI149: رياضة عامة - | CU149: 1 | CV149: 0 | CW149: 118.2 | CX149: 163
A150: 143 | B150: 143 | C150: طالب تجارة 143 | D150: 4/1 | E150: مستجد | F150: 2002-08-19 | G150: 12 | H150: 1 | I150: 16 | J150: 185 | K150: 8.5 | L150: 13.5 | M150: 17 | N150: 39 | O150: 9.5 | P150: 16.4 | Q150: 14 | R150: 39.9 | S150: 5 | T150: 7.2 | U150: 7.6 | V150: 19.8 | W150: 6 | X150: 12 | Y150: 13 | Z150: 31 | AA150: 2.5 | AB150: 2 | AC150: 6 | AD150: 10.5 | AE150: 3 | AF150: 5.5 | AG150: 5 | AH150: 9 | AI150: 5 | AJ150: 11 | AK150: 13 | AL150: 25.5 | AM150: 38.5 | AN150: 8.5 | AO150: 12 | AP150: 16 | AQ150: 36.5 | AR150: 8 | AS150: 16.5 | AT150: 17 | AU150: 41.5 | AV150: 8.5 | AW150: 3.5 | AX150: 11.5 | AY150: 23.5 | AZ150: 9 | BA150: 9 | BB150: 18 | BC150: 36 | BD150: 8 | BE150: 0 | BF150: 10.5 | BG150: 18.5 | BH150: 9.5 | BI150: 13 | BJ150: 12 | BK150: 34.5 | BL150: 8.5 | BM150: 8 | BN150: 11 | BO150: 27.5 | BP150: 396.7 | BQ150: 3.5 | BR150: 6.5 | BS150: 7 | BT150: 17 | BU150: 3.5 | BV150: 3 | BW150: 3.5 | BX150: 112.1 | BY150: دورثان | BZ150: فى : محاسبة مالية - رياضة عامة - | CA150: 2 | CI150: رياضة عامة - | CO150: محاسبة مالية - | CU150: 2 | CV150: 0 | CW150: 134.6 | CX150: 64
A151: 144 | B151: 144 | C151: طالب تجارة 144 | D151: 4/1 | E151: مستجد | F151: 2001-01-16 | G151: 15 | H151: 8 | I151: 17 | J151: 186 | K151: 7.5 | L151: 6.5 | M151: 15.5 | N151: 29.5 | O151: 8.5 | P151: 13.2 | Q151: 11.6 | R151: 33.3 | S151: 4.5 | T151: 10 | U151: 7.6 | V151: 22.1 | W151: 6 | X151: 8 | Y151: 13 | Z151: 27 | AA151: 2.5 | AB151: 2.5 | AC151: 6 | AD151: 11 | AE151: 2.5 | AF151: 4.5 | AG151: 6 | AH151: 8 | AI151: 6 | AJ151: 10 | AK151: 14.5 | AL151: 22.5 | AM151: 37 | AN151: 8.5 | AO151: 11 | AP151: 16 | AQ151: 35.5 | AR151: 8 | AS151: 9 | AT151: 11 | AU151: 28 | AV151: 8.5 | AW151: 6 | AX151: 13 | AY151: 27.5 | AZ151: 9 | BA151: 10 | BB151: 16 | BC151: 35 | BD151: 8 | BE151: 0 | BF151: 17 | BG151: 25 | BH151: 9.5 | BI151: 12.5 | BJ151: 12 | BK151: 34 | BL151: 8.5 | BM151: 13 | BN151: 12 | BO151: 33.5 | BP151: 378.4 | BQ151: 3 | BR151: 2.5 | BS151: 6.5 | BT151: 12 | BU151: 3.5 | BV151: 3.5 | BW151: 3 | BX151: 105.7 | BY151: دورثان | BZ151: فى : رياضة عامة - | CA151: 1 | CI151: رياضة عامة - | CU151: 1 | CV151: 0 | CW151: 121.2 | CX151: 142
A152: 145 | B152: 145 | C152: طالب تجارة 145 | D152: 4/1 | E152: مستجد | F152: 2002-10-01 | G152: 0 | H152: 0 | I152: 16 | J152: 187 | K152: 7.5 | L152: 7.5 | M152: 14 | N152: 29 | O152: 8.5 | P152: 10.8 | Q152: 12.8 | R152: 32.1 | S152: 4.5 | T152: 7.6 | U152: 7.2 | V152: 19.3 | W152: 6 | X152: 11 | Y152: 11 | Z152: 28 | AA152: 3 | AB152: 2 | AC152: 6.5 | AD152: 11.5 | AE152: 3 | AF152: 5 | AG152: 6 | AH152: 10 | AI152: 6 | AJ152: 11 | AK152: 15 | AL152: 26 | AM152: 41 | AN152: 8.5 | AO152: 13 | AP152: 16 | AQ152: 37.5 | AR152: 8 | AS152: 13.5 | AT152: 14.5 | AU152: 36 | AV152: 8.5 | AW152: 1 | AX152: 10.5 | AY152: 20 | AZ152: 9.5 | BA152: 7 | BB152: 14 | BC152: 30.5 | BD152: 7.5 | BE152: 3.5 | BF152: 14 | BG152: 25 | BH152: 9.5 | BI152: 9 | BJ152: 12 | BK152: 30.5 | BL152: 8.5 | BM152: 11 | BN152: 10 | BO152: 29.5 | BP152: 369.9 | BQ152: 3 | BR152: 5 | BS152: 7 | BT152: 15 | BU152: 3.5 | BV152: 6 | BW152: 3.5 | BX152: 106.9 | BY152: دورثان | BZ152: فى : رياضة عامة - | CA152: 1 | CI152: رياضة عامة - | CU152: 1 | CV152: 0 | CW152: 117.9 | CX152: 165
A153: 146 | B153: 146 | C153: طالب تجارة 146 | D153: 4/1 | E153: مستجد | F153: 1999-10-01 | G153: 0 | H153: 0 | I153: 19 | J153: 188 | K153: 7.5 | L153: 7 | M153: 10.5 | N153: 25 | O153: 8.5 | P153: 11.2 | Q153: 12.4 | R153: 32.1 | S153: 4.5 | T153: 9.2 | U153: 7.2 | V153: 20.9 | W153: 6 | X153: 5 | Y153: 13 | Z153: 24 | AA153: 2.5 | AB153: 2 | AC153: 5 | AD153: 9.5 | AE153: 2.5 | AF153: 5 | AG153: 6 | AH153: 9 | AI153: 6 | AJ153: 11 | AK153: 14.5 | AL153: 25 | AM153: 39.5 | AN153: 8.5 | AO153: 10 | AP153: 12 | AQ153: 30.5 | AR153: 8 | AS153: 14 | AT153: 10 | AU153: 32 | AV153: 8.5 | AW153: 4.5 | AX153: 9 | AY153: 22 | AZ153: 9 | BA153: 10 | BB153: 15 | BC153: 34 | BD153: 7 | BE153: 2.5 | BF153: 15.5 | BG153: 25 | BH153: 9.5 | BI153: 6.5 | BJ153: 11 | BK153: 27 | BL153: 8.5 | BM153: 8 | BN153: 12 | BO153: 28.5 | BP153: 350 | BQ153: 3 | BR153: 5 | BS153: 6 | BT153: 14 | BU153: 3.5 | BV153: 3.5 | BW153: 3 | BX153: 102.4 | BY153: دورثان | BZ153: فى : رياضة عامة - | CA153: 1 | CI153: رياضة عامة - | CU153: 1 | CV153: 0 | CW153: 108.9 | CX153: 232
A154: 147 | B154: 147 | C154: طالب تجارة 147 | D154: 4/1 | E154: مستجد | F154: 2001-10-01 | G154: 0 | H154: 0 | I154: 17 | J154: 189 | K154: 7.5 | L154: 10.5 | M154: 15 | N154: 33 | O154: 8 | P154: 6.4 | Q154: 10 | R154: 24.4 | S154: 4.5 | T154: 9.6 | U154: 6 | V154: 20.1 | W154: 6 | X154: 5 | Y154: 5 | Z154: 16 | AA154: 2 | AB154: 3 | AC154: 4.5 | AD154: 9.5 | AE154: 3 | AF154: 5 | AG154: 5 | AH154: 7 | AI154: 6 | AJ154: 8 | AK154: 14 | AL154: 20 | AM154: 34 | AN154: 8.5 | AO154: 10 | AP154: 17 | AQ154: 35.5 | AR154: 8 | AS154: 9.5 | AT154: 9.5 | AU154: 27 | AV154: 8.5 | AW154: 6.5 | AX154: 11.5 | AY154: 26.5 | AZ154: 9.5 | BA154: 2 | BB154: 14 | BC154: 25.5 | BD154: 7 | BE154: 2 | BF154: 7 | BG154: 16 | BH154: 9.5 | BI154: 12 | BJ154: 15 | BK154: 36.5 | BL154: 8.5 | BM154: 7 | BN154: 16 | BO154: 31.5 | BP154: 335.5 | BQ154: 3 | BR154: 2 | BS154: 6.5 | BT154: 11.5 | BU154: 3.5 | BV154: 6 | BW154: 4 | BX154: 91 | BY154: دورثان | BZ154: فى : محاسبة مالية - رياضة عامة - | CA154: 2 | CI154: رياضة عامة - | CO154: محاسبة مالية - | CU154: 2 | CV154: 0 | CW154: 116 | CX154: 182
A155: 148 | B155: 148 | C155: طالب تجارة 148 | D155: 4/1 | E155: مستجد | F155: 2002-08-19 | G155: 12 | H155: 1 | I155: 16 | J155: 190 | K155: 8 | L155: 8.5 | M155: 12.5 | N155: 29 | O155: 9.5 | P155: 5.6 | Q155: 8.8 | R155: 23.9 | S155: 4.5 | T155: 8.8 | U155: 5.6 | V155: 18.9 | W155: 6 | X155: 8 | Y155: 6 | Z155: 20 | AA155: 2 | AB155: 5 | AC155: 4.5 | AD155: 11.5 | AE155: 2.5 | AF155: 5 | AG155: 6 | AH155: 7 | AI155: 6 | AJ155: 5 | AK155: 14.5 | AL155: 17 | AM155: 31.5 | AN155: 8.5 | AO155: 12 | AP155: 15 | AQ155: 35.5 | AR155: 8 | AS155: 13 | AT155: 8.5 | AU155: 29.5 | AV155: 8.5 | AW155: 6 | AX155: 13.5 | AY155: 28 | AZ155: 9.5 | BA155: 5 | BB155: 15 | BC155: 29.5 | BD155: 8 | BE155: 7 | BF155: 10 | BG155: 25 | BH155: 9.5 | BI155: 13 | BJ155: 15 | BK155: 37.5 | BL155: 8.5 | BM155: 2 | BN155: 16 | BO155: 26.5 | BP155: 346.3 | BQ155: 3 | BR155: 4 | BS155: 7.5 | BT155: 14.5 | BU155: 3.5 | BV155: 5.5 | BW155: 3.5 | BX155: 97.4 | BY155: دورثان | BZ155: فى : رياضة عامة - | CA155: 1 | CI155: رياضة عامة - | CU155: 1 | CV155: 0 | CW155: 116.4 | CX155: 176
A156: 149 | B156: 149 | C156: طالب تجارة 149 | D156: 4/1 | E156: مستجد | F156: 2001-11-20 | G156: 11 | H156: 10 | I156: 16 | J156: 191 | K156: 7.5 | L156: 7.5 | M156: 12.5 | N156: 27.5 | O156: 9 | P156: 5.2 | Q156: 6.4 | R156: 20.6 | S156: 4.5 | T156: 8.4 | U156: 6.4 | V156: 19.3 | W156: 6 | X156: 10 | Y156: 6 | Z156: 22 | AA156: 2 | AB156: 1 | AC156: 2 | AD156: 5 | AE156: 2.5 | AF156: 5 | AG156: 5 | AH156: 9 | AI156: 5 | AJ156: 8 | AK156: 12.5 | AL156: 22 | AM156: 34.5 | AN156: 8.5 | AO156: 9 | AP156: 10 | AQ156: 27.5 | AR156: 8 | AS156: 10 | AT156: 7 | AU156: 25 | AV156: 8.5 | AW156: 3.5 | AX156: 12.5 | AY156: 24.5 | AZ156: 9.5 | BA156: 9 | BB156: 11 | BC156: 29.5 | BD156: 7.5 | BE156: 0 | BF156: 5.5 | BG156: 13 | BH156: 9.5 | BI156: 10.5 | BJ156: 15 | BK156: 35 | BL156: 8.5 | BM156: 3 | BN156: 15 | BO156: 26.5 | BP156: 309.9 | BQ156: 3 | BR156: 1.5 | BS156: 6.5 | BT156: 11 | BU156: 3.5 | BV156: 5.5 | BW156: 5 | BX156: 85.1 | BY156: دورثان | BZ156: فى : محاسبة مالية - رياضة عامة - | CA156: 2 | CI156: رياضة عامة - | CO156: محاسبة مالية - | CU156: 2 | CV156: 0 | CW156: 112.6 | CX156: 206
A157: 150 | B157: 150 | C157: طالب تجارة 150 | D157: 4/1 | E157: مستجد | F157: 2002-09-28 | G157: 3 | H157: 0 | I157: 16 | J157: 192 | K157: 8 | L157: 10.5 | M157: 16 | N157: 34.5 | O157: 8 | P157: 5.2 | Q157: 7.6 | R157: 20.8 | S157: 4.5 | T157: 8.4 | U157: 6 | V157: 18.9 | W157: 6 | X157: 12 | Y157: 11 | Z157: 29 | AA157: 2 | AB157: 4 | AC157: 9 | AD157: 15 | AE157: 2.5 | AF157: 5 | AG157: 6 | AH157: 7 | AI157: 5 | AJ157: 7 | AK157: 13.5 | AL157: 19 | AM157: 32.5 | AN157: 8.5 | AO157: 9 | AP157: 12 | AQ157: 29.5 | AR157: 8 | AS157: 14.5 | AT157: 10.5 | AU157: 33 | AV157: 8.5 | AW157: 6 | AX157: 13.5 | AY157: 28 | AZ157: 9 | BA157: 10 | BB157: 12 | BC157: 31 | BD157: 7.5 | BE157: 1.5 | BF157: 3.5 | BG157: 12.5 | BH157: 9.5 | BI157: 13.5 | BJ157: 15 | BK157: 38 | BL157: 8 | BM157: 9 | BN157: 16 | BO157: 33 | BP157: 355.7 | BQ157: 3 | BR157: 5.5 | BS157: 7 | BT157: 15.5 | BU157: 3.5 | BV157: 5 | BW157: 4 | BX157: 91.1 | BY157: دورثان | BZ157: فى : محاسبة مالية - | CA157: 1 | CO157: محاسبة مالية - | CU157: 1 | CV157: 0 | CW157: 122.1 | CX157: 132
A158: 151 | B158: 151 | C158: طالب تجارة 151 | D158: 4/1 | E158: مستجد | F158: 2001-02-17 | G158: 14 | H158: 7 | I158: 17 | J158: 193 | K158: 7.5 | L158: 7.5 | M158: 13 | N158: 28 | O158: 9 | P158: 3.6 | Q158: 10 | R158: 22.6 | S158: 4.5 | T158: 7.6 | U158: 5.2 | V158: 17.3 | W158: 6 | X158: 4 | Y158: 7 | Z158: 17 | AA158: 2.5 | AB158: 3 | AC158: 3 | AD158: 8.5 | AE158: 3 | AF158: 5 | AG158: 5 | AH158: 7 | AI158: 5 | AJ158: 9 | AK158: 13 | AL158: 21 | AM158: 34 | AN158: 8.5 | AO158: 11 | AP158: 12 | AQ158: 31.5 | AR158: 8 | AS158: 12 | AT158: 10.5 | AU158: 30.5 | AV158: 8.5 | AW158: 10 | AX158: 13.5 | AY158: 32 | AZ158: 9.5 | BA158: 8 | BB158: 12.5 | BC158: 30 | BD158: 8 | BE158: 0.5 | BF158: 10.5 | BG158: 19 | BH158: 9.5 | BI158: 12.5 | BJ158: 15 | BK158: 37 | BL158: 8.5 | BM158: 8 | BN158: 17 | BO158: 33.5 | BP158: 340.9 | BQ158: 3 | BR158: 4 | BS158: 6 | BT158: 13 | BU158: 3.5 | BV158: 5.5 | BW158: 4 | BX158: 85.2 | BY158: دورثان | BZ158: فى : محاسبة مالية - رياضة عامة - | CA158: 2 | CI158: رياضة عامة - | CO158: محاسبة مالية - | CU158: 2 | CV158: 0 | CW158: 109.7 | CX158: 228
A159: 152 | B159: 152 | C159: طالب تجارة 152 | D159: 4/1 | E159: مستجد | F159: 2001-09-11 | G159: 20 | H159: 0 | I159: 17 | J159: 194 | K159: 7 | L159: 10 | M159: 15.5 | N159: 32.5 | O159: 8 | P159: 3.2 | Q159: 9.6 | R159: 20.8 | S159: 4.5 | T159: 8 | U159: 6 | V159: 18.5 | W159: 6 | X159: 10 | Y159: 9 | Z159: 25 | AA159: 2.5 | AB159: 4 | AC159: 3.5 | AD159: 10 | AE159: 3 | AF159: 4 | AG159: 5 | AH159: 7 | AI159: 5 | AJ159: 8 | AK159: 13 | AL159: 19 | AM159: 32 | AN159: 8.5 | AO159: 11 | AP159: 18 | AQ159: 37.5 | AR159: 8 | AS159: 10 | AT159: 8.5 | AU159: 26.5 | AV159: 8 | AW159: 11 | AX159: 11 | AY159: 30 | AZ159: 8.5 | BA159: 7 | BB159: 17 | BC159: 32.5 | BD159: 7 | BE159: 8.5 | BF159: 11.5 | BG159: 27 | BH159: 9.5 | BI159: 14 | BJ159: 15 | BK159: 38.5 | BL159: 8.5 | BM159: 3.5 | BN159: 13 | BO159: 25 | BP159: 355.8 | BQ159: 3 | BR159: 3.5 | BS159: 7.5 | BT159: 14 | BU159: 3.5 | BV159: 5.5 | BW159: 4.5 | BX159: 100.2 | BY159: دورثان | BZ159: فى : رياضة عامة - | CA159: 1 | CI159: رياضة عامة - | CU159: 1 | CV159: 0 | CW159: 116.2 | CX159: 179
A160: 153 | B160: 153 | C160: طالب تجارة 153 | D160: 5/1 | E160: مستجد | F160: 2002-03-01 | G160: 0 | H160: 7 | I160: 16 | J160: 195 | K160: 7.5 | L160: 11 | M160: 13.5 | N160: 32 | O160: 8.5 | P160: 6.4 | Q160: 10.4 | R160: 25.3 | S160: 5 | T160: 9.6 | U160: 7.2 | V160: 21.8 | W160: 6 | X160: 10 | Y160: 6 | Z160: 22 | AA160: 2.5 | AB160: 3.5 | AC160: 4.5 | AD160: 10.5 | AE160: 2.5 | AF160: 4.5 | AG160: 5 | AH160: 6 | AI160: 5 | AJ160: 8 | AK160: 12.5 | AL160: 18.5 | AM160: 31 | AN160: 8.5 | AO160: 7 | AP160: 16 | AQ160: 31.5 | AR160: 8 | AS160: 10.5 | AT160: 11 | AU160: 29.5 | AV160: 8.5 | AW160: 9.5 | AX160: 14 | AY160: 32 | AZ160: 9 | BA160: 8 | BB160: 16 | BC160: 33 | BD160: 7.5 | BE160: 1.5 | BF160: 16 | BG160: 25 | BH160: 9.5 | BI160: 14.5 | BJ160: 14 | BK160: 38 | BL160: 8.5 | BM160: 7 | BN160: 15 | BO160: 30.5 | BP160: 362.1 | BQ160: 3 | BR160: 3.5 | BS160: 7 | BT160: 13.5 | BU160: 3.5 | BV160: 5 | BW160: 5 | BX160: 104.5 | BY160: دورثان | BZ160: فى : رياضة عامة - | CA160: 1 | CI160: رياضة عامة - | CU160: 1 | CV160: 0 | CW160: 123 | CX160: 120
A161: 154 | B161: 154 | C161: طالب تجارة 154 | D161: 5/1 | E161: مستجد | F161: 2002-01-06 | G161: 25 | H161: 8 | I161: 16 | J161: 196 | K161: 7 | L161: 7.5 | M161: 12.5 | N161: 27 | O161: 8.5 | P161: 8.8 | Q161: 7.2 | R161: 24.5 | S161: 4.5 | T161: 6 | U161: 6.4 | V161: 16.9 | W161: 6 | X161: 11 | Y161: 10 | Z161: 27 | AA161: 2.5 | AB161: 0 | AC161: 4.5 | AD161: 7 | AE161: 2.5 | AF161: 4.5 | AG161: 6 | AH161: 5 | AI161: 5 | AJ161: 9 | AK161: غ | AL161: غ | AM161: 0 | AN161: 8.5 | AO161: 7 | AP161: 17 | AQ161: 32.5 | AR161: 8 | AS161: 11 | AT161: 11 | AU161: 30 | AV161: 9 | AW161: 1.5 | AX161: 13.5 | AY161: 24 | AZ161: 9 | BA161: 6 | BB161: 10 | BC161: 25 | BD161: 7 | BE161: 0 | BF161: 8.5 | BG161: 15.5 | BH161: 9.5 | BI161: 15 | BJ161: 18 | BK161: 42.5 | BL161: 8.5 | BM161: 14 | BN161: 14 | BO161: 36.5 | BP161: 308.4 | BQ161: 3 | BR161: 2 | BS161: 7.5 | BT161: 12.5 | BU161: 3.5 | BV161: 4 | BW161: 3.5 | BX161: 89.8 | BY161: راسبة | BZ161: فى : محاسبة مالية - رياضة عامة - حاسب ألى - | CA161: 3 | CI161: رياضة عامة - | CJ161: حاسب ألى - | CO161: محاسبة مالية - | CU161: 3 | CV161: 0 | CW161: 121.3 | CX161: 141
A162: 155 | B162: 155 | C162: طالب تجارة 155 | D162: 5/1 | E162: مستجد | F162: 2001-03-12 | G162: 19 | H162: 6 | I162: 17 | J162: 197 | K162: 6.5 | L162: 8.5 | M162: 11.5 | N162: 26.5 | O162: 7.5 | P162: 7.2 | Q162: 8 | R162: 22.7 | S162: 4.5 | T162: 8 | U162: 7.2 | V162: 19.7 | W162: 6 | X162: 12 | Y162: 10 | Z162: 28 | AA162: 3.5 | AB162: 2 | AC162: 5 | AD162: 10.5 | AE162: 2.5 | AF162: 4.5 | AG162: 5 | AH162: 5 | AI162: 5 | AJ162: 9 | AK162: =SUM(AE162,AG162,AI162) -> 12.5 | AL162: =SUM(AF162,AH162,AJ162) -> 18.5 | AM162: 31 | AN162: 8.5 | AO162: 8 | AP162: 17 | AQ162: 33.5 | AR162: 8 | AS162: 13.5 | AT162: 13 | AU162: 34.5 | AV162: 8.5 | AW162: 3 | AX162: 12 | AY162: 23.5 | AZ162: 9 | BA162: 8 | BB162: 8 | BC162: 25 | BD162: 7 | BE162: 0.5 | BF162: 9.5 | BG162: 17 | BH162: 9.5 | BI162: 15.5 | BJ162: 17 | BK162: 42 | BL162: 8.5 | BM162: 15 | BN162: 16 | BO162: 39.5 | BP162: 353.4 | BQ162: 3 | BR162: 2 | BS162: 7.5 | BT162: 12.5 | BU162: 3.5 | BV162: 3 | BW162: 3.5 | BX162: 95.2 | BY162: دورثان | BZ162: فى : محاسبة مالية - رياضة عامة - | CA162: 2 | CI162: رياضة عامة - | CO162: محاسبة مالية - | CU162: 2 | CV162: 0 | CW162: 124.7 | CX162: 114
A163: 156 | B163: 156 | C163: طالب تجارة 156 | D163: 5/1 | E163: مستجد | F163: 2001-05-27 | G163: 4 | H163: 4 | I163: 17 | J163: 198 | K163: 7 | L163: 9.5 | M163: 13 | N163: 29.5 | O163: 8 | P163: 8.8 | Q163: 8.8 | R163: 25.6 | S163: 4.5 | T163: 8.4 | U163: 6.4 | V163: 19.3 | W163: 6 | X163: 11 | Y163: 10 | Z163: 27 | AA163: 5 | AB163: 2.5 | AC163: 7.5 | AD163: 15 | AE163: 2.5 | AF163: 5 | AG163: 6 | AH163: 6 | AI163: 6 | AJ163: 9 | AK163: 14.5 | AL163: 20 | AM163: 34.5 | AN163: 8.5 | AO163: 11 | AP163: 15 | AQ163: 34.5 | AR163: 8 | AS163: 13.5 | AT163: 9.5 | AU163: 31 | AV163: 8.5 | AW163: 4.5 | AX163: 12 | AY163: 25 | AZ163: 9 | BA163: 6 | BB163: 12 | BC163: 27 | BD163: 8 | BE163: 1 | BF163: 8.5 | BG163: 17.5 | BH163: 9.5 | BI163: 14 | BJ163: 16 | BK163: 39.5 | BL163: 8.5 | BM163: 18 | BN163: 16 | BO163: 42.5 | BP163: 367.9 | BQ163: 3 | BR163: 3 | BS163: 7 | BT163: 13 | BU163: 3.5 | BV163: 5.5 | BW163: 4 | BX163: 97.7 | BY163: دورثان | BZ163: فى : محاسبة مالية - | CA163: 1 | CO163: محاسبة مالية - | CU163: 1 | CV163: 0 | CW163: 126.2 | CX163: 103
A164: 157 | B164: 157 | C164: طالب تجارة 157 | D164: 5/1 | E164: مستجد | F164: 2003-01-01 | G164: 0 | H164: 9 | I164: 15 | J164: 199 | K164: 7.5 | L164: 8 | M164: 14.5 | N164: 30 | O164: 9 | P164: 9.2 | Q164: 8.8 | R164: 27 | S164: 4.5 | T164: 9.2 | U164: 6.8 | V164: 20.5 | W164: 6 | X164: 10 | Y164: 11 | Z164: 27 | AA164: 2 | AB164: 3 | AC164: 7 | AD164: 12 | AE164: 2.5 | AF164: 5 | AG164: 5 | AH164: 10 | AI164: 6 | AJ164: 9 | AK164: 13.5 | AL164: 24 | AM164: 37.5 | AN164: 8.5 | AO164: 11 | AP164: 16 | AQ164: 35.5 | AR164: 8 | AS164: 12 | AT164: 12.5 | AU164: 32.5 | AV164: 8.5 | AW164: 4.5 | AX164: 16.5 | AY164: 29.5 | AZ164: 9 | BA164: 10 | BB164: 12 | BC164: 31 | BD164: 8 | BE164: 1 | BF164: 9.5 | BG164: 18.5 | BH164: 9.5 | BI164: 16.5 | BJ164: 15 | BK164: 41 | BL164: 8.5 | BM164: 15 | BN164: 16 | BO164: 39.5 | BP164: 381.5 | BQ164: 3 | BR164: 3.5 | BS164: 7.5 | BT164: 14 | BU164: 3.5 | BV164: 5 | BW164: 4.5 | BX164: 97.9 | BY164: دورثان | BZ164: فى : محاسبة مالية - رياضة عامة - | CA164: 2 | CI164: رياضة عامة - | CO164: محاسبة مالية - | CU164: 2 | CV164: 0 | CW164: 126.9 | CX164: 97
A165: 158 | B165: 158 | C165: طالب تجارة 158 | D165: 5/1 | E165: مستجد | F165: 2002-08-24 | G165: 7 | H165: 1 | I165: 16 | J165: 200 | K165: 7.5 | L165: 8.5 | M165: 12.5 | N165: 28.5 | O165: 8.5 | P165: 10 | Q165: 9.2 | R165: 27.7 | S165: 4.5 | T165: 8.8 | U165: 6.8 | V165: 20.1 | W165: 6 | X165: 12 | Y165: 11 | Z165: 29 | AA165: 2 | AB165: 4 | AC165: 5 | AD165: 11 | AE165: 2.5 | AF165: 4.5 | AG165: 5 | AH165: 5 | AI165: 6 | AJ165: 9 | AK165: 13.5 | AL165: 18.5 | AM165: 32 | AN165: 8.5 | AO165: 9 | AP165: 17 | AQ165: 34.5 | AR165: 8.5 | AS165: 15 | AT165: 11.5 | AU165: 35 | AV165: 8.5 | AW165: 2 | AX165: 13.5 | AY165: 24 | AZ165: 9.5 | BA165: 5 | BB165: 13.5 | BC165: 28 | BD165: 7.5 | BE165: 0.5 | BF165: 17 | BG165: 25 | BH165: 9 | BI165: 16 | BJ165: 12 | BK165: 37 | BL165: 8 | BM165: 14 | BN165: 16 | BO165: 38 | BP165: 369.8 | BQ165: 3 | BR165: 5 | BS165: 7.5 | BT165: 15.5 | BU165: 3.5 | BV165: 4.5 | BW165: 4 | BX165: 109.3 | BY165: دورثان | BZ165: فى : رياضة عامة - | CA165: 1 | CI165: رياضة عامة - | CU165: 1 | CV165: 0 | CW165: 127.3 | CX165: 94
A166: 159 | B166: 159 | C166: طالب تجارة 159 | D166: 5/1 | E166: مستجد | F166: 2001-04-17 | G166: 14 | H166: 5 | I166: 17 | J166: 201 | K166: 7.5 | L166: 4.5 | M166: 10.5 | N166: 22.5 | O166: 8.5 | P166: 7.6 | Q166: 10.8 | R166: 26.9 | S166: 4.5 | T166: 8.8 | U166: 7.2 | V166: 20.5 | W166: 6 | X166: 13 | Y166: 12 | Z166: 31 | AA166: 2 | AB166: 1 | AC166: 6 | AD166: 9 | AE166: 2.5 | AF166: 5 | AG166: 5 | AH166: 7 | AI166: 6 | AJ166: 9 | AK166: 13.5 | AL166: 21 | AM166: 34.5 | AN166: 8.5 | AO166: 8 | AP166: 15 | AQ166: 31.5 | AR166: 9 | AS166: 14.5 | AT166: 10 | AU166: 33.5 | AV166: 8.5 | AW166: 0 | AX166: 13 | AY166: 21.5 | AZ166: 9.5 | BA166: 3.5 | BB166: 12 | BC166: 25 | BD166: 7.5 | BE166: 0.5 | BF166: 17 | BG166: 25 | BH166: 9 | BI166: 13.5 | BJ166: 13 | BK166: 35.5 | BL166: 8 | BM166: 14 | BN166: 16 | BO166: 38 | BP166: 354.4 | BQ166: 3 | BR166: 1 | BS166: 7 | BT166: 11 | BU166: 3.5 | BV166: 1 | BW166: 3.5 | BX166: 101.9 | BY166: دورثان | BZ166: فى : لغة عربية - رياضة عامة - | CA166: 2 | CE166: لغة عربية - | CI166: رياضة عامة - | CU166: 2 | CV166: 0 | CW166: 118.4 | CX166: 162
A167: 160 | B167: 160 | C167: طالب تجارة 160 | D167: 5/1 | E167: مستجد | F167: 2003-01-01 | G167: 0 | H167: 9 | I167: 15 | J167: 202 | K167: 7.5 | L167: 11.5 | M167: 12.5 | N167: 31.5 | O167: 8.5 | P167: 10 | Q167: 10.4 | R167: 28.9 | S167: 4.5 | T167: 8.8 | U167: 8 | V167: 21.3 | W167: 6 | X167: 12 | Y167: 13 | Z167: 31 | AA167: 2 | AB167: 1 | AC167: 3 | AD167: 6 | AE167: 3 | AF167: 5 | AG167: 5 | AH167: 8 | AI167: 6 | AJ167: 9 | AK167: 14 | AL167: 22 | AM167: 36 | AN167: 8.5 | AO167: 15 | AP167: 18 | AQ167: 41.5 | AR167: 9 | AS167: 12.5 | AT167: 14 | AU167: 35.5 | AV167: 8.5 | AW167: 6 | AX167: 16 | AY167: 30.5 | AZ167: 9 | BA167: 12 | BB167: 12 | BC167: 33 | BD167: 8 | BE167: 8 | BF167: 17 | BG167: 33 | BH167: 9.5 | BI167: 16 | BJ167: 19 | BK167: 44.5 | BL167: 8 | BM167: 15 | BN167: 16 | BO167: 39 | BP167: 411.7 | BQ167: 3 | BR167: 3.5 | BS167: 6 | BT167: 12.5 | BU167: 3.5 | BV167: 4 | BW167: 4.5 | BX167: 117.3 | BY167: دورثان | BZ167: فى : رياضة عامة - | CA167: 1 | CI167: رياضة عامة - | CU167: 1 | CV167: 0 | CW167: 135.3 | CX167: 61
A168: 161 | B168: 161 | C168: طالب تجارة 161 | D168: 5/1 | E168: مستجد | F168: 2003-01-01 | G168: 0 | H168: 9 | I168: 15 | J168: 203 | K168: 7.5 | L168: 4 | M168: 13.5 | N168: 25 | O168: 8.5 | P168: 8.8 | Q168: 8.8 | R168: 26.1 | S168: 4.5 | T168: 8.8 | U168: 8 | V168: 21.3 | W168: 6 | X168: 12 | Y168: 12 | Z168: 30 | AA168: 2 | AB168: 0 | AC168: 7.5 | AD168: 9.5 | AE168: 2.5 | AF168: 5 | AG168: 5 | AH168: 9 | AI168: 5 | AJ168: 9 | AK168: 12.5 | AL168: 23 | AM168: 35.5 | AN168: 8.5 | AO168: 15 | AP168: 14 | AQ168: 37.5 | AR168: 9 | AS168: 12 | AT168: 13.5 | AU168: 34.5 | AV168: 8.5 | AW168: 8 | AX168: 10.5 | AY168: 27 | AZ168: 9 | BA168: 6 | BB168: 12 | BC168: 27 | BD168: 7.5 | BE168: 4 | BF168: 7.5 | BG168: 19 | BH168: 9.5 | BI168: 13 | BJ168: 13 | BK168: 35.5 | BL168: 8 | BM168: 14 | BN168: 16 | BO168: 38 | BP168: 365.9 | BQ168: 3 | BR168: 3 | BS168: 7.5 | BT168: 13.5 | BU168: 3.5 | BV168: 1 | BW168: 3.5 | BX168: 94.1 | BY168: دورثان | BZ168: فى : محاسبة مالية - رياضة عامة - | CA168: 2 | CI168: رياضة عامة - | CO168: محاسبة مالية - | CU168: 2 | CV168: 0 | CW168: 116.1 | CX168: 180
A169: 162 | B169: 162 | C169: طالب تجارة 162 | D169: 5/1 | E169: مستجد | F169: 2002-03-09 | G169: 22 | H169: 6 | I169: 16 | J169: 204 | K169: 7.5 | L169: 7 | M169: 10.5 | N169: 25 | O169: 8.5 | P169: 8.4 | Q169: 12.8 | R169: 29.7 | S169: 4.5 | T169: 6.8 | U169: 8.4 | V169: 19.7 | W169: 6 | X169: 12 | Y169: 8 | Z169: 26 | AA169: 2 | AB169: 3.5 | AC169: 6 | AD169: 11.5 | AE169: 3 | AF169: 5 | AG169: 5 | AH169: 6 | AI169: 5 | AJ169: 9 | AK169: 13 | AL169: 20 | AM169: 33 | AN169: 8.5 | AO169: 12 | AP169: 11 | AQ169: 31.5 | AR169: 9 | AS169: 9.5 | AT169: 10 | AU169: 28.5 | AV169: 8.5 | AW169: 4.5 | AX169: 10.5 | AY169: 23.5 | AZ169: 9 | BA169: 13 | BB169: 15 | BC169: 37 | BD169: 7.5 | BE169: 1 | BF169: 8.5 | BG169: 17 | BH169: 9.5 | BI169: 12.5 | BJ169: 15 | BK169: 37 | BL169: 8 | BM169: 11 | BN169: 15 | BO169: 34 | BP169: 353.4 | BQ169: 3 | BR169: 5.5 | BS169: 7 | BT169: 15.5 | BU169: 3.5 | BV169: 5 | BW169: 2.5 | BX169: 96.2 | BY169: دورثان | BZ169: فى : محاسبة مالية - رياضة عامة - | CA169: 2 | CI169: رياضة عامة - | CO169: محاسبة مالية - | CU169: 2 | CV169: 0 | CW169: 121.7 | CX169: 137
A170: 163 | B170: 163 | C170: طالب تجارة 163 | D170: 5/1 | E170: مستجد | F170: 2002-11-01 | G170: 0 | H170: 11 | I170: 15 | J170: 205 | K170: 7.5 | L170: 7.5 | M170: 10 | N170: 25 | O170: 8.5 | P170: 3.6 | Q170: 10.4 | R170: 22.5 | S170: 4.5 | T170: 8 | U170: 8.4 | V170: 20.9 | W170: 6 | X170: 6 | Y170: 8 | Z170: 20 | AA170: 2 | AB170: 3 | AC170: 6 | AD170: 11 | AE170: 2.5 | AF170: 5 | AG170: 5 | AH170: 7 | AI170: 6 | AJ170: 9 | AK170: 13.5 | AL170: 21 | AM170: 34.5 | AN170: 8.5 | AO170: 13 | AP170: 8 | AQ170: 29.5 | AR170: 8.5 | AS170: 8.5 | AT170: 12.5 | AU170: 29.5 | AV170: 8.5 | AW170: 2.5 | AX170: 9 | AY170: 20 | AZ170: 9 | BA170: 10 | BB170: 7 | BC170: 26 | BD170: 8 | BE170: 1 | BF170: 6 | BG170: 15 | BH170: 9.5 | BI170: 10 | BJ170: 15 | BK170: 34.5 | BL170: 8 | BM170: 10 | BN170: 15 | BO170: 33 | BP170: 321.4 | BQ170: 3 | BR170: 3.5 | BS170: 6 | BT170: 12.5 | BU170: 3.5 | BV170: 4 | BW170: 3 | BX170: 83.6 | BY170: دورثان | BZ170: فى : محاسبة مالية - رياضة عامة - | CA170: 2 | CI170: رياضة عامة - | CO170: محاسبة مالية - | CU170: 2 | CV170: 0 | CW170: 109.6 | CX170: 229
A171: 164 | B171: 164 | C171: طالب تجارة 164 | D171: 5/1 | E171: مستجد | F171: 2002-08-01 | G171: 0 | H171: 2 | I171: 16 | J171: 206 | K171: 7.5 | L171: 11 | M171: 16 | N171: 34.5 | O171: 8 | P171: 12.4 | Q171: 14.8 | R171: 35.2 | S171: 4.5 | T171: 6.8 | U171: 8 | V171: 19.3 | W171: 6 | X171: 9 | Y171: 12 | Z171: 27 | AA171: 2 | AB171: 3 | AC171: 5.5 | AD171: 10.5 | AE171: 2.5 | AF171: 5 | AG171: 6 | AH171: 6 | AI171: 6 | AJ171: 9 | AK171: 14.5 | AL171: 20 | AM171: 34.5 | AN171: 8.5 | AO171: 12 | AP171: 11 | AQ171: 31.5 | AR171: 9 | AS171: 10.5 | AT171: 11 | AU171: 30.5 | AV171: 8.5 | AW171: 6.5 | AX171: 7 | AY171: 22 | AZ171: 9 | BA171: 8 | BB171: 14 | BC171: 31 | BD171: 9 | BE171: 9 | BF171: 10.5 | BG171: 28.5 | BH171: 9.5 | BI171: 10.5 | BJ171: 15 | BK171: 35 | BL171: 8 | BM171: 10 | BN171: 17 | BO171: 35 | BP171: 374.5 | BQ171: 3 | BR171: 6 | BS171: 6.5 | BT171: 15.5 | BU171: 3.5 | BV171: 5.5 | BW171: 4.5 | BX171: 110.7 | BY171: دورثان | BZ171: فى : رياضة عامة - | CA171: 1 | CI171: رياضة عامة - | CU171: 1 | CV171: 0 | CW171: 125.7 | CX171: 107
A172: 165 | B172: 165 | C172: طالب تجارة 165 | D172: 5/1 | E172: مستجد | F172: 2002-01-01 | G172: 0 | H172: 9 | I172: 16 | J172: 207 | K172: 7.5 | L172: 10 | M172: 8 | N172: 25.5 | O172: 8.5 | P172: 8 | Q172: 15.6 | R172: 32.1 | S172: 4.5 | T172: 4.4 | U172: 7.2 | V172: 16.1 | W172: 6 | X172: 9 | Y172: 10 | Z172: 25 | AA172: 2 | AB172: 3.5 | AC172: 4 | AD172: 9.5 | AE172: 3 | AF172: 5 | AG172: 4 | AH172: 7 | AI172: 6 | AJ172: 9 | AK172: 13 | AL172: 21 | AM172: 34 | AN172: 8.5 | AO172: 15 | AP172: 8 | AQ172: 31.5 | AR172: 9 | AS172: 11 | AT172: 10.5 | AU172: 30.5 | AV172: 8.5 | AW172: 9.5 | AX172: 12 | AY172: 30 | AZ172: 9 | BA172: 10 | BB172: 17 | BC172: 36 | BD172: 8 | BE172: 0 | BF172: 17 | BG172: 25 | BH172: 9.5 | BI172: 15.5 | BJ172: 14 | BK172: 39 | BL172: 8 | BM172: 15 | BN172: 13 | BO172: 36 | BP172: 370.2 | BQ172: 3 | BR172: 6 | BS172: 6.5 | BT172: 15.5 | BU172: 3.5 | BV172: 3 | BW172: 3.5 | BX172: 100.9 | BY172: دورثان | BZ172: فى : رياضة عامة - | CA172: 1 | CI172: رياضة عامة - | CU172: 1 | CV172: 0 | CW172: 121.4 | CX172: 139
A173: 166 | B173: 166 | C173: طالب تجارة 166 | D173: 5/1 | E173: مستجد | F173: 2002-12-02 | G173: 29 | H173: 9 | I173: 15 | J173: 208 | K173: 7.5 | L173: 8.5 | M173: 9 | N173: 25 | O173: 8 | P173: 6.4 | Q173: 9.6 | R173: 24 | S173: 4.5 | T173: 2.8 | U173: 7.6 | V173: 14.9 | W173: 6 | X173: 8 | Y173: 9 | Z173: 23 | AA173: 5 | AB173: 2 | AC173: 9 | AD173: 16 | AE173: 2.5 | AF173: 4.5 | AG173: 5 | AH173: 7 | AI173: 6 | AJ173: 8 | AK173: 13.5 | AL173: 19.5 | AM173: 33 | AN173: 8.5 | AO173: 16 | AP173: 13 | AQ173: 37.5 | AR173: 9 | AS173: 8.5 | AT173: 13 | AU173: 30.5 | AV173: 8.5 | AW173: 2.5 | AX173: 9.5 | AY173: 20.5 | AZ173: 9 | BA173: 10 | BB173: 15 | BC173: 34 | BD173: 8 | BE173: 1 | BF173: 5.5 | BG173: 14.5 | BH173: 9.5 | BI173: 15.5 | BJ173: 12 | BK173: 37 | BL173: 8 | BM173: 13 | BN173: 16 | BO173: 37 | BP173: 346.9 | BQ173: 3 | BR173: 5 | BS173: 7 | BT173: 15 | BU173: 3.5 | BV173: 3.5 | BW173: 3 | BX173: 81.7 | BY173: دورثان | BZ173: فى : محاسبة مالية - | CA173: 1 | CO173: محاسبة مالية - | CU173: 1 | CV173: 0 | CW173: 110.7 | CX173: 222
A174: 167 | B174: 167 | C174: طالب تجارة 167 | D174: 5/1 | E174: مستجد | F174: 2002-04-01 | G174: 0 | H174: 6 | I174: 16 | J174: 209 | K174: 7.5 | L174: 10.5 | M174: 11 | N174: 29 | O174: 8.5 | P174: 7.6 | Q174: 12.8 | R174: 28.9 | S174: 4.5 | T174: 4 | U174: 8.8 | V174: 17.3 | W174: 6 | X174: 6 | Y174: 11 | Z174: 23 | AA174: 2 | AB174: 1.5 | AC174: 4 | AD174: 7.5 | AE174: 3 | AF174: 5 | AG174: 5 | AH174: 9 | AI174: 6 | AJ174: 9 | AK174: 14 | AL174: 23 | AM174: 37 | AN174: 8.5 | AO174: 15 | AP174: 15 | AQ174: 38.5 | AR174: 9 | AS174: 11.5 | AT174: 11.5 | AU174: 32 | AV174: 9 | AW174: 5 | AX174: 9 | AY174: 23 | AZ174: 9 | BA174: 15 | BB174: 14 | BC174: 38 | BD174: 8 | BE174: 1.5 | BF174: 15.5 | BG174: 25 | BH174: 9.5 | BI174: 16.5 | BJ174: 14 | BK174: 40 | BL174: 8 | BM174: 16 | BN174: 13 | BO174: 37 | BP174: 376.2 | BQ174: 3 | BR174: 6 | BS174: 7 | BT174: 16 | BU174: 3.5 | BV174: 4.5 | BW174: 4 | BX174: 96.1 | BY174: دورثان | BZ174: فى : رياضة عامة - | CA174: 1 | CI174: رياضة عامة - | CU174: 1 | CV174: 0 | CW174: 117.6 | CX174: 167
A175: 168 | B175: 168 | C175: طالب تجارة 168 | D175: 5/1 | E175: مستجد | F175: 2001-09-05 | G175: 26 | H175: 0 | I175: 17 | J175: 210 | K175: 7.5 | L175: 9.5 | M175: 11 | N175: 28 | O175: 8.5 | P175: 6.8 | Q175: 6 | R175: 21.3 | S175: 5 | T175: 3.6 | U175: 7.2 | V175: 15.8 | W175: 6 | X175: 8 | Y175: 10 | Z175: 24 | AA175: 2 | AB175: 1 | AC175: 4.5 | AD175: 7.5 | AE175: 2.5 | AF175: 4.5 | AG175: 5 | AH175: 8 | AI175: 5 | AJ175: 11 | AK175: 12.5 | AL175: 23.5 | AM175: 36 | AN175: 8.5 | AO175: 15 | AP175: 15 | AQ175: 38.5 | AR175: 9 | AS175: 9 | AT175: 12.5 | AU175: 30.5 | AV175: 8.5 | AW175: 3.5 | AX175: 9 | AY175: 21 | AZ175: 9 | BA175: 10 | BB175: 9 | BC175: 28 | BD175: 7 | BE175: 4.5 | BF175: 3 | BG175: 14.5 | BH175: 9.5 | BI175: 14 | BJ175: 16 | BK175: 39.5 | BL175: 8 | BM175: 13 | BN175: 17 | BO175: 38 | BP175: 342.6 | BQ175: 3 | BR175: 3 | BS175: 7.5 | BT175: 13.5 | BU175: 3.5 | BV175: 4.5 | BW175: 2.5 | BX175: 86.9 | BY175: دورثان | BZ175: فى : محاسبة مالية - رياضة عامة - | CA175: 2 | CI175: رياضة عامة - | CO175: محاسبة مالية - | CU175: 2 | CV175: 0 | CW175: 116.4 | CX175: 176
A176: 169 | B176: 169 | C176: طالب تجارة 169 | D176: 5/1 | E176: مستجد | F176: 2002-10-15 | G176: 16 | H176: 11 | I176: 15 | J176: 1 | K176: 7.5 | L176: 8 | M176: 11.5 | N176: 27 | O176: 8 | P176: 3.6 | Q176: 8.4 | R176: 20 | S176: 4.5 | T176: 4.4 | U176: 5.6 | V176: 14.5 | W176: 6 | X176: 4 | Y176: 9 | Z176: 19 | AA176: 2.5 | AB176: 4 | AC176: 1.5 | AD176: 8 | AE176: 2.5 | AF176: 4.5 | AG176: 6 | AH176: 9 | AI176: 5 | AJ176: 11 | AK176: 13.5 | AL176: 24.5 | AM176: 38 | AN176: 8.5 | AO176: 13 | AP176: 16 | AQ176: 37.5 | AR176: 9 | AS176: 15.5 | AT176: 11.5 | AU176: 36 | AV176: 8.5 | AW176: 7 | AX176: 10.5 | AY176: 26 | AZ176: 9 | BA176: 8 | BB176: 8 | BC176: 25 | BD176: 7.5 | BE176: 5 | BF176: 4 | BG176: 16.5 | BH176: 9.5 | BI176: 11.5 | BJ176: 16 | BK176: 37 | BL176: 8 | BM176: 12 | BN176: 15 | BO176: 35 | BP176: 339.5 | BQ176: 3 | BR176: 3 | BS176: 7.5 | BT176: 13.5 | BU176: 3.5 | BV176: 2.5 | BW176: 2.5 | BX176: 83.5 | BY176: دورثان | BZ176: فى : محاسبة مالية - رياضة عامة - | CA176: 2 | CI176: رياضة عامة - | CO176: محاسبة مالية - | CU176: 2 | CV176: 0 | CW176: 109.5 | CX176: 230
A177: 170 | B177: 170 | C177: طالب تجارة 170 | D177: 5/1 | E177: مستجد | F177: 1999-11-06 | G177: 25 | H177: 10 | I177: 18 | J177: 2 | K177: 7.5 | L177: 9 | M177: 10.5 | N177: 27 | O177: 8.5 | P177: 7.2 | Q177: 7.2 | R177: 22.9 | S177: 4.5 | T177: 7.6 | U177: 7.6 | V177: 19.7 | W177: 6 | X177: 4 | Y177: 9 | Z177: 19 | AA177: 2 | AB177: 0 | AC177: 6 | AD177: 8 | AE177: 3 | AF177: 4.5 | AG177: 5 | AH177: 9 | AI177: 5 | AJ177: 11 | AK177: 13 | AL177: 24.5 | AM177: 37.5 | AN177: 8.5 | AO177: 13 | AP177: 16 | AQ177: 37.5 | AR177: 9 | AS177: 14.5 | AT177: 12 | AU177: 35.5 | AV177: 8.5 | AW177: 3 | AX177: 8.5 | AY177: 20 | AZ177: 9 | BA177: 8 | BB177: 8 | BC177: 25 | BD177: 7.5 | BE177: 2.5 | BF177: 8 | BG177: 18 | BH177: 9.5 | BI177: 11.5 | BJ177: 15 | BK177: 36 | BL177: 8 | BM177: 8 | BN177: 17 | BO177: 33 | BP177: 339.1 | BQ177: 3 | BR177: 5.5 | BS177: 7.5 | BT177: 16 | BU177: 3.5 | BV177: 3.5 | BW177: 3 | BX177: 88.8 | BY177: دورثان | BZ177: فى : محاسبة مالية - رياضة عامة - | CA177: 2 | CI177: رياضة عامة - | CO177: محاسبة مالية - | CU177: 2 | CV177: 0 | CW177: 112.3 | CX177: 210
A178: 171 | B178: 171 | C178: طالب تجارة 171 | D178: 5/1 | E178: مستجد | F178: 2002-03-16 | G178: 15 | H178: 6 | I178: 16 | J178: 3 | K178: 8.5 | L178: 8 | M178: 9 | N178: 25.5 | O178: 8 | P178: 8.4 | Q178: 10 | R178: 26.4 | S178: 4.5 | T178: 9.6 | U178: 8.8 | V178: 22.9 | W178: 6 | X178: 11 | Y178: 9 | Z178: 26 | AA178: 2.5 | AB178: 5 | AC178: 10 | AD178: 17.5 | AE178: 2.5 | AF178: 4.5 | AG178: 6 | AH178: 7 | AI178: 6 | AJ178: 10 | AK178: 14.5 | AL178: 21.5 | AM178: 36 | AN178: 8.5 | AO178: 13 | AP178: 15 | AQ178: 36.5 | AR178: 7 | AS178: 12.5 | AT178: 9.5 | AU178: 29 | AV178: 8.5 | AW178: 0 | AX178: 11.5 | AY178: 20 | AZ178: 9 | BA178: 0 | BB178: 12 | BC178: 21 | BD178: 9 | BE178: 2 | BF178: 6 | BG178: 17 | BH178: 10 | BI178: 10.5 | BJ178: 13 | BK178: 33.5 | BL178: 8.5 | BM178: 6 | BN178: 13 | BO178: 27.5 | BP178: 338.8 | BQ178: 3.5 | BR178: 6 | BS178: 9 | BT178: 18.5 | BU178: 3.5 | BV178: 6 | BW178: 4.5 | BX178: 97.5 | BY178: دورثان | BZ178: فى : محاسبة مالية - ادارة اعمال - | CA178: 2 | CN178: ادارة اعمال - | CO178: محاسبة مالية - | CU178: 2 | CV178: 0 | CW178: 122 | CX178: 135
A179: 172 | B179: 172 | C179: طالب تجارة 172 | D179: 5/1 | E179: مستجد | F179: 2002-11-13 | G179: 18 | H179: 10 | I179: 15 | J179: 4 | K179: 6 | L179: 10 | M179: 11 | N179: 27 | O179: 8 | P179: 6.8 | Q179: 11.6 | R179: 26.4 | S179: 5 | T179: 9.2 | U179: 6.8 | V179: 21 | W179: 6 | X179: 7.5 | Y179: 6 | Z179: 19.5 | AA179: 3.5 | AB179: 3 | AC179: 5 | AD179: 11.5 | AE179: 3 | AF179: 4.5 | AG179: 5 | AH179: 4 | AI179: 5 | AJ179: 9 | AK179: 13 | AL179: 17.5 | AM179: 30.5 | AN179: 8.5 | AO179: 12 | AP179: 13 | AQ179: 33.5 | AR179: 7 | AS179: 10.5 | AT179: 11 | AU179: 28.5 | AV179: 8 | AW179: 5.5 | AX179: 10.5 | AY179: 24 | AZ179: 9 | BA179: 5 | BB179: 13 | BC179: 27 | BD179: 8 | BE179: 0 | BF179: 2 | BG179: 10 | BH179: 9 | BI179: 10.5 | BJ179: 14 | BK179: 33.5 | BL179: 8 | BM179: 15 | BN179: 13 | BO179: 36 | BP179: 328.4 | BQ179: 3 | BR179: 4 | BS179: 5 | BT179: 12 | BU179: 3 | BV179: 4.5 | BW179: 4.5 | BX179: 84.5 | BY179: دورثان | BZ179: فى : محاسبة مالية - رياضة عامة - | CA179: 2 | CI179: رياضة عامة - | CO179: محاسبة مالية - | CU179: 2 | CV179: 0 | CW179: 115 | CX179: 189
A180: 173 | B180: 173 | C180: طالب تجارة 173 | D180: 5/1 | E180: مستجد | F180: 2002-04-14 | G180: 17 | H180: 5 | I180: 16 | J180: 5 | K180: 6 | L180: 10 | M180: 10.5 | N180: 26.5 | O180: 8.5 | P180: 6 | Q180: 10.4 | R180: 24.9 | S180: 5 | T180: 8.8 | U180: 7.6 | V180: 21.4 | W180: 6 | X180: 11 | Y180: 6 | Z180: 23 | AA180: 3.5 | AB180: 1 | AC180: 5 | AD180: 9.5 | AE180: 2.5 | AF180: 4.5 | AG180: 4 | AH180: 4 | AI180: 5 | AJ180: 9 | AK180: 11.5 | AL180: 17.5 | AM180: 29 | AN180: 8.5 | AO180: 11 | AP180: 13 | AQ180: 32.5 | AR180: 7.5 | AS180: 12 | AT180: 11.5 | AU180: 31 | AV180: 8.5 | AW180: 2 | AX180: 9.5 | AY180: 20 | AZ180: 9 | BA180: 8 | BB180: 13 | BC180: 30 | BD180: 8 | BE180: 0.5 | BF180: 1 | BG180: 9.5 | BH180: 9 | BI180: 10 | BJ180: 14 | BK180: 33 | BL180: 8.5 | BM180: 15 | BN180: 13 | BO180: 36.5 | BP180: 326.8 | BQ180: 3 | BR180: 3.5 | BS180: 4 | BT180: 10.5 | BU180: 3 | BV180: 6 | BW180: 4 | BX180: 85.3 | BY180: دورثان | BZ180: فى : محاسبة مالية - رياضة عامة - | CA180: 2 | CI180: رياضة عامة - | CO180: محاسبة مالية - | CU180: 2 | CV180: 0 | CW180: 115.8 | CX180: 186
A181: 174 | B181: 174 | C181: طالب تجارة 174 | D181: 5/1 | E181: مستجد | F181: 2003-02-15 | G181: 16 | H181: 7 | I181: 15 | J181: 6 | K181: 6 | L181: 11 | M181: 11 | N181: 28 | O181: 8 | P181: 8.4 | Q181: 12.8 | R181: 29.2 | S181: 5 | T181: 10.2 | U181: 6 | V181: 21.2 | W181: 6 | X181: 6.5 | Y181: 5 | Z181: 17.5 | AA181: 4 | AB181: 2.5 | AC181: 5.5 | AD181: 12 | AE181: 3 | AF181: 4 | AG181: 5 | AH181: 4 | AI181: 5 | AJ181: 8 | AK181: 13 | AL181: 16 | AM181: 29 | AN181: 8.5 | AO181: 9 | AP181: 13 | AQ181: 30.5 | AR181: 7.5 | AS181: 9 | AT181: 12 | AU181: 28.5 | AV181: 8.5 | AW181: 0 | AX181: 11.5 | AY181: 20 | AZ181: 9 | BA181: 6 | BB181: 13 | BC181: 28 | BD181: 8 | BE181: 0 | BF181: 0 | BG181: 8 | BH181: 9 | BI181: 10 | BJ181: 14 | BK181: 33 | BL181: 8 | BM181: 15 | BN181: 13 | BO181: 36 | BP181: 320.9 | BQ181: 3 | BR181: 4 | BS181: 4.5 | BT181: 11.5 | BU181: 3 | BV181: 5 | BW181: 3.5 | BX181: 84.1 | BY181: دورثان | BZ181: فى : محاسبة مالية - رياضة عامة - | CA181: 2 | CI181: رياضة عامة - | CO181: محاسبة مالية - | CU181: 2 | CV181: 0 | CW181: 116.1 | CX181: 180
A182: 175 | B182: 175 | C182: طالب تجارة 175 | D182: 5/1 | E182: مستجد | F182: 2002-11-26 | G182: 5 | H182: 10 | I182: 15 | J182: 7 | K182: 6 | L182: 6.5 | M182: 12.5 | N182: 25 | O182: 7.5 | P182: 3.6 | Q182: 9.6 | R182: 20.7 | S182: 5 | T182: 9.6 | U182: 7.2 | V182: 21.8 | W182: 6 | X182: 6 | Y182: 4 | Z182: 16 | AA182: 4 | AB182: 3 | AC182: 4.5 | AD182: 11.5 | AE182: 2.5 | AF182: 4 | AG182: 5 | AH182: 4 | AI182: 6 | AJ182: 8 | AK182: 13.5 | AL182: 16 | AM182: 29.5 | AN182: 8.5 | AO182: 9 | AP182: 13 | AQ182: 30.5 | AR182: 7 | AS182: 7 | AT182: 12.5 | AU182: 26.5 | AV182: 8 | AW182: 0 | AX182: 12 | AY182: 20 | AZ182: 9 | BA182: 5 | BB182: 14 | BC182: 28 | BD182: 8 | BE182: 0 | BF182: 1.5 | BG182: 9.5 | BH182: 9 | BI182: 10.5 | BJ182: 14 | BK182: 33.5 | BL182: 8 | BM182: 15 | BN182: 12 | BO182: 35 | BP182: 307.5 | BQ182: 3 | BR182: 3.5 | BS182: 5 | BT182: 11.5 | BU182: 3 | BV182: 6 | BW182: 3 | BX182: 74.7 | BY182: دورثان | BZ182: فى : محاسبة مالية - رياضة عامة - | CA182: 2 | CI182: رياضة عامة - | CO182: محاسبة مالية - | CU182: 2 | CV182: 0 | CW182: 105.7 | CX182: 253
A183: 176 | B183: 176 | C183: طالب تجارة 176 | D183: 5/1 | E183: مستجد | F183: 2002-04-22 | G183: 9 | H183: 5 | I183: 16 | J183: 8 | K183: 7 | L183: 11 | M183: 12 | N183: 30 | O183: 9 | P183: 6.4 | Q183: 8.4 | R183: 23.8 | S183: 5 | T183: 10 | U183: 8 | V183: 23 | W183: 6 | X183: 7 | Y183: 6 | Z183: 19 | AA183: 4 | AB183: 2 | AC183: 9 | AD183: 15 | AE183: 3 | AF183: 4.5 | AG183: 4 | AH183: 5 | AI183: 5 | AJ183: 6 | AK183: 12 | AL183: 15.5 | AM183: 27.5 | AN183: 8.5 | AO183: 9 | AP183: 10 | AQ183: 27.5 | AR183: 8.5 | AS183: 5 | AT183: 11.5 | AU183: 25 | AV183: 7.5 | AW183: 2 | AX183: 10.5 | AY183: 20 | AZ183: 9 | BA183: 8 | BB183: 13 | BC183: 30 | BD183: 8 | BE183: 0 | BF183: 0 | BG183: 8 | BH183: 9 | BI183: 10 | BJ183: 14 | BK183: 33 | BL183: 8.5 | BM183: 15 | BN183: 16 | BO183: 39.5 | BP183: 321.3 | BQ183: 3 | BR183: 5 | BS183: 4 | BT183: 12 | BU183: 3 | BV183: 4.5 | BW183: 2.5 | BX183: 80.4 | BY183: دورثان | BZ183: فى : محاسبة مالية - | CA183: 1 | CO183: محاسبة مالية - | CU183: 1 | CV183: 0 | CW183: 112.4 | CX183: 208
A184: 177 | B184: 177 | C184: طالب تجارة 177 | D184: 5/1 | E184: مستجد | F184: 2002-12-20 | G184: 11 | H184: 9 | I184: 15 | J184: 9 | K184: 6.5 | L184: 9 | M184: 9.5 | N184: 25 | O184: 7.5 | P184: 4 | Q184: 12.4 | R184: 23.9 | S184: 5 | T184: 9.6 | U184: 8.8 | V184: 23.4 | W184: 6 | X184: 6.5 | Y184: 4 | Z184: 16.5 | AA184: 3.5 | AB184: 1.5 | AC184: 6 | AD184: 11 | AE184: 3 | AF184: 4 | AG184: 4 | AH184: 7 | AI184: 5 | AJ184: 7 | AK184: 12 | AL184: 18 | AM184: 30 | AN184: 8.5 | AO184: 9 | AP184: 11 | AQ184: 28.5 | AR184: 7 | AS184: 8 | AT184: 10.5 | AU184: 25.5 | AV184: 8 | AW184: 0 | AX184: 12 | AY184: 20 | AZ184: 9 | BA184: 6 | BB184: 13 | BC184: 28 | BD184: 8 | BE184: 0 | BF184: 0 | BG184: 8 | BH184: 9 | BI184: 10 | BJ184: 14 | BK184: 33 | BL184: 8 | BM184: 15 | BN184: 13 | BO184: 36 | BP184: 308.8 | BQ184: 3 | BR184: 4 | BS184: 5 | BT184: 12 | BU184: 3 | BV184: 5 | BW184: 4 | BX184: 74.1 | BY184: دورثان | BZ184: فى : محاسبة مالية - رياضة عامة - | CA184: 2 | CI184: رياضة عامة - | CO184: محاسبة مالية - | CU184: 2 | CV184: 0 | CW184: 106.1 | CX184: 251
A185: 178 | B185: 178 | C185: طالب تجارة 178 | D185: 5/1 | E185: مستجد | F185: 2002-03-02 | G185: 29 | H185: 6 | I185: 16 | J185: 10 | K185: 6.5 | L185: 9 | M185: 9.5 | N185: 25 | O185: 7.5 | P185: 4.8 | Q185: 12.4 | R185: 24.7 | S185: 5 | T185: 8.8 | U185: 7.6 | V185: 21.4 | W185: 6 | X185: 5 | Y185: 5 | Z185: 16 | AA185: 3.5 | AB185: 2 | AC185: 4.5 | AD185: 10 | AE185: 3 | AF185: 4 | AG185: 5 | AH185: 5 | AI185: 6 | AJ185: 9 | AK185: 14 | AL185: 18 | AM185: 32 | AN185: 8.5 | AO185: 9 | AP185: 13 | AQ185: 30.5 | AR185: 7.5 | AS185: 5 | AT185: 12.5 | AU185: 25 | AV185: 8.5 | AW185: 1.5 | AX185: 13.5 | AY185: 23.5 | AZ185: 9 | BA185: 5 | BB185: 12 | BC185: 26 | BD185: 8 | BE185: 0 | BF185: 0 | BG185: 8 | BH185: 9 | BI185: 10 | BJ185: 14 | BK185: 33 | BL185: 8 | BM185: 15 | BN185: 13 | BO185: 36 | BP185: 311.1 | BQ185: 3 | BR185: 3 | BS185: 4.5 | BT185: 10.5 | BU185: 3 | BV185: 4 | BW185: 3 | BX185: 76.1 | BY185: دورثان | BZ185: فى : محاسبة مالية - رياضة عامة - | CA185: 2 | CI185: رياضة عامة - | CO185: محاسبة مالية - | CU185: 2 | CV185: 0 | CW185: 108.1 | CX185: 239
A186: 179 | B186: 179 | C186: طالب تجارة 179 | D186: 5/1 | E186: مستجد | F186: 2001-12-02 | G186: 29 | H186: 9 | I186: 16 | J186: 11 | K186: 6.5 | L186: 6.5 | M186: 12 | N186: 25 | O186: 7.5 | P186: 4.8 | Q186: 11.2 | R186: 23.5 | S186: 5 | T186: 8.8 | U186: 7.2 | V186: 21 | W186: 6 | X186: 7.5 | Y186: 5 | Z186: 18.5 | AA186: 3.5 | AB186: 2 | AC186: 5.5 | AD186: 11 | AE186: 2.5 | AF186: 4 | AG186: 4 | AH186: 5 | AI186: 6 | AJ186: 7 | AK186: 12.5 | AL186: 16 | AM186: 28.5 | AN186: 8.5 | AO186: 11 | AP186: 13 | AQ186: 32.5 | AR186: 7 | AS186: 8 | AT186: 12 | AU186: 27 | AV186: 8 | AW186: 1 | AX186: 14.5 | AY186: 23.5 | AZ186: 9 | BA186: 4 | BB186: 13 | BC186: 26 | BD186: 8.5 | BE186: 0 | BF186: 0 | BG186: 8.5 | BH186: 9 | BI186: 11 | BJ186: 12 | BK186: 32 | BL186: 8 | BM186: 15 | BN186: 12 | BO186: 35 | BP186: 312 | BQ186: 3 | BR186: 3.5 | BS186: 4.5 | BT186: 11 | BU186: 3 | BV186: 3.5 | BW186: 3.5 | BX186: 73.1 | BY186: دورثان | BZ186: فى : محاسبة مالية - رياضة عامة - | CA186: 2 | CI186: رياضة عامة - | CO186: محاسبة مالية - | CU186: 2 | CV186: 0 | CW186: 104.6 | CX186: 261
A187: 180 | B187: 180 | C187: طالب تجارة 180 | D187: 5/1 | E187: مستجد | F187: 2001-10-01 | G187: 0 | H187: 0 | I187: 17 | J187: 12 | K187: 7 | L187: 10.5 | M187: 13.5 | N187: 31 | O187: 8 | P187: 8 | Q187: 13.2 | R187: 29.2 | S187: 5 | T187: 10.8 | U187: 9.2 | V187: 25 | W187: 6 | X187: 9.5 | Y187: 6 | Z187: 21.5 | AA187: 3.5 | AB187: 2.5 | AC187: 5.5 | AD187: 11.5 | AE187: 3 | AF187: 4 | AG187: 4 | AH187: 5 | AI187: 6 | AJ187: 10 | AK187: 13 | AL187: 19 | AM187: 32 | AN187: 8.5 | AO187: 9 | AP187: 13 | AQ187: 30.5 | AR187: 7 | AS187: 9.5 | AT187: 12 | AU187: 28.5 | AV187: 8.5 | AW187: 3 | AX187: 10 | AY187: 21.5 | AZ187: 9 | BA187: 9 | BB187: 14 | BC187: 32 | BD187: 8 | BE187: 0 | BF187: 2 | BG187: 10 | BH187: 9 | BI187: 10.5 | BJ187: 14 | BK187: 33.5 | BL187: 8 | BM187: 17 | BN187: 17 | BO187: 42 | BP187: 348.2 | BQ187: 3 | BR187: 3 | BS187: 5 | BT187: 11 | BU187: 3 | BV187: 5 | BW187: 3.5 | BX187: 90.3 | BY187: دورثان | BZ187: فى : محاسبة مالية - رياضة عامة - | CA187: 2 | CI187: رياضة عامة - | CO187: محاسبة مالية - | CU187: 2 | CV187: 0 | CW187: 120.8 | CX187: 145
A188: 181 | B188: 181 | C188: طالب تجارة 181 | D188: 5/1 | E188: مستجد | F188: 2002-12-13 | G188: 18 | H188: 9 | I188: 15 | J188: 13 | K188: 6 | L188: 0 | M188: 6 | N188: 12 | O188: 7.5 | P188: 6.8 | Q188: 10.8 | R188: 25.1 | S188: 5 | T188: 9.6 | U188: 7.6 | V188: 22.2 | W188: 6 | X188: 5 | Y188: 5 | Z188: 16 | AA188: 3.5 | AB188: 2.5 | AC188: 9 | AD188: 15 | AE188: 3 | AF188: 4 | AG188: 5 | AH188: 5 | AI188: 6 | AJ188: 7 | AK188: 14 | AL188: 16 | AM188: 30 | AN188: 8.5 | AO188: 9 | AP188: 13 | AQ188: 30.5 | AR188: 7 | AS188: 5 | AT188: 13 | AU188: 25 | AV188: 8 | AW188: 1 | AX188: 11 | AY188: 20 | AZ188: 9 | BA188: 10 | BB188: 13 | BC188: 32 | BD188: 8 | BE188: 0.5 | BF188: 1 | BG188: 9.5 | BH188: 9 | BI188: 9.5 | BJ188: 14 | BK188: 32.5 | BL188: 8 | BM188: 17 | BN188: 13 | BO188: 38 | BP188: 307.8 | BQ188: 3 | BR188: 3.5 | BS188: 4 | BT188: 10.5 | BU188: 3 | BV188: 5 | BW188: 2.5 | BX188: 68.9 | BY188: دورثان | BZ188: فى : لغة عربية - محاسبة مالية - | CA188: 2 | CE188: لغة عربية - | CO188: محاسبة مالية - | CU188: 2 | CV188: 0 | CW188: 98.9 | CX188: 286
A189: 182 | B189: 182 | C189: طالب تجارة 182 | D189: 5/1 | E189: مستجد | F189: 2002-08-10 | G189: 21 | H189: 1 | I189: 16 | J189: 14 | K189: 6.5 | L189: 6.5 | M189: 7 | N189: 20 | O189: 7.5 | P189: 7.2 | Q189: 9.6 | R189: 24.3 | S189: 5 | T189: 9.6 | U189: 6.8 | V189: 21.4 | W189: 6 | X189: 5.5 | Y189: 4.5 | Z189: 16 | AA189: 3.5 | AB189: 2.5 | AC189: 9 | AD189: 15 | AE189: 3 | AF189: 4 | AG189: 4 | AH189: 6 | AI189: 5 | AJ189: 8 | AK189: 12 | AL189: 18 | AM189: 30 | AN189: 8.5 | AO189: 8 | AP189: 13 | AQ189: 29.5 | AR189: 7 | AS189: 7 | AT189: 11 | AU189: 25 | AV189: 8 | AW189: 2.5 | AX189: 9.5 | AY189: 20 | AZ189: 9 | BA189: 10 | BB189: 13 | BC189: 32 | BD189: 8 | BE189: 0 | BF189: 0 | BG189: 8 | BH189: 9 | BI189: 10.5 | BJ189: 14 | BK189: 33.5 | BL189: 8 | BM189: 15 | BN189: 13 | BO189: 36 | BP189: 310.7 | BQ189: 3 | BR189: 3 | BS189: 5 | BT189: 11 | BU189: 3 | BV189: 6 | BW189: 2.5 | BX189: 75.8 | BY189: دورثان | BZ189: فى : لغة عربية - محاسبة مالية - | CA189: 2 | CE189: لغة عربية - | CO189: محاسبة مالية - | CU189: 2 | CV189: 0 | CW189: 108.3 | CX189: 236
A190: 183 | B190: 183 | C190: طالب تجارة 183 | D190: 5/1 | E190: مستجد | F190: 2002-10-01 | G190: 0 | H190: 0 | I190: 16 | J190: 15 | K190: 7 | L190: 8 | M190: 13 | N190: 28 | O190: 7.5 | P190: 4.4 | Q190: 13.2 | R190: 25.1 | S190: 5 | T190: 9.2 | U190: 7.2 | V190: 21.4 | W190: 6 | X190: 7 | Y190: 4 | Z190: 17 | AA190: 3.5 | AB190: 3 | AC190: 8.5 | AD190: 15 | AE190: 3 | AF190: 4.5 | AG190: 4 | AH190: 5 | AI190: 5 | AJ190: 7 | AK190: 12 | AL190: 16.5 | AM190: 28.5 | AN190: 9 | AO190: 10 | AP190: 14 | AQ190: 33 | AR190: 7 | AS190: 8.5 | AT190: 12.5 | AU190: 28 | AV190: 8 | AW190: 0 | AX190: 7 | AY190: 15 | AZ190: 9 | BA190: 8 | BB190: 14 | BC190: 31 | BD190: 8 | BE190: 0 | BF190: 0 | BG190: 8 | BH190: 9 | BI190: 11.5 | BJ190: 16 | BK190: 36.5 | BL190: 8 | BM190: 15 | BN190: 13 | BO190: 36 | BP190: 322.5 | BQ190: 3 | BR190: 4 | BS190: 4.5 | BT190: 11.5 | BU190: 3 | BV190: 6 | BW190: 4 | BX190: 76.1 | BY190: دورثان | BZ190: فى : محاسبة مالية - سكرتارية اجنبية - | CA190: 2 | CM190: سكرتارية اجنبية - | CO190: محاسبة مالية - | CU190: 2 | CV190: 0 | CW190: 111.6 | CX190: 215
A191: 184 | B191: 184 | C191: طالب تجارة 184 | D191: 5/1 | E191: مستجد | F191: 2002-08-07 | G191: 24 | H191: 1 | I191: 16 | J191: 16 | K191: 7 | L191: 10 | M191: 10 | N191: 27 | O191: 9 | P191: 7.6 | Q191: 8.8 | R191: 25.4 | S191: 5 | T191: 5.2 | U191: 6.8 | V191: 17 | W191: 6 | X191: 8 | Y191: 10 | Z191: 24 | AA191: 3.5 | AB191: 2.5 | AC191: 9.5 | AD191: 15.5 | AE191: 2.5 | AF191: 4 | AG191: 4 | AH191: 6 | AI191: 5 | AJ191: 7 | AK191: 11.5 | AL191: 17 | AM191: 28.5 | AN191: 8.5 | AO191: 6 | AP191: 14 | AQ191: 28.5 | AR191: 7.5 | AS191: 15.5 | AT191: 12 | AU191: 35 | AV191: 8 | AW191: 6 | AX191: 6 | AY191: 20 | AZ191: 9 | BA191: 13 | BB191: 11 | BC191: 33 | BD191: 8 | BE191: 1 | BF191: 7.5 | BG191: 16.5 | BH191: 9 | BI191: 8 | BJ191: 11 | BK191: 28 | BL191: 8 | BM191: 15 | BN191: 12 | BO191: 35 | BP191: 333.4 | BQ191: 3 | BR191: 4 | BS191: 6.5 | BT191: 13.5 | BU191: 3 | BV191: 5 | BW191: 3.5 | BX191: 85.8 | BY191: دورثان | BZ191: فى : محاسبة مالية - | CA191: 1 | CO191: محاسبة مالية - | CU191: 1 | CV191: 0 | CW191: 104.3 | CX191: 264
A192: 185 | B192: 185 | C192: طالب تجارة 185 | D192: 5/1 | E192: مستجد | F192: 2002-11-20 | G192: 11 | H192: 10 | I192: 15 | J192: 17 | K192: 7 | L192: 11.5 | M192: 14 | N192: 32.5 | O192: 9 | P192: 10.8 | Q192: 10.4 | R192: 30.2 | S192: 5 | T192: 8.4 | U192: 6.8 | V192: 20.2 | W192: 6 | X192: 10.5 | Y192: 11 | Z192: 27.5 | AA192: 3.5 | AB192: 2 | AC192: 6 | AD192: 11.5 | AE192: 3 | AF192: 4 | AG192: 4 | AH192: 7 | AI192: 6 | AJ192: 7 | AK192: 13 | AL192: 18 | AM192: 31 | AN192: 8.5 | AO192: 7 | AP192: 14 | AQ192: 29.5 | AR192: 7 | AS192: 10.5 | AT192: 11.5 | AU192: 29 | AV192: 8 | AW192: 6.5 | AX192: 5.5 | AY192: 20 | AZ192: 9 | BA192: 15 | BB192: 11 | BC192: 35 | BD192: 8 | BE192: 1 | BF192: 0 | BG192: 9 | BH192: 9 | BI192: 7 | BJ192: 11 | BK192: 27 | BL192: 8.5 | BM192: 14 | BN192: 12 | BO192: 34.5 | BP192: 336.9 | BQ192: 3 | BR192: 4.5 | BS192: 6.5 | BT192: 14 | BU192: 3 | BV192: 5 | BW192: 2.5 | BX192: 87.7 | BY192: دورثان | BZ192: فى : محاسبة مالية - رياضة عامة - | CA192: 2 | CI192: رياضة عامة - | CO192: محاسبة مالية - | CU192: 2 | CV192: 0 | CW192: 112.7 | CX192: 205
A193: 186 | B193: 186 | C193: طالب تجارة 186 | D193: 5/1 | E193: مستجد | F193: 2000-09-04 | G193: 27 | H193: 0 | I193: 18 | J193: 18 | K193: 7 | L193: 10.5 | M193: 10.5 | N193: 28 | O193: 9 | P193: 8.8 | Q193: 11.6 | R193: 29.4 | S193: 5 | T193: 4.4 | U193: 7.6 | V193: 17 | W193: 6 | X193: 7.5 | Y193: 7 | Z193: 20.5 | AA193: 3.5 | AB193: 1.5 | AC193: 10 | AD193: 15 | AE193: 3 | AF193: 4 | AG193: 6 | AH193: 2 | AI193: 5 | AJ193: 8 | AK193: 14 | AL193: 14 | AM193: 28 | AN193: 9 | AO193: 6 | AP193: 9 | AQ193: 24 | AR193: 7.5 | AS193: 5 | AT193: 13 | AU193: 25.5 | AV193: 8 | AW193: 0 | AX193: 0 | AY193: 8 | AZ193: 9 | BA193: 12 | BB193: 11.5 | BC193: 32.5 | BD193: 8 | BE193: 0 | BF193: 8 | BG193: 16 | BH193: 9 | BI193: 9 | BJ193: 11 | BK193: 29 | BL193: 8 | BM193: 16 | BN193: 13 | BO193: 37 | BP193: 309.9 | BQ193: 3 | BR193: 4.5 | BS193: 5.5 | BT193: 13 | BU193: 3 | BV193: 6 | BW193: 1 | BX193: 86.2 | BY193: راسبة | BZ193: فى : محاسبة مالية - سكرتارية اجنبية - اقتصاد - حاسب ألى - تربية قومية - | CA193: 5 | CJ193: حاسب ألى - | CK193: اقتصاد - | CM193: سكرتارية اجنبية - | CO193: محاسبة مالية - | CT193: تربية قومية - | CU193: 4 | CV193: 1 | CW193: 106.2 | CX193: 250
A194: 187 | B194: 187 | C194: طالب تجارة 187 | D194: 5/1 | E194: مستجد | F194: 2002-08-07 | G194: 24 | H194: 1 | I194: 16 | J194: 19 | K194: 7 | L194: 7.5 | M194: 10.5 | N194: 25 | O194: 8 | P194: 6 | Q194: 6 | R194: 20 | S194: 5 | T194: 4.4 | U194: 6.4 | V194: 15.8 | W194: 6 | X194: 4.5 | Y194: 6 | Z194: 16.5 | AA194: 3.5 | AB194: 0 | AC194: 6.5 | AD194: 10 | AE194: 3 | AF194: 4 | AG194: 4 | AH194: 3 | AI194: 5 | AJ194: 8 | AK194: =SUM(AE194,AG194,AI194) -> 12 | AL194: =SUM(AF194,AH194,AJ194) -> 15 | AM194: 27 | AN194: 9 | AO194: 6 | AP194: 11 | AQ194: 26 | AR194: 7 | AS194: 6.5 | AT194: 11.5 | AU194: 25 | AV194: 8 | AW194: 1 | AX194: 11 | AY194: 20 | AZ194: 9 | BA194: 7 | BB194: 9.5 | BC194: 25.5 | BD194: 8 | BE194: 0.5 | BF194: 1 | BG194: 9.5 | BH194: 9 | BI194: 7 | BJ194: 12 | BK194: 28 | BL194: 8 | BM194: 12 | BN194: 10 | BO194: 30 | BP194: 278.3 | BQ194: 3 | BR194: 4 | BS194: 3.5 | BT194: 10.5 | BU194: 3 | BV194: 5 | BW194: 2 | BX194: 68.9 | BY194: دورثان | BZ194: فى : محاسبة مالية - رياضة عامة - مجموع - | CA194: 3 | CI194: رياضة عامة - | CO194: محاسبة مالية - | CR194: مجموع - | CU194: 2 | CV194: 1 | CW194: 94.4 | CX194: 311
A195: 188 | B195: 188 | C195: طالب تجارة 188 | D195: 5/1 | E195: مستجد | F195: 2002-09-28 | G195: 3 | H195: 0 | I195: 16 | J195: 20 | K195: 6.5 | L195: 9.5 | M195: 11 | N195: 27 | O195: 7.5 | P195: 8 | Q195: 7.6 | R195: 23.1 | S195: 5 | T195: 3.6 | U195: 8.8 | V195: 17.4 | W195: 6 | X195: 5.5 | Y195: 8 | Z195: 19.5 | AA195: 3.5 | AB195: 1 | AC195: 7 | AD195: 11.5 | AE195: 2.5 | AF195: 4 | AG195: 5 | AH195: 3 | AI195: 5 | AJ195: 8 | AK195: 12.5 | AL195: 15 | AM195: 27.5 | AN195: 9 | AO195: 5 | AP195: 10 | AQ195: 24 | AR195: 7 | AS195: 6.5 | AT195: 11.5 | AU195: 25 | AV195: 8.5 | AW195: 2.5 | AX195: 9 | AY195: 20 | AZ195: 9 | BA195: 7 | BB195: 11 | BC195: 27 | BD195: 8 | BE195: 0.5 | BF195: 3 | BG195: 11.5 | BH195: 9 | BI195: 7 | BJ195: 10 | BK195: 26 | BL195: 8 | BM195: 10 | BN195: 12 | BO195: 30 | BP195: 289.5 | BQ195: 3 | BR195: 4.5 | BS195: 4 | BT195: 11.5 | BU195: 3 | BV195: 4 | BW195: 3 | BX195: 76.6 | BY195: راسبة | BZ195: فى : محاسبة مالية - اقتصاد - رياضة عامة - مجموع - | CA195: 4 | CI195: رياضة عامة - | CK195: اقتصاد - | CO195: محاسبة مالية - | CR195: مجموع - | CU195: 3 | CV195: 1 | CW195: 98.1 | CX195: 290
A196: 189 | B196: 189 | C196: طالب تجارة 189 | D196: 5/1 | E196: مستجد | F196: 2000-12-01 | G196: 0 | H196: 10 | I196: 17 | J196: 21 | K196: 7 | L196: 9 | M196: 9.5 | N196: 25.5 | O196: 7.5 | P196: 6.4 | Q196: 6.4 | R196: 20.3 | S196: 5 | T196: 4.8 | U196: 8.8 | V196: 18.6 | W196: 6 | X196: 8.5 | Y196: 8 | Z196: 22.5 | AA196: 3.5 | AB196: 1.5 | AC196: 10 | AD196: 15 | AE196: 2.5 | AF196: 4.5 | AG196: 4 | AH196: 3 | AI196: 6 | AJ196: 8 | AK196: 12.5 | AL196: 15.5 | AM196: 28 | AN196: 8.5 | AO196: 6 | AP196: 12 | AQ196: 26.5 | AR196: 7.5 | AS196: 6.5 | AT196: 11.5 | AU196: 25.5 | AV196: 8.5 | AW196: 1 | AX196: 11 | AY196: 20.5 | AZ196: 9 | BA196: 10 | BB196: 9 | BC196: 28 | BD196: 8 | BE196: 1.5 | BF196: 3.5 | BG196: 13 | BH196: 9 | BI196: 7 | BJ196: 12 | BK196: 28 | BL196: 8 | BM196: 12 | BN196: 15 | BO196: 35 | BP196: 306.4 | BQ196: 3 | BR196: 4.5 | BS196: 4.5 | BT196: 12 | BU196: 3 | BV196: 4 | BW196: 2 | BX196: 81.2 | BY196: دورثان | BZ196: فى : محاسبة مالية - | CA196: 1 | CO196: محاسبة مالية - | CU196: 1 | CV196: 0 | CW196: 103.2 | CX196: 271
A197: 190 | B197: 190 | C197: طالب تجارة 190 | D197: 5/1 | E197: مستجد | F197: 2001-04-05 | G197: 26 | H197: 5 | I197: 17 | J197: 22 | K197: 7 | L197: 10 | M197: 12 | N197: 29 | O197: 7.5 | P197: 5.2 | Q197: 8.6 | R197: 21.3 | S197: 5 | T197: 5.6 | U197: 8.8 | V197: 19.4 | W197: 6 | X197: 7 | Y197: 8 | Z197: 21 | AA197: 3.5 | AB197: 3 | AC197: 8.5 | AD197: 15 | AE197: 2.5 | AF197: 4 | AG197: 5 | AH197: 5 | AI197: 5 | AJ197: 6 | AK197: 12.5 | AL197: 15 | AM197: 27.5 | AN197: 8.5 | AO197: 7 | AP197: 8 | AQ197: 23.5 | AR197: 7 | AS197: 8.5 | AT197: 13 | AU197: 28.5 | AV197: 8.5 | AW197: 0.5 | AX197: 11.5 | AY197: 20.5 | AZ197: 9 | BA197: 11 | BB197: 7 | BC197: 27 | BD197: 8 | BE197: 6 | BF197: 2.5 | BG197: 16.5 | BH197: 9 | BI197: 7 | BJ197: 9 | BK197: 25 | BL197: 8 | BM197: 10 | BN197: 11 | BO197: 29 | BP197: 303.2 | BQ197: 3 | BR197: 4.5 | BS197: 4.5 | BT197: 12 | BU197: 3 | BV197: 4 | BW197: 3 | BX197: 82.3 | BY197: دورثان | BZ197: فى : محاسبة مالية - اقتصاد - | CA197: 2 | CK197: اقتصاد - | CO197: محاسبة مالية - | CU197: 2 | CV197: 0 | CW197: 97.8 | CX197: 292
A198: 191 | B198: 191 | C198: طالب تجارة 191 | D198: 5/1 | E198: مستجد | F198: 2003-03-26 | G198: 5 | H198: 6 | I198: 15 | J198: 23 | K198: 6.5 | L198: 7.5 | M198: 11 | N198: 25 | O198: 7.5 | P198: 4.8 | Q198: 8.6 | R198: 20.9 | S198: 5 | T198: 5.2 | U198: 8.8 | V198: 19 | W198: 6 | X198: 5.5 | Y198: 8 | Z198: 19.5 | AA198: 4 | AB198: 0 | AC198: 7 | AD198: 11 | AE198: 2.5 | AF198: 4 | AG198: 5 | AH198: 3 | AI198: 5 | AJ198: 8 | AK198: 12.5 | AL198: 15 | AM198: 27.5 | AN198: 8.5 | AO198: 6 | AP198: 8 | AQ198: 22.5 | AR198: 7 | AS198: 9.5 | AT198: 11 | AU198: 27.5 | AV198: 8 | AW198: 2 | AX198: 10 | AY198: 20 | AZ198: 9 | BA198: 10 | BB198: 6 | BC198: 25 | BD198: 8 | BE198: 0 | BF198: 1 | BG198: 9 | BH198: 9 | BI198: 6.5 | BJ198: 10 | BK198: 25.5 | BL198: 8 | BM198: 10 | BN198: 13 | BO198: 31 | BP198: 283.4 | BQ198: 3 | BR198: 4 | BS198: 5 | BT198: 12 | BU198: 3 | BV198: 5.5 | BW198: 2 | BX198: 68.5 | BY198: راسبة | BZ198: فى : محاسبة مالية - اقتصاد - رياضة عامة - مجموع - | CA198: 4 | CI198: رياضة عامة - | CK198: اقتصاد - | CO198: محاسبة مالية - | CR198: مجموع - | CU198: 3 | CV198: 1 | CW198: 92 | CX198: 323
A199: 192 | B199: 192 | C199: طالب تجارة 192 | D199: 5/1 | E199: مستجد | F199: 2001-10-28 | G199: 3 | H199: 11 | I199: 16 | J199: 24 | K199: 7 | L199: 7.5 | M199: 10.5 | N199: 25 | O199: 8.5 | P199: 8.4 | Q199: 9.6 | R199: 26.5 | S199: 5 | T199: 3.2 | U199: 8.8 | V199: 17 | W199: 6 | X199: 5 | Y199: 9 | Z199: 20 | AA199: 3.5 | AB199: 0.5 | AC199: 7 | AD199: 11 | AE199: 3 | AF199: 4.5 | AG199: 4 | AH199: 4 | AI199: 6 | AJ199: 7 | AK199: 13 | AL199: 15.5 | AM199: 28.5 | AN199: 9 | AO199: 6 | AP199: 11 | AQ199: 26 | AR199: 7.5 | AS199: 6.5 | AT199: 12.5 | AU199: 26.5 | AV199: 8 | AW199: 3.5 | AX199: 10.5 | AY199: 22 | AZ199: 9 | BA199: 8 | BB199: 8 | BC199: 25 | BD199: 8 | BE199: 6 | BF199: 1 | BG199: 15 | BH199: 9 | BI199: 7 | BJ199: 9 | BK199: 25 | BL199: 8 | BM199: 12 | BN199: 12 | BO199: 32 | BP199: 299.5 | BQ199: 3 | BR199: 4.5 | BS199: 4.5 | BT199: 12 | BU199: 3 | BV199: 5.5 | BW199: 3.5 | BX199: 76.6 | BY199: دورثان | BZ199: فى : محاسبة مالية - رياضة عامة - مجموع - | CA199: 3 | CI199: رياضة عامة - | CO199: محاسبة مالية - | CR199: مجموع - | CU199: 2 | CV199: 1 | CW199: 93.6 | CX199: 314
A200: 193 | B200: 193 | C200: طالب تجارة 193 | D200: 5/1 | E200: مستجد | F200: 2002-11-25 | G200: 6 | H200: 10 | I200: 15 | J200: 25 | K200: 7 | L200: 13 | M200: 11.5 | N200: =SUM(K200:M200) -> 31.5 | O200: 7.5 | P200: 1.6 | Q200: 4.4 | R200: 13.5 | S200: 5 | T200: 3.6 | U200: 9.2 | V200: 17.8 | W200: 6 | X200: 6.5 | Y200: 8 | Z200: 20.5 | AA200: 4 | AB200: 1 | AC200: 10 | AD200: 15 | AE200: 3 | AF200: 4 | AG200: 4 | AH200: 6 | AI200: 6 | AJ200: 5 | AK200: 13 | AL200: 15 | AM200: 28 | AN200: 8.5 | AO200: 6 | AP200: 11 | AQ200: 25.5 | AR200: 7 | AS200: 5.5 | AT200: 12.5 | AU200: 25 | AV200: 8 | AW200: 0 | AX200: 12 | AY200: 20 | AZ200: 9 | BA200: 7 | BB200: 10 | BC200: 26 | BD200: 8 | BE200: 5 | BF200: 3 | BG200: 16 | BH200: 9 | BI200: 7 | BJ200: 10 | BK200: =SUM(BH200:BJ200) -> 26 | BL200: 7.5 | BM200: 12 | BN200: 11 | BO200: 30.5 | BP200: =SUM(N200,R200,V200,BG200,AU200,AY200,AQ200,BK200,BC200,BO200,AD200,Z200,AM200) -> 295.3 | BQ200: 3 | BR200: 3.5 | BS200: 4.5 | BT200: 11 | BU200: 3 | BV200: 5.5 | BW200: 3 | BX200: 75.2 | BY200: دورثان | BZ200: فى : لغة انجليزية - محاسبة مالية - مجموع - | CA200: 3 | CF200: لغة انجليزية - | CO200: محاسبة مالية - | CR200: مجموع - | CU200: 2 | CV200: 1 | CW200: 92.2 | CX200: 322
... 211 more rows

Sheet شيت الناجحات
C1: الناجحات | L1: ادارة ………….. التعليمية | AN1: شيت كنترول الصف الاول | BI1: الناجحات
L2: مدرسة …………….. التجارية | AN2: للعام الدراسى 2017 / 2018
A3: مسلسل | B3: جلوس | C3: الاسم | D3: الفصل | E3: الحالة | F3: تاريخ الميلاد | G3: السن فى | J3: سرى | K3: لغة عربية | O3: لغة انجليزية | S3: لغة فرنسية | W3: جغرافيا | AA3: رياضة عامة | AE3: حاسب آلى | AN3: اقتصاد | AR3: سكرتارية عربية | AV3: سكرتارية اجنبية | AZ3: ادارة اعمال | BD3: محاسبة مالية | BH3: تسويق | BL3: قانون تجارى | BP3: مجموع كلى | BQ3: تربية دينية | BU3: تربية وطنية | BY3: النتيجة | BZ3: الترتيب
K4: اعمال السنة | L4: نصف العام | M4: آخر العام | N4: المجموع | O4: اعمال السنة | P4: نصف العام | Q4: آخر العام | R4: المجموع | S4: اعمال السنة | T4: نصف العام | U4: آخر العام | V4: المجموع | W4: اعمال السنة | X4: نصف العام | Y4: آخر العام | Z4: المجموع | AA4: اعمال السنة | AB4: نصف العام | AC4: آخر العام | AD4: المجموع | AE4: اعمال السنة | AG4: نصف العام | AI4: آخر العام | AK4: مج عملى | AL4: مج تحريرى | AM4: مج حاسب | AN4: اعمال السنة | AO4: نصف العام | AP4: آخر العام | AQ4: المجموع | AR4: اعمال السنة | AS4: نصف العام | AT4: آخر العام | AU4: المجموع | AV4: اعمال السنة | AW4: نصف العام | AX4: آخر العام | AY4: المجموع | AZ4: اعمال السنة | BA4: نصف العام | BB4: آخر العام | BC4: المجموع | BD4: اعمال السنة | BE4: نصف العام | BF4: آخر العام | BG4: المجموع | BH4: اعمال السنة | BI4: نصف العام | BJ4: آخر العام | BK4: المجموع | BL4: اعمال السنة | BM4: نصف العام | BN4: آخر العام | BO4: المجموع | BQ4: اعمال السنة | BR4: نصف العام | BS4: آخر العام | BT4: المجموع | BU4: اعمال السنة | BV4: نصف العام | BW4: آخر العام | BX4: المجموع
G5: 2018-10-01 | AE5: عملى | AF5: تحريرى | AG5: عملى | AH5: تحريرى | AI5: عملى | AJ5: تحريرى
G6: يوم | H6: شهر | I6: سنة | J6: عظمى | K6: 10 | L6: 20 | M6: 20 | N6: 50 | O6: 10 | P6: 20 | Q6: 20 | R6: 50 | S6: 6 | T6: 12 | U6: 12 | V6: 30 | W6: 8 | X6: 16 | Y6: 16 | Z6: 40 | AA6: 6 | AB6: 12 | AC6: 12 | AD6: 30 | AE6: 4 | AF6: 6 | AG6: 8 | AH6: 12 | AI6: 8 | AJ6: 12 | AK6: 20 | AL6: 30 | AM6: 50 | AN6: 10 | AO6: 20 | AP6: 20 | AQ6: 50 | AR6: 10 | AS6: 20 | AT6: 20 | AU6: 50 | AV6: 10 | AW6: 20 | AX6: 20 | AY6: 50 | AZ6: 10 | BA6: 20 | BB6: 20 | BC6: 50 | BD6: 10 | BE6: 20 | BF6: 20 | BG6: 50 | BH6: 10 | BI6: 20 | BJ6: 20 | BK6: 50 | BL6: 10 | BM6: 20 | BN6: 20 | BO6: 50 | BP6: 600 | BQ6: 4 | BR6: 8 | BS6: 8 | BT6: 20 | BU6: 4 | BV6: 8 | BW6: 8 | BX6: 20
J7: صغرى | K7: 0 | L7: 0 | M7: 5 | N7: 25 | O7: 0 | P7: 0 | Q7: 5 | R7: 20 | S7: 0 | T7: 0 | U7: 3 | V7: 9 | W7: 0 | X7: 0 | Y7: 4 | Z7: 16 | AA7: 0 | AB7: 0 | AC7: 3 | AD7: 15 | AE7: 0 | AF7: 0 | AG7: 0 | AH7: 0 | AI7: 2 | AJ7: 3 | AK7: 10 | AL7: 15 | AM7: 25 | AN7: 0 | AO7: 0 | AP7: 5 | AQ7: 25 | AR7: 0 | AS7: 0 | AT7: 5 | AU7: 25 | AV7: 0 | AW7: 0 | AX7: 5 | AY7: 20 | AZ7: 0 | BA7: 0 | BB7: 5 | BC7: 25 | BD7: 0 | BE7: 0 | BF7: 5 | BG7: 25 | BH7: 0 | BI7: 0 | BJ7: 5 | BK7: 25 | BL7: 0 | BM7: 0 | BN7: 5 | BO7: 25 | BP7: 300 | BQ7: 0 | BR7: 0 | BS7: 2 | BT7: 10 | BU7: 0 | BV7: 0 | BW7: 2 | BX7: 10
A8: 1 | B8: 1 | C8: طالب تجارة 1 | D8: 1/1 | E8: مستجد | F8: 2001-03-16 | G8: 15 | H8: 6 | I8: 17 | J8: 71 | K8: 7.5 | L8: 13 | M8: غ | N8: 20.5 | O8: 8.5 | P8: 12.8 | Q8: غ | R8: 21.3 | S8: 4.5 | T8: 9.2 | U8: غ | V8: 13.7 | W8: 6 | X8: 10.5 | Y8: غ | Z8: 16.5 | AA8: 2 | AB8: 7 | AC8: غ | AD8: 9 | AE8: 3 | AF8: 5 | AG8: 5 | AH8: 10 | AI8: 6 | AJ8: غ | AK8: 14 | AL8: 15 | AM8: 29 | AN8: 8.5 | AO8: 5 | AP8: غ | AQ8: 13.5 | AR8: 8 | AS8: 15 | AT8: غ | AU8: 23 | AV8: 9 | AW8: 4 | AX8: غ | AY8: 13 | AZ8: 9 | BA8: 7 | BB8: غ | BC8: 16 | BD8: 9 | BE8: 3.5 | BF8: غ | BG8: 12.5 | BH8: 9.5 | BI8: 17 | BJ8: غ | BK8: 26.5 | BL8: 8 | BM8: 14 | BN8: غ | BO8: 22 | BP8: 236.5 | BQ8: 3 | BR8: 5.5 | BS8: غ | BT8: 8.5 | BU8: 4 | BV8: 6 | BW8: غ | BX8: 95.5 | BY8: ناجحة | BZ8: 356 | CA8: 7 | CB8: 7 | CC8: 18 | CD8: ناجحة
A9: 2 | B9: 2 | C9: طالب تجارة 2 | D9: 1/1 | E9: مستجد | F9: 2002-10-08 | G9: 23 | H9: 11 | I9: 15 | J9: 72 | K9: 7 | L9: 13.5 | M9: 17 | N9: 37.5 | O9: 8.5 | P9: 14 | Q9: 11.2 | R9: 33.7 | S9: 4.5 | T9: 10.4 | U9: 8 | V9: 22.9 | W9: 6 | X9: 10 | Y9: 13 | Z9: 29 | AA9: 5 | AB9: 8.5 | AC9: 9 | AD9: 22.5 | AE9: 3 | AF9: 5 | AG9: 6 | AH9: 10 | AI9: 5 | AJ9: 8 | AK9: 14 | AL9: 23 | AM9: 37 | AN9: 8.5 | AO9: 9 | AP9: 17 | AQ9: 34.5 | AR9: 8 | AS9: 14 | AT9: 14.5 | AU9: 36.5 | AV9: 9 | AW9: 12 | AX9: 19 | AY9: 40 | AZ9: 8.5 | BA9: 10 | BB9: 11 | BC9: 29.5 | BD9: 9 | BE9: 16.5 | BF9: 17.5 | BG9: 43 | BH9: 9.5 | BI9: 12.5 | BJ9: 16 | BK9: 38 | BL9: 7.5 | BM9: 11 | BN9: 13 | BO9: 31.5 | BP9: 435.6 | BQ9: 3 | BR9: 5.5 | BS9: 7 | BT9: 15.5 | BU9: 3.5 | BV9: 6.5 | BW9: 5.5 | BX9: 137.4 | BY9: ناجحة | BZ9: 34 | CA9: 7 | CB9: 8 | CC9: 19 | CD9: ناجحة
A10: 3 | B10: 3 | C10: طالب تجارة 3 | D10: 1/1 | E10: مستجد | F10: 2002-10-01 | G10: 0 | H10: 0 | I10: 16 | J10: 73 | K10: 7.5 | L10: 13 | M10: 14.5 | N10: 35 | O10: 8.5 | P10: 14 | Q10: 11.6 | R10: 34.1 | S10: 5 | T10: 10 | U10: 7.6 | V10: 22.6 | W10: 6 | X10: 10 | Y10: 12 | Z10: 28 | AA10: 5.5 | AB10: 8.5 | AC10: 8.5 | AD10: 22.5 | AE10: 3 | AF10: 5 | AG10: 6 | AH10: 10 | AI10: 5 | AJ10: 7 | AK10: 14 | AL10: 22 | AM10: 36 | AN10: 8.5 | AO10: 6 | AP10: 17 | AQ10: 31.5 | AR10: 8 | AS10: 15.5 | AT10: 14.5 | AU10: 38 | AV10: 9 | AW10: 8.5 | AX10: 16.5 | AY10: 34 | AZ10: 8.5 | BA10: 10 | BB10: 8 | BC10: 26.5 | BD10: 9 | BE10: 11 | BF10: 17.5 | BG10: 37.5 | BH10: 9.5 | BI10: 13.5 | BJ10: 12 | BK10: 35 | BL10: 7.5 | BM10: 10 | BN10: 10 | BO10: 27.5 | BP10: 408.2 | BQ10: 3 | BR10: 4.5 | BS10: 6 | BT10: 13.5 | BU10: 4 | BV10: 7.5 | BW10: 4.5 | BX10: 130 | BY10: ناجحة | BZ10: 68 | CA10: 6 | CB10: 4 | CC10: 14 | CD10: ناجحة
A11: 4 | B11: 4 | C11: طالب تجارة 4 | D11: 1/1 | E11: مستجد | F11: 2002-05-19 | G11: 12 | H11: 4 | I11: 16 | J11: 74 | K11: 7.5 | L11: 12 | M11: 13 | N11: 32.5 | O11: 8.5 | P11: 14.4 | Q11: 12 | R11: 34.9 | S11: 5 | T11: 9.2 | U11: 8 | V11: 22.2 | W11: 6 | X11: 11 | Y11: 13.5 | Z11: 30.5 | AA11: 3 | AB11: 7 | AC11: 9 | AD11: 19 | AE11: 2.5 | AF11: 5 | AG11: 6 | AH11: 10 | AI11: 6 | AJ11: 8 | AK11: 14.5 | AL11: 23 | AM11: 37.5 | AN11: 8.5 | AO11: 5 | AP11: 17 | AQ11: 30.5 | AR11: 8 | AS11: 15 | AT11: 13 | AU11: 36 | AV11: 9 | AW11: 10 | AX11: 15.5 | AY11: 34.5 | AZ11: 9 | BA11: 11 | BB11: 9 | BC11: 29 | BD11: 9 | BE11: 12.5 | BF11: 17.5 | BG11: 39 | BH11: 9.5 | BI11: 12 | BJ11: 12 | BK11: 33.5 | BL11: 8.5 | BM11: 14 | BN11: 8 | BO11: 30.5 | BP11: 409.6 | BQ11: 3 | BR11: 4 | BS11: 4.5 | BT11: 11.5 | BU11: 3.5 | BV11: 6 | BW11: 2.5 | BX11: 131.1 | BY11: ناجحة | BZ11: 65 | CA11: 8 | CB11: 8 | CC11: 20 | CD11: ناجحة
A12: 5 | B12: 5 | C12: طالب تجارة 5 | D12: 1/1 | E12: مستجد | F12: 2002-02-27 | G12: 4 | H12: 7 | I12: 16 | J12: 75 | K12: 7.5 | L12: 14 | M12: 15 | N12: 36.5 | O12: 8.5 | P12: 13.2 | Q12: 11.6 | R12: 33.3 | S12: 4.5 | T12: 9.6 | U12: 6.8 | V12: 20.9 | W12: 6 | X12: 12.5 | Y12: 13 | Z12: 31.5 | AA12: 3 | AB12: 7 | AC12: 10.5 | AD12: 20.5 | AE12: 2.5 | AF12: 5 | AG12: 6 | AH12: 10 | AI12: 6 | AJ12: 10 | AK12: 14.5 | AL12: 25 | AM12: 39.5 | AN12: 8.5 | AO12: 4 | AP12: 18 | AQ12: 30.5 | AR12: 8 | AS12: 16.5 | AT12: 14 | AU12: 38.5 | AV12: 9 | AW12: 12.5 | AX12: 17 | AY12: 38.5 | AZ12: 9 | BA12: 9 | BB12: 11 | BC12: 29 | BD12: 9 | BE12: 16.5 | BF12: 19 | BG12: 44.5 | BH12: 9.5 | BI12: 12.5 | BJ12: 14 | BK12: 36 | BL12: 8.5 | BM12: 12 | BN12: 14 | BO12: 34.5 | BP12: 433.7 | BQ12: 3 | BR12: 4.5 | BS12: 6 | BT12: 13.5 | BU12: 3.5 | BV12: 6.5 | BW12: 2.5 | BX12: 141.3 | BY12: ناجحة | BZ12: 35 | CA12: 8 | CB12: 5 | CC12: 17 | CD12: ناجحة
A13: 6 | B13: 6 | C13: طالب تجارة 6 | D13: 1/1 | E13: مستجد | F13: 2002-03-18 | G13: 13 | H13: 6 | I13: 16 | J13: 76 | K13: 7.5 | L13: 14.5 | M13: 15.5 | N13: 37.5 | O13: 8 | P13: 13.2 | Q13: 10.8 | R13: 32 | S13: 4.5 | T13: 8.8 | U13: 6.8 | V13: 20.1 | W13: 6 | X13: 6 | Y13: 12 | Z13: 24 | AA13: 5 | AB13: 2 | AC13: 8.5 | AD13: 15.5 | AE13: 2.5 | AF13: 5 | AG13: 5 | AH13: 11 | AI13: 6 | AJ13: 10 | AK13: 13.5 | AL13: 26 | AM13: 39.5 | AN13: 8.5 | AO13: 9 | AP13: 18 | AQ13: 35.5 | AR13: 8 | AS13: 16 | AT13: 12.5 | AU13: 36.5 | AV13: 9 | AW13: 1.5 | AX13: 18 | AY13: 28.5 | AZ13: 8.5 | BA13: 6 | BB13: 10.5 | BC13: 25 | BD13: 9 | BE13: 1 | BF13: 17 | BG13: 27 | BH13: 9.5 | BI13: 10.5 | BJ13: 17 | BK13: 37 | BL13: 7.5 | BM13: 12 | BN13: 12 | BO13: 31.5 | BP13: 389.6 | BQ13: 3 | BR13: 3.5 | BS13: 5.5 | BT13: 12 | BU13: 3.5 | BV13: 5.5 | BW13: 2 | BX13: 111.5 | BY13: ناجحة | BZ13: 93 | CA13: 8 | CB13: 6 | CC13: 18 | CD13: ناجحة
A14: 7 | B14: 7 | C14: طالب تجارة 7 | D14: 2/1 | E14: مستجد | F14: 2002-07-01 | G14: 0 | H14: 3 | I14: 16 | J14: 77 | K14: 7.5 | L14: 11 | M14: 14 | N14: 32.5 | O14: 8.5 | P14: 13.6 | Q14: 13.2 | R14: 35.3 | S14: 4.5 | T14: 9.2 | U14: 6.8 | V14: 20.5 | W14: 6 | X14: 6.5 | Y14: 10.5 | Z14: 23 | AA14: 5 | AB14: 1.5 | AC14: 8.5 | AD14: 15 | AE14: 3 | AF14: 5 | AG14: 6 | AH14: 10 | AI14: 5 | AJ14: 10 | AK14: 14 | AL14: 25 | AM14: 39 | AN14: 9 | AO14: 6 | AP14: 17 | AQ14: 32 | AR14: 8 | AS14: 16 | AT14: 14 | AU14: 38 | AV14: 9 | AW14: 9 | AX14: 18 | AY14: 36 | AZ14: 9 | BA14: 6 | BB14: 10 | BC14: 25 | BD14: 9 | BE14: 1 | BF14: 19.5 | BG14: 29.5 | BH14: 9.5 | BI14: 15 | BJ14: 16 | BK14: 40.5 | BL14: 7.5 | BM14: 8 | BN14: 11 | BO14: 26.5 | BP14: 392.8 | BQ14: 3 | BR14: 4.5 | BS14: 7 | BT14: 14.5 | BU14: 3.5 | BV14: 5.5 | BW14: 4 | BX14: 112.3 | BY14: ناجحة | BZ14: 92 | CA14: 6 | CB14: 8 | CC14: 18 | CD14: ناجحة
A15: 8 | B15: 8 | C15: طالب تجارة 8 | D15: 1/1 | E15: مستجد | F15: 2002-10-26 | G15: 5 | H15: 11 | I15: 15 | J15: 78 | K15: 7.5 | L15: 13.5 | M15: 17.5 | N15: 38.5 | O15: 8.5 | P15: 13.6 | Q15: 14 | R15: 36.1 | S15: 4.5 | T15: 9.2 | U15: 6.4 | V15: 20.1 | W15: 6 | X15: 13 | Y15: 14 | Z15: 33 | AA15: 3.5 | AB15: 7 | AC15: 9 | AD15: 19.5 | AE15: 2.5 | AF15: 5 | AG15: 6 | AH15: 11 | AI15: 6 | AJ15: 10 | AK15: 14.5 | AL15: 26 | AM15: 40.5 | AN15: 8.5 | AO15: 9 | AP15: 15 | AQ15: 32.5 | AR15: 8 | AS15: 14 | AT15: 14.5 | AU15: 36.5 | AV15: 9 | AW15: 13 | AX15: 17.5 | AY15: 39.5 | AZ15: 8.5 | BA15: 9 | BB15: 9 | BC15: 26.5 | BD15: 9 | BE15: 11 | BF15: 19 | BG15: 39 | BH15: 9.5 | BI15: 15 | BJ15: 15 | BK15: 39.5 | BL15: 8.5 | BM15: 18 | BN15: 16 | BO15: 42.5 | BP15: 443.7 | BQ15: 3 | BR15: 5.5 | BS15: 7 | BT15: 15.5 | BU15: 3.5 | BV15: 6.5 | BW15: 5 | BX15: 135.3 | BY15: ناجحة | BZ15: 21 | CA15: 7 | CB15: 7 | CC15: 18 | CD15: ناجحة
A16: 9 | B16: 9 | C16: طالب تجارة 9 | D16: 1/1 | E16: مستجد | F16: 2002-03-13 | G16: 18 | H16: 6 | I16: 16 | J16: 79 | K16: 7.5 | L16: 6 | M16: 12.5 | N16: 26 | O16: 8 | P16: 12 | Q16: 9.2 | R16: 29.2 | S16: 4.5 | T16: 8.4 | U16: 6.8 | V16: 19.7 | W16: 6 | X16: 9.5 | Y16: 11.5 | Z16: 27 | AA16: 5.5 | AB16: 1 | AC16: 8.5 | AD16: 15 | AE16: 3 | AF16: 5 | AG16: 6 | AH16: 10 | AI16: 5 | AJ16: 10 | AK16: 14 | AL16: 25 | AM16: 39 | AN16: 8.5 | AO16: 8 | AP16: 16 | AQ16: 32.5 | AR16: 8 | AS16: 12.5 | AT16: 13.5 | AU16: 34 | AV16: 9 | AW16: 4.5 | AX16: 12.5 | AY16: 26 | AZ16: 8.5 | BA16: 6 | BB16: 10.5 | BC16: 25 | BD16: 9 | BE16: 8.5 | BF16: 14 | BG16: 31.5 | BH16: 9 | BI16: 13 | BJ16: 16 | BK16: 38 | BL16: 7.5 | BM16: 17 | BN16: 13 | BO16: 37.5 | BP16: 380.4 | BQ16: 3 | BR16: 3 | BS16: 4.5 | BT16: 10.5 | BU16: 3.5 | BV16: 2 | BW16: 4.5 | BX16: 108.4 | BY16: ناجحة | BZ16: 108 | CA16: 6 | CB16: 7 | CC16: 17 | CD16: ناجحة
A17: 10 | B17: 10 | C17: طالب تجارة 10 | D17: 1/1 | E17: مستجد | F17: 2001-03-01 | G17: 0 | H17: 7 | I17: 17 | J17: 80 | K17: 7.5 | L17: 9.5 | M17: 15 | N17: 32 | O17: 8 | P17: 12.4 | Q17: 12 | R17: 32.4 | S17: 4.5 | T17: 8 | U17: 6.4 | V17: 18.9 | W17: 6 | X17: 9 | Y17: 10 | Z17: 25 | AA17: 4.5 | AB17: 1.5 | AC17: 9 | AD17: 15 | AE17: 2.5 | AF17: 5 | AG17: 5 | AH17: 10 | AI17: 6 | AJ17: 9 | AK17: 13.5 | AL17: 24 | AM17: 37.5 | AN17: 8.5 | AO17: 12 | AP17: 14 | AQ17: 34.5 | AR17: 8 | AS17: 7 | AT17: 10 | AU17: 25 | AV17: 9 | AW17: 3.5 | AX17: 10.5 | AY17: 23 | AZ17: 9 | BA17: 11 | BB17: 8 | BC17: 28 | BD17: 9 | BE17: 1 | BF17: 15 | BG17: 25 | BH17: 9.5 | BI17: 10.5 | BJ17: 14 | BK17: 34 | BL17: 8 | BM17: 11 | BN17: 12 | BO17: 31 | BP17: 361.3 | BQ17: 3 | BR17: 5 | BS17: 4 | BT17: 12 | BU17: 3.5 | BV17: 6 | BW17: 5 | BX17: 104.9 | BY17: ناجحة | BZ17: 156 | CA17: 6 | CB17: 5 | CC17: 15 | CD17: ناجحة
A18: 11 | B18: 11 | C18: طالب تجارة 11 | D18: 1/1 | E18: مستجد | F18: 2002-04-21 | G18: 10 | H18: 5 | I18: 16 | J18: 81 | K18: 7.5 | L18: 11.5 | M18: 15.5 | N18: 34.5 | O18: 8 | P18: 14.4 | Q18: 10 | R18: 32.4 | S18: 4.5 | T18: 10.4 | U18: 5.6 | V18: 20.5 | W18: 6 | X18: 10.5 | Y18: 14 | Z18: 30.5 | AA18: 5 | AB18: 8.5 | AC18: 10 | AD18: 23.5 | AE18: 2.5 | AF18: 5 | AG18: 5 | AH18: 10 | AI18: 6 | AJ18: 9 | AK18: 13.5 | AL18: 24 | AM18: 37.5 | AN18: 8.5 | AO18: 15 | AP18: 16 | AQ18: 39.5 | AR18: 8 | AS18: 15 | AT18: 15 | AU18: 38 | AV18: 9 | AW18: 16 | AX18: 18.5 | AY18: 43.5 | AZ18: 9 | BA18: 13 | BB18: 17 | BC18: 39 | BD18: 9 | BE18: 13 | BF18: 15.5 | BG18: 37.5 | BH18: 9.5 | BI18: 10 | BJ18: 16 | BK18: 35.5 | BL18: 8 | BM18: 14 | BN18: 14 | BO18: 36 | BP18: 447.9 | BQ18: 3 | BR18: 5 | BS18: 6.5 | BT18: 14.5 | BU18: 3.5 | BV18: 4.5 | BW18: 4.5 | BX18: 132.3 | BY18: ناجحة | BZ18: 18 | CA18: 7 | CB18: 7 | CC18: 18 | CD18: ناجحة
A19: 12 | B19: 12 | C19: طالب تجارة 12 | D19: 1/1 | E19: مستجد | F19: 2002-03-05 | G19: 26 | H19: 6 | I19: 16 | J19: 82 | K19: 8 | L19: 14.5 | M19: 15 | N19: 37.5 | O19: 8.5 | P19: 12.8 | Q19: 11.2 | R19: 32.5 | S19: 4.5 | T19: 9.2 | U19: 5.2 | V19: 18.9 | W19: 6 | X19: 8.5 | Y19: 11.5 | Z19: 26 | AA19: 5.5 | AB19: 9 | AC19: 8 | AD19: 22.5 | AE19: 2.5 | AF19: 5 | AG19: 5 | AH19: 11 | AI19: 5 | AJ19: 7 | AK19: 12.5 | AL19: 23 | AM19: 35.5 | AN19: 8.5 | AO19: 8 | AP19: 18 | AQ19: 34.5 | AR19: 8 | AS19: 14.5 | AT19: 9.5 | AU19: 32 | AV19: 9 | AW19: 10.5 | AX19: 13.5 | AY19: 33 | AZ19: 9 | BA19: 13 | BB19: 16 | BC19: 38 | BD19: 9 | BE19: 9.5 | BF19: 13.5 | BG19: 32 | BH19: 9.5 | BI19: 16.5 | BJ19: 16 | BK19: 42 | BL19: 7.5 | BM19: 15 | BN19: 16 | BO19: 38.5 | BP19: 422.9 | BQ19: 3 | BR19: 4 | BS19: 7 | BT19: 14 | BU19: 3.5 | BV19: 4.5 | BW19: 4.5 | BX19: 123.5 | BY19: ناجحة | BZ19: 48 | CA19: 7 | CB19: 5 | CC19: 16 | CD19: ناجحة
A20: 13 | B20: 13 | C20: طالب تجارة 13 | D20: 1/1 | E20: مستجد | F20: 2002-12-10 | G20: 21 | H20: 9 | I20: 15 | J20: 83 | K20: 8 | L20: 16 | M20: 17 | N20: 41 | O20: 8 | P20: 12.8 | Q20: 11.6 | R20: 32.4 | S20: 4.5 | T20: 8.8 | U20: 6 | V20: 19.3 | W20: 6 | X20: 7.5 | Y20: 11 | Z20: 24.5 | AA20: 5.5 | AB20: 8 | AC20: 9.5 | AD20: 23 | AE20: 2.5 | AF20: 5 | AG20: 6 | AH20: 11 | AI20: 6 | AJ20: 8 | AK20: 14.5 | AL20: 24 | AM20: 38.5 | AN20: 8.5 | AO20: 11 | AP20: 17 | AQ20: 36.5 | AR20: 8 | AS20: 12 | AT20: 12 | AU20: 32 | AV20: 9 | AW20: 12 | AX20: 15 | AY20: 36 | AZ20: 9 | BA20: 10 | BB20: 16 | BC20: 35 | BD20: 9 | BE20: 11.5 | BF20: 15 | BG20: 35.5 | BH20: 9.5 | BI20: 13 | BJ20: 13 | BK20: 35.5 | BL20: 8.5 | BM20: 12 | BN20: 15 | BO20: 35.5 | BP20: 424.7 | BQ20: 3 | BR20: 5 | BS20: 6.5 | BT20: 14.5 | BU20: 3.5 | BV20: 5 | BW20: 3.5 | BX20: 127.1 | BY20: ناجحة | BZ20: 47 | CA20: 7 | CB20: 5 | CC20: 16 | CD20: ناجحة
A21: 14 | B21: 14 | C21: طالب تجارة 14 | D21: 1/1 | E21: مستجد | F21: 2002-10-12 | G21: 19 | H21: 11 | I21: 15 | J21: 84 | K21: 7.5 | L21: 13.5 | M21: 13 | N21: 34 | O21: 8 | P21: 12 | Q21: 10 | R21: 30 | S21: 4.5 | T21: 10.4 | U21: 6 | V21: 20.9 | W21: 6 | X21: 11 | Y21: 12 | Z21: 29 | AA21: 5 | AB21: 4 | AC21: 6.5 | AD21: 15.5 | AE21: 3 | AF21: 5 | AG21: 5 | AH21: 11 | AI21: 6 | AJ21: 4 | AK21: 14 | AL21: 20 | AM21: 34 | AN21: 8.5 | AO21: 9 | AP21: 16 | AQ21: 33.5 | AR21: 8 | AS21: 16.5 | AT21: 15 | AU21: 39.5 | AV21: 9 | AW21: 7 | AX21: 15.5 | AY21: 31.5 | AZ21: 8.5 | BA21: 9 | BB21: 17 | BC21: 34.5 | BD21: 9 | BE21: 0.5 | BF21: 16 | BG21: 25.5 | BH21: 9.5 | BI21: 15 | BJ21: 14 | BK21: 38.5 | BL21: 7.5 | BM21: 13 | BN21: 14 | BO21: 34.5 | BP21: 400.9 | BQ21: 3 | BR21: 4 | BS21: 6.5 | BT21: 13.5 | BU21: 3.5 | BV21: 6 | BW21: 5 | BX21: 110.4 | BY21: ناجحة | BZ21: 77 | CA21: 8 | CB21: 8 | CC21: 20 | CD21: ناجحة
A22: 15 | B22: 15 | C22: طالب تجارة 15 | D22: 1/1 | E22: مستجد | F22: 2001-03-21 | G22: 10 | H22: 6 | I22: 17 | J22: 85 | K22: 7.5 | L22: 15.5 | M22: 14.5 | N22: 37.5 | O22: 8.5 | P22: 13.2 | Q22: 8.8 | R22: 30.5 | S22: 4.5 | T22: 10 | U22: 7.2 | V22: 21.7 | W22: 6 | X22: 14 | Y22: 11 | Z22: 31 | AA22: 5 | AB22: 9 | AC22: 10 | AD22: 24 | AE22: 3 | AF22: 5 | AG22: 6 | AH22: 10 | AI22: 6 | AJ22: 4 | AK22: 15 | AL22: 19 | AM22: 34 | AN22: 8.5 | AO22: 8 | AP22: 14 | AQ22: 30.5 | AR22: 8 | AS22: 18 | AT22: 12 | AU22: 38 | AV22: 9 | AW22: 11.5 | AX22: 14 | AY22: 34.5 | AZ22: 9 | BA22: 13 | BB22: 15 | BC22: 37 | BD22: 9 | BE22: 10.5 | BF22: 15 | BG22: 34.5 | BH22: 9.5 | BI22: 17 | BJ22: 15 | BK22: 41.5 | BL22: 8 | BM22: 13 | BN22: 14 | BO22: 35 | BP22: 429.7 | BQ22: 3 | BR22: 4.5 | BS22: 6.5 | BT22: 14 | BU22: 3.5 | BV22: 4.5 | BW22: 6 | BX22: 130.7 | BY22: ناجحة | BZ22: 40 | CA22: 7 | CB22: 7 | CC22: 18 | CD22: ناجحة
A23: 16 | B23: 16 | C23: طالب تجارة 16 | D23: 1/1 | E23: مستجد | F23: 2002-10-13 | G23: 18 | H23: 11 | I23: 15 | J23: 86 | K23: 7.5 | L23: 13.5 | M23: 13.5 | N23: 34.5 | O23: 8.5 | P23: 13.2 | Q23: 9.2 | R23: 30.9 | S23: 4.5 | T23: 8.8 | U23: 5.2 | V23: 18.5 | W23: 6 | X23: 8.5 | Y23: 9 | Z23: 23.5 | AA23: 5 | AB23: 7.5 | AC23: 9.5 | AD23: 22 | AE23: 3 | AF23: 5 | AG23: 6 | AH23: 8 | AI23: 5 | AJ23: 9 | AK23: 14 | AL23: 22 | AM23: 36 | AN23: 8.5 | AO23: 15 | AP23: 18 | AQ23: 41.5 | AR23: 8 | AS23: 15 | AT23: 15.5 | AU23: 38.5 | AV23: 9 | AW23: 12 | AX23: 19 | AY23: 40 | AZ23: 8.5 | BA23: 12 | BB23: 13 | BC23: 33.5 | BD23: 9 | BE23: 14 | BF23: 18.5 | BG23: 41.5 | BH23: 9.5 | BI23: 15.5 | BJ23: 15 | BK23: 40 | BL23: 8 | BM23: 13 | BN23: 15 | BO23: 36 | BP23: 436.4 | BQ23: 3 | BR23: 3 | BS23: 6 | BT23: 12 | BU23: 4 | BV23: 4 | BW23: 5 | BX23: 132 | BY23: ناجحة | BZ23: 31 | CA23: 7 | CB23: 5 | CC23: 16 | CD23: ناجحة
A24: 17 | B24: 17 | C24: طالب تجارة 17 | D24: 1/1 | E24: مستجد | F24: 2001-03-18 | G24: 13 | H24: 6 | I24: 17 | J24: 87 | K24: 7.5 | L24: 17 | M24: 16 | N24: 40.5 | O24: 8.5 | P24: 12.8 | Q24: 14 | R24: 35.3 | S24: 4.5 | T24: 10.8 | U24: 5.2 | V24: 20.5 | W24: 6 | X24: 8.5 | Y24: 13 | Z24: 27.5 | AA24: 3.5 | AB24: 5.5 | AC24: 10.5 | AD24: 19.5 | AE24: 2.5 | AF24: 5 | AG24: 5 | AH24: 10 | AI24: 6 | AJ24: 9 | AK24: 13.5 | AL24: 24 | AM24: 37.5 | AN24: 8.5 | AO24: 8 | AP24: 18 | AQ24: 34.5 | AR24: 8 | AS24: 13.5 | AT24: 16 | AU24: 37.5 | AV24: 9 | AW24: 11.5 | AX24: 16.5 | AY24: 37 | AZ24: 8.5 | BA24: 12 | BB24: 12 | BC24: 32.5 | BD24: 9 | BE24: 2 | BF24: 19 | BG24: 30 | BH24: 9.5 | BI24: 14 | BJ24: 14 | BK24: 37.5 | BL24: 8 | BM24: 15 | BN24: 15 | BO24: 38 | BP24: 427.8 | BQ24: 3 | BR24: 5.5 | BS24: 5.5 | BT24: 14 | BU24: 3.5 | BV24: 6 | BW24: 6 | BX24: 123.6 | BY24: ناجحة | BZ24: 42 | CA24: 7 | CB24: 8 | CC24: 19 | CD24: ناجحة
A25: 18 | B25: 18 | C25: طالب تجارة 18 | D25: 1/1 | E25: مستجد | F25: 2002-06-16 | G25: 15 | H25: 3 | I25: 16 | J25: 88 | K25: 7.5 | L25: 16.5 | M25: 16 | N25: 40 | O25: 8.5 | P25: 14.8 | Q25: 11.6 | R25: 34.9 | S25: 4.5 | T25: 10.8 | U25: 5.6 | V25: 20.9 | W25: 6 | X25: 9 | Y25: 10 | Z25: 25 | AA25: 5 | AB25: 7 | AC25: 7.5 | AD25: 19.5 | AE25: 2.5 | AF25: 5 | AG25: 5 | AH25: 9 | AI25: 5 | AJ25: 7 | AK25: 12.5 | AL25: 21 | AM25: 33.5 | AN25: 8.5 | AO25: 11 | AP25: 18 | AQ25: 37.5 | AR25: 8 | AS25: 14.5 | AT25: 16 | AU25: 38.5 | AV25: 9 | AW25: 11 | AX25: 14 | AY25: 34 | AZ25: 9 | BA25: 11 | BB25: 12 | BC25: 32 | BD25: 9 | BE25: 5 | BF25: 17 | BG25: 31 | BH25: 9.5 | BI25: 17 | BJ25: 16 | BK25: 42.5 | BL25: 7.5 | BM25: 16 | BN25: 15 | BO25: 38.5 | BP25: 427.8 | BQ25: 3 | BR25: 5 | BS25: 7 | BT25: 15 | BU25: 3.5 | BV25: 6.5 | BW25: 5 | BX25: 126.6 | BY25: ناجحة | BZ25: 42 | CA25: 6 | CB25: 8 | CC25: 18 | CD25: ناجحة
A26: 19 | B26: 19 | C26: طالب تجارة 19 | D26: 1/1 | E26: مستجد | F26: 2002-12-09 | G26: 22 | H26: 9 | I26: 15 | J26: 89 | K26: 7 | L26: 14.5 | M26: 13 | N26: 34.5 | O26: 8.5 | P26: 14.4 | Q26: 10 | R26: 32.9 | S26: 4.5 | T26: 10.4 | U26: 7.2 | V26: 22.1 | W26: 6 | X26: 13.5 | Y26: 14 | Z26: 33.5 | AA26: 2.5 | AB26: 8 | AC26: 5 | AD26: 15.5 | AE26: 3 | AF26: 5 | AG26: 6 | AH26: 8 | AI26: 5 | AJ26: 9 | AK26: 14 | AL26: 22 | AM26: 36 | AN26: 8.5 | AO26: 7 | AP26: 13 | AQ26: 28.5 | AR26: 8 | AS26: 14 | AT26: 16 | AU26: 38 | AV26: 9 | AW26: 9 | AX26: 17 | AY26: 35 | AZ26: 9 | BA26: 7 | BB26: 12.5 | BC26: 28.5 | BD26: 9 | BE26: 4.5 | BF26: 14 | BG26: 27.5 | BH26: 9.5 | BI26: 14.5 | BJ26: 14 | BK26: 38 | BL26: 8 | BM26: 18 | BN26: 16 | BO26: 42 | BP26: 412 | BQ26: 3 | BR26: 4.5 | BS26: 7.5 | BT26: 15 | BU26: 4 | BV26: 7 | BW26: 6.5 | BX26: 127.8 | BY26: ناجحة | BZ26: 61 | CA26: 5 | CB26: 7 | CC26: 16 | CD26: ناجحة
A27: 20 | B27: 20 | C27: طالب تجارة 20 | D27: 1/1 | E27: مستجد | F27: 2002-03-17 | G27: 14 | H27: 6 | I27: 16 | J27: 90 | K27: 7.5 | L27: 14.5 | M27: 13.5 | N27: 35.5 | O27: 8 | P27: 11.2 | Q27: 7.6 | R27: 26.8 | S27: 4.5 | T27: 9.6 | U27: 7.6 | V27: 21.7 | W27: 6 | X27: 12.5 | Y27: 14 | Z27: 32.5 | AA27: 2.5 | AB27: 3.5 | AC27: 9.5 | AD27: 15.5 | AE27: 2.5 | AF27: 5 | AG27: 5 | AH27: 8 | AI27: 5 | AJ27: 9 | AK27: 12.5 | AL27: 22 | AM27: 34.5 | AN27: 8.5 | AO27: 7 | AP27: 13 | AQ27: 28.5 | AR27: 8 | AS27: 14 | AT27: 14.5 | AU27: 36.5 | AV27: 9 | AW27: 9.5 | AX27: 17.5 | AY27: 36 | AZ27: 9 | BA27: 6 | BB27: 16 | BC27: 31 | BD27: 9 | BE27: 12 | BF27: 16 | BG27: 37 | BH27: 9.5 | BI27: 15 | BJ27: 12 | BK27: 36.5 | BL27: 8 | BM27: 18 | BN27: 16 | BO27: 42 | BP27: 414 | BQ27: 3 | BR27: 4.5 | BS27: 6.5 | BT27: 14 | BU27: 4 | BV27: 6.5 | BW27: 5 | BX27: 127.8 | BY27: ناجحة | BZ27: 59 | CA27: 7 | CB27: 6 | CC27: 17 | CD27: ناجحة
A28: 21 | B28: 21 | C28: طالب تجارة 21 | D28: 1/1 | E28: مستجد | F28: 2003-04-01 | G28: 0 | H28: 6 | I28: 15 | J28: 91 | K28: 8 | L28: 14 | M28: 13 | N28: 35 | O28: 8.5 | P28: 14 | Q28: 10.4 | R28: 32.9 | S28: 4.5 | T28: 11.2 | U28: 6.8 | V28: 22.5 | W28: 6 | X28: 7 | Y28: 14 | Z28: 27 | AA28: 5 | AB28: 8.5 | AC28: 9 | AD28: 22.5 | AE28: 3 | AF28: 5 | AG28: 5 | AH28: 5 | AI28: 6 | AJ28: 9 | AK28: 14 | AL28: 19 | AM28: 33 | AN28: 8.5 | AO28: 11 | AP28: 15 | AQ28: 34.5 | AR28: 8 | AS28: 16.5 | AT28: 16.5 | AU28: 41 | AV28: 9 | AW28: 14 | AX28: 19 | AY28: 42 | AZ28: 9 | BA28: 6 | BB28: 14 | BC28: 29 | BD28: 9 | BE28: 15.5 | BF28: 19.5 | BG28: 44 | BH28: 9.5 | BI28: 16 | BJ28: 14 | BK28: 39.5 | BL28: 8 | BM28: 13 | BN28: 17 | BO28: 38 | BP28: 440.9 | BQ28: 3 | BR28: 5.5 | BS28: 7 | BT28: 15.5 | BU28: 3.5 | BV28: 4.5 | BW28: 4 | BX28: 138.2 | BY28: ناجحة | BZ28: 23 | CA28: 7 | CB28: 6 | CC28: 17 | CD28: ناجحة
A29: 22 | B29: 22 | C29: طالب تجارة 22 | D29: 1/1 | E29: مستجد | F29: 2003-03-02 | G29: 29 | H29: 6 | I29: 15 | J29: 92 | K29: 8 | L29: 12.5 | M29: 13 | N29: 33.5 | O29: 8.5 | P29: 12.8 | Q29: 10.4 | R29: 31.7 | S29: 4.5 | T29: 10.8 | U29: 7.6 | V29: 22.9 | W29: 6 | X29: 10.5 | Y29: 14 | Z29: 30.5 | AA29: 5.5 | AB29: 10 | AC29: 9.5 | AD29: 25 | AE29: 3 | AF29: 5 | AG29: 6 | AH29: 6 | AI29: 5 | AJ29: 9 | AK29: 14 | AL29: 20 | AM29: 34 | AN29: 8.5 | AO29: 11 | AP29: 15 | AQ29: 34.5 | AR29: 8 | AS29: 16.5 | AT29: 15 | AU29: 39.5 | AV29: 9 | AW29: 13 | AX29: 18.5 | AY29: 40.5 | AZ29: 8.5 | BA29: 10 | BB29: 14 | BC29: 32.5 | BD29: 9 | BE29: 11.5 | BF29: 19 | BG29: 39.5 | BH29: 9 | BI29: 15.5 | BJ29: 15 | BK29: 39.5 | BL29: 8 | BM29: 13 | BN29: 16 | BO29: 37 | BP29: 440.6 | BQ29: 3 | BR29: 5 | BS29: 6.5 | BT29: 14.5 | BU29: 4 | BV29: 3.5 | BW29: 4 | BX29: 135.1 | BY29: ناجحة | BZ29: 24 | CA29: 7 | CB29: 6 | CC29: 17 | CD29: ناجحة
A30: 23 | B30: 23 | C30: طالب تجارة 23 | D30: 1/1 | E30: مستجد | F30: 2001-03-27 | G30: 4 | H30: 6 | I30: 17 | J30: 93 | K30: 7 | L30: 14 | M30: 15 | N30: 36 | O30: 8 | P30: 13.6 | Q30: 10.4 | R30: 32 | S30: 5 | T30: 11.2 | U30: 8 | V30: 24.2 | W30: 6 | X30: 9.5 | Y30: 14 | Z30: 29.5 | AA30: 5 | AB30: 9 | AC30: 10 | AD30: 24 | AE30: 3 | AF30: 4.5 | AG30: 5 | AH30: 6 | AI30: 6 | AJ30: 9 | AK30: 14 | AL30: 19.5 | AM30: 33.5 | AN30: 8.5 | AO30: 9 | AP30: 17 | AQ30: 34.5 | AR30: 9 | AS30: 13.5 | AT30: 14.5 | AU30: 37 | AV30: 8 | AW30: 5.5 | AX30: 18.5 | AY30: 32 | AZ30: 9 | BA30: 12 | BB30: 10 | BC30: 31 | BD30: 9 | BE30: 4.5 | BF30: 17.5 | BG30: 31 | BH30: 9.5 | BI30: 16.5 | BJ30: 15 | BK30: 41 | BL30: 8 | BM30: 18 | BN30: 17 | BO30: 43 | BP30: 428.7 | BQ30: 3 | BR30: 5 | BS30: 7.5 | BT30: 15.5 | BU30: 4 | BV30: 5 | BW30: 6 | BX30: 127.3 | BY30: ناجحة | BZ30: 41 | CA30: 7 | CB30: 8 | CC30: 19 | CD30: ناجحة
A31: 24 | B31: 24 | C31: طالب تجارة 24 | D31: 1/1 | E31: مستجد | F31: 2002-01-12 | G31: 19 | H31: 8 | I31: 16 | J31: 94 | K31: 7 | L31: 10 | M31: 13.5 | N31: 30.5 | O31: 8.5 | P31: 15.6 | Q31: 7.6 | R31: 31.7 | S31: 4.5 | T31: 10.4 | U31: 7.2 | V31: 22.1 | W31: 6 | X31: 10 | Y31: 14 | Z31: 30 | AA31: 5.5 | AB31: 9.5 | AC31: 8.5 | AD31: 23.5 | AE31: 3 | AF31: 4 | AG31: 6 | AH31: 5 | AI31: 6 | AJ31: 9 | AK31: 15 | AL31: 18 | AM31: 33 | AN31: 8.5 | AO31: 10 | AP31: 10 | AQ31: 28.5 | AR31: 9 | AS31: 14.5 | AT31: 10.5 | AU31: 34 | AV31: 8.5 | AW31: 8.5 | AX31: 15.5 | AY31: 32.5 | AZ31: 9 | BA31: 5 | BB31: 12 | BC31: 26 | BD31: 9 | BE31: 3.5 | BF31: 15 | BG31: 27.5 | BH31: 9.5 | BI31: 16 | BJ31: 13 | BK31: 38.5 | BL31: 8 | BM31: 16 | BN31: 17 | BO31: 41 | BP31: 398.8 | BQ31: 3 | BR31: 4.5 | BS31: 6.5 | BT31: 14 | BU31: 4 | BV31: 5 | BW31: 4.5 | BX31: 122 | BY31: ناجحة | BZ31: 81 | CA31: 7 | CB31: 8 | CC31: 19 | CD31: ناجحة
A32: 25 | B32: 25 | C32: طالب تجارة 25 | D32: 1/1 | E32: مستجد | F32: 2002-05-22 | G32: 9 | H32: 4 | I32: 16 | J32: 95 | K32: 7 | L32: 15 | M32: 13 | N32: 35 | O32: 9 | P32: 12 | Q32: 6.4 | R32: 27.4 | S32: 5 | T32: 10.4 | U32: 7.6 | V32: 23 | W32: 6 | X32: 9 | Y32: 14 | Z32: 29 | AA32: 2 | AB32: 4.5 | AC32: 8.5 | AD32: 15 | AE32: 3 | AF32: 4 | AG32: 5 | AH32: 7 | AI32: 6 | AJ32: 10 | AK32: 14 | AL32: 21 | AM32: 35 | AN32: 8.5 | AO32: 6 | AP32: 12 | AQ32: 26.5 | AR32: 8.5 | AS32: 16 | AT32: 15.5 | AU32: 40 | AV32: 8 | AW32: 5.5 | AX32: 16.5 | AY32: 30 | AZ32: 9 | BA32: 8 | BB32: 12.5 | BC32: 29.5 | BD32: 9 | BE32: 5.5 | BF32: 16 | BG32: 30.5 | BH32: 9.5 | BI32: 15 | BJ32: 14 | BK32: 38.5 | BL32: 8.5 | BM32: 17 | BN32: 15 | BO32: 40.5 | BP32: 399.9 | BQ32: 3 | BR32: 5 | BS32: 7 | BT32: 15 | BU32: 3.5 | BV32: 5 | BW32: 2 | BX32: 120.4 | BY32: ناجحة | BZ32: 78 | CA32: 7 | CB32: 8 | CC32: 19 | CD32: ناجحة
A33: 26 | B33: 26 | C33: طالب تجارة 26 | D33: 1/1 | E33: مستجد | F33: 2001-09-08 | G33: 23 | H33: 0 | I33: 17 | J33: 96 | K33: 7.5 | L33: 10.5 | M33: 11.5 | N33: 29.5 | O33: 9 | P33: 12 | Q33: 7.2 | R33: 28.2 | S33: 4.5 | T33: 10.4 | U33: 7.6 | V33: 22.5 | W33: 6 | X33: 12 | Y33: 14 | Z33: 32 | AA33: 2 | AB33: 6 | AC33: 7 | AD33: 15 | AE33: 2.5 | AF33: 4 | AG33: 6 | AH33: 6 | AI33: 5 | AJ33: 10 | AK33: 13.5 | AL33: 20 | AM33: 33.5 | AN33: 8.5 | AO33: 8 | AP33: 15 | AQ33: 31.5 | AR33: 8.5 | AS33: 17 | AT33: 14.5 | AU33: 40 | AV33: 8.5 | AW33: 2.5 | AX33: 16 | AY33: 27 | AZ33: 9 | BA33: 8 | BB33: 14.5 | BC33: 31.5 | BD33: 9 | BE33: 4 | BF33: 17.5 | BG33: 30.5 | BH33: 9.5 | BI33: 13.5 | BJ33: 12 | BK33: 35 | BL33: 8 | BM33: 17 | BN33: 17 | BO33: 42 | BP33: 398.2 | BQ33: 3 | BR33: 4 | BS33: 7 | BT33: 14 | BU33: 3.5 | BV33: 4.5 | BW33: 4 | BX33: 120.9 | BY33: ناجحة | BZ33: 83 | CA33: 7 | CB33: 7 | CC33: 18 | CD33: ناجحة
A34: 27 | B34: 27 | C34: طالب تجارة 27 | D34: 1/1 | E34: مستجد | F34: 2002-08-12 | G34: 19 | H34: 1 | I34: 16 | J34: 97 | K34: 7.5 | L34: 16.5 | M34: 15 | N34: 39 | O34: 9 | P34: 12.4 | Q34: 12.8 | R34: 34.2 | S34: 5 | T34: 10.4 | U34: 8 | V34: 23.4 | W34: 6 | X34: 12 | Y34: 14 | Z34: 32 | AA34: 3.5 | AB34: 4.5 | AC34: 7.5 | AD34: 15.5 | AE34: 3 | AF34: 4 | AG34: 6 | AH34: 11 | AI34: 5 | AJ34: 10 | AK34: 14 | AL34: 25 | AM34: 39 | AN34: 8.5 | AO34: 13 | AP34: 17 | AQ34: 38.5 | AR34: 9 | AS34: 11 | AT34: 15 | AU34: 35 | AV34: 8.5 | AW34: 14 | AX34: 19 | AY34: 41.5 | AZ34: 9 | BA34: 10 | BB34: 15 | BC34: 34 | BD34: 9 | BE34: 17.5 | BF34: 19 | BG34: 45.5 | BH34: 10 | BI34: 15.5 | BJ34: 13 | BK34: 38.5 | BL34: 8.5 | BM34: 20 | BN34: 15 | BO34: 43.5 | BP34: 459.6 | BQ34: 3 | BR34: 6 | BS34: 8 | BT34: 17 | BU34: 3.5 | BV34: 4.5 | BW34: 6 | BX34: 141.3 | BY34: ناجحة | BZ34: 12 | CA34: 7 | CB34: 7 | CC34: 18 | CD34: ناجحة
A35: 28 | B35: 28 | C35: طالب تجارة 28 | D35: 1/1 | E35: مستجد | F35: 2002-09-12 | G35: 19 | H35: 0 | I35: 16 | J35: 98 | K35: 7.5 | L35: 13 | M35: 13.5 | N35: 34 | O35: 9 | P35: 12.4 | Q35: 9.6 | R35: 31 | S35: 5 | T35: 9.6 | U35: 7.6 | V35: 22.2 | W35: 6 | X35: 13 | Y35: 14 | Z35: 33 | AA35: 2.5 | AB35: 5.5 | AC35: 7 | AD35: 15 | AE35: 3 | AF35: 4 | AG35: 6 | AH35: 7 | AI35: 5 | AJ35: 9 | AK35: 14 | AL35: 20 | AM35: 34 | AN35: 8.5 | AO35: 8 | AP35: 14 | AQ35: 30.5 | AR35: 9 | AS35: 12 | AT35: 12 | AU35: 33 | AV35: 8.5 | AW35: 11 | AX35: 16 | AY35: 35.5 | AZ35: 9 | BA35: 9 | BB35: 10 | BC35: 28 | BD35: 9 | BE35: 16 | BF35: 18 | BG35: 43 | BH35: 10 | BI35: 15 | BJ35: 14 | BK35: 39 | BL35: 8 | BM35: 17 | BN35: 16 | BO35: 41 | BP35: 419.2 | BQ35: 3 | BR35: 6 | BS35: 7 | BT35: 16 | BU35: 3.5 | BV35: 4.5 | BW35: 5 | BX35: 135.5 | BY35: ناجحة | BZ35: 51 | CA35: 7 | CB35: 8 | CC35: 19 | CD35: ناجحة
A36: 29 | B36: 29 | C36: طالب تجارة 29 | D36: 1/1 | E36: مستجد | F36: 2002-07-06 | G36: 25 | H36: 2 | I36: 16 | J36: 127 | K36: 7 | L36: 14 | M36: 16 | N36: 37 | O36: 9 | P36: 15.2 | Q36: 5.6 | R36: 29.8 | S36: 5 | T36: 10.4 | U36: 8 | V36: 23.4 | W36: 6 | X36: 10.5 | Y36: 14 | Z36: 30.5 | AA36: 2.5 | AB36: 5 | AC36: 7.5 | AD36: 15 | AE36: 3 | AF36: 4 | AG36: 5 | AH36: 8 | AI36: 5 | AJ36: 10 | AK36: 13 | AL36: 22 | AM36: 35 | AN36: 8.5 | AO36: 9 | AP36: 13 | AQ36: 30.5 | AR36: 9 | AS36: 14.5 | AT36: 15.5 | AU36: 39 | AV36: 9 | AW36: 13 | AX36: 18 | AY36: 40 | AZ36: 9 | BA36: 8 | BB36: 11 | BC36: 28 | BD36: 9 | BE36: 14.5 | BF36: 18.5 | BG36: 42 | BH36: 10 | BI36: 15 | BJ36: 11 | BK36: 36 | BL36: 9.5 | BM36: 15 | BN36: 15 | BO36: 39.5 | BP36: 425.7 | BQ36: 3 | BR36: 5 | BS36: 7 | BT36: 15 | BU36: 3.5 | BV36: 4.5 | BW36: 5.5 | BX36: 137.6 | BY36: ناجحة | BZ36: 45 | CA36: 5 | CB36: 7 | CC36: 16 | CD36: ناجحة
A37: 30 | B37: 30 | C37: طالب تجارة 30 | D37: 1/1 | E37: مستجد | F37: 2003-02-01 | G37: 0 | H37: 8 | I37: 15 | J37: 128 | K37: 7.5 | L37: 13.5 | M37: 11 | N37: 32 | O37: 9 | P37: 13.6 | Q37: 13.6 | R37: 36.2 | S37: 5 | T37: 5.6 | U37: 7.2 | V37: 17.8 | W37: 6 | X37: 14 | Y37: 12 | Z37: 32 | AA37: 5 | AB37: 4 | AC37: 9 | AD37: 18 | AE37: 3 | AF37: 4 | AG37: 5 | AH37: 11 | AI37: 5 | AJ37: 9 | AK37: 13 | AL37: 24 | AM37: 37 | AN37: 8.5 | AO37: 7 | AP37: 16 | AQ37: 31.5 | AR37: 9 | AS37: 11.5 | AT37: 12.5 | AU37: 33 | AV37: 8.5 | AW37: 14.5 | AX37: 18.5 | AY37: 41.5 | AZ37: 9 | BA37: 14 | BB37: 10 | BC37: 33 | BD37: 9 | BE37: 14.5 | BF37: 18 | BG37: 41.5 | BH37: 9.5 | BI37: 14 | BJ37: 8 | BK37: 31.5 | BL37: 8 | BM37: 8 | BN37: 18 | BO37: 34 | BP37: 419 | BQ37: 3 | BR37: 5 | BS37: 7 | BT37: 15 | BU37: 4 | BV37: 4.5 | BW37: 3.5 | BX37: 131.2 | BY37: ناجحة | BZ37: 52 | CA37: 5 | CB37: 7 | CC37: 16 | CD37: ناجحة
A38: 31 | B38: 31 | C38: طالب تجارة 31 | D38: 1/1 | E38: مستجد | F38: 2002-08-01 | G38: 0 | H38: 2 | I38: 16 | J38: 129 | K38: 7 | L38: 12 | M38: 13.5 | N38: 32.5 | O38: 8.5 | P38: 11.2 | Q38: 10.4 | R38: 30.1 | S38: 5 | T38: 8.4 | U38: 8 | V38: 21.4 | W38: 6 | X38: 13 | Y38: 15 | Z38: 34 | AA38: 2 | AB38: 5.5 | AC38: 7.5 | AD38: 15 | AE38: 2.5 | AF38: 4 | AG38: 5 | AH38: 10 | AI38: 5 | AJ38: 8 | AK38: 12.5 | AL38: 22 | AM38: 34.5 | AN38: 8.5 | AO38: 17 | AP38: 17 | AQ38: 42.5 | AR38: 9.5 | AS38: 13 | AT38: 15 | AU38: 37.5 | AV38: 8.5 | AW38: 11.5 | AX38: 15 | AY38: 35 | AZ38: 9 | BA38: 15 | BB38: 13 | BC38: 37 | BD38: 9 | BE38: 10.5 | BF38: 17 | BG38: 36.5 | BH38: 9.5 | BI38: 15 | BJ38: 15 | BK38: 39.5 | BL38: 8 | BM38: 14 | BN38: 19 | BO38: 41 | BP38: 436.5 | BQ38: 3 | BR38: 6 | BS38: 6.5 | BT38: 15.5 | BU38: 4 | BV38: 3.5 | BW38: 3 | BX38: 125.1 | BY38: ناجحة | BZ38: 30 | CA38: 8 | CB38: 8 | CC38: 20 | CD38: ناجحة
A39: 32 | B39: 32 | C39: طالب تجارة 32 | D39: 1/1 | E39: مستجد | F39: 2002-12-01 | G39: 0 | H39: 10 | I39: 15 | J39: 130 | K39: 7 | L39: 16 | M39: 12.5 | N39: 35.5 | O39: 8.5 | P39: 13.2 | Q39: 15.6 | R39: 37.3 | S39: 5 | T39: 9.6 | U39: 8 | V39: 22.6 | W39: 6 | X39: 9.5 | Y39: 16 | Z39: 31.5 | AA39: 5.5 | AB39: 8 | AC39: 8 | AD39: 21.5 | AE39: 3 | AF39: 4 | AG39: 6 | AH39: 11 | AI39: 5 | AJ39: 10 | AK39: 14 | AL39: 25 | AM39: 39 | AN39: 8.5 | AO39: 18 | AP39: 18 | AQ39: 44.5 | AR39: 9 | AS39: 15 | AT39: 18.5 | AU39: 42.5 | AV39: 8.5 | AW39: 13 | AX39: 14.5 | AY39: 36 | AZ39: 9 | BA39: 15 | BB39: 13 | BC39: 37 | BD39: 9 | BE39: 12.5 | BF39: 19 | BG39: 40.5 | BH39: 9.5 | BI39: 16 | BJ39: 15 | BK39: 40.5 | BL39: 8.5 | BM39: 13 | BN39: 18 | BO39: 39.5 | BP39: 467.9 | BQ39: 3 | BR39: 6 | BS39: 6.5 | BT39: 15.5 | BU39: 3.5 | BV39: 3 | BW39: 4.5 | BX39: 136.8 | BY39: ناجحة | BZ39: 7 | CA39: 7 | CB39: 7 | CC39: 18 | CD39: ناجحة
A40: 33 | B40: 33 | C40: طالب تجارة 33 | D40: 1/1 | E40: مستجد | F40: 2002-09-21 | G40: 10 | H40: 0 | I40: 16 | J40: 131 | K40: 7.5 | L40: 16 | M40: 16 | N40: 39.5 | O40: 8.5 | P40: 13.2 | Q40: 15.6 | R40: 37.3 | S40: 5 | T40: 6.8 | U40: 9.2 | V40: 21 | W40: 6 | X40: 13 | Y40: 16 | Z40: 35 | AA40: 5.5 | AB40: 10 | AC40: 9.5 | AD40: 25 | AE40: 3 | AF40: 4 | AG40: 5 | AH40: 11 | AI40: 5 | AJ40: 10 | AK40: 13 | AL40: 25 | AM40: 38 | AN40: 8.5 | AO40: 19 | AP40: 18 | AQ40: 45.5 | AR40: 8.5 | AS40: 15 | AT40: 17 | AU40: 40.5 | AV40: 8.5 | AW40: 15 | AX40: 19 | AY40: 42.5 | AZ40: 9 | BA40: 15 | BB40: 15 | BC40: 39 | BD40: 9 | BE40: 18 | BF40: 20 | BG40: 47 | BH40: 9.5 | BI40: 16.5 | BJ40: 15 | BK40: 41 | BL40: 9.5 | BM40: 19 | BN40: 19 | BO40: 47.5 | BP40: 498.8 | BQ40: 3 | BR40: 6.5 | BS40: 7 | BT40: 16.5 | BU40: 4 | BV40: 3.5 | BW40: 3.5 | BX40: 145.5 | BY40: ناجحة | BZ40: 1 | CA40: 8 | CB40: 6 | CC40: 18 | CD40: ناجحة
A41: 34 | B41: 34 | C41: طالب تجارة 34 | D41: 1/1 | E41: مستجد | F41: 2002-09-26 | G41: 5 | H41: 0 | I41: 16 | J41: 132 | K41: 7.5 | L41: 17.5 | M41: 15 | N41: 40 | O41: 9 | P41: 14.4 | Q41: 14 | R41: 37.4 | S41: 5 | T41: 5.6 | U41: 8.8 | V41: 19.4 | W41: 6 | X41: 14.5 | Y41: 16 | Z41: 36.5 | AA41: 2.5 | AB41: 8.5 | AC41: 9 | AD41: 20 | AE41: 3 | AF41: 4 | AG41: 6 | AH41: 9 | AI41: 5 | AJ41: 10 | AK41: 14 | AL41: 23 | AM41: 37 | AN41: 8.5 | AO41: 19 | AP41: 18 | AQ41: 45.5 | AR41: 9.5 | AS41: 15 | AT41: 17.5 | AU41: 42 | AV41: 9 | AW41: 15.5 | AX41: 16 | AY41: 40.5 | AZ41: 9 | BA41: 15 | BB41: 15 | BC41: 39 | BD41: 9 | BE41: 9 | BF41: 19.5 | BG41: 37.5 | BH41: 9.5 | BI41: 17.5 | BJ41: 15 | BK41: 42 | BL41: 9.5 | BM41: 19 | BN41: 19 | BO41: 47.5 | BP41: 484.3 | BQ41: 3 | BR41: 6.5 | BS41: 7 | BT41: 16.5 | BU41: 4 | BV41: 6 | BW41: 5 | BX41: 139 | BY41: ناجحة | BZ41: 4 | CA41: 7 | CB41: 6 | CC41: 17 | CD41: ناجحة
A42: 35 | B42: 35 | C42: طالب تجارة 35 | D42: 1/1 | E42: مستجد | F42: 2002-05-27 | G42: 4 | H42: 4 | I42: 16 | J42: 133 | K42: 7.5 | L42: 17.5 | M42: 16 | N42: 41 | O42: 8 | P42: 18.4 | Q42: 18 | R42: 44.4 | S42: 5 | T42: 6.8 | U42: 8.8 | V42: 20.6 | W42: 6 | X42: 14 | Y42: 14 | Z42: 34 | AA42: 2.5 | AB42: 7 | AC42: 8 | AD42: 17.5 | AE42: 3 | AF42: 4 | AG42: 5 | AH42: 10 | AI42: 6 | AJ42: 10 | AK42: 14 | AL42: 24 | AM42: 38 | AN42: 8.5 | AO42: 19 | AP42: 18 | AQ42: 45.5 | AR42: 9 | AS42: 16.5 | AT42: 17.5 | AU42: 43 | AV42: 8.5 | AW42: 15 | AX42: 14.5 | AY42: 38 | AZ42: 9 | BA42: 13 | BB42: 12 | BC42: 34 | BD42: 9 | BE42: 5 | BF42: 15.5 | BG42: 29.5 | BH42: 10 | BI42: 15.5 | BJ42: 15 | BK42: 40.5 | BL42: 8 | BM42: 18 | BN42: 19 | BO42: 45 | BP42: 471 | BQ42: 3 | BR42: 7 | BS42: 8 | BT42: 18 | BU42: 3.5 | BV42: 6.5 | BW42: 5 | BX42: 133.2 | BY42: ناجحة | BZ42: 6 | CA42: 7 | CB42: 6 | CC42: 17 | CD42: ناجحة
A43: 36 | B43: 36 | C43: طالب تجارة 36 | D43: 1/1 | E43: مستجد | F43: 2001-07-18 | G43: 13 | H43: 2 | I43: 17 | J43: 134 | K43: 7 | L43: 11.5 | M43: 15.5 | N43: 34 | O43: 9 | P43: 12 | Q43: 13.2 | R43: 34.2 | S43: 5 | T43: 6 | U43: 9.2 | V43: 20.2 | W43: 6 | X43: 10 | Y43: 12 | Z43: 28 | AA43: 2 | AB43: 8 | AC43: 8.5 | AD43: 18.5 | AE43: 3 | AF43: 4 | AG43: 5 | AH43: 10 | AI43: 5 | AJ43: 9 | AK43: 13 | AL43: 23 | AM43: 36 | AN43: 8.5 | AO43: 13 | AP43: 18 | AQ43: 39.5 | AR43: 9 | AS43: 17 | AT43: 16.5 | AU43: 42.5 | AV43: 8.5 | AW43: 15 | AX43: 18.5 | AY43: 42 | AZ43: 9 | BA43: 14 | BB43: 17 | BC43: 40 | BD43: 9 | BE43: 13.5 | BF43: 17 | BG43: 39.5 | BH43: 9.5 | BI43: 18 | BJ43: 15 | BK43: 42.5 | BL43: 8 | BM43: 18 | BN43: 19 | BO43: 45 | BP43: 461.9 | BQ43: 3 | BR43: 7 | BS43: 8 | BT43: 18 | BU43: 4 | BV43: 4.5 | BW43: 3.5 | BX43: 126 | BY43: ناجحة | BZ43: 11 | CA43: 7 | CB43: 6 | CC43: 17 | CD43: ناجحة
A44: 37 | B44: 37 | C44: طالب تجارة 37 | D44: 1/1 | E44: مستجد | F44: 2002-07-01 | G44: 0 | H44: 3 | I44: 16 | J44: 135 | K44: 9 | L44: 14 | M44: 15.5 | N44: 38.5 | O44: 9.5 | P44: 12 | Q44: 14.4 | R44: 35.9 | S44: 6 | T44: 6 | U44: 9.2 | V44: 21.2 | W44: 6 | X44: 14 | Y44: 12 | Z44: 32 | AA44: 5.5 | AB44: 10 | AC44: 10 | AD44: 25.5 | AE44: 3 | AF44: 5 | AG44: 5 | AH44: 10 | AI44: 6 | AJ44: 9 | AK44: 14 | AL44: 24 | AM44: 38 | AN44: 8.5 | AO44: 14 | AP44: 18 | AQ44: 40.5 | AR44: 8 | AS44: 16.5 | AT44: 17.5 | AU44: 42 | AV44: 8.5 | AW44: 14 | AX44: 18.5 | AY44: 41 | AZ44: 9 | BA44: 17 | BB44: 17 | BC44: 43 | BD44: 8 | BE44: 14.5 | BF44: 20 | BG44: 42.5 | BH44: 9.5 | BI44: 18 | BJ44: 15 | BK44: 42.5 | BL44: 8.5 | BM44: 17 | BN44: 19 | BO44: 44.5 | BP44: 487.1 | BQ44: 4 | BR44: 7 | BS44: 7.5 | BT44: 18.5 | BU44: 3.5 | BV44: 5.5 | BW44: 3.5 | BX44: 138.5 | BY44: ناجحة | BZ44: 3 | CA44: 7 | CB44: 7 | CC44: 18 | CD44: ناجحة
A45: 38 | B45: 38 | C45: طالب تجارة 38 | D45: 1/1 | E45: مستجد | F45: 2002-12-14 | G45: 17 | H45: 9 | I45: 15 | J45: 136 | K45: 7 | L45: 15.5 | M45: 11 | N45: 33.5 | O45: 9 | P45: 13.2 | Q45: 14.4 | R45: 36.6 | S45: 5 | T45: 6.4 | U45: 8.8 | V45: 20.2 | W45: 6 | X45: 12 | Y45: 14 | Z45: 32 | AA45: 2 | AB45: 7 | AC45: 6.5 | AD45: 15.5 | AE45: 2.5 | AF45: 4 | AG45: 5 | AH45: 9 | AI45: 6 | AJ45: 8 | AK45: 13.5 | AL45: 21 | AM45: 34.5 | AN45: 8.5 | AO45: 19 | AP45: 18 | AQ45: 45.5 | AR45: 8.5 | AS45: 14 | AT45: 17.5 | AU45: 40 | AV45: 8.5 | AW45: 10.5 | AX45: 13 | AY45: 32 | AZ45: 8.5 | BA45: 17 | BB45: 11 | BC45: 36.5 | BD45: 9 | BE45: 9.5 | BF45: 15 | BG45: 33.5 | BH45: 10 | BI45: 18 | BJ45: 15 | BK45: 43 | BL45: 8 | BM45: 15 | BN45: 19 | BO45: 42 | BP45: 444.8 | BQ45: 3 | BR45: 4.5 | BS45: 7 | BT45: 14.5 | BU45: 4 | BV45: 4.5 | BW45: 5 | BX45: 124.6 | BY45: ناجحة | BZ45: 20 | CA45: 8 | CB45: 8 | CC45: 20 | CD45: ناجحة
A46: 39 | B46: 39 | C46: طالب تجارة 39 | D46: 3/1 | E46: مستجد | F46: 2002-04-20 | G46: 11 | H46: 5 | I46: 16 | J46: 137 | K46: 7 | L46: 15.5 | M46: 11.5 | N46: 34 | O46: 8 | P46: 12 | Q46: 12.8 | R46: 32.8 | S46: 5 | T46: 6.8 | U46: 9.2 | V46: 21 | W46: 6 | X46: 10.5 | Y46: 15 | Z46: 31.5 | AA46: 2.5 | AB46: 7 | AC46: 6 | AD46: 15.5 | AE46: 2.5 | AF46: 4 | AG46: 6 | AH46: 9 | AI46: 6 | AJ46: 8 | AK46: 14.5 | AL46: 21 | AM46: 35.5 | AN46: 8.5 | AO46: 19 | AP46: 18 | AQ46: 45.5 | AR46: 8.5 | AS46: 16.5 | AT46: 18 | AU46: 43 | AV46: 8.5 | AW46: 9.5 | AX46: 16 | AY46: 34 | AZ46: 9 | BA46: 16 | BB46: 13 | BC46: 38 | BD46: 9 | BE46: 10.5 | BF46: 18.5 | BG46: 38 | BH46: 9.5 | BI46: 18 | BJ46: 14 | BK46: 41.5 | BL46: 8 | BM46: 15 | BN46: 19 | BO46: 42 | BP46: 452.3 | BQ46: 3 | BR46: 6 | BS46: 8 | BT46: 17 | BU46: 3.5 | BV46: 5 | BW46: 6.5 | BX46: 127.3 | BY46: ناجحة | BZ46: 15 | CA46: 6 | CB46: 7 | CC46: 17 | CD46: ناجحة
A47: 40 | B47: 40 | C47: طالب تجارة 40 | D47: 1/1 | E47: مستجد | F47: 2002-12-11 | G47: 20 | H47: 9 | I47: 15 | J47: 138 | K47: 7 | L47: 14.5 | M47: 15 | N47: 36.5 | O47: 9 | P47: 12.4 | Q47: 12.8 | R47: 34.2 | S47: 5 | T47: 8.8 | U47: 6.4 | V47: 20.2 | W47: 6 | X47: 13.5 | Y47: 15 | Z47: 34.5 | AA47: 5 | AB47: 8.5 | AC47: 8 | AD47: 21.5 | AE47: 3 | AF47: 4 | AG47: 5 | AH47: 9 | AI47: 5 | AJ47: 7 | AK47: 13 | AL47: 20 | AM47: 33 | AN47: 8.5 | AO47: 17 | AP47: 15 | AQ47: 40.5 | AR47: 8.5 | AS47: 16.5 | AT47: 17 | AU47: 42 | AV47: 8.5 | AW47: 11.5 | AX47: 16 | AY47: 36 | AZ47: 9 | BA47: 15 | BB47: 15 | BC47: 39 | BD47: 9 | BE47: 12 | BF47: 19 | BG47: 40 | BH47: 10 | BI47: 19 | BJ47: 15 | BK47: 44 | BL47: 8 | BM47: 15 | BN47: 19 | BO47: 42 | BP47: 463.4 | BQ47: 3 | BR47: 7.5 | BS47: 7.5 | BT47: 18 | BU47: 4 | BV47: 3.5 | BW47: 4.5 | BX47: 134.2 | BY47: ناجحة | BZ47: 9 | CA47: 7 | CB47: 7 | CC47: 18 | CD47: ناجحة
A48: 41 | B48: 41 | C48: طالب تجارة 41 | D48: 1/1 | E48: مستجد | F48: 2002-09-01 | G48: 0 | H48: 1 | I48: 16 | J48: 139 | K48: 7.5 | L48: 16 | M48: 17 | N48: 40.5 | O48: 9 | P48: 14.4 | Q48: 16 | R48: 39.4 | S48: 5 | T48: 9.2 | U48: 8.8 | V48: 23 | W48: 6 | X48: 15 | Y48: 11 | Z48: 32 | AA48: 2.5 | AB48: 6.5 | AC48: 7.5 | AD48: 16.5 | AE48: 3 | AF48: 4 | AG48: 6 | AH48: 9 | AI48: 6 | AJ48: 7 | AK48: 15 | AL48: 20 | AM48: 35 | AN48: 8.5 | AO48: 15 | AP48: 15 | AQ48: 38.5 | AR48: 8.5 | AS48: 17 | AT48: 17.5 | AU48: 43 | AV48: 8.5 | AW48: 13.5 | AX48: 18 | AY48: 40 | AZ48: 9 | BA48: 15 | BB48: 14.5 | BC48: 38.5 | BD48: 9 | BE48: 17.5 | BF48: 19.5 | BG48: 46 | BH48: 9.5 | BI48: 18.5 | BJ48: 15 | BK48: 43 | BL48: 9.5 | BM48: 19 | BN48: 19 | BO48: 47.5 | BP48: 482.9 | BQ48: 3.5 | BR48: 6.5 | BS48: 6 | BT48: 16 | BU48: 4 | BV48: 4.5 | BW48: 7.5 | BX48: 143.6 | BY48: ناجحة | BZ48: 5 | CA48: 6 | CB48: 7 | CC48: 17 | CD48: ناجحة
A49: 42 | B49: 42 | C49: طالب تجارة 42 | D49: 1/1 | E49: مستجد | F49: 2002-10-15 | G49: 16 | H49: 11 | I49: 15 | J49: 140 | K49: 7.5 | L49: 14 | M49: 16 | N49: 37.5 | O49: 9 | P49: 8.4 | Q49: 10.4 | R49: 27.8 | S49: 5 | T49: 5.6 | U49: 6.4 | V49: 17 | W49: 6 | X49: 12.5 | Y49: 14 | Z49: 32.5 | AA49: 5 | AB49: 6.5 | AC49: 8 | AD49: 19.5 | AE49: 3 | AF49: 4 | AG49: 6 | AH49: 10 | AI49: 6 | AJ49: 10 | AK49: 15 | AL49: 24 | AM49: 39 | AN49: 8.5 | AO49: 14 | AP49: 19 | AQ49: 41.5 | AR49: 9 | AS49: 9.5 | AT49: 16 | AU49: 34.5 | AV49: 8.5 | AW49: 8.5 | AX49: 13.5 | AY49: 30.5 | AZ49: 9 | BA49: 10 | BB49: 14 | BC49: 33 | BD49: 9 | BE49: 11 | BF49: 13 | BG49: 33 | BH49: 9 | BI49: 13 | BJ49: 14 | BK49: 36 | BL49: 8.5 | BM49: 13 | BN49: 19 | BO49: 40.5 | BP49: 422.3 | BQ49: 3 | BR49: 4 | BS49: 5 | BT49: 12 | BU49: 4 | BV49: 5 | BW49: 5.5 | BX49: 120 | BY49: ناجحة | BZ49: 50 | CA49: 8 | CB49: 7 | CC49: 19 | CD49: ناجحة
A50: 43 | B50: 43 | C50: طالب تجارة 43 | D50: 1/1 | E50: مستجد | F50: 2002-06-09 | G50: 22 | H50: 3 | I50: 16 | J50: 141 | K50: 7 | L50: 10.5 | M50: 10 | N50: 27.5 | O50: 8.5 | P50: 8.4 | Q50: 6 | R50: 22.9 | S50: 5 | T50: 8.8 | U50: 6.4 | V50: 20.2 | W50: 6 | X50: 7.5 | Y50: 12 | Z50: 25.5 | AA50: 2.5 | AB50: 5.5 | AC50: 7 | AD50: 15 | AE50: 3 | AF50: 4 | AG50: 5 | AH50: 9 | AI50: 5 | AJ50: 8 | AK50: 13 | AL50: 21 | AM50: 34 | AN50: 8.5 | AO50: 9 | AP50: 16 | AQ50: 33.5 | AR50: 9 | AS50: 14.5 | AT50: 15.5 | AU50: 39 | AV50: 8.5 | AW50: 6.5 | AX50: 13.5 | AY50: 28.5 | AZ50: 8.5 | BA50: 4 | BB50: 14 | BC50: 26.5 | BD50: 9 | BE50: 7.5 | BF50: 12 | BG50: 28.5 | BH50: 9.5 | BI50: 12 | BJ50: 14 | BK50: 35.5 | BL50: 8 | BM50: 16 | BN50: 18 | BO50: 42 | BP50: 378.6 | BQ50: 3 | BR50: 3 | BS50: 5 | BT50: 11 | BU50: 4 | BV50: 5.5 | BW50: 6.5 | BX50: 106.7 | BY50: ناجحة | BZ50: 110 | CA50: 7 | CB50: 8 | CC50: 19 | CD50: ناجحة
A51: 44 | B51: 44 | C51: طالب تجارة 44 | D51: 1/1 | E51: مستجد | F51: 2001-04-05 | G51: 26 | H51: 5 | I51: 17 | J51: 142 | K51: 7.5 | L51: 10.5 | M51: 10 | N51: 28 | O51: 9 | P51: 11.2 | Q51: 7.2 | R51: 27.4 | S51: 5 | T51: 9.6 | U51: 7.6 | V51: 22.2 | W51: 6 | X51: 7.5 | Y51: 14 | Z51: 27.5 | AA51: 2.5 | AB51: 6.5 | AC51: 6 | AD51: 15 | AE51: 3 | AF51: 4 | AG51: 5 | AH51: 6 | AI51: 5 | AJ51: 9 | AK51: 13 | AL51: 19 | AM51: 32 | AN51: 8.5 | AO51: 11 | AP51: 18 | AQ51: 37.5 | AR51: 8.5 | AS51: 13 | AT51: 14.5 | AU51: 36 | AV51: 9 | AW51: 13 | AX51: 12.5 | AY51: 34.5 | AZ51: 9 | BA51: 5 | BB51: 12 | BC51: 26 | BD51: 9 | BE51: 5.5 | BF51: 10.5 | BG51: 25 | BH51: 9.5 | BI51: 12 | BJ51: 12 | BK51: 33.5 | BL51: 8 | BM51: 11 | BN51: 16 | BO51: 35 | BP51: 379.6 | BQ51: 3 | BR51: 4 | BS51: 4.5 | BT51: 11.5 | BU51: 3.5 | BV51: 0.5 | BW51: 6 | BX51: 109.3 | BY51: ناجحة | BZ51: 109 | CA51: 5 | CB51: 5 | CC51: 14 | CD51: ناجحة
A52: 45 | B52: 45 | C52: طالب تجارة 45 | D52: 1/1 | E52: مستجد | F52: 2001-04-27 | G52: 4 | H52: 5 | I52: 17 | J52: 143 | K52: 7 | L52: 17 | M52: 18 | N52: 42 | O52: 8 | P52: 16 | Q52: 15.6 | R52: 39.6 | S52: 4.5 | T52: 9.2 | U52: 9.2 | V52: 22.9 | W52: 6 | X52: 14 | Y52: 14 | Z52: 34 | AA52: 2.5 | AB52: 8.5 | AC52: 6.5 | AD52: 17.5 | AE52: 3 | AF52: 4 | AG52: 6 | AH52: 7 | AI52: 6 | AJ52: 10 | AK52: 15 | AL52: 21 | AM52: 36 | AN52: 8.5 | AO52: 18 | AP52: 19 | AQ52: 45.5 | AR52: 9.5 | AS52: 18 | AT52: 16 | AU52: 43.5 | AV52: 9 | AW52: 16.5 | AX52: 19.5 | AY52: 45 | AZ52: 9 | BA52: 13 | BB52: 15 | BC52: 37 | BD52: 9 | BE52: 15 | BF52: 19.5 | BG52: 43.5 | BH52: 10 | BI52: 18.5 | BJ52: 17 | BK52: 45.5 | BL52: 9 | BM52: 15 | BN52: 19 | BO52: 43 | BP52: 495 | BQ52: 3.5 | BR52: 5 | BS52: 6.5 | BT52: 15 | BU52: 4 | BV52: 5 | BW52: 6.5 | BX52: 149.2 | BY52: ناجحة | BZ52: 2 | CA52: 8 | CB52: 8 | CC52: 20 | CD52: ناجحة
A53: 46 | B53: 46 | C53: طالب تجارة 46 | D53: 1/1 | E53: مستجد | F53: 2002-09-30 | G53: 1 | H53: 0 | I53: 16 | J53: 144 | K53: 7.5 | L53: 14.5 | M53: 14.5 | N53: 36.5 | O53: 8.5 | P53: 12.8 | Q53: 13.2 | R53: 34.5 | S53: 4.5 | T53: 8.8 | U53: 6.8 | V53: 20.1 | W53: 6 | X53: 13 | Y53: 14 | Z53: 33 | AA53: 2.5 | AB53: 9.5 | AC53: 6 | AD53: 18 | AE53: 3 | AF53: 4 | AG53: 5 | AH53: 6 | AI53: 5 | AJ53: 10 | AK53: 13 | AL53: 20 | AM53: 33 | AN53: 8.5 | AO53: 15 | AP53: 19 | AQ53: 42.5 | AR53: 9 | AS53: 16.5 | AT53: 15 | AU53: 40.5 | AV53: 8.5 | AW53: 15 | AX53: 14 | AY53: 37.5 | AZ53: 9 | BA53: 13 | BB53: 15 | BC53: 37 | BD53: 9 | BE53: 15 | BF53: 18.5 | BG53: 42.5 | BH53: 9.5 | BI53: 14.5 | BJ53: 19 | BK53: 43 | BL53: 8.5 | BM53: 17 | BN53: 19 | BO53: 44.5 | BP53: 462.6 | BQ53: 3 | BR53: 5.5 | BS53: 7 | BT53: 15.5 | BU53: 4 | BV53: 4.5 | BW53: 6 | BX53: 141.1 | BY53: ناجحة | BZ53: 10 | CA53: 7 | CB53: 8 | CC53: 19 | CD53: ناجحة
A54: 47 | B54: 47 | C54: طالب تجارة 47 | D54: 1/1 | E54: مستجد | F54: 2001-12-01 | G54: 0 | H54: 10 | I54: 16 | J54: 145 | K54: 7.5 | L54: 16 | M54: 15 | N54: 38.5 | O54: 8.5 | P54: 13.2 | Q54: 12 | R54: 33.7 | S54: 5 | T54: 9.6 | U54: 6.8 | V54: 21.4 | W54: 6 | X54: 13 | Y54: 14 | Z54: 33 | AA54: 2.5 | AB54: 9.5 | AC54: 6 | AD54: 18 | AE54: 2.5 | AF54: 4 | AG54: 5 | AH54: 6 | AI54: 5 | AJ54: 10 | AK54: 12.5 | AL54: 20 | AM54: 32.5 | AN54: 8.5 | AO54: 16 | AP54: 19 | AQ54: 43.5 | AR54: 8.5 | AS54: 17.5 | AT54: 15 | AU54: 41 | AV54: 8.5 | AW54: 14.5 | AX54: 12.5 | AY54: 35.5 | AZ54: 9 | BA54: 10 | BB54: 16 | BC54: 35 | BD54: 9 | BE54: 10.5 | BF54: 15.5 | BG54: 35 | BH54: 9.5 | BI54: 12.5 | BJ54: 19 | BK54: 41 | BL54: 8 | BM54: 17 | BN54: 18 | BO54: 43 | BP54: 451.1 | BQ54: 3 | BR54: 4.5 | BS54: 7 | BT54: 14.5 | BU54: 3.5 | BV54: 5 | BW54: 5 | BX54: 135.8 | BY54: ناجحة | BZ54: 16 | CA54: 8 | CB54: 8 | CC54: 20 | CD54: ناجحة
A55: 48 | B55: 48 | C55: طالب تجارة 48 | D55: 1/1 | E55: مستجد | F55: 2001-09-11 | G55: 20 | H55: 0 | I55: 17 | J55: 146 | K55: 7.5 | L55: 15 | M55: 12.5 | N55: 35 | O55: 9 | P55: 12.4 | Q55: 10.8 | R55: 32.2 | S55: 5 | T55: 9.6 | U55: 6 | V55: 20.6 | W55: 6 | X55: 13 | Y55: 12 | Z55: 31 | AA55: 2 | AB55: 9 | AC55: 6.5 | AD55: 17.5 | AE55: 3 | AF55: 4 | AG55: 5 | AH55: 6 | AI55: 5 | AJ55: 10 | AK55: 13 | AL55: 20 | AM55: 33 | AN55: 8.5 | AO55: 16 | AP55: 18 | AQ55: 42.5 | AR55: 9 | AS55: 16.5 | AT55: 15.5 | AU55: 41 | AV55: 8.5 | AW55: 15 | AX55: 13 | AY55: 36.5 | AZ55: 9 | BA55: 12 | BB55: 14 | BC55: 35 | BD55: 9 | BE55: 12 | BF55: 15.5 | BG55: 36.5 | BH55: 9.5 | BI55: 16 | BJ55: 19 | BK55: 44.5 | BL55: 8 | BM55: 15 | BN55: 19 | BO55: 42 | BP55: 447.3 | BQ55: 3 | BR55: 4.5 | BS55: 7 | BT55: 14.5 | BU55: 3.5 | BV55: 4.5 | BW55: 6.5 | BX55: 135.5 | BY55: ناجحة | BZ55: 19 | CA55: 8 | CB55: 8 | CC55: 20 | CD55: ناجحة
A56: 49 | B56: 49 | C56: طالب تجارة 49 | D56: 1/1 | E56: مستجد | F56: 2002-06-26 | G56: 5 | H56: 3 | I56: 16 | J56: 147 | K56: 7 | L56: 13 | M56: 15.5 | N56: 35.5 | O56: 9 | P56: 14.8 | Q56: 10.8 | R56: 34.6 | S56: 5 | T56: 10 | U56: 4.8 | V56: 19.8 | W56: 6 | X56: 9.5 | Y56: 14 | Z56: 29.5 | AA56: 2.5 | AB56: 8.5 | AC56: 4.5 | AD56: 15.5 | AE56: 3 | AF56: 4 | AG56: 5 | AH56: 6 | AI56: 6 | AJ56: 10 | AK56: 14 | AL56: 20 | AM56: 34 | AN56: 8.5 | AO56: 14 | AP56: 18 | AQ56: 40.5 | AR56: 9 | AS56: 16 | AT56: 15.5 | AU56: 40.5 | AV56: 8.5 | AW56: 13.5 | AX56: 14.5 | AY56: 36.5 | AZ56: 9 | BA56: 6 | BB56: 14 | BC56: 29 | BD56: 9 | BE56: 12 | BF56: 15.5 | BG56: 36.5 | BH56: 9.5 | BI56: 13.5 | BJ56: 17 | BK56: 40 | BL56: 8 | BM56: 16 | BN56: 17 | BO56: 41 | BP56: 432.9 | BQ56: 3 | BR56: 5 | BS56: 8 | BT56: 16 | BU56: 3.5 | BV56: 5 | BW56: 5 | BX56: 132.3 | BY56: ناجحة | BZ56: 36 | CA56: 8 | CB56: 8 | CC56: 20 | CD56: ناجحة
A57: 50 | B57: 50 | C57: طالب تجارة 50 | D57: 2/1 | E57: مستجد | F57: 2001-08-14 | G57: 17 | H57: 1 | I57: 17 | J57: 148 | K57: 7.5 | L57: 13.5 | M57: 12.5 | N57: 33.5 | O57: 8.5 | P57: 12.4 | Q57: 8.8 | R57: 29.7 | S57: 5 | T57: 10 | U57: 5.6 | V57: 20.6 | W57: 6 | X57: 9 | Y57: 14 | Z57: 29 | AA57: 4.5 | AB57: 8 | AC57: 5 | AD57: 17.5 | AE57: 2.5 | AF57: 4 | AG57: 5 | AH57: 6 | AI57: 6 | AJ57: 11 | AK57: 13.5 | AL57: 21 | AM57: 34.5 | AN57: 8.5 | AO57: 9 | AP57: 19 | AQ57: 36.5 | AR57: 8.5 | AS57: 10.5 | AT57: 16 | AU57: 35 | AV57: 8.5 | AW57: 13.5 | AX57: 14.5 | AY57: 36.5 | AZ57: 9 | BA57: 5 | BB57: 13 | BC57: 27 | BD57: 9 | BE57: 10 | BF57: 15.5 | BG57: 34.5 | BH57: 9.5 | BI57: 7.5 | BJ57: 16 | BK57: 33 | BL57: 8 | BM57: 15 | BN57: 19 | BO57: 42 | BP57: 409.3 | BQ57: 3 | BR57: 5 | BS57: 7 | BT57: 15 | BU57: 4 | BV57: 5 | BW57: 6 | BX57: 127.9 | BY57: ناجحة | BZ57: 66 | CA57: 7 | CB57: 6 | CC57: 17 | CD57: ناجحة
A58: 51 | B58: 51 | C58: طالب تجارة 51 | D58: 2/1 | E58: مستجد | F58: 2002-03-02 | G58: 29 | H58: 6 | I58: 16 | J58: 149 | K58: 7 | L58: 14 | M58: 16.5 | N58: 37.5 | O58: 8.5 | P58: 14.4 | Q58: 10.8 | R58: 33.7 | S58: 5 | T58: 10 | U58: 6 | V58: 21 | W58: 6 | X58: 13 | Y58: 14 | Z58: 33 | AA58: 2.5 | AB58: 8 | AC58: 6.5 | AD58: 17 | AE58: 3 | AF58: 4 | AG58: 4 | AH58: 6 | AI58: 6 | AJ58: 11 | AK58: 13 | AL58: 21 | AM58: 34 | AN58: 8.5 | AO58: 9 | AP58: 19 | AQ58: 36.5 | AR58: 8.5 | AS58: 13.5 | AT58: 15.5 | AU58: 37.5 | AV58: 8.5 | AW58: 12.5 | AX58: 15.5 | AY58: 36.5 | AZ58: 9 | BA58: 5 | BB58: 13 | BC58: 27 | BD58: 9 | BE58: 12 | BF58: 13.5 | BG58: 34.5 | BH58: 10 | BI58: 10.5 | BJ58: 17 | BK58: 37.5 | BL58: 8 | BM58: 15 | BN58: 19 | BO58: 42 | BP58: 427.7 | BQ58: 3 | BR58: 5 | BS58: 7 | BT58: 15 | BU58: 4 | BV58: 5.5 | BW58: 6 | BX58: 134.4 | BY58: ناجحة | BZ58: 44 | CA58: 7 | CB58: 8 | CC58: 19 | CD58: ناجحة
A59: 52 | B59: 52 | C59: طالب تجارة 52 | D59: 2/1 | E59: مستجد | F59: 2001-07-01 | G59: 0 | H59: 3 | I59: 17 | J59: 150 | K59: 7 | L59: 10 | M59: 17 | N59: 34 | O59: 8 | P59: 13.6 | Q59: 11.6 | R59: 33.2 | S59: 5 | T59: 10 | U59: 6 | V59: 21 | W59: 6 | X59: 12 | Y59: 14 | Z59: 32 | AA59: 2 | AB59: 7.5 | AC59: 5.5 | AD59: 15 | AE59: 2.5 | AF59: 4 | AG59: 5 | AH59: 6 | AI59: 5 | AJ59: 10 | AK59: 12.5 | AL59: 20 | AM59: 32.5 | AN59: 8.5 | AO59: 9 | AP59: 19 | AQ59: 36.5 | AR59: 8.5 | AS59: 12.5 | AT59: 16 | AU59: 37 | AV59: 8.5 | AW59: 11.5 | AX59: 12 | AY59: 32 | AZ59: 9 | BA59: 5 | BB59: 13 | BC59: 27 | BD59: 9 | BE59: 4.5 | BF59: 13.5 | BG59: 27 | BH59: 9.5 | BI59: 10.5 | BJ59: 15 | BK59: 35 | BL59: 8 | BM59: 15 | BN59: 18 | BO59: 41 | BP59: 403.2 | BQ59: 3 | BR59: 6 | BS59: 7 | BT59: 16 | BU59: 4 | BV59: 5 | BW59: 5.5 | BX59: 119.6 | BY59: ناجحة | BZ59: 75 | CA59: 7 | CB59: 6 | CC59: 17 | CD59: ناجحة
A60: 53 | B60: 53 | C60: طالب تجارة 53 | D60: 2/1 | E60: مستجد | F60: 2002-06-29 | G60: 2 | H60: 3 | I60: 16 | J60: 151 | K60: 7.5 | L60: 14.5 | M60: 15 | N60: 37 | O60: 8 | P60: 14.8 | Q60: 11.6 | R60: 34.4 | S60: 4.5 | T60: 7.6 | U60: 5.6 | V60: 17.7 | W60: 6 | X60: 11.5 | Y60: 11 | Z60: 28.5 | AA60: 3 | AB60: 4.5 | AC60: 10.5 | AD60: 18 | AE60: 2.5 | AF60: 4 | AG60: 5 | AH60: 7 | AI60: 5 | AJ60: 11 | AK60: 12.5 | AL60: 22 | AM60: 34.5 | AN60: 8.5 | AO60: 10 | AP60: 19 | AQ60: 37.5 | AR60: 9 | AS60: 16 | AT60: 14.5 | AU60: 39.5 | AV60: 8.5 | AW60: 9 | AX60: 18.5 | AY60: 36 | AZ60: 9 | BA60: 3 | BB60: 13 | BC60: 25 | BD60: 9 | BE60: 2.5 | BF60: 19.5 | BG60: 31 | BH60: 9.5 | BI60: 15.5 | BJ60: 16 | BK60: 41 | BL60: 8 | BM60: 14 | BN60: 13 | BO60: 35 | BP60: 415.1 | BQ60: 3 | BR60: 5 | BS60: 6 | BT60: 14 | BU60: 4 | BV60: 5.5 | BW60: 7.5 | BX60: 124.9 | BY60: ناجحة | BZ60: 57 | CA60: 7 | CB60: 8 | CC60: 19 | CD60: ناجحة
A61: 54 | B61: 54 | C61: طالب تجارة 54 | D61: 2/1 | E61: مستجد | F61: 2002-10-20 | G61: 11 | H61: 11 | I61: 15 | J61: 152 | K61: 8.5 | L61: 14 | M61: 17.5 | N61: 40 | O61: 9 | P61: 15.2 | Q61: 14 | R61: 38.2 | S61: 4.5 | T61: 11.2 | U61: 8 | V61: 23.7 | W61: 6 | X61: 12 | Y61: 13 | Z61: 31 | AA61: 2 | AB61: 8.5 | AC61: 8.5 | AD61: 19 | AE61: 2.5 | AF61: 5 | AG61: 5 | AH61: 9 | AI61: 6 | AJ61: 11 | AK61: 13.5 | AL61: 25 | AM61: 38.5 | AN61: 8.5 | AO61: 11 | AP61: 15 | AQ61: 34.5 | AR61: 8 | AS61: 18.5 | AT61: 15 | AU61: 41.5 | AV61: 8.5 | AW61: 13.5 | AX61: 15.5 | AY61: 37.5 | AZ61: 9 | BA61: 14 | BB61: 18 | BC61: 41 | BD61: 8.5 | BE61: 16 | BF61: 19 | BG61: 43.5 | BH61: 10 | BI61: 17.5 | BJ61: 14 | BK61: 41.5 | BL61: 8.5 | BM61: 15 | BN61: 14 | BO61: 37.5 | BP61: 467.4 | BQ61: 3.5 | BR61: 4.5 | BS61: 7 | BT61: 15 | BU61: 3.5 | BV61: 4.5 | BW61: 6.5 | BX61: 145.9 | BY61: ناجحة | BZ61: 8 | CA61: 7 | CB61: 6 | CC61: 17 | CD61: ناجحة
